Workbook

Sheet Сделки
A1: Дата и время заключения сделки | B1: Номер сделки | C1: Номер заявки | D1: Код бумаги | E1: Краткое наименование инструмента | F1: Рынок | G1: Направление | H1: Кол-во ЦБ | I1: Цена | J1: Объём | K1: НКД | L1: Комиссия Брокера | M1: Суммарная комиссия ТС | N1: Дата расчётов | O1: Стоимость портфеля | P1: Мин. маржа | Q1: Нач. маржа | R1: Скор. маржа | S1: УДС
A2: 2019-05-27T14:13:00 | D2: RU000A0ZYKM5 | E2: Автодор1P2 | F2: ФБ ММВБ | G2: Купля | H2: 80 | I2: 100.02 | J2: 80016 | K2: 2911.2 | L2: 48.01 | M2: 8
A3: 2019-05-31T12:14:00 | D3: PIKK | E3: ПИК ао | F3: ФБ ММВБ | G3: Купля | H3: 5 | I3: 369.5 | J3: 18475 | K3: 0 | L3: 11.09 | M3: 1.72
A4: 2019-05-31T12:14:00 | D4: PIKK | E4: ПИК ао | F4: ФБ ММВБ | G4: Купля | H4: 7 | I4: 369.4 | J4: 25858 | K4: 0 | L4: 15.51 | M4: 2.4
A5: 2019-05-31T12:14:00 | D5: PIKK | E5: ПИК ао | F5: ФБ ММВБ | G5: Купля | H5: 8 | I5: 369.3 | J5: 29544 | K5: 0 | L5: 17.73 | M5: 2.75
A6: 2019-05-31T12:14:00 | D6: PIKK | E6: ПИК ао | F6: ФБ ММВБ | G6: Купля | H6: 19 | I6: 369.1 | J6: 70129 | K6: 0 | L6: 42.08 | M6: 6.52
A7: 2019-05-31T12:14:00 | D7: PIKK | E7: ПИК ао | F7: ФБ ММВБ | G7: Купля | H7: 5 | I7: 369 | J7: 18450 | K7: 0 | L7: 11.07 | M7: 1.72
A8: 2019-05-31T12:14:00 | D8: PIKK | E8: ПИК ао | F8: ФБ ММВБ | G8: Купля | H8: 1 | I8: 368.9 | J8: 3689 | K8: 0 | L8: 2.21 | M8: 0.35
A9: 2019-05-31T12:14:00 | D9: PIKK | E9: ПИК ао | F9: ФБ ММВБ | G9: Купля | H9: 4 | I9: 368.9 | J9: 14756 | K9: 0 | L9: 8.85 | M9: 1.37
A10: 2019-05-31T12:14:00 | D10: PIKK | E10: ПИК ао | F10: ФБ ММВБ | G10: Купля | H10: 5 | I10: 368.8 | J10: 18440 | K10: 0 | L10: 11.06 | M10: 1.72
A11: 2019-05-31T17:48:00 | D11: RU000A0ZYCJ8 | E11: ВБРР Б1P1 | F11: ФБ ММВБ | G11: Купля | H11: 100 | I11: 100.13 | J11: 100130 | K11: 1211 | L11: 60.08 | M11: 10.02
A12: 2019-05-31T17:56:00 | D12: RU000A0JXQ85 | E12: Тинькофф1R | F12: ФБ ММВБ | G12: Купля | H12: 100 | I12: 100.4 | J12: 100400 | K12: 853 | L12: 60.24 | M12: 10.04
A13: 2019-05-31T18:04:00 | D13: RU000A0ZYLL5 | E13: iУОМЗ БО-2 | F13: ФБ ММВБ | G13: Купля | H13: 150 | I13: 100.5 | J13: 150750 | K13: 6120 | L13: 90.45 | M13: 15.08
A14: 2019-06-05T14:50:00 | D14: RU000A0ZYJR6 | E14: Совком БО5 | F14: ФБ ММВБ | G14: Купля | H14: 150 | I14: 100.3 | J14: 150450 | K14: 6880.5 | L14: 90.27 | M14: 15.04
A15: 2019-06-11T11:37:00 | D15: RU000A0JXQH8 | E15: О'КЕЙ-Б01Р | F15: ФБ ММВБ | G15: Купля | H15: 170 | I15: 100.75 | J15: 171275 | K15: 1779.9 | L15: 102.77 | M15: 17.13
A16: 2019-06-11T11:37:00 | D16: RU000A0JXQH8 | E16: О'КЕЙ-Б01Р | F16: ФБ ММВБ | G16: Купля | H16: 120 | I16: 100.7 | J16: 120840 | K16: 1256.4 | L16: 72.5 | M16: 12.09
A17: 2019-06-11T11:37:00 | D17: RU000A0JXQH8 | E17: О'КЕЙ-Б01Р | F17: ФБ ММВБ | G17: Купля | H17: 7 | I17: 100.69 | J17: 7048.3 | K17: 73.29 | L17: 4.23 | M17: 0.71
A18: 2019-06-11T11:37:00 | D18: RU000A0JXQH8 | E18: О'КЕЙ-Б01Р | F18: ФБ ММВБ | G18: Купля | H18: 3 | I18: 100.68 | J18: 3020.4 | K18: 31.41 | L18: 1.81 | M18: 0.3
A19: 2019-06-11T14:26:00 | D19: RU000A100ER0 | E19: РОСНАНО2P1 | F19: ФБ ММВБ | G19: Купля | H19: 5 | I19: 100.72 | J19: 5036 | K19: 7.5 | L19: 3.02 | M19: 0.5
A20: 2019-06-11T14:38:00 | D20: RU000A100ER0 | E20: РОСНАНО2P1 | F20: ФБ ММВБ | G20: Купля | H20: 145 | I20: 100.72 | J20: 146044 | K20: 217.5 | L20: 87.63 | M20: 14.61
A21: 2019-06-11T16:57:00 | D21: RU000A100F95 | E21: РЕСОЛизБП4 | F21: ФБ ММВБ | G21: Купля | H21: 100 | I21: 100.62 | J21: 100620 | K21: 0 | L21: 60.37 | M21: 10.07
A22: 2019-06-14T10:45:00 | D22: ROSN | E22: Роснефть | F22: ФБ ММВБ | G22: Купля | H22: 15 | I22: 414.8 | J22: 62220 | K22: 0 | L22: 37.33 | M22: 5.79
A23: 2019-06-17T11:20:00 | D23: ROSN | E23: Роснефть | F23: ФБ ММВБ | G23: Купля | H23: 15 | I23: 408.2 | J23: 61230 | K23: 0 | L23: 36.74 | M23: 5.69
A24: 2019-06-17T13:50:00 | D24: ROSN | E24: Роснефть | F24: ФБ ММВБ | G24: Продажа | H24: 30 | I24: 414.75 | J24: 124425 | K24: 0 | L24: 74.65 | M24: 11.57
A25: 2019-06-17T17:14:00 | D25: ROSN | E25: Роснефть | F25: ФБ ММВБ | G25: Купля | H25: 15 | I25: 409.2 | J25: 61380 | K25: 0 | L25: 36.83 | M25: 5.71
A26: 2019-06-18T10:15:00 | D26: SBER | E26: Сбербанк | F26: ФБ ММВБ | G26: Купля | H26: 16 | I26: 236.67 | J26: 37867.2 | K26: 0 | L26: 22.72 | M26: 3.52
A27: 2019-06-18T10:15:00 | D27: SBER | E27: Сбербанк | F27: ФБ ММВБ | G27: Купля | H27: 3 | I27: 236.65 | J27: 7099.5 | K27: 0 | L27: 4.26 | M27: 0.66
A28: 2019-06-18T10:15:00 | D28: SBER | E28: Сбербанк | F28: ФБ ММВБ | G28: Купля | H28: 1 | I28: 236.65 | J28: 2366.5 | K28: 0 | L28: 1.42 | M28: 0.22
A29: 2019-06-18T10:15:00 | D29: SBER | E29: Сбербанк | F29: ФБ ММВБ | G29: Купля | H29: 5 | I29: 236.65 | J29: 11832.5 | K29: 0 | L29: 7.1 | M29: 1.1
A30: 2019-06-18T11:10:00 | D30: SBER | E30: Сбербанк | F30: ФБ ММВБ | G30: Продажа | H30: 25 | I30: 238.05 | J30: 59512.5 | K30: 0 | L30: 35.71 | M30: 5.53
A31: 2019-06-18T12:21:00 | D31: GAZP | E31: ГАЗПРОМ ао | F31: ФБ ММВБ | G31: Купля | H31: 25 | I31: 229.35 | J31: 57337.5 | K31: 0 | L31: 34.4 | M31: 5.34
A32: 2019-06-18T15:18:00 | D32: GAZP | E32: ГАЗПРОМ ао | F32: ФБ ММВБ | G32: Продажа | H32: 4 | I32: 229.74 | J32: 9189.6 | K32: 0 | L32: 5.51 | M32: 0.85
A33: 2019-06-18T15:18:00 | D33: GAZP | E33: ГАЗПРОМ ао | F33: ФБ ММВБ | G33: Продажа | H33: 2 | I33: 229.74 | J33: 4594.8 | K33: 0 | L33: 2.76 | M33: 0.43
A34: 2019-06-18T15:18:00 | D34: GAZP | E34: ГАЗПРОМ ао | F34: ФБ ММВБ | G34: Продажа | H34: 17 | I34: 229.74 | J34: 39055.8 | K34: 0 | L34: 23.43 | M34: 3.63
A35: 2019-06-18T15:18:00 | D35: GAZP | E35: ГАЗПРОМ ао | F35: ФБ ММВБ | G35: Продажа | H35: 2 | I35: 229.75 | J35: 4595 | K35: 0 | L35: 2.76 | M35: 0.43
A36: 2019-06-18T16:12:00 | D36: ROSN | E36: Роснефть | F36: ФБ ММВБ | G36: Продажа | H36: 15 | I36: 410.6 | J36: 61590 | K36: 0 | L36: 36.95 | M36: 5.72
A37: 2019-06-19T12:06:00 | D37: SBER | E37: Сбербанк | F37: ФБ ММВБ | G37: Купля | H37: 25 | I37: 239.59 | J37: 59897.5 | K37: 0 | L37: 35.94 | M37: 5.57
A38: 2019-06-19T13:49:00 | D38: SBER | E38: Сбербанк | F38: ФБ ММВБ | G38: Купля | H38: 20 | I38: 239.22 | J38: 47844 | K38: 0 | L38: 28.71 | M38: 4.45
A39: 2019-06-19T15:04:00 | D39: SBER | E39: Сбербанк | F39: ФБ ММВБ | G39: Продажа | H39: 34 | I39: 239.71 | J39: 81501.4 | K39: 0 | L39: 48.9 | M39: 7.58
A40: 2019-06-19T15:04:00 | D40: SBER | E40: Сбербанк | F40: ФБ ММВБ | G40: Продажа | H40: 1 | I40: 239.71 | J40: 2397.1 | K40: 0 | L40: 1.44 | M40: 0.22
A41: 2019-06-19T15:04:00 | D41: SBER | E41: Сбербанк | F41: ФБ ММВБ | G41: Продажа | H41: 10 | I41: 239.74 | J41: 23974 | K41: 0 | L41: 14.38 | M41: 2.23
A42: 2019-06-19T16:14:00 | D42: SBER | E42: Сбербанк | F42: ФБ ММВБ | G42: Купля | H42: 25 | I42: 239.3 | J42: 59825 | K42: 0 | L42: 35.9 | M42: 5.56
A43: 2019-06-19T16:33:00 | D43: SBER | E43: Сбербанк | F43: ФБ ММВБ | G43: Купля | H43: 15 | I43: 239.15 | J43: 35872.5 | K43: 0 | L43: 21.52 | M43: 3.34
A44: 2019-06-19T16:36:00 | D44: SBER | E44: Сбербанк | F44: ФБ ММВБ | G44: Купля | H44: 24 | I44: 238.84 | J44: 57321.6 | K44: 0 | L44: 34.39 | M44: 5.34
A45: 2019-06-19T16:36:00 | D45: SBER | E45: Сбербанк | F45: ФБ ММВБ | G45: Купля | H45: 1 | I45: 238.84 | J45: 2388.4 | K45: 0 | L45: 1.43 | M45: 0.22
A46: 2019-06-19T16:50:00 | D46: SBER | E46: Сбербанк | F46: ФБ ММВБ | G46: Продажа | H46: 65 | I46: 239.64 | J46: 155766 | K46: 0 | L46: 93.46 | M46: 14.49
A47: 2019-06-19T17:01:00 | D47: RU000A0ZZBJ7 | E47: ПИК БО-П07 | F47: ФБ ММВБ | G47: Купля | H47: 100 | I47: 98.78 | J47: 98780 | K47: 4124 | L47: 59.27 | M47: 9.88
A48: 2019-06-21T10:35:00 | D48: SBERP | E48: Сбербанк-п | F48: ФБ ММВБ | G48: Купля | H48: 25 | I48: 208.56 | J48: 52140 | K48: 0 | L48: 31.28 | M48: 4.85
A49: 2019-06-21T11:02:00 | D49: SBER | E49: Сбербанк | F49: ФБ ММВБ | G49: Купля | H49: 25 | I49: 242.33 | J49: 60582.5 | K49: 0 | L49: 36.35 | M49: 5.63
A50: 2019-06-21T11:24:00 | D50: SBERP | E50: Сбербанк-п | F50: ФБ ММВБ | G50: Купля | H50: 20 | I50: 208.14 | J50: 41628 | K50: 0 | L50: 24.98 | M50: 3.88
A51: 2019-06-24T13:55:00 | D51: SBER | E51: Сбербанк | F51: ФБ ММВБ | G51: Купля | H51: 25 | I51: 239.92 | J51: 59980 | K51: 0 | L51: 35.99 | M51: 5.58
A52: 2019-06-25T13:45:00 | D52: SBER | E52: Сбербанк | F52: ФБ ММВБ | G52: Купля | H52: 31 | I52: 235.79 | J52: 73094.9 | K52: 0 | L52: 43.86 | M52: 6.8
A53: 2019-06-26T17:46:00 | D53: SBER | E53: Сбербанк | F53: ФБ ММВБ | G53: Продажа | H53: 37 | I53: 240.4 | J53: 88948 | K53: 0 | L53: 53.37 | M53: 8.28
A54: 2019-06-26T17:46:00 | D54: SBER | E54: Сбербанк | F54: ФБ ММВБ | G54: Продажа | H54: 44 | I54: 240.41 | J54: 105780.4 | K54: 0 | L54: 63.47 | M54: 9.84
A55: 2019-06-26T18:47:00 | D55: SBERP | E55: Сбербанк-п | F55: ФБ ММВБ | G55: Купля | H55: 30 | I55: 207 | J55: 62100 | K55: 0 | L55: 37.26 | M55: 5.77
A56: 2019-06-28T17:17:00 | D56: RU000A100ER0 | E56: РОСНАНО2P1 | F56: ФБ ММВБ | G56: Купля | H56: 134 | I56: 100.68 | J56: 134911.2 | K56: 767.82 | L56: 80.95 | M56: 13.49
A57: 2019-07-01T13:14:00 | D57: SBERP | E57: Сбербанк-п | F57: ФБ ММВБ | G57: Продажа | H57: 75 | I57: 208.3 | J57: 156225 | K57: 0 | L57: 93.74 | M57: 14.52
A58: 2019-07-02T18:37:50 | D58: SBERP | E58: Сбербанк-п | F58: ФБ ММВБ | G58: Купля | H58: 29 | I58: 207.64 | J58: 60215.6 | K58: 0 | L58: 36.13 | M58: 5.6
A59: 2019-07-02T18:38:46 | D59: ROSN | E59: Роснефть | F59: ФБ ММВБ | G59: Купля | H59: 15 | I59: 415.6 | J59: 62340 | K59: 0 | L59: 37.4 | M59: 5.79
A60: 2019-07-03T10:51:13 | D60: SBERP | E60: Сбербанк-п | F60: ФБ ММВБ | G60: Продажа | H60: 29 | I60: 208.85 | J60: 60566.5 | K60: 0 | L60: 36.34 | M60: 5.63
A61: 2019-07-03T10:51:47 | D61: ROSN | E61: Роснефть | F61: ФБ ММВБ | G61: Продажа | H61: 15 | I61: 417.3 | J61: 62595 | K61: 0 | L61: 37.56 | M61: 5.82
A62: 2019-07-05T13:31:55 | D62: ROSN | E62: Роснефть | F62: ФБ ММВБ | G62: Купля | H62: 15 | I62: 420.7 | J62: 63105 | K62: 0 | L62: 37.86 | M62: 5.86
A63: 2019-07-05T13:35:06 | D63: RASP | E63: Распадская | F63: ФБ ММВБ | G63: Купля | H63: 12 | I63: 139.24 | J63: 16708.8 | K63: 0 | L63: 10.03 | M63: 1.55
A64: 2019-07-05T13:35:06 | D64: RASP | E64: Распадская | F64: ФБ ММВБ | G64: Купля | H64: 2 | I64: 139.28 | J64: 2785.6 | K64: 0 | L64: 1.67 | M64: 0.26
A65: 2019-07-05T13:35:06 | D65: RASP | E65: Распадская | F65: ФБ ММВБ | G65: Купля | H65: 2 | I65: 139.28 | J65: 2785.6 | K65: 0 | L65: 1.67 | M65: 0.26
A66: 2019-07-05T13:35:06 | D66: RASP | E66: Распадская | F66: ФБ ММВБ | G66: Купля | H66: 34 | I66: 139.3 | J66: 47362 | K66: 0 | L66: 28.42 | M66: 4.4
A67: 2019-07-08T13:33:33 | D67: SBERP | E67: Сбербанк-п | F67: ФБ ММВБ | G67: Купля | H67: 35 | I67: 208.09 | J67: 72831.5 | K67: 0 | L67: 43.7 | M67: 6.77
A68: 2019-07-08T18:29:18 | D68: RASP | E68: Распадская | F68: ФБ ММВБ | G68: Продажа | H68: 50 | I68: 142.24 | J68: 71120 | K68: 0 | L68: 42.67 | M68: 6.61
A69: 2019-07-08T18:31:53 | D69: PIKK | E69: ПИК ао | F69: ФБ ММВБ | G69: Купля | H69: 19 | I69: 372.6 | J69: 70794 | K69: 0 | L69: 42.48 | M69: 6.59
A70: 2019-07-09T12:10:27 | D70: ROSN | E70: Роснефть | F70: ФБ ММВБ | G70: Продажа | H70: 15 | I70: 423.6 | J70: 63540 | K70: 0 | L70: 38.13 | M70: 5.91
A71: 2019-07-09T12:18:03 | D71: RASP | E71: Распадская | F71: ФБ ММВБ | G71: Купля | H71: 46 | I71: 142.22 | J71: 65421.2 | K71: 0 | L71: 39.25 | M71: 6.09
A72: 2019-07-10T17:05:28 | D72: SBERP | E72: Сбербанк-п | F72: ФБ ММВБ | G72: Продажа | H72: 2 | I72: 209.9 | J72: 4198 | K72: 0 | L72: 2.52 | M72: 0.39
A73: 2019-07-10T17:05:28 | D73: SBERP | E73: Сбербанк-п | F73: ФБ ММВБ | G73: Продажа | H73: 33 | I73: 209.86 | J73: 69253.8 | K73: 0 | L73: 41.55 | M73: 6.44
A74: 2019-07-10T17:18:56 | D74: RASP | E74: Распадская | F74: ФБ ММВБ | G74: Купля | H74: 52 | I74: 140.22 | J74: 72914.4 | K74: 0 | L74: 43.75 | M74: 6.78
A75: 2019-07-23T16:27:33 | D75: RASP | E75: Распадская | F75: ФБ ММВБ | G75: Продажа | H75: 3 | I75: 140.38 | J75: 4211.4 | K75: 0 | L75: 2.52 | M75: 0.4
A76: 2019-07-23T16:27:33 | D76: RASP | E76: Распадская | F76: ФБ ММВБ | G76: Продажа | H76: 4 | I76: 140.38 | J76: 5615.2 | K76: 0 | L76: 3.37 | M76: 0.52
A77: 2019-07-23T16:27:33 | D77: RASP | E77: Распадская | F77: ФБ ММВБ | G77: Продажа | H77: 9 | I77: 140.34 | J77: 12630.6 | K77: 0 | L77: 7.58 | M77: 1.18
A78: 2019-07-23T16:27:33 | D78: RASP | E78: Распадская | F78: ФБ ММВБ | G78: Продажа | H78: 13 | I78: 140.24 | J78: 18231.2 | K78: 0 | L78: 10.94 | M78: 1.69
A79: 2019-07-23T16:27:33 | D79: RASP | E79: Распадская | F79: ФБ ММВБ | G79: Продажа | H79: 69 | I79: 140.22 | J79: 96751.8 | K79: 0 | L79: 58.05 | M79: 8.99
A80: 2019-07-24T10:03:25 | D80: ALRS | E80: АЛРОСА ао | F80: ФБ ММВБ | G80: Купля | H80: 20 | I80: 79.9 | J80: 15980 | K80: 0 | L80: 9.59 | M80: 1.48
A81: 2019-07-24T10:03:25 | D81: ALRS | E81: АЛРОСА ао | F81: ФБ ММВБ | G81: Купля | H81: 50 | I81: 79.9 | J81: 39950 | K81: 0 | L81: 23.97 | M81: 3.72
A82: 2019-07-24T10:13:51 | D82: RASP | E82: Распадская | F82: ФБ ММВБ | G82: Купля | H82: 4 | I82: 139.38 | J82: 5575.2 | K82: 0 | L82: 3.35 | M82: 0.52
A83: 2019-07-24T10:13:51 | D83: RASP | E83: Распадская | F83: ФБ ММВБ | G83: Купля | H83: 7 | I83: 139.38 | J83: 9756.6 | K83: 0 | L83: 5.85 | M83: 0.91
A84: 2019-07-24T10:13:51 | D84: RASP | E84: Распадская | F84: ФБ ММВБ | G84: Купля | H84: 10 | I84: 139.4 | J84: 13940 | K84: 0 | L84: 8.36 | M84: 1.3
A85: 2019-07-24T10:13:51 | D85: RASP | E85: Распадская | F85: ФБ ММВБ | G85: Купля | H85: 12 | I85: 139.4 | J85: 16728 | K85: 0 | L85: 10.04 | M85: 1.55
A86: 2019-07-24T10:13:51 | D86: RASP | E86: Распадская | F86: ФБ ММВБ | G86: Купля | H86: 10 | I86: 139.4 | J86: 13940 | K86: 0 | L86: 8.36 | M86: 1.3
A87: 2019-07-24T10:13:51 | D87: RASP | E87: Распадская | F87: ФБ ММВБ | G87: Купля | H87: 14 | I87: 139.42 | J87: 19518.8 | K87: 0 | L87: 11.71 | M87: 1.81
A88: 2019-07-24T10:13:51 | D88: RASP | E88: Распадская | F88: ФБ ММВБ | G88: Купля | H88: 1 | I88: 139.44 | J88: 1394.4 | K88: 0 | L88: 0.84 | M88: 0.13
A89: 2019-07-25T17:58:41 | D89: ALRS | E89: АЛРОСА ао | F89: ФБ ММВБ | G89: Продажа | H89: 70 | I89: 81.23 | J89: 56861 | K89: 0 | L89: 34.12 | M89: 5.29
A90: 2019-07-25T18:32:07 | D90: RASP | E90: Распадская | F90: ФБ ММВБ | G90: Купля | H90: 42 | I90: 137.84 | J90: 57892.8 | K90: 0 | L90: 34.73 | M90: 5.39
A91: 2019-08-01T11:32:41 | D91: RASP | E91: Распадская | F91: ФБ ММВБ | G91: Продажа | H91: 4 | I91: 135.2 | J91: 5408 | K91: 0 | L91: 3.25 | M91: 0.5
A92: 2019-08-01T11:32:41 | D92: RASP | E92: Распадская | F92: ФБ ММВБ | G92: Продажа | H92: 1 | I92: 135.2 | J92: 1352 | K92: 0 | L92: 0.81 | M92: 0.12
A93: 2019-08-01T11:32:41 | D93: RASP | E93: Распадская | F93: ФБ ММВБ | G93: Продажа | H93: 95 | I93: 135.18 | J93: 128421 | K93: 0 | L93: 77.05 | M93: 11.95
A94: 2019-08-01T11:33:35 | D94: PIKK | E94: ПИК ао | F94: ФБ ММВБ | G94: Купля | H94: 1 | I94: 392.2 | J94: 3922 | K94: 0 | L94: 2.35 | M94: 0.37
A95: 2019-08-01T11:33:35 | D95: PIKK | E95: ПИК ао | F95: ФБ ММВБ | G95: Купля | H95: 3 | I95: 392.2 | J95: 11766 | K95: 0 | L95: 7.06 | M95: 1.1
A96: 2019-08-01T11:33:35 | D96: PIKK | E96: ПИК ао | F96: ФБ ММВБ | G96: Купля | H96: 7 | I96: 392.3 | J96: 27461 | K96: 0 | L96: 16.48 | M96: 2.56
A97: 2019-08-01T11:33:35 | D97: PIKK | E97: ПИК ао | F97: ФБ ММВБ | G97: Купля | H97: 22 | I97: 392.5 | J97: 86350 | K97: 0 | L97: 51.81 | M97: 8.03
A98: 2019-08-05T13:15:04 | D98: ALRS | E98: АЛРОСА ао | F98: ФБ ММВБ | G98: Купля | H98: 19 | I98: 78.2 | J98: 14858 | K98: 0 | L98: 8.91 | M98: 1.38
A99: 2019-08-07T16:15:19 | D99: ALRS | E99: АЛРОСА ао | F99: ФБ ММВБ | G99: Продажа | H99: 19 | I99: 76.7 | J99: 14573 | K99: 0 | L99: 8.74 | M99: 1.36
A100: 2019-08-07T17:38:59 | D100: PIKK | E100: ПИК ао | F100: ФБ ММВБ | G100: Продажа | H100: 1 | I100: 392.3 | J100: 3923 | K100: 0 | L100: 2.35 | M100: 0.37
A101: 2019-08-07T17:38:59 | D101: PIKK | E101: ПИК ао | F101: ФБ ММВБ | G101: Продажа | H101: 2 | I101: 392.3 | J101: 7846 | K101: 0 | L101: 4.71 | M101: 0.73
A102: 2019-08-07T17:38:59 | D102: PIKK | E102: ПИК ао | F102: ФБ ММВБ | G102: Продажа | H102: 7 | I102: 392.2 | J102: 27454 | K102: 0 | L102: 16.47 | M102: 2.56
A103: 2019-08-07T17:38:59 | D103: PIKK | E103: ПИК ао | F103: ФБ ММВБ | G103: Продажа | H103: 2 | I103: 392.2 | J103: 7844 | K103: 0 | L103: 4.71 | M103: 0.73
A104: 2019-08-07T17:38:59 | D104: PIKK | E104: ПИК ао | F104: ФБ ММВБ | G104: Продажа | H104: 4 | I104: 392.1 | J104: 15684 | K104: 0 | L104: 9.41 | M104: 1.46
A105: 2019-08-07T17:38:59 | D105: PIKK | E105: ПИК ао | F105: ФБ ММВБ | G105: Продажа | H105: 5 | I105: 392 | J105: 19600 | K105: 0 | L105: 11.76 | M105: 1.82
A106: 2019-08-07T17:38:59 | D106: PIKK | E106: ПИК ао | F106: ФБ ММВБ | G106: Продажа | H106: 85 | I106: 392 | J106: 333200 | K106: 0 | L106: 199.92 | M106: 30.99
A107: 2019-08-07T17:48:03 | D107: PIKK | E107: ПИК ао | F107: ФБ ММВБ | G107: Купля | H107: 16 | I107: 390.9 | J107: 62544 | K107: 0 | L107: 37.53 | M107: 5.81
A108: 2019-08-07T17:48:03 | D108: PIKK | E108: ПИК ао | F108: ФБ ММВБ | G108: Купля | H108: 76 | I108: 390.9 | J108: 297084 | K108: 0 | L108: 178.25 | M108: 27.63
A109: 2019-08-07T17:48:03 | D109: PIKK | E109: ПИК ао | F109: ФБ ММВБ | G109: Купля | H109: 4 | I109: 390.9 | J109: 15636 | K109: 0 | L109: 9.38 | M109: 1.46
A110: 2019-08-07T17:48:03 | D110: PIKK | E110: ПИК ао | F110: ФБ ММВБ | G110: Купля | H110: 8 | I110: 391 | J110: 31280 | K110: 0 | L110: 18.77 | M110: 2.91
A111: 2019-08-08T10:43:56 | D111: PIKK | E111: ПИК ао | F111: ФБ ММВБ | G111: Купля | H111: 5 | I111: 390.6 | J111: 19530 | K111: 0 | L111: 11.72 | M111: 1.81
A112: 2019-08-08T18:31:43 | D112: PIKK | E112: ПИК ао | F112: ФБ ММВБ | G112: Продажа | H112: 109 | I112: 386.5 | J112: 421285 | K112: 0 | L112: 252.77 | M112: 39.18
A113: 2019-08-08T18:33:26 | D113: PIKK | E113: ПИК ао | F113: ФБ ММВБ | G113: Купля | H113: 28 | I113: 384.7 | J113: 107716 | K113: 0 | L113: 64.63 | M113: 10.02
A114: 2019-08-08T18:33:26 | D114: PIKK | E114: ПИК ао | F114: ФБ ММВБ | G114: Купля | H114: 6 | I114: 384.8 | J114: 23088 | K114: 0 | L114: 13.85 | M114: 2.14
A115: 2019-08-08T18:33:26 | D115: PIKK | E115: ПИК ао | F115: ФБ ММВБ | G115: Купля | H115: 4 | I115: 384.9 | J115: 15396 | K115: 0 | L115: 9.24 | M115: 1.43
A116: 2019-08-08T18:33:26 | D116: PIKK | E116: ПИК ао | F116: ФБ ММВБ | G116: Купля | H116: 4 | I116: 385 | J116: 15400 | K116: 0 | L116: 9.24 | M116: 1.43
A117: 2019-08-08T18:33:26 | D117: PIKK | E117: ПИК ао | F117: ФБ ММВБ | G117: Купля | H117: 4 | I117: 385.2 | J117: 15408 | K117: 0 | L117: 9.24 | M117: 1.43
A118: 2019-08-08T18:33:26 | D118: PIKK | E118: ПИК ао | F118: ФБ ММВБ | G118: Купля | H118: 4 | I118: 385.2 | J118: 15408 | K118: 0 | L118: 9.24 | M118: 1.43
A119: 2019-08-08T18:33:26 | D119: PIKK | E119: ПИК ао | F119: ФБ ММВБ | G119: Купля | H119: 36 | I119: 385.3 | J119: 138708 | K119: 0 | L119: 83.23 | M119: 12.9
A120: 2019-08-08T18:33:26 | D120: PIKK | E120: ПИК ао | F120: ФБ ММВБ | G120: Купля | H120: 4 | I120: 385.3 | J120: 15412 | K120: 0 | L120: 9.25 | M120: 1.43
A121: 2019-08-08T18:33:26 | D121: PIKK | E121: ПИК ао | F121: ФБ ММВБ | G121: Купля | H121: 15 | I121: 385.4 | J121: 57810 | K121: 0 | L121: 34.69 | M121: 5.37
A122: 2019-08-09T12:56:40 | D122: SBER | E122: Сбербанк | F122: ФБ ММВБ | G122: Купля | H122: 9 | I122: 222.84 | J122: 20055.6 | K122: 0 | L122: 12.03 | M122: 1.86
A123: 2019-08-09T15:22:52 | D123: PIKK | E123: ПИК ао | F123: ФБ ММВБ | G123: Продажа | H123: 2 | I123: 384.1 | J123: 7682 | K123: 0 | L123: 4.61 | M123: 0.71
A124: 2019-08-09T15:22:52 | D124: PIKK | E124: ПИК ао | F124: ФБ ММВБ | G124: Продажа | H124: 7 | I124: 384 | J124: 26880 | K124: 0 | L124: 16.13 | M124: 2.5
A125: 2019-08-09T15:22:52 | D125: PIKK | E125: ПИК ао | F125: ФБ ММВБ | G125: Продажа | H125: 2 | I125: 384 | J125: 7680 | K125: 0 | L125: 4.61 | M125: 0.71
A126: 2019-08-09T15:22:52 | D126: PIKK | E126: ПИК ао | F126: ФБ ММВБ | G126: Продажа | H126: 94 | I126: 383.9 | J126: 360866 | K126: 0 | L126: 216.52 | M126: 33.56
A127: 2019-08-12T10:02:04 | D127: ALRS | E127: АЛРОСА ао | F127: ФБ ММВБ | G127: Купля | H127: 120 | I127: 75.29 | J127: 90348 | K127: 0 | L127: =ROUND(Таблица1[[#This Row],[Объём]]*0.0006,2) -> 54.21 | M127: 8.4
A128: 2019-08-12T10:12:58 | D128: IRAO | E128: ИнтерРАОао | F128: ФБ ММВБ | G128: Купля | H128: 3 | I128: 4.2445 | J128: 12733.5 | K128: 0 | L128: =ROUND(Таблица1[[#This Row],[Объём]]*0.0006,2) -> 7.64 | M128: 1.18
A129: 2019-08-12T10:12:58 | D129: IRAO | E129: ИнтерРАОао | F129: ФБ ММВБ | G129: Купля | H129: 20 | I129: 4.2445 | J129: 84890 | K129: 0 | L129: =ROUND(Таблица1[[#This Row],[Объём]]*0.0006,2) -> 50.93 | M129: 7.9
A130: 2019-08-12T16:25:28 | D130: NLMK | E130: НЛМК ао | F130: ФБ ММВБ | G130: Купля | H130: 8 | I130: 142.62 | J130: 11409.6 | K130: 0 | L130: 6.84 | M130: 1.06
A131: 2019-08-12T16:25:28 | D131: NLMK | E131: НЛМК ао | F131: ФБ ММВБ | G131: Купля | H131: 45 | I131: 142.66 | J131: 64197 | K131: 0 | L131: =ROUND(Таблица1[[#This Row],[Объём]]*0.0006,2) -> 38.52 | M131: 5.97
A132: 2019-08-12T16:25:28 | D132: NLMK | E132: НЛМК ао | F132: ФБ ММВБ | G132: Купля | H132: 12 | I132: 142.66 | J132: 17119.2 | K132: 0 | L132: =ROUND(Таблица1[[#This Row],[Объём]]*0.0006,2) -> 10.27 | M132: 1.6
A133: 2019-08-12T16:25:28 | D133: NLMK | E133: НЛМК ао | F133: ФБ ММВБ | G133: Купля | H133: 1 | I133: 142.66 | J133: 1426.6 | K133: 0 | L133: =ROUND(Таблица1[[#This Row],[Объём]]*0.0006,2) -> 0.86 | M133: 0.14
A134: 2019-08-12T16:25:28 | D134: NLMK | E134: НЛМК ао | F134: ФБ ММВБ | G134: Купля | H134: 1 | I134: 142.68 | J134: 1426.8 | K134: 0 | L134: =ROUND(Таблица1[[#This Row],[Объём]]*0.0006,2) -> 0.86 | M134: 0.14
A135: 2019-08-12T16:25:28 | D135: NLMK | E135: НЛМК ао | F135: ФБ ММВБ | G135: Купля | H135: 13 | I135: 142.68 | J135: 18548.4 | K135: 0 | L135: =ROUND(Таблица1[[#This Row],[Объём]]*0.0006,2) -> 11.13 | M135: 1.72
A136: 2019-08-12T16:28:52 | D136: HYDR | E136: РусГидро | F136: ФБ ММВБ | G136: Купля | H136: 175 | I136: 0.5505 | J136: 96337.5 | K136: 0 | L136: =ROUND(Таблица1[[#This Row],[Объём]]*0.0006,2) -> 57.8 | M136: 8.96
A137: 2019-08-13T18:29:06 | D137: ALRS | E137: АЛРОСА ао | F137: ФБ ММВБ | G137: Продажа | H137: 120 | I137: 73 | J137: 87600 | K137: 0 | L137: =ROUND(Таблица1[[#This Row],[Объём]]*0.0006,2) -> 52.56 | M137: 8.14
A138: 2019-08-14T13:19:14 | D138: NLMK | E138: НЛМК ао | F138: ФБ ММВБ | G138: Продажа | H138: 80 | I138: 139.8 | J138: 111840 | K138: 0 | L138: 67.11 | M138: 10.4
A139: 2019-08-14T15:01:52 | D139: PIKK | E139: ПИК ао | F139: ФБ ММВБ | G139: Купля | H139: 15 | I139: 378.5 | J139: 56775 | K139: 0 | L139: =ROUND(Таблица1[[#This Row],[Объём]]*0.0006,2) -> 34.07 | M139: 5.28
A140: 2019-08-14T15:01:52 | D140: PIKK | E140: ПИК ао | F140: ФБ ММВБ | G140: Купля | H140: 3 | I140: 378.5 | J140: 11355 | K140: 0 | L140: =ROUND(Таблица1[[#This Row],[Объём]]*0.0006,2) -> 6.81 | M140: 1.06
A141: 2019-08-14T15:01:52 | D141: PIKK | E141: ПИК ао | F141: ФБ ММВБ | G141: Купля | H141: 3 | I141: 378.5 | J141: 11355 | K141: 0 | L141: =ROUND(Таблица1[[#This Row],[Объём]]*0.0006,2) -> 6.81 | M141: 1.06
A142: 2019-08-14T15:01:52 | D142: PIKK | E142: ПИК ао | F142: ФБ ММВБ | G142: Купля | H142: 2 | I142: 378.6 | J142: 7572 | K142: 0 | L142: =ROUND(Таблица1[[#This Row],[Объём]]*0.0006,2) -> 4.54 | M142: 0.7
A143: 2019-08-14T15:01:52 | D143: PIKK | E143: ПИК ао | F143: ФБ ММВБ | G143: Купля | H143: 2 | I143: 378.6 | J143: 7572 | K143: 0 | L143: =ROUND(Таблица1[[#This Row],[Объём]]*0.0006,2) -> 4.54 | M143: 0.7
A144: 2019-08-14T15:19:26 | D144: IRAO | E144: ИнтерРАОао | F144: ФБ ММВБ | G144: Продажа | H144: 10 | I144: 4.1425 | J144: 41425 | K144: 0 | L144: =ROUND(Таблица1[[#This Row],[Объём]]*0.0006,2) -> 24.86 | M144: 3.86
A145: 2019-08-14T15:19:26 | D145: IRAO | E145: ИнтерРАОао | F145: ФБ ММВБ | G145: Продажа | H145: 8 | I145: 4.142 | J145: 33136 | K145: 0 | L145: =ROUND(Таблица1[[#This Row],[Объём]]*0.0006,2) -> 19.88 | M145: 3.08
A146: 2019-08-14T15:19:26 | D146: IRAO | E146: ИнтерРАОао | F146: ФБ ММВБ | G146: Продажа | H146: 5 | I146: 4.142 | J146: 20710 | K146: 0 | L146: =ROUND(Таблица1[[#This Row],[Объём]]*0.0006,2) -> 12.43 | M146: 1.93
A147: 2019-08-14T15:20:11 | D147: SBER | E147: Сбербанк | F147: ФБ ММВБ | G147: Продажа | H147: 1 | I147: 218.83 | J147: 2188.3 | K147: 0 | L147: =ROUND(Таблица1[[#This Row],[Объём]]*0.0006,2) -> 1.31 | M147: 0.21
A148: 2019-08-14T15:20:11 | D148: SBER | E148: Сбербанк | F148: ФБ ММВБ | G148: Продажа | H148: 8 | I148: 218.82 | J148: 17505.6 | K148: 0 | L148: =ROUND(Таблица1[[#This Row],[Объём]]*0.0006,2) -> 10.5 | M148: 1.63
A149: 2019-08-14T15:23:52 | D149: PIKK | E149: ПИК ао | F149: ФБ ММВБ | G149: Купля | H149: 2 | I149: 378.4 | J149: 7568 | K149: 0 | L149: =ROUND(Таблица1[[#This Row],[Объём]]*0.0006,2) -> 4.54 | M149: 0.7
A150: 2019-08-14T15:23:52 | D150: PIKK | E150: ПИК ао | F150: ФБ ММВБ | G150: Купля | H150: 4 | I150: 378.5 | J150: 15140 | K150: 0 | L150: 9.09 | M150: 1.41
A151: 2019-08-14T15:23:52 | D151: PIKK | E151: ПИК ао | F151: ФБ ММВБ | G151: Купля | H151: 3 | I151: 378.5 | J151: 11355 | K151: 0 | L151: =ROUND(Таблица1[[#This Row],[Объём]]*0.0006,2) -> 6.81 | M151: 1.06
A152: 2019-08-14T15:23:52 | D152: PIKK | E152: ПИК ао | F152: ФБ ММВБ | G152: Купля | H152: 3 | I152: 378.5 | J152: 11355 | K152: 0 | L152: =ROUND(Таблица1[[#This Row],[Объём]]*0.0006,2) -> 6.81 | M152: 1.06
A153: 2019-08-14T15:23:52 | D153: PIKK | E153: ПИК ао | F153: ФБ ММВБ | G153: Купля | H153: 2 | I153: 378.6 | J153: 7572 | K153: 0 | L153: =ROUND(Таблица1[[#This Row],[Объём]]*0.0006,2) -> 4.54 | M153: 0.7
A154: 2019-08-14T15:23:52 | D154: PIKK | E154: ПИК ао | F154: ФБ ММВБ | G154: Купля | H154: 7 | I154: 378.7 | J154: 26509 | K154: 0 | L154: =ROUND(Таблица1[[#This Row],[Объём]]*0.0006,2) -> 15.91 | M154: 2.47
A155: 2019-08-14T15:23:52 | D155: PIKK | E155: ПИК ао | F155: ФБ ММВБ | G155: Купля | H155: 18 | I155: 378.8 | J155: 68184 | K155: 0 | L155: =ROUND(Таблица1[[#This Row],[Объём]]*0.0006,2) -> 40.91 | M155: 6.34
A156: 2019-08-14T15:23:52 | D156: PIKK | E156: ПИК ао | F156: ФБ ММВБ | G156: Купля | H156: 6 | I156: 379 | J156: 22740 | K156: 0 | L156: =ROUND(Таблица1[[#This Row],[Объём]]*0.0006,2) -> 13.64 | M156: 2.12
A157: 2019-08-14T15:23:52 | D157: PIKK | E157: ПИК ао | F157: ФБ ММВБ | G157: Купля | H157: 1 | I157: 379.7 | J157: 3797 | K157: 0 | L157: =ROUND(Таблица1[[#This Row],[Объём]]*0.0006,2) -> 2.28 | M157: 0.35
A158: 2019-08-14T15:23:52 | D158: PIKK | E158: ПИК ао | F158: ФБ ММВБ | G158: Купля | H158: 10 | I158: 379.7 | J158: 37970 | K158: 0 | L158: =ROUND(Таблица1[[#This Row],[Объём]]*0.0006,2) -> 22.78 | M158: 3.53
A159: 2019-08-20T16:41:40 | D159: PIKK | E159: ПИК ао | F159: ФБ ММВБ | G159: Продажа | H159: 63 | I159: 382 | J159: 240660 | K159: 0 | L159: =ROUND(Таблица1[[#This Row],[Объём]]*0.0006,2) -> 144.4 | M159: 22.38
A160: 2019-08-20T16:41:40 | D160: PIKK | E160: ПИК ао | F160: ФБ ММВБ | G160: Продажа | H160: 10 | I160: 382 | J160: 38200 | K160: 0 | L160: =ROUND(Таблица1[[#This Row],[Объём]]*0.0006,2) -> 22.92 | M160: 3.55
A161: 2019-08-20T16:41:40 | D161: PIKK | E161: ПИК ао | F161: ФБ ММВБ | G161: Продажа | H161: 7 | I161: 381.9 | J161: 26733 | K161: 0 | L161: =ROUND(Таблица1[[#This Row],[Объём]]*0.0006,2) -> 16.04 | M161: 2.49
A162: 2019-08-20T16:41:40 | D162: PIKK | E162: ПИК ао | F162: ФБ ММВБ | G162: Продажа | H162: 1 | I162: 381.9 | J162: 3819 | K162: 0 | L162: =ROUND(Таблица1[[#This Row],[Объём]]*0.0006,2) -> 2.29 | M162: 0.35
A163: 2019-08-22T10:57:20 | D163: PIKK | E163: ПИК ао | F163: ФБ ММВБ | G163: Купля | H163: 7 | I163: 383.6 | J163: 26852 | K163: 0 | L163: =ROUND(Таблица1[[#This Row],[Объём]]*0.0006,2) -> 16.11 | M163: 2.5
A164: 2019-08-22T10:57:20 | D164: PIKK | E164: ПИК ао | F164: ФБ ММВБ | G164: Купля | H164: 13 | I164: 383.7 | J164: 49881 | K164: 0 | L164: =ROUND(Таблица1[[#This Row],[Объём]]*0.0006,2) -> 29.93 | M164: 4.64
A165: 2019-08-22T11:05:34 | D165: PIKK | E165: ПИК ао | F165: ФБ ММВБ | G165: Купля | H165: 7 | I165: 383.2 | J165: 26824 | K165: 0 | L165: =ROUND(Таблица1[[#This Row],[Объём]]*0.0006,2) -> 16.09 | M165: 2.49
A166: 2019-08-22T11:06:16 | D166: PIKK | E166: ПИК ао | F166: ФБ ММВБ | G166: Купля | H166: 1 | I166: 383.2 | J166: 3832 | K166: 0 | L166: =ROUND(Таблица1[[#This Row],[Объём]]*0.0006,2) -> 2.3 | M166: 0.35
A167: 2019-08-22T11:06:44 | D167: PIKK | E167: ПИК ао | F167: ФБ ММВБ | G167: Купля | H167: 1 | I167: 383.2 | J167: 3832 | K167: 0 | L167: =ROUND(Таблица1[[#This Row],[Объём]]*0.0006,2) -> 2.3 | M167: 0.35
A168: 2019-08-22T11:06:51 | D168: PIKK | E168: ПИК ао | F168: ФБ ММВБ | G168: Купля | H168: 5 | I168: 383.2 | J168: 19160 | K168: 0 | L168: =ROUND(Таблица1[[#This Row],[Объём]]*0.0006,2) -> 11.5 | M168: 1.78
A169: 2019-08-22T13:49:39 | D169: ALRS | E169: АЛРОСА ао | F169: ФБ ММВБ | G169: Купля | H169: 70 | I169: 70.96 | J169: 49672 | K169: 0 | L169: =ROUND(Таблица1[[#This Row],[Объём]]*0.0006,2) -> 29.8 | M169: 4.62
A170: 2019-08-23T17:51:52 | D170: ALRS | E170: АЛРОСА ао | F170: ФБ ММВБ | G170: Продажа | H170: 70 | I170: 71.41 | J170: 49987 | K170: 0 | L170: =ROUND(Таблица1[[#This Row],[Объём]]*0.0006,2) -> 29.99 | M170: 4.65
A171: 2019-08-23T18:39:45 | D171: HYDR | E171: РусГидро | F171: ФБ ММВБ | G171: Купля | H171: 175 | I171: 0.5398 | J171: 94465 | K171: 0 | L171: =ROUND(Таблица1[[#This Row],[Объём]]*0.0006,2) -> 56.68 | M171: 8.78
A172: 2019-08-27T11:45:22 | D172: PIKK | E172: ПИК ао | F172: ФБ ММВБ | G172: Продажа | H172: 34 | I172: 385.3 | J172: 131002 | K172: 0 | L172: =ROUND(Таблица1[[#This Row],[Объём]]*0.0006,2) -> 78.6 | M172: 12.19
A173: 2019-08-27T14:19:06 | D173: RU000A100PE4 | E173: РЕСОЛизБП6 | F173: ФБ ММВБ | G173: Купля | H173: 171 | I173: 100.45 | J173: 171769.5 | K173: 885.78 | L173: =ROUND(Таблица1[[#This Row],[Объём]]*0.0006,2) -> 103.06 | M173: 17.18
A174: 2019-08-29T18:25:07 | D174: HYDR | E174: РусГидро | F174: ФБ ММВБ | G174: Купля | H174: 10 | I174: 0.5379 | J174: 5379 | K174: 0 | L174: =ROUND(Таблица1[[#This Row],[Объём]]*0.0006,2) -> 3.23 | M174: 0.5
A175: 2019-08-29T18:25:07 | D175: HYDR | E175: РусГидро | F175: ФБ ММВБ | G175: Купля | H175: 83 | I175: 0.538 | J175: 44654 | K175: 0 | L175: =ROUND(Таблица1[[#This Row],[Объём]]*0.0006,2) -> 26.79 | M175: 4.15
A176: 2019-08-29T18:25:07 | D176: HYDR | E176: РусГидро | F176: ФБ ММВБ | G176: Купля | H176: 13 | I176: 0.538 | J176: 6994 | K176: 0 | L176: =ROUND(Таблица1[[#This Row],[Объём]]*0.0006,2) -> 4.2 | M176: 0.65
A177: 2019-08-29T18:25:07 | D177: HYDR | E177: РусГидро | F177: ФБ ММВБ | G177: Купля | H177: 54 | I177: 0.5381 | J177: 29057.4 | K177: 0 | L177: =ROUND(Таблица1[[#This Row],[Объём]]*0.0006,2) -> 17.43 | M177: 2.7
A178: 2019-08-29T18:25:07 | D178: HYDR | E178: РусГидро | F178: ФБ ММВБ | G178: Купля | H178: 2 | I178: 0.5381 | J178: 1076.2 | K178: 0 | L178: 0.64 | M178: 0.1
A179: 2019-08-29T18:25:07 | D179: HYDR | E179: РусГидро | F179: ФБ ММВБ | G179: Купля | H179: 2 | I179: 0.5382 | J179: 1076.4 | K179: 0 | L179: =ROUND(Таблица1[[#This Row],[Объём]]*0.0006,2) -> 0.65 | M179: 0.1
A180: 2019-08-29T18:25:07 | D180: HYDR | E180: РусГидро | F180: ФБ ММВБ | G180: Купля | H180: 5 | I180: 0.5382 | J180: 2691 | K180: 0 | L180: =ROUND(Таблица1[[#This Row],[Объём]]*0.0006,2) -> 1.61 | M180: 0.25
A181: 2019-08-29T18:25:07 | D181: HYDR | E181: РусГидро | F181: ФБ ММВБ | G181: Купля | H181: 2 | I181: 0.5383 | J181: 1076.6 | K181: 0 | L181: =ROUND(Таблица1[[#This Row],[Объём]]*0.0006,2) -> 0.65 | M181: 0.1
A182: 2019-08-29T18:25:07 | D182: HYDR | E182: РусГидро | F182: ФБ ММВБ | G182: Купля | H182: 76 | I182: 0.5383 | J182: 40910.8 | K182: 0 | L182: =ROUND(Таблица1[[#This Row],[Объём]]*0.0006,2) -> 24.55 | M182: 3.81
A183: 2019-09-11T13:59:02 | D183: ALRS | E183: АЛРОСА ао | F183: ФБ ММВБ | G183: Купля | H183: 8 | I183: 75.23 | J183: 6018.4 | K183: 0 | L183: 3.61 | M183: 0.56
A184: 2019-09-11T13:59:28 | D184: ALRS | E184: АЛРОСА ао | F184: ФБ ММВБ | G184: Купля | H184: 1 | I184: 75.23 | J184: 752.3 | K184: 0 | L184: 0.45 | M184: 0.07
A185: 2019-09-18T13:28:36 | D185: AFLT | E185: Аэрофлот | F185: ФБ ММВБ | G185: Купля | H185: 30 | I185: 102.92 | J185: 30876 | K185: 0 | L185: 18.53 | M185: 2.87
A186: 2019-09-18T13:35:12 | D186: MGNT | E186: Магнит ао | F186: ФБ ММВБ | G186: Купля | H186: 4 | I186: 3671 | J186: 14684 | K186: 0 | L186: =ROUND(Таблица1[[#This Row],[Объём]]*0.0006,2) -> 8.81 | M186: 1.37
A187: 2019-09-18T13:35:12 | D187: MGNT | E187: Магнит ао | F187: ФБ ММВБ | G187: Купля | H187: 4 | I187: 3671 | J187: 14684 | K187: 0 | L187: =ROUND(Таблица1[[#This Row],[Объём]]*0.0006,2) -> 8.81 | M187: 1.37
A188: 2019-09-18T13:35:12 | D188: MGNT | E188: Магнит ао | F188: ФБ ММВБ | G188: Купля | H188: 2 | I188: 3671 | J188: 7342 | K188: 0 | L188: 4.4 | M188: 0.68
A189: 2019-09-20T13:01:00 | D189: LSRG | E189: ЛСР ао | F189: ФБ ММВБ | G189: Купля | H189: 14 | I189: 747.6 | J189: 10466.4 | K189: 0 | L189: 6.28 | M189: 0.97
A190: 2019-09-20T13:01:29 | D190: MTSS | E190: МТС-ао | F190: ФБ ММВБ | G190: Купля | H190: 4 | I190: 269.1 | J190: 10764 | K190: 0 | L190: =ROUND(Таблица1[[#This Row],[Объём]]*0.0006,2) -> 6.46 | M190: 1.01
A191: 2019-09-20T13:02:18 | D191: TGKA | E191: ТГК-1 | F191: ФБ ММВБ | G191: Купля | H191: 7 | I191: 0.011902 | J191: 8331.4 | K191: 0 | L191: =ROUND(Таблица1[[#This Row],[Объём]]*0.0006,2) -> 5 | M191: 0.78
A192: 2019-09-20T13:02:18 | D192: TGKA | E192: ТГК-1 | F192: ФБ ММВБ | G192: Купля | H192: 2 | I192: 0.011906 | J192: 2381.2 | K192: 0 | L192: =ROUND(Таблица1[[#This Row],[Объём]]*0.0006,2) -> 1.43 | M192: 0.22
A193: 2019-09-20T13:04:10 | D193: MSNG | E193: +МосЭнерго | F193: ФБ ММВБ | G193: Купля | H193: 4 | I193: 2.26 | J193: 9040 | K193: 0 | L193: =ROUND(Таблица1[[#This Row],[Объём]]*0.0006,2) -> 5.42 | M193: 0.84
A194: 2019-09-20T13:05:13 | D194: ALRS | E194: АЛРОСА ао | F194: ФБ ММВБ | G194: Купля | H194: 2 | I194: 74.72 | J194: 1494.4 | K194: 0 | L194: =ROUND(Таблица1[[#This Row],[Объём]]*0.0006,2) -> 0.9 | M194: 0.14
A195: 2019-09-26T13:40:04 | D195: ALRS | E195: АЛРОСА ао | F195: ФБ ММВБ | G195: Купля | H195: 6 | I195: 73.17 | J195: 4390.2 | K195: 0 | L195: 2.63 | M195: 0.4
A196: 2019-10-02T12:55:03 | D196: HYDR | E196: РусГидро | F196: ФБ ММВБ | G196: Продажа | H196: 597 | I196: 0.515 | J196: 307455 | K196: 0 | L196: 184.47 | M196: 28.59
A197: 2019-10-02T13:36:24 | D197: PIKK | E197: ПИК ао | F197: ФБ ММВБ | G197: Купля | H197: 37 | I197: 389.2 | J197: 144004 | K197: 0 | L197: =ROUND(Таблица1[[#This Row],[Объём]]*0.0006,2) -> 86.4 | M197: 13.39
A198: 2019-10-02T13:36:24 | D198: PIKK | E198: ПИК ао | F198: ФБ ММВБ | G198: Купля | H198: 38 | I198: 389.2 | J198: 147896 | K198: 0 | L198: =ROUND(Таблица1[[#This Row],[Объём]]*0.0006,2) -> 88.74 | M198: 13.76
A199: 2019-10-02T13:46:12 | D199: MGNT | E199: Магнит ао | F199: ФБ ММВБ | G199: Купля | H199: 4 | I199: 3537 | J199: 14148 | K199: 0 | L199: =ROUND(Таблица1[[#This Row],[Объём]]*0.0006,2) -> 8.49 | M199: 1.32
A200: 2019-10-07T10:00:03 | D200: PIKK | E200: ПИК ао | F200: ФБ ММВБ | G200: Продажа | H200: 7 | I200: 397.9 | J200: 27853 | K200: 0 | L200: 16.71 | M200: 2.59
... 47 more rows

Sheet fifo
A1: Дата | B1: Операция | C1: Наименование | D1: Количество | E1: Цена | F1: Остаток | G1: Cумма | I1: Накопл.расход, шт | J1: Расход, руб | K1: Строка пред.расх. | L1: Строка остатка | Q1: Текущие остатки
A2: =ROUNDDOWN(Сделки!A2,0) -> 2019-05-27 | B2: =IF(D2>0,"приход",IF(D2<0,"расход","")) -> приход | C2: =Сделки!E2 -> Автодор1P2 | D2: =IF(Сделки!G2="Купля",Сделки!H2*1,-1*Сделки!H2) -> 80 | E2: =IF(Сделки!G2="Купля",(Сделки!J2+Сделки!L2+Сделки!M2)/Сделки!H2,(Сделки!J2-Сделки!L2-Сделки!M2)/Сделки!H2) -> 1000.900125 | F2: =IF(L2=0,D2,OFFSET($F$1,L2,0)+D2) -> 80 | G2: =D2*E2 -> 80072.01 | I2: =IF(D2<0,0,IF(IF(K2=0,0,OFFSET($I$1,K2,0))+D2>VLOOKUP(C2,Q:U,5,0),VLOOKUP(C2,Q:U,5,0),IF(K2=0,0,OFFSET($I$1,K2,0))+D2)) -> 0 | J2: =IF(D2<0,0,IF(K2=0,I2*E2,OFFSET($J$1,K2,0)+(I2-OFFSET($I$1,K2,0))*E2)) -> 0 | K2: =MAX(IF(D2>0,IF(C$1:C1=$C2,IF(D$1:D1>0,ROW(K$1:K1)-ROW(K$1),0)))) -> 0 | L2: =MAX(IF(C$1:C1=$C2,ROW(K$1:K1)-ROW(K$1),0)) -> 0 | N2: =IF(F2>0,INDEX(A3:A998,MATCH(TRUE,C3:C998=C2,0))-A2,"-") ->  | O2: =IF(N2="-","",(IF(N2>0,SUMIFS($G$2:G2,$C$2:C2,C2),""))) ->  | Q2: Наименование | U2: Расход | V2: Остаток, шт | W2: Остаток, руб | X2: Сред.цена остатка, руб | Z2: Расход, руб | AB2: Строка остатка | AD2: Купля | AE2: Продажа | AF2: НКД-пок | AG2: НКД-прод
A3: =ROUNDDOWN(Сделки!A3,0) -> 2019-05-31 | B3: приход | C3: =Сделки!E3 -> ПИК ао | D3: =IF(Сделки!G3="Купля",Сделки!H3*1,-1*Сделки!H3) -> 5 | E3: =IF(Сделки!G3="Купля",(Сделки!J3+Сделки!L3+Сделки!M3)/Сделки!H3,(Сделки!J3-Сделки!L3-Сделки!M3)/Сделки!H3) -> 3697.562 | F3: 5 | G3: =D3*E3 -> 18487.81 | I3: 5 | J3: =IF(D3<0,0,IF(K3=0,I3*E3,OFFSET($J$1,K3,0)+(I3-OFFSET($I$1,K3,0))*E3)) -> 18487.81 | K3: =MAX(IF(D3>0,IF(C$1:C2=$C3,IF(D$1:D2>0,ROW(K$1:K2)-ROW(K$1),0)))) -> 0 | L3: =MAX(IF(C$1:C2=$C3,ROW(K$1:K2)-ROW(K$1),0)) -> 0 | N3: =IF(F3>0,INDEX(A4:A999,MATCH(TRUE,C4:C999=C3,0))-A3,"-") -> 0 | O3: =IF(N3="-","",(IF(N3>0,SUMIFS($G$2:G3,$C$2:C3,C3),""))) ->  | Q3: ='формулы списка'!B2 -> Автодор1P2 | U3: =-SUM(IF(C:C=$Q3,IF(D:D<0,D:D))) -> 0 | V3: =OFFSET(F$1,$AB3,0) -> 80 | W3: =SUM(IF($C$2:C$999=$Q3,IF($D$2:$D$999>0,$D$2:$D$999*$E$2:$E$999)))-Z3 -> 80072.01 | X3: =W3/V3 -> 1000.900125 | Z3: =MAX(IF(C:C=$Q3,J:J)) -> 0 | AB3: =MAX(IF(C:C=$Q3,ROW(J:J)-ROW(L$1),0)) -> 1 | AD3: =(SUMIFS(Сделки!J:J,Сделки!E:E,Q3,Сделки!G:G,"Купля"))+(SUMIFS(Сделки!L:L,Сделки!E:E,Q3,Сделки!G:G,"Купля"))+(SUMIFS(Сделки!M:M,Сделки!E:E,Q3,Сделки!G:G,"Купля")) -> 80072.01 | AE3: =(SUMIFS(Сделки!J:J,Сделки!E:E,Q3,Сделки!G:G,"Продажа"))-(SUMIFS(Сделки!L:L,Сделки!E:E,Q3,Сделки!G:G,"Продажа"))-(SUMIFS(Сделки!M:M,Сделки!E:E,Q3,Сделки!G:G,"Продажа")) -> 0 | AF3: =SUMIFS(Сделки!K:K,Сделки!E:E,Q3,Сделки!G:G,"Купля") -> 2911.2 | AG3: =SUMIFS(Сделки!K:K,Сделки!E:E,Q3,Сделки!G:G,"Продажа") -> 0
A4: =ROUNDDOWN(Сделки!A4,0) -> 2019-05-31 | B4: приход | C4: =Сделки!E4 -> ПИК ао | D4: =IF(Сделки!G4="Купля",Сделки!H4*1,-1*Сделки!H4) -> 7 | E4: =IF(Сделки!G4="Купля",(Сделки!J4+Сделки!L4+Сделки!M4)/Сделки!H4,(Сделки!J4-Сделки!L4-Сделки!M4)/Сделки!H4) -> 3696.558571 | F4: 12 | G4: 25875.91 | I4: 12 | J4: 44363.72 | K4: =MAX(IF(D4>0,IF(C$1:C3=$C4,IF(D$1:D3>0,ROW(K$1:K3)-ROW(K$1),0)))) -> 2 | L4: =MAX(IF(C$1:C3=$C4,ROW(K$1:K3)-ROW(K$1),0)) -> 2 | N4: =IF(F4>0,INDEX(A5:A1000,MATCH(TRUE,C5:C1000=C4,0))-A4,"-") -> 0 | O4: =IF(N4="-","",(IF(N4>0,SUMIFS($G$2:G4,$C$2:C4,C4),""))) ->  | Q4: ='формулы списка'!B3 -> ПИК ао | U4: =-SUM(IF(C:C=$Q4,IF(D:D<0,D:D))) -> 606 | V4: =OFFSET(F$1,$AB4,0) -> 123 | W4: =SUM(IF($C$2:C$999=$Q4,IF($D$2:$D$999>0,$D$2:$D$999*$E$2:$E$999)))-Z4 -> 468119.18 | X4: =W4/V4 -> 3805.846992 | Z4: =MAX(IF(C:C=$Q4,J:J)) -> 2333229.81 | AB4: =MAX(IF(C:C=$Q4,ROW(J:J)-ROW(L$1),0)) -> 240 | AD4: =(SUMIFS(Сделки!J:J,Сделки!E:E,Q4,Сделки!G:G,"Купля"))+(SUMIFS(Сделки!L:L,Сделки!E:E,Q4,Сделки!G:G,"Купля"))+(SUMIFS(Сделки!M:M,Сделки!E:E,Q4,Сделки!G:G,"Купля")) -> 2801348.99 | AE4: =(SUMIFS(Сделки!J:J,Сделки!E:E,Q4,Сделки!G:G,"Продажа"))-(SUMIFS(Сделки!L:L,Сделки!E:E,Q4,Сделки!G:G,"Продажа"))-(SUMIFS(Сделки!M:M,Сделки!E:E,Q4,Сделки!G:G,"Продажа")) -> 2354170.43 | AF4: =SUMIFS(Сделки!K:K,Сделки!E:E,Q4,Сделки!G:G,"Купля") -> 0 | AG4: =SUMIFS(Сделки!K:K,Сделки!E:E,Q4,Сделки!G:G,"Продажа") -> 0
A5: =ROUNDDOWN(Сделки!A5,0) -> 2019-05-31 | B5: приход | C5: =Сделки!E5 -> ПИК ао | D5: =IF(Сделки!G5="Купля",Сделки!H5*1,-1*Сделки!H5) -> 8 | E5: =IF(Сделки!G5="Купля",(Сделки!J5+Сделки!L5+Сделки!M5)/Сделки!H5,(Сделки!J5-Сделки!L5-Сделки!M5)/Сделки!H5) -> 3695.56 | F5: 20 | G5: 29564.48 | I5: 20 | J5: 73928.2 | K5: =MAX(IF(D5>0,IF(C$1:C4=$C5,IF(D$1:D4>0,ROW(K$1:K4)-ROW(K$1),0)))) -> 3 | L5: =MAX(IF(C$1:C4=$C5,ROW(K$1:K4)-ROW(K$1),0)) -> 3 | N5: =IF(F5>0,INDEX(A6:A1001,MATCH(TRUE,C6:C1001=C5,0))-A5,"-") -> 0 | O5: =IF(N5="-","",(IF(N5>0,SUMIFS($G$2:G5,$C$2:C5,C5),""))) ->  | Q5: ='формулы списка'!B4 -> ВБРР Б1P1 | U5: =-SUM(IF(C:C=$Q5,IF(D:D<0,D:D))) -> 100 | V5: 0 | W5: =SUM(IF($C$2:C$999=$Q5,IF($D$2:$D$999>0,$D$2:$D$999*$E$2:$E$999)))-Z5 -> 0 | Z5: =MAX(IF(C:C=$Q5,J:J)) -> 100200.1 | AB5: =MAX(IF(C:C=$Q5,ROW(J:J)-ROW(L$1),0)) -> 228 | AD5: =(SUMIFS(Сделки!J:J,Сделки!E:E,Q5,Сделки!G:G,"Купля"))+(SUMIFS(Сделки!L:L,Сделки!E:E,Q5,Сделки!G:G,"Купля"))+(SUMIFS(Сделки!M:M,Сделки!E:E,Q5,Сделки!G:G,"Купля")) -> 100200.1 | AE5: =(SUMIFS(Сделки!J:J,Сделки!E:E,Q5,Сделки!G:G,"Продажа"))-(SUMIFS(Сделки!L:L,Сделки!E:E,Q5,Сделки!G:G,"Продажа"))-(SUMIFS(Сделки!M:M,Сделки!E:E,Q5,Сделки!G:G,"Продажа")) -> 101427.43 | AF5: =SUMIFS(Сделки!K:K,Сделки!E:E,Q5,Сделки!G:G,"Купля") -> 1211 | AG5: =SUMIFS(Сделки!K:K,Сделки!E:E,Q5,Сделки!G:G,"Продажа") -> 388.95
A6: =ROUNDDOWN(Сделки!A6,0) -> 2019-05-31 | B6: приход | C6: =Сделки!E6 -> ПИК ао | D6: =IF(Сделки!G6="Купля",Сделки!H6*1,-1*Сделки!H6) -> 19 | E6: =IF(Сделки!G6="Купля",(Сделки!J6+Сделки!L6+Сделки!M6)/Сделки!H6,(Сделки!J6-Сделки!L6-Сделки!M6)/Сделки!H6) -> 3693.557895 | F6: 39 | G6: 70177.6 | I6: 39 | J6: 144105.8 | K6: =MAX(IF(D6>0,IF(C$1:C5=$C6,IF(D$1:D5>0,ROW(K$1:K5)-ROW(K$1),0)))) -> 4 | L6: =MAX(IF(C$1:C5=$C6,ROW(K$1:K5)-ROW(K$1),0)) -> 4 | N6: =IF(F6>0,INDEX(A7:A1002,MATCH(TRUE,C7:C1002=C6,0))-A6,"-") -> 0 | O6: =IF(N6="-","",(IF(N6>0,SUMIFS($G$2:G6,$C$2:C6,C6),""))) ->  | Q6: ='формулы списка'!B5 -> Тинькофф1R | U6: =-SUM(IF(C:C=$Q6,IF(D:D<0,D:D))) -> 0 | V6: 100 | W6: =SUM(IF($C$2:C$999=$Q6,IF($D$2:$D$999>0,$D$2:$D$999*$E$2:$E$999)))-Z6 -> 100470.28 | X6: 1004.7028 | Z6: =MAX(IF(C:C=$Q6,J:J)) -> 0 | AB6: =MAX(IF(C:C=$Q6,ROW(J:J)-ROW(L$1),0)) -> 11 | AD6: =(SUMIFS(Сделки!J:J,Сделки!E:E,Q6,Сделки!G:G,"Купля"))+(SUMIFS(Сделки!L:L,Сделки!E:E,Q6,Сделки!G:G,"Купля"))+(SUMIFS(Сделки!M:M,Сделки!E:E,Q6,Сделки!G:G,"Купля")) -> 100470.28 | AE6: =(SUMIFS(Сделки!J:J,Сделки!E:E,Q6,Сделки!G:G,"Продажа"))-(SUMIFS(Сделки!L:L,Сделки!E:E,Q6,Сделки!G:G,"Продажа"))-(SUMIFS(Сделки!M:M,Сделки!E:E,Q6,Сделки!G:G,"Продажа")) -> 0 | AF6: =SUMIFS(Сделки!K:K,Сделки!E:E,Q6,Сделки!G:G,"Купля") -> 853 | AG6: =SUMIFS(Сделки!K:K,Сделки!E:E,Q6,Сделки!G:G,"Продажа") -> 0
A7: =ROUNDDOWN(Сделки!A7,0) -> 2019-05-31 | B7: приход | C7: =Сделки!E7 -> ПИК ао | D7: =IF(Сделки!G7="Купля",Сделки!H7*1,-1*Сделки!H7) -> 5 | E7: =IF(Сделки!G7="Купля",(Сделки!J7+Сделки!L7+Сделки!M7)/Сделки!H7,(Сделки!J7-Сделки!L7-Сделки!M7)/Сделки!H7) -> 3692.558 | F7: 44 | G7: 18462.79 | I7: 44 | J7: 162568.59 | K7: =MAX(IF(D7>0,IF(C$1:C6=$C7,IF(D$1:D6>0,ROW(K$1:K6)-ROW(K$1),0)))) -> 5 | L7: =MAX(IF(C$1:C6=$C7,ROW(K$1:K6)-ROW(K$1),0)) -> 5 | N7: =IF(F7>0,INDEX(A8:A1003,MATCH(TRUE,C8:C1003=C7,0))-A7,"-") -> 0 | O7: =IF(N7="-","",(IF(N7>0,SUMIFS($G$2:G7,$C$2:C7,C7),""))) ->  | Q7: ='формулы списка'!B6 -> iУОМЗ БО-2 | U7: =-SUM(IF(C:C=$Q7,IF(D:D<0,D:D))) -> 0 | V7: 150 | W7: =SUM(IF($C$2:C$999=$Q7,IF($D$2:$D$999>0,$D$2:$D$999*$E$2:$E$999)))-Z7 -> 150855.53 | X7: 1005.703533 | Z7: =MAX(IF(C:C=$Q7,J:J)) -> 0 | AB7: =MAX(IF(C:C=$Q7,ROW(J:J)-ROW(L$1),0)) -> 12 | AD7: =(SUMIFS(Сделки!J:J,Сделки!E:E,Q7,Сделки!G:G,"Купля"))+(SUMIFS(Сделки!L:L,Сделки!E:E,Q7,Сделки!G:G,"Купля"))+(SUMIFS(Сделки!M:M,Сделки!E:E,Q7,Сделки!G:G,"Купля")) -> 150855.53 | AE7: =(SUMIFS(Сделки!J:J,Сделки!E:E,Q7,Сделки!G:G,"Продажа"))-(SUMIFS(Сделки!L:L,Сделки!E:E,Q7,Сделки!G:G,"Продажа"))-(SUMIFS(Сделки!M:M,Сделки!E:E,Q7,Сделки!G:G,"Продажа")) -> 0 | AF7: =SUMIFS(Сделки!K:K,Сделки!E:E,Q7,Сделки!G:G,"Купля") -> 6120 | AG7: =SUMIFS(Сделки!K:K,Сделки!E:E,Q7,Сделки!G:G,"Продажа") -> 0
A8: =ROUNDDOWN(Сделки!A8,0) -> 2019-05-31 | B8: приход | C8: =Сделки!E8 -> ПИК ао | D8: =IF(Сделки!G8="Купля",Сделки!H8*1,-1*Сделки!H8) -> 1 | E8: =IF(Сделки!G8="Купля",(Сделки!J8+Сделки!L8+Сделки!M8)/Сделки!H8,(Сделки!J8-Сделки!L8-Сделки!M8)/Сделки!H8) -> 3691.56 | F8: 45 | G8: 3691.56 | I8: 45 | J8: 166260.15 | K8: =MAX(IF(D8>0,IF(C$1:C7=$C8,IF(D$1:D7>0,ROW(K$1:K7)-ROW(K$1),0)))) -> 6 | L8: =MAX(IF(C$1:C7=$C8,ROW(K$1:K7)-ROW(K$1),0)) -> 6 | N8: =IF(F8>0,INDEX(A9:A1004,MATCH(TRUE,C9:C1004=C8,0))-A8,"-") -> 0 | O8: =IF(N8="-","",(IF(N8>0,SUMIFS($G$2:G8,$C$2:C8,C8),""))) ->  | Q8: ='формулы списка'!B7 -> Совком БО5 | U8: =-SUM(IF(C:C=$Q8,IF(D:D<0,D:D))) -> 150 | V8: 0 | W8: =SUM(IF($C$2:C$999=$Q8,IF($D$2:$D$999>0,$D$2:$D$999*$E$2:$E$999)))-Z8 -> 0 | Z8: =MAX(IF(C:C=$Q8,J:J)) -> 150555.31 | AB8: =MAX(IF(C:C=$Q8,ROW(J:J)-ROW(L$1),0)) -> 246 | AD8: =(SUMIFS(Сделки!J:J,Сделки!E:E,Q8,Сделки!G:G,"Купля"))+(SUMIFS(Сделки!L:L,Сделки!E:E,Q8,Сделки!G:G,"Купля"))+(SUMIFS(Сделки!M:M,Сделки!E:E,Q8,Сделки!G:G,"Купля")) -> 150555.31 | AE8: =(SUMIFS(Сделки!J:J,Сделки!E:E,Q8,Сделки!G:G,"Продажа"))-(SUMIFS(Сделки!L:L,Сделки!E:E,Q8,Сделки!G:G,"Продажа"))-(SUMIFS(Сделки!M:M,Сделки!E:E,Q8,Сделки!G:G,"Продажа")) -> 149838.19 | AF8: =SUMIFS(Сделки!K:K,Сделки!E:E,Q8,Сделки!G:G,"Купля") -> 6880.5 | AG8: =SUMIFS(Сделки!K:K,Сделки!E:E,Q8,Сделки!G:G,"Продажа") -> 227
A9: =ROUNDDOWN(Сделки!A9,0) -> 2019-05-31 | B9: приход | C9: =Сделки!E9 -> ПИК ао | D9: =IF(Сделки!G9="Купля",Сделки!H9*1,-1*Сделки!H9) -> 4 | E9: =IF(Сделки!G9="Купля",(Сделки!J9+Сделки!L9+Сделки!M9)/Сделки!H9,(Сделки!J9-Сделки!L9-Сделки!M9)/Сделки!H9) -> 3691.555 | F9: 49 | G9: 14766.22 | I9: 49 | J9: 181026.37 | K9: =MAX(IF(D9>0,IF(C$1:C8=$C9,IF(D$1:D8>0,ROW(K$1:K8)-ROW(K$1),0)))) -> 7 | L9: =MAX(IF(C$1:C8=$C9,ROW(K$1:K8)-ROW(K$1),0)) -> 7 | N9: =IF(F9>0,INDEX(A10:A1005,MATCH(TRUE,C10:C1005=C9,0))-A9,"-") -> 0 | O9: =IF(N9="-","",(IF(N9>0,SUMIFS($G$2:G9,$C$2:C9,C9),""))) ->  | Q9: ='формулы списка'!B8 -> О'КЕЙ-Б01Р | U9: =-SUM(IF(C:C=$Q9,IF(D:D<0,D:D))) -> 0 | V9: 300 | W9: =SUM(IF($C$2:C$999=$Q9,IF($D$2:$D$999>0,$D$2:$D$999*$E$2:$E$999)))-Z9 -> 302395.24 | X9: 1007.984133 | Z9: =MAX(IF(C:C=$Q9,J:J)) -> 0 | AB9: =MAX(IF(C:C=$Q9,ROW(J:J)-ROW(L$1),0)) -> 17 | AD9: =(SUMIFS(Сделки!J:J,Сделки!E:E,Q9,Сделки!G:G,"Купля"))+(SUMIFS(Сделки!L:L,Сделки!E:E,Q9,Сделки!G:G,"Купля"))+(SUMIFS(Сделки!M:M,Сделки!E:E,Q9,Сделки!G:G,"Купля")) -> 302395.24 | AE9: =(SUMIFS(Сделки!J:J,Сделки!E:E,Q9,Сделки!G:G,"Продажа"))-(SUMIFS(Сделки!L:L,Сделки!E:E,Q9,Сделки!G:G,"Продажа"))-(SUMIFS(Сделки!M:M,Сделки!E:E,Q9,Сделки!G:G,"Продажа")) -> 0 | AF9: =SUMIFS(Сделки!K:K,Сделки!E:E,Q9,Сделки!G:G,"Купля") -> 3141 | AG9: =SUMIFS(Сделки!K:K,Сделки!E:E,Q9,Сделки!G:G,"Продажа") -> 0
A10: =ROUNDDOWN(Сделки!A10,0) -> 2019-05-31 | B10: приход | C10: =Сделки!E10 -> ПИК ао | D10: =IF(Сделки!G10="Купля",Сделки!H10*1,-1*Сделки!H10) -> 5 | E10: =IF(Сделки!G10="Купля",(Сделки!J10+Сделки!L10+Сделки!M10)/Сделки!H10,(Сделки!J10-Сделки!L10-Сделки!M10)/Сделки!H10) -> 3690.556 | F10: 54 | G10: 18452.78 | I10: 54 | J10: 199479.15 | K10: =MAX(IF(D10>0,IF(C$1:C9=$C10,IF(D$1:D9>0,ROW(K$1:K9)-ROW(K$1),0)))) -> 8 | L10: =MAX(IF(C$1:C9=$C10,ROW(K$1:K9)-ROW(K$1),0)) -> 8 | N10: =IF(F10>0,INDEX(A11:A1006,MATCH(TRUE,C11:C1006=C10,0))-A10,"-") -> 38 | O10: =IF(N10="-","",(IF(N10>0,SUMIFS($G$2:G10,$C$2:C10,C10),""))) -> 199479.15 | Q10: ='формулы списка'!B9 -> РОСНАНО2P1 | U10: =-SUM(IF(C:C=$Q10,IF(D:D<0,D:D))) -> 0 | V10: 284 | W10: =SUM(IF($C$2:C$999=$Q10,IF($D$2:$D$999>0,$D$2:$D$999*$E$2:$E$999)))-Z10 -> 286191.4 | X10: 1007.716197 | Z10: =MAX(IF(C:C=$Q10,J:J)) -> 0 | AB10: =MAX(IF(C:C=$Q10,ROW(J:J)-ROW(L$1),0)) -> 55 | AD10: =(SUMIFS(Сделки!J:J,Сделки!E:E,Q10,Сделки!G:G,"Купля"))+(SUMIFS(Сделки!L:L,Сделки!E:E,Q10,Сделки!G:G,"Купля"))+(SUMIFS(Сделки!M:M,Сделки!E:E,Q10,Сделки!G:G,"Купля")) -> 286191.4 | AE10: =(SUMIFS(Сделки!J:J,Сделки!E:E,Q10,Сделки!G:G,"Продажа"))-(SUMIFS(Сделки!L:L,Сделки!E:E,Q10,Сделки!G:G,"Продажа"))-(SUMIFS(Сделки!M:M,Сделки!E:E,Q10,Сделки!G:G,"Продажа")) -> 0 | AF10: =SUMIFS(Сделки!K:K,Сделки!E:E,Q10,Сделки!G:G,"Купля") -> 992.82 | AG10: =SUMIFS(Сделки!K:K,Сделки!E:E,Q10,Сделки!G:G,"Продажа") -> 0
A11: =ROUNDDOWN(Сделки!A11,0) -> 2019-05-31 | B11: приход | C11: =Сделки!E11 -> ВБРР Б1P1 | D11: =IF(Сделки!G11="Купля",Сделки!H11*1,-1*Сделки!H11) -> 100 | E11: =IF(Сделки!G11="Купля",(Сделки!J11+Сделки!L11+Сделки!M11)/Сделки!H11,(Сделки!J11-Сделки!L11-Сделки!M11)/Сделки!H11) -> 1002.001 | F11: 100 | G11: 100200.1 | I11: 100 | J11: 100200.1 | K11: =MAX(IF(D11>0,IF(C$1:C10=$C11,IF(D$1:D10>0,ROW(K$1:K10)-ROW(K$1),0)))) -> 0 | L11: =MAX(IF(C$1:C10=$C11,ROW(K$1:K10)-ROW(K$1),0)) -> 0 | N11: =IF(F11>0,INDEX(A12:A1007,MATCH(TRUE,C12:C1007=C11,0))-A11,"-") -> 145 | O11: =IF(N11="-","",(IF(N11>0,SUMIFS($G$2:G11,$C$2:C11,C11),""))) -> 100200.1 | Q11: ='формулы списка'!B10 -> РЕСОЛизБП4 | U11: =-SUM(IF(C:C=$Q11,IF(D:D<0,D:D))) -> 0 | V11: 100 | W11: =SUM(IF($C$2:C$999=$Q11,IF($D$2:$D$999>0,$D$2:$D$999*$E$2:$E$999)))-Z11 -> 100690.44 | X11: 1006.9044 | Z11: =MAX(IF(C:C=$Q11,J:J)) -> 0 | AB11: =MAX(IF(C:C=$Q11,ROW(J:J)-ROW(L$1),0)) -> 20 | AD11: =(SUMIFS(Сделки!J:J,Сделки!E:E,Q11,Сделки!G:G,"Купля"))+(SUMIFS(Сделки!L:L,Сделки!E:E,Q11,Сделки!G:G,"Купля"))+(SUMIFS(Сделки!M:M,Сделки!E:E,Q11,Сделки!G:G,"Купля")) -> 100690.44 | AE11: =(SUMIFS(Сделки!J:J,Сделки!E:E,Q11,Сделки!G:G,"Продажа"))-(SUMIFS(Сделки!L:L,Сделки!E:E,Q11,Сделки!G:G,"Продажа"))-(SUMIFS(Сделки!M:M,Сделки!E:E,Q11,Сделки!G:G,"Продажа")) -> 0 | AF11: =SUMIFS(Сделки!K:K,Сделки!E:E,Q11,Сделки!G:G,"Купля") -> 0 | AG11: =SUMIFS(Сделки!K:K,Сделки!E:E,Q11,Сделки!G:G,"Продажа") -> 0
A12: =ROUNDDOWN(Сделки!A12,0) -> 2019-05-31 | B12: приход | C12: =Сделки!E12 -> Тинькофф1R | D12: =IF(Сделки!G12="Купля",Сделки!H12*1,-1*Сделки!H12) -> 100 | E12: =IF(Сделки!G12="Купля",(Сделки!J12+Сделки!L12+Сделки!M12)/Сделки!H12,(Сделки!J12-Сделки!L12-Сделки!M12)/Сделки!H12) -> 1004.7028 | F12: 100 | G12: 100470.28 | I12: 0 | J12: 0 | K12: =MAX(IF(D12>0,IF(C$1:C11=$C12,IF(D$1:D11>0,ROW(K$1:K11)-ROW(K$1),0)))) -> 0 | L12: =MAX(IF(C$1:C11=$C12,ROW(K$1:K11)-ROW(K$1),0)) -> 0 | N12: =IF(F12>0,INDEX(A13:A1008,MATCH(TRUE,C13:C1008=C12,0))-A12,"-") ->  | O12: =IF(N12="-","",(IF(N12>0,SUMIFS($G$2:G12,$C$2:C12,C12),""))) ->  | Q12: ='формулы списка'!B11 -> Роснефть | U12: =-SUM(IF(C:C=$Q12,IF(D:D<0,D:D))) -> 75 | V12: 0 | W12: =SUM(IF($C$2:C$999=$Q12,IF($D$2:$D$999>0,$D$2:$D$999*$E$2:$E$999)))-Z12 -> 0 | Z12: =MAX(IF(C:C=$Q12,J:J)) -> 310490 | AB12: =MAX(IF(C:C=$Q12,ROW(J:J)-ROW(L$1),0)) -> 69 | AD12: =(SUMIFS(Сделки!J:J,Сделки!E:E,Q12,Сделки!G:G,"Купля"))+(SUMIFS(Сделки!L:L,Сделки!E:E,Q12,Сделки!G:G,"Купля"))+(SUMIFS(Сделки!M:M,Сделки!E:E,Q12,Сделки!G:G,"Купля")) -> 310490 | AE12: =(SUMIFS(Сделки!J:J,Сделки!E:E,Q12,Сделки!G:G,"Продажа"))-(SUMIFS(Сделки!L:L,Сделки!E:E,Q12,Сделки!G:G,"Продажа"))-(SUMIFS(Сделки!M:M,Сделки!E:E,Q12,Сделки!G:G,"Продажа")) -> 311933.69 | AF12: =SUMIFS(Сделки!K:K,Сделки!E:E,Q12,Сделки!G:G,"Купля") -> 0 | AG12: =SUMIFS(Сделки!K:K,Сделки!E:E,Q12,Сделки!G:G,"Продажа") -> 0
A13: =ROUNDDOWN(Сделки!A13,0) -> 2019-05-31 | B13: приход | C13: =Сделки!E13 -> iУОМЗ БО-2 | D13: =IF(Сделки!G13="Купля",Сделки!H13*1,-1*Сделки!H13) -> 150 | E13: =IF(Сделки!G13="Купля",(Сделки!J13+Сделки!L13+Сделки!M13)/Сделки!H13,(Сделки!J13-Сделки!L13-Сделки!M13)/Сделки!H13) -> 1005.703533 | F13: 150 | G13: 150855.53 | I13: 0 | J13: 0 | K13: =MAX(IF(D13>0,IF(C$1:C12=$C13,IF(D$1:D12>0,ROW(K$1:K12)-ROW(K$1),0)))) -> 0 | L13: =MAX(IF(C$1:C12=$C13,ROW(K$1:K12)-ROW(K$1),0)) -> 0 | N13: =IF(F13>0,INDEX(A14:A1009,MATCH(TRUE,C14:C1009=C13,0))-A13,"-") ->  | O13: =IF(N13="-","",(IF(N13>0,SUMIFS($G$2:G13,$C$2:C13,C13),""))) ->  | Q13: ='формулы списка'!B12 -> Сбербанк | U13: =-SUM(IF(C:C=$Q13,IF(D:D<0,D:D))) -> 239 | V13: 0 | W13: =SUM(IF($C$2:C$999=$Q13,IF($D$2:$D$999>0,$D$2:$D$999*$E$2:$E$999)))-Z13 -> 0 | Z13: =MAX(IF(C:C=$Q13,J:J)) -> 569775.89 | AB13: =MAX(IF(C:C=$Q13,ROW(J:J)-ROW(L$1),0)) -> 225 | AD13: =(SUMIFS(Сделки!J:J,Сделки!E:E,Q13,Сделки!G:G,"Купля"))+(SUMIFS(Сделки!L:L,Сделки!E:E,Q13,Сделки!G:G,"Купля"))+(SUMIFS(Сделки!M:M,Сделки!E:E,Q13,Сделки!G:G,"Купля")) -> 569775.89 | AE13: =(SUMIFS(Сделки!J:J,Сделки!E:E,Q13,Сделки!G:G,"Продажа"))-(SUMIFS(Сделки!L:L,Сделки!E:E,Q13,Сделки!G:G,"Продажа"))-(SUMIFS(Сделки!M:M,Сделки!E:E,Q13,Сделки!G:G,"Продажа")) -> 570586.8 | AF13: =SUMIFS(Сделки!K:K,Сделки!E:E,Q13,Сделки!G:G,"Купля") -> 0 | AG13: =SUMIFS(Сделки!K:K,Сделки!E:E,Q13,Сделки!G:G,"Продажа") -> 0
A14: =ROUNDDOWN(Сделки!A14,0) -> 2019-06-05 | B14: приход | C14: =Сделки!E14 -> Совком БО5 | D14: =IF(Сделки!G14="Купля",Сделки!H14*1,-1*Сделки!H14) -> 150 | E14: =IF(Сделки!G14="Купля",(Сделки!J14+Сделки!L14+Сделки!M14)/Сделки!H14,(Сделки!J14-Сделки!L14-Сделки!M14)/Сделки!H14) -> 1003.702067 | F14: 150 | G14: 150555.31 | I14: 150 | J14: 150555.31 | K14: =MAX(IF(D14>0,IF(C$1:C13=$C14,IF(D$1:D13>0,ROW(K$1:K13)-ROW(K$1),0)))) -> 0 | L14: =MAX(IF(C$1:C13=$C14,ROW(K$1:K13)-ROW(K$1),0)) -> 0 | N14: =IF(F14>0,INDEX(A15:A1010,MATCH(TRUE,C15:C1010=C14,0))-A14,"-") -> 189 | O14: =IF(N14="-","",(IF(N14>0,SUMIFS($G$2:G14,$C$2:C14,C14),""))) -> 150555.31 | Q14: ='формулы списка'!B13 -> ГАЗПРОМ ао | U14: =-SUM(IF(C:C=$Q14,IF(D:D<0,D:D))) -> 25 | V14: 0 | W14: =SUM(IF($C$2:C$999=$Q14,IF($D$2:$D$999>0,$D$2:$D$999*$E$2:$E$999)))-Z14 -> 0 | Z14: =MAX(IF(C:C=$Q14,J:J)) -> 57377.24 | AB14: =MAX(IF(C:C=$Q14,ROW(J:J)-ROW(L$1),0)) -> 34 | AD14: =(SUMIFS(Сделки!J:J,Сделки!E:E,Q14,Сделки!G:G,"Купля"))+(SUMIFS(Сделки!L:L,Сделки!E:E,Q14,Сделки!G:G,"Купля"))+(SUMIFS(Сделки!M:M,Сделки!E:E,Q14,Сделки!G:G,"Купля")) -> 57377.24 | AE14: =(SUMIFS(Сделки!J:J,Сделки!E:E,Q14,Сделки!G:G,"Продажа"))-(SUMIFS(Сделки!L:L,Сделки!E:E,Q14,Сделки!G:G,"Продажа"))-(SUMIFS(Сделки!M:M,Сделки!E:E,Q14,Сделки!G:G,"Продажа")) -> 57395.4 | AF14: =SUMIFS(Сделки!K:K,Сделки!E:E,Q14,Сделки!G:G,"Купля") -> 0 | AG14: =SUMIFS(Сделки!K:K,Сделки!E:E,Q14,Сделки!G:G,"Продажа") -> 0
A15: =ROUNDDOWN(Сделки!A15,0) -> 2019-06-11 | B15: приход | C15: =Сделки!E15 -> О'КЕЙ-Б01Р | D15: =IF(Сделки!G15="Купля",Сделки!H15*1,-1*Сделки!H15) -> 170 | E15: =IF(Сделки!G15="Купля",(Сделки!J15+Сделки!L15+Сделки!M15)/Сделки!H15,(Сделки!J15-Сделки!L15-Сделки!M15)/Сделки!H15) -> 1008.205294 | F15: 170 | G15: 171394.9 | I15: 0 | J15: 0 | K15: =MAX(IF(D15>0,IF(C$1:C14=$C15,IF(D$1:D14>0,ROW(K$1:K14)-ROW(K$1),0)))) -> 0 | L15: =MAX(IF(C$1:C14=$C15,ROW(K$1:K14)-ROW(K$1),0)) -> 0 | N15: =IF(F15>0,INDEX(A16:A1011,MATCH(TRUE,C16:C1011=C15,0))-A15,"-") -> 0 | O15: =IF(N15="-","",(IF(N15>0,SUMIFS($G$2:G15,$C$2:C15,C15),""))) ->  | Q15: ='формулы списка'!B14 -> ПИК БО-П07 | U15: =-SUM(IF(C:C=$Q15,IF(D:D<0,D:D))) -> 0 | V15: 100 | W15: =SUM(IF($C$2:C$999=$Q15,IF($D$2:$D$999>0,$D$2:$D$999*$E$2:$E$999)))-Z15 -> 98849.15 | X15: 988.4915 | Z15: =MAX(IF(C:C=$Q15,J:J)) -> 0 | AB15: =MAX(IF(C:C=$Q15,ROW(J:J)-ROW(L$1),0)) -> 46 | AD15: =(SUMIFS(Сделки!J:J,Сделки!E:E,Q15,Сделки!G:G,"Купля"))+(SUMIFS(Сделки!L:L,Сделки!E:E,Q15,Сделки!G:G,"Купля"))+(SUMIFS(Сделки!M:M,Сделки!E:E,Q15,Сделки!G:G,"Купля")) -> 98849.15 | AE15: =(SUMIFS(Сделки!J:J,Сделки!E:E,Q15,Сделки!G:G,"Продажа"))-(SUMIFS(Сделки!L:L,Сделки!E:E,Q15,Сделки!G:G,"Продажа"))-(SUMIFS(Сделки!M:M,Сделки!E:E,Q15,Сделки!G:G,"Продажа")) -> 0 | AF15: =SUMIFS(Сделки!K:K,Сделки!E:E,Q15,Сделки!G:G,"Купля") -> 4124 | AG15: =SUMIFS(Сделки!K:K,Сделки!E:E,Q15,Сделки!G:G,"Продажа") -> 0
A16: =ROUNDDOWN(Сделки!A16,0) -> 2019-06-11 | B16: приход | C16: =Сделки!E16 -> О'КЕЙ-Б01Р | D16: =IF(Сделки!G16="Купля",Сделки!H16*1,-1*Сделки!H16) -> 120 | E16: =IF(Сделки!G16="Купля",(Сделки!J16+Сделки!L16+Сделки!M16)/Сделки!H16,(Сделки!J16-Сделки!L16-Сделки!M16)/Сделки!H16) -> 1007.704917 | F16: 290 | G16: 120924.59 | I16: 0 | J16: 0 | K16: =MAX(IF(D16>0,IF(C$1:C15=$C16,IF(D$1:D15>0,ROW(K$1:K15)-ROW(K$1),0)))) -> 14 | L16: =MAX(IF(C$1:C15=$C16,ROW(K$1:K15)-ROW(K$1),0)) -> 14 | N16: =IF(F16>0,INDEX(A17:A1012,MATCH(TRUE,C17:C1012=C16,0))-A16,"-") -> 0 | O16: =IF(N16="-","",(IF(N16>0,SUMIFS($G$2:G16,$C$2:C16,C16),""))) ->  | Q16: ='формулы списка'!B15 -> Сбербанк-п | U16: =-SUM(IF(C:C=$Q16,IF(D:D<0,D:D))) -> 139 | V16: 0 | W16: =SUM(IF($C$2:C$999=$Q16,IF($D$2:$D$999>0,$D$2:$D$999*$E$2:$E$999)))-Z16 -> 0 | Z16: =MAX(IF(C:C=$Q16,J:J)) -> 289115.32 | AB16: =MAX(IF(C:C=$Q16,ROW(J:J)-ROW(L$1),0)) -> 72 | AD16: =(SUMIFS(Сделки!J:J,Сделки!E:E,Q16,Сделки!G:G,"Купля"))+(SUMIFS(Сделки!L:L,Сделки!E:E,Q16,Сделки!G:G,"Купля"))+(SUMIFS(Сделки!M:M,Сделки!E:E,Q16,Сделки!G:G,"Купля")) -> 289115.32 | AE16: =(SUMIFS(Сделки!J:J,Сделки!E:E,Q16,Сделки!G:G,"Продажа"))-(SUMIFS(Сделки!L:L,Сделки!E:E,Q16,Сделки!G:G,"Продажа"))-(SUMIFS(Сделки!M:M,Сделки!E:E,Q16,Сделки!G:G,"Продажа")) -> 290042.17 | AF16: =SUMIFS(Сделки!K:K,Сделки!E:E,Q16,Сделки!G:G,"Купля") -> 0 | AG16: =SUMIFS(Сделки!K:K,Сделки!E:E,Q16,Сделки!G:G,"Продажа") -> 0
A17: =ROUNDDOWN(Сделки!A17,0) -> 2019-06-11 | B17: =IF(D17>0,"приход",IF(D17<0,"расход","")) -> приход | C17: =Сделки!E17 -> О'КЕЙ-Б01Р | D17: =IF(Сделки!G17="Купля",Сделки!H17*1,-1*Сделки!H17) -> 7 | E17: =IF(Сделки!G17="Купля",(Сделки!J17+Сделки!L17+Сделки!M17)/Сделки!H17,(Сделки!J17-Сделки!L17-Сделки!M17)/Сделки!H17) -> 1007.605714 | F17: =IF(L17=0,D17,OFFSET($F$1,L17,0)+D17) -> 297 | G17: 7053.24 | I17: 0 | J17: =IF(D17<0,0,IF(K17=0,I17*E17,OFFSET($J$1,K17,0)+(I17-OFFSET($I$1,K17,0))*E17)) -> 0 | K17: =MAX(IF(D17>0,IF(C$1:C16=$C17,IF(D$1:D16>0,ROW(K$1:K16)-ROW(K$1),0)))) -> 15 | L17: =MAX(IF(C$1:C16=$C17,ROW(K$1:K16)-ROW(K$1),0)) -> 15 | N17: =IF(F17>0,INDEX(A18:A1013,MATCH(TRUE,C18:C1013=C17,0))-A17,"-") -> 0 | O17: =IF(N17="-","",(IF(N17>0,SUMIFS($G$2:G17,$C$2:C17,C17),""))) ->  | Q17: ='формулы списка'!B16 -> Распадская | U17: =-SUM(IF(C:C=$Q17,IF(D:D<0,D:D))) -> 248 | V17: 0 | W17: =SUM(IF($C$2:C$999=$Q17,IF($D$2:$D$999>0,$D$2:$D$999*$E$2:$E$999)))-Z17 -> 0 | Z17: =MAX(IF(C:C=$Q17,J:J)) -> 346963.68 | AB17: =MAX(IF(C:C=$Q17,ROW(J:J)-ROW(L$1),0)) -> 92 | AD17: =(SUMIFS(Сделки!J:J,Сделки!E:E,Q17,Сделки!G:G,"Купля"))+(SUMIFS(Сделки!L:L,Сделки!E:E,Q17,Сделки!G:G,"Купля"))+(SUMIFS(Сделки!M:M,Сделки!E:E,Q17,Сделки!G:G,"Купля")) -> 346963.68 | AE17: =(SUMIFS(Сделки!J:J,Сделки!E:E,Q17,Сделки!G:G,"Продажа"))-(SUMIFS(Сделки!L:L,Сделки!E:E,Q17,Сделки!G:G,"Продажа"))-(SUMIFS(Сделки!M:M,Сделки!E:E,Q17,Сделки!G:G,"Продажа")) -> 343503 | AF17: =SUMIFS(Сделки!K:K,Сделки!E:E,Q17,Сделки!G:G,"Купля") -> 0 | AG17: =SUMIFS(Сделки!K:K,Сделки!E:E,Q17,Сделки!G:G,"Продажа") -> 0
A18: =ROUNDDOWN(Сделки!A18,0) -> 2019-06-11 | B18: приход | C18: =Сделки!E18 -> О'КЕЙ-Б01Р | D18: =IF(Сделки!G18="Купля",Сделки!H18*1,-1*Сделки!H18) -> 3 | E18: =IF(Сделки!G18="Купля",(Сделки!J18+Сделки!L18+Сделки!M18)/Сделки!H18,(Сделки!J18-Сделки!L18-Сделки!M18)/Сделки!H18) -> 1007.503333 | F18: 300 | G18: 3022.51 | I18: 0 | J18: 0 | K18: =MAX(IF(D18>0,IF(C$1:C17=$C18,IF(D$1:D17>0,ROW(K$1:K17)-ROW(K$1),0)))) -> 16 | L18: =MAX(IF(C$1:C17=$C18,ROW(K$1:K17)-ROW(K$1),0)) -> 16 | N18: =IF(F18>0,INDEX(A19:A1014,MATCH(TRUE,C19:C1014=C18,0))-A18,"-") ->  | O18: =IF(N18="-","",(IF(N18>0,SUMIFS($G$2:G18,$C$2:C18,C18),""))) ->  | Q18: ='формулы списка'!B17 -> АЛРОСА ао | U18: =-SUM(IF(C:C=$Q18,IF(D:D<0,D:D))) -> 279 | V18: 17 | W18: =SUM(IF($C$2:C$999=$Q18,IF($D$2:$D$999>0,$D$2:$D$999*$E$2:$E$999)))-Z18 -> 12664.06 | X18: 744.9447059 | Z18: =MAX(IF(C:C=$Q18,J:J)) -> 210954.08 | AB18: =MAX(IF(C:C=$Q18,ROW(J:J)-ROW(L$1),0)) -> 194 | AD18: =(SUMIFS(Сделки!J:J,Сделки!E:E,Q18,Сделки!G:G,"Купля"))+(SUMIFS(Сделки!L:L,Сделки!E:E,Q18,Сделки!G:G,"Купля"))+(SUMIFS(Сделки!M:M,Сделки!E:E,Q18,Сделки!G:G,"Купля")) -> 223618.14 | AE18: =(SUMIFS(Сделки!J:J,Сделки!E:E,Q18,Сделки!G:G,"Продажа"))-(SUMIFS(Сделки!L:L,Сделки!E:E,Q18,Сделки!G:G,"Продажа"))-(SUMIFS(Сделки!M:M,Сделки!E:E,Q18,Сделки!G:G,"Продажа")) -> 208876.15 | AF18: =SUMIFS(Сделки!K:K,Сделки!E:E,Q18,Сделки!G:G,"Купля") -> 0 | AG18: =SUMIFS(Сделки!K:K,Сделки!E:E,Q18,Сделки!G:G,"Продажа") -> 0
A19: =ROUNDDOWN(Сделки!A19,0) -> 2019-06-11 | B19: приход | C19: =Сделки!E19 -> РОСНАНО2P1 | D19: =IF(Сделки!G19="Купля",Сделки!H19*1,-1*Сделки!H19) -> 5 | E19: =IF(Сделки!G19="Купля",(Сделки!J19+Сделки!L19+Сделки!M19)/Сделки!H19,(Сделки!J19-Сделки!L19-Сделки!M19)/Сделки!H19) -> 1007.904 | F19: 5 | G19: 5039.52 | I19: 0 | J19: 0 | K19: =MAX(IF(D19>0,IF(C$1:C18=$C19,IF(D$1:D18>0,ROW(K$1:K18)-ROW(K$1),0)))) -> 0 | L19: =MAX(IF(C$1:C18=$C19,ROW(K$1:K18)-ROW(K$1),0)) -> 0 | N19: =IF(F19>0,INDEX(A20:A1015,MATCH(TRUE,C20:C1015=C19,0))-A19,"-") -> 0 | O19: =IF(N19="-","",(IF(N19>0,SUMIFS($G$2:G19,$C$2:C19,C19),""))) ->  | Q19: ='формулы списка'!B18 -> ИнтерРАОао | U19: =-SUM(IF(C:C=$Q19,IF(D:D<0,D:D))) -> 23 | V19: =OFFSET(F$1,$AB19,0) -> 0 | W19: =SUM(IF($C$2:C$999=$Q19,IF($D$2:$D$999>0,$D$2:$D$999*$E$2:$E$999)))-Z19 -> 0 | X19: =W19/V19 ->  | Z19: =MAX(IF(C:C=$Q19,J:J)) -> 97691.15 | AB19: =MAX(IF(C:C=$Q19,ROW(J:J)-ROW(L$1),0)) -> 145 | AD19: =(SUMIFS(Сделки!J:J,Сделки!E:E,Q19,Сделки!G:G,"Купля"))+(SUMIFS(Сделки!L:L,Сделки!E:E,Q19,Сделки!G:G,"Купля"))+(SUMIFS(Сделки!M:M,Сделки!E:E,Q19,Сделки!G:G,"Купля")) -> 97691.15 | AE19: =(SUMIFS(Сделки!J:J,Сделки!E:E,Q19,Сделки!G:G,"Продажа"))-(SUMIFS(Сделки!L:L,Сделки!E:E,Q19,Сделки!G:G,"Продажа"))-(SUMIFS(Сделки!M:M,Сделки!E:E,Q19,Сделки!G:G,"Продажа")) -> 95204.96 | AF19: =SUMIFS(Сделки!K:K,Сделки!E:E,Q19,Сделки!G:G,"Купля") -> 0 | AG19: =SUMIFS(Сделки!K:K,Сделки!E:E,Q19,Сделки!G:G,"Продажа") -> 0
A20: =ROUNDDOWN(Сделки!A20,0) -> 2019-06-11 | B20: приход | C20: =Сделки!E20 -> РОСНАНО2P1 | D20: =IF(Сделки!G20="Купля",Сделки!H20*1,-1*Сделки!H20) -> 145 | E20: =IF(Сделки!G20="Купля",(Сделки!J20+Сделки!L20+Сделки!M20)/Сделки!H20,(Сделки!J20-Сделки!L20-Сделки!M20)/Сделки!H20) -> 1007.905103 | F20: 150 | G20: 146146.24 | I20: 0 | J20: 0 | K20: =MAX(IF(D20>0,IF(C$1:C19=$C20,IF(D$1:D19>0,ROW(K$1:K19)-ROW(K$1),0)))) -> 18 | L20: =MAX(IF(C$1:C19=$C20,ROW(K$1:K19)-ROW(K$1),0)) -> 18 | N20: =IF(F20>0,INDEX(A21:A1016,MATCH(TRUE,C21:C1016=C20,0))-A20,"-") -> 17 | O20: =IF(N20="-","",(IF(N20>0,SUMIFS($G$2:G20,$C$2:C20,C20),""))) -> 151185.76 | Q20: ='формулы списка'!B19 -> НЛМК ао | U20: =-SUM(IF(C:C=$Q20,IF(D:D<0,D:D))) -> 80 | V20: 0 | W20: =SUM(IF($C$2:C$999=$Q20,IF($D$2:$D$999>0,$D$2:$D$999*$E$2:$E$999)))-Z20 -> 0 | Z20: =MAX(IF(C:C=$Q20,J:J)) -> 114206.71 | AB20: =MAX(IF(C:C=$Q20,ROW(J:J)-ROW(L$1),0)) -> 137 | AD20: =(SUMIFS(Сделки!J:J,Сделки!E:E,Q20,Сделки!G:G,"Купля"))+(SUMIFS(Сделки!L:L,Сделки!E:E,Q20,Сделки!G:G,"Купля"))+(SUMIFS(Сделки!M:M,Сделки!E:E,Q20,Сделки!G:G,"Купля")) -> 114206.71 | AE20: =(SUMIFS(Сделки!J:J,Сделки!E:E,Q20,Сделки!G:G,"Продажа"))-(SUMIFS(Сделки!L:L,Сделки!E:E,Q20,Сделки!G:G,"Продажа"))-(SUMIFS(Сделки!M:M,Сделки!E:E,Q20,Сделки!G:G,"Продажа")) -> 111762.49 | AF20: =SUMIFS(Сделки!K:K,Сделки!E:E,Q20,Сделки!G:G,"Купля") -> 0 | AG20: =SUMIFS(Сделки!K:K,Сделки!E:E,Q20,Сделки!G:G,"Продажа") -> 0
A21: =ROUNDDOWN(Сделки!A21,0) -> 2019-06-11 | B21: приход | C21: =Сделки!E21 -> РЕСОЛизБП4 | D21: =IF(Сделки!G21="Купля",Сделки!H21*1,-1*Сделки!H21) -> 100 | E21: =IF(Сделки!G21="Купля",(Сделки!J21+Сделки!L21+Сделки!M21)/Сделки!H21,(Сделки!J21-Сделки!L21-Сделки!M21)/Сделки!H21) -> 1006.9044 | F21: 100 | G21: 100690.44 | I21: 0 | J21: 0 | K21: =MAX(IF(D21>0,IF(C$1:C20=$C21,IF(D$1:D20>0,ROW(K$1:K20)-ROW(K$1),0)))) -> 0 | L21: =MAX(IF(C$1:C20=$C21,ROW(K$1:K20)-ROW(K$1),0)) -> 0 | N21: =IF(F21>0,INDEX(A22:A1017,MATCH(TRUE,C22:C1017=C21,0))-A21,"-") ->  | O21: =IF(N21="-","",(IF(N21>0,SUMIFS($G$2:G21,$C$2:C21,C21),""))) ->  | Q21: ='формулы списка'!B20 -> РусГидро | U21: =-SUM(IF(C:C=$Q21,IF(D:D<0,D:D))) -> 597 | V21: 0 | W21: =SUM(IF($C$2:C$999=$Q21,IF($D$2:$D$999>0,$D$2:$D$999*$E$2:$E$999)))-Z21 -> 0 | Z21: =MAX(IF(C:C=$Q21,J:J)) -> 323942.23 | AB21: =MAX(IF(C:C=$Q21,ROW(J:J)-ROW(L$1),0)) -> 195 | AD21: =(SUMIFS(Сделки!J:J,Сделки!E:E,Q21,Сделки!G:G,"Купля"))+(SUMIFS(Сделки!L:L,Сделки!E:E,Q21,Сделки!G:G,"Купля"))+(SUMIFS(Сделки!M:M,Сделки!E:E,Q21,Сделки!G:G,"Купля")) -> 323942.23 | AE21: =(SUMIFS(Сделки!J:J,Сделки!E:E,Q21,Сделки!G:G,"Продажа"))-(SUMIFS(Сделки!L:L,Сделки!E:E,Q21,Сделки!G:G,"Продажа"))-(SUMIFS(Сделки!M:M,Сделки!E:E,Q21,Сделки!G:G,"Продажа")) -> 307241.94 | AF21: =SUMIFS(Сделки!K:K,Сделки!E:E,Q21,Сделки!G:G,"Купля") -> 0 | AG21: =SUMIFS(Сделки!K:K,Сделки!E:E,Q21,Сделки!G:G,"Продажа") -> 0
A22: =ROUNDDOWN(Сделки!A22,0) -> 2019-06-14 | B22: приход | C22: =Сделки!E22 -> Роснефть | D22: =IF(Сделки!G22="Купля",Сделки!H22*1,-1*Сделки!H22) -> 15 | E22: =IF(Сделки!G22="Купля",(Сделки!J22+Сделки!L22+Сделки!M22)/Сделки!H22,(Сделки!J22-Сделки!L22-Сделки!M22)/Сделки!H22) -> 4150.874667 | F22: 15 | G22: 62263.12 | I22: 15 | J22: 62263.12 | K22: =MAX(IF(D22>0,IF(C$1:C21=$C22,IF(D$1:D21>0,ROW(K$1:K21)-ROW(K$1),0)))) -> 0 | L22: =MAX(IF(C$1:C21=$C22,ROW(K$1:K21)-ROW(K$1),0)) -> 0 | N22: =IF(F22>0,INDEX(A23:A1018,MATCH(TRUE,C23:C1018=C22,0))-A22,"-") -> 3 | O22: =IF(N22="-","",(IF(N22>0,SUMIFS($G$2:G22,$C$2:C22,C22),""))) -> 62263.12 | Q22: ='формулы списка'!B21 -> РЕСОЛизБП6 | U22: =-SUM(IF(C:C=$Q22,IF(D:D<0,D:D))) -> 0 | V22: 171 | W22: =SUM(IF($C$2:C$999=$Q22,IF($D$2:$D$999>0,$D$2:$D$999*$E$2:$E$999)))-Z22 -> 171889.74 | X22: 1005.203158 | Z22: =MAX(IF(C:C=$Q22,J:J)) -> 0 | AB22: =MAX(IF(C:C=$Q22,ROW(J:J)-ROW(L$1),0)) -> 172 | AD22: =(SUMIFS(Сделки!J:J,Сделки!E:E,Q22,Сделки!G:G,"Купля"))+(SUMIFS(Сделки!L:L,Сделки!E:E,Q22,Сделки!G:G,"Купля"))+(SUMIFS(Сделки!M:M,Сделки!E:E,Q22,Сделки!G:G,"Купля")) -> 171889.74 | AE22: =(SUMIFS(Сделки!J:J,Сделки!E:E,Q22,Сделки!G:G,"Продажа"))-(SUMIFS(Сделки!L:L,Сделки!E:E,Q22,Сделки!G:G,"Продажа"))-(SUMIFS(Сделки!M:M,Сделки!E:E,Q22,Сделки!G:G,"Продажа")) -> 0 | AF22: =SUMIFS(Сделки!K:K,Сделки!E:E,Q22,Сделки!G:G,"Купля") -> 885.78 | AG22: =SUMIFS(Сделки!K:K,Сделки!E:E,Q22,Сделки!G:G,"Продажа") -> 0
A23: =ROUNDDOWN(Сделки!A23,0) -> 2019-06-17 | B23: приход | C23: =Сделки!E23 -> Роснефть | D23: =IF(Сделки!G23="Купля",Сделки!H23*1,-1*Сделки!H23) -> 15 | E23: =IF(Сделки!G23="Купля",(Сделки!J23+Сделки!L23+Сделки!M23)/Сделки!H23,(Сделки!J23-Сделки!L23-Сделки!M23)/Сделки!H23) -> 4084.828667 | F23: 30 | G23: 61272.43 | I23: 30 | J23: 123535.55 | K23: =MAX(IF(D23>0,IF(C$1:C22=$C23,IF(D$1:D22>0,ROW(K$1:K22)-ROW(K$1),0)))) -> 21 | L23: =MAX(IF(C$1:C22=$C23,ROW(K$1:K22)-ROW(K$1),0)) -> 21 | N23: =IF(F23>0,INDEX(A24:A1019,MATCH(TRUE,C24:C1019=C23,0))-A23,"-") -> 0 | O23: =IF(N23="-","",(IF(N23>0,SUMIFS($G$2:G23,$C$2:C23,C23),""))) ->  | Q23: ='формулы списка'!B22 -> Аэрофлот | U23: =-SUM(IF(C:C=$Q23,IF(D:D<0,D:D))) -> 30 | V23: 0 | W23: =SUM(IF($C$2:C$999=$Q23,IF($D$2:$D$999>0,$D$2:$D$999*$E$2:$E$999)))-Z23 -> 0 | Z23: =MAX(IF(C:C=$Q23,J:J)) -> 30897.4 | AB23: =MAX(IF(C:C=$Q23,ROW(J:J)-ROW(L$1),0)) -> 206 | AD23: =(SUMIFS(Сделки!J:J,Сделки!E:E,Q23,Сделки!G:G,"Купля"))+(SUMIFS(Сделки!L:L,Сделки!E:E,Q23,Сделки!G:G,"Купля"))+(SUMIFS(Сделки!M:M,Сделки!E:E,Q23,Сделки!G:G,"Купля")) -> 30897.4 | AE23: =(SUMIFS(Сделки!J:J,Сделки!E:E,Q23,Сделки!G:G,"Продажа"))-(SUMIFS(Сделки!L:L,Сделки!E:E,Q23,Сделки!G:G,"Продажа"))-(SUMIFS(Сделки!M:M,Сделки!E:E,Q23,Сделки!G:G,"Продажа")) -> 29787.35 | AF23: =SUMIFS(Сделки!K:K,Сделки!E:E,Q23,Сделки!G:G,"Купля") -> 0 | AG23: =SUMIFS(Сделки!K:K,Сделки!E:E,Q23,Сделки!G:G,"Продажа") -> 0
A24: =ROUNDDOWN(Сделки!A24,0) -> 2019-06-17 | B24: расход | C24: =Сделки!E24 -> Роснефть | D24: =IF(Сделки!G24="Купля",Сделки!H24*1,-1*Сделки!H24) -> -30 | E24: =IF(Сделки!G24="Купля",(Сделки!J24+Сделки!L24+Сделки!M24)/Сделки!H24,(Сделки!J24-Сделки!L24-Сделки!M24)/Сделки!H24) -> 4144.626 | F24: 0 | G24: -124338.78 | I24: 0 | J24: 0 | K24: =MAX(IF(D24>0,IF(C$1:C23=$C24,IF(D$1:D23>0,ROW(K$1:K23)-ROW(K$1),0)))) -> 0 | L24: =MAX(IF(C$1:C23=$C24,ROW(K$1:K23)-ROW(K$1),0)) -> 22 | N24: =IF(F24>0,INDEX(A25:A1020,MATCH(TRUE,C25:C1020=C24,0))-A24,"-") -> - | O24: =IF(N24="-","",(IF(N24>0,SUMIFS($G$2:G24,$C$2:C24,C24),""))) ->  | Q24: ='формулы списка'!B23 -> Магнит ао | U24: =-SUM(IF(C:C=$Q24,IF(D:D<0,D:D))) -> 14 | V24: 0 | W24: =SUM(IF($C$2:C$999=$Q24,IF($D$2:$D$999>0,$D$2:$D$999*$E$2:$E$999)))-Z24 -> 0 | Z24: =MAX(IF(C:C=$Q24,J:J)) -> 50893.25 | AB24: =MAX(IF(C:C=$Q24,ROW(J:J)-ROW(L$1),0)) -> 201 | AD24: =(SUMIFS(Сделки!J:J,Сделки!E:E,Q24,Сделки!G:G,"Купля"))+(SUMIFS(Сделки!L:L,Сделки!E:E,Q24,Сделки!G:G,"Купля"))+(SUMIFS(Сделки!M:M,Сделки!E:E,Q24,Сделки!G:G,"Купля")) -> 50893.25 | AE24: =(SUMIFS(Сделки!J:J,Сделки!E:E,Q24,Сделки!G:G,"Продажа"))-(SUMIFS(Сделки!L:L,Сделки!E:E,Q24,Сделки!G:G,"Продажа"))-(SUMIFS(Сделки!M:M,Сделки!E:E,Q24,Сделки!G:G,"Продажа")) -> 47049.37 | AF24: =SUMIFS(Сделки!K:K,Сделки!E:E,Q24,Сделки!G:G,"Купля") -> 0 | AG24: =SUMIFS(Сделки!K:K,Сделки!E:E,Q24,Сделки!G:G,"Продажа") -> 0
A25: =ROUNDDOWN(Сделки!A25,0) -> 2019-06-17 | B25: приход | C25: =Сделки!E25 -> Роснефть | D25: =IF(Сделки!G25="Купля",Сделки!H25*1,-1*Сделки!H25) -> 15 | E25: =IF(Сделки!G25="Купля",(Сделки!J25+Сделки!L25+Сделки!M25)/Сделки!H25,(Сделки!J25-Сделки!L25-Сделки!M25)/Сделки!H25) -> 4094.836 | F25: 15 | G25: 61422.54 | I25: 45 | J25: 184958.09 | K25: =MAX(IF(D25>0,IF(C$1:C24=$C25,IF(D$1:D24>0,ROW(K$1:K24)-ROW(K$1),0)))) -> 22 | L25: =MAX(IF(C$1:C24=$C25,ROW(K$1:K24)-ROW(K$1),0)) -> 23 | N25: =IF(F25>0,INDEX(A26:A1021,MATCH(TRUE,C26:C1021=C25,0))-A25,"-") -> 1 | O25: =IF(N25="-","",(IF(N25>0,SUMIFS($G$2:G25,$C$2:C25,C25),""))) -> 60619.31 | Q25: ='формулы списка'!B24 -> ЛСР ао | U25: =-SUM(IF(C:C=$Q25,IF(D:D<0,D:D))) -> 0 | V25: 44 | W25: =SUM(IF($C$2:C$999=$Q25,IF($D$2:$D$999>0,$D$2:$D$999*$E$2:$E$999)))-Z25 -> 32994.06 | X25: 749.865 | Z25: =MAX(IF(C:C=$Q25,J:J)) -> 0 | AB25: =MAX(IF(C:C=$Q25,ROW(J:J)-ROW(L$1),0)) -> 242 | AD25: =(SUMIFS(Сделки!J:J,Сделки!E:E,Q25,Сделки!G:G,"Купля"))+(SUMIFS(Сделки!L:L,Сделки!E:E,Q25,Сделки!G:G,"Купля"))+(SUMIFS(Сделки!M:M,Сделки!E:E,Q25,Сделки!G:G,"Купля")) -> 32994.06 | AE25: =(SUMIFS(Сделки!J:J,Сделки!E:E,Q25,Сделки!G:G,"Продажа"))-(SUMIFS(Сделки!L:L,Сделки!E:E,Q25,Сделки!G:G,"Продажа"))-(SUMIFS(Сделки!M:M,Сделки!E:E,Q25,Сделки!G:G,"Продажа")) -> 0 | AF25: =SUMIFS(Сделки!K:K,Сделки!E:E,Q25,Сделки!G:G,"Купля") -> 0 | AG25: =SUMIFS(Сделки!K:K,Сделки!E:E,Q25,Сделки!G:G,"Продажа") -> 0
A26: =ROUNDDOWN(Сделки!A26,0) -> 2019-06-18 | B26: приход | C26: =Сделки!E26 -> Сбербанк | D26: =IF(Сделки!G26="Купля",Сделки!H26*1,-1*Сделки!H26) -> 16 | E26: =IF(Сделки!G26="Купля",(Сделки!J26+Сделки!L26+Сделки!M26)/Сделки!H26,(Сделки!J26-Сделки!L26-Сделки!M26)/Сделки!H26) -> 2368.34 | F26: 16 | G26: 37893.44 | I26: 16 | J26: 37893.44 | K26: =MAX(IF(D26>0,IF(C$1:C25=$C26,IF(D$1:D25>0,ROW(K$1:K25)-ROW(K$1),0)))) -> 0 | L26: =MAX(IF(C$1:C25=$C26,ROW(K$1:K25)-ROW(K$1),0)) -> 0 | N26: =IF(F26>0,INDEX(A27:A1022,MATCH(TRUE,C27:C1022=C26,0))-A26,"-") -> 0 | O26: =IF(N26="-","",(IF(N26>0,SUMIFS($G$2:G26,$C$2:C26,C26),""))) ->  | Q26: ='формулы списка'!B25 -> МТС-ао | U26: =-SUM(IF(C:C=$Q26,IF(D:D<0,D:D))) -> 0 | V26: 4 | W26: =SUM(IF($C$2:C$999=$Q26,IF($D$2:$D$999>0,$D$2:$D$999*$E$2:$E$999)))-Z26 -> 10771.47 | X26: 2692.8675 | Z26: =MAX(IF(C:C=$Q26,J:J)) -> 0 | AB26: =MAX(IF(C:C=$Q26,ROW(J:J)-ROW(L$1),0)) -> 189 | AD26: =(SUMIFS(Сделки!J:J,Сделки!E:E,Q26,Сделки!G:G,"Купля"))+(SUMIFS(Сделки!L:L,Сделки!E:E,Q26,Сделки!G:G,"Купля"))+(SUMIFS(Сделки!M:M,Сделки!E:E,Q26,Сделки!G:G,"Купля")) -> 10771.47 | AE26: =(SUMIFS(Сделки!J:J,Сделки!E:E,Q26,Сделки!G:G,"Продажа"))-(SUMIFS(Сделки!L:L,Сделки!E:E,Q26,Сделки!G:G,"Продажа"))-(SUMIFS(Сделки!M:M,Сделки!E:E,Q26,Сделки!G:G,"Продажа")) -> 0 | AF26: =SUMIFS(Сделки!K:K,Сделки!E:E,Q26,Сделки!G:G,"Купля") -> 0 | AG26: =SUMIFS(Сделки!K:K,Сделки!E:E,Q26,Сделки!G:G,"Продажа") -> 0
A27: =ROUNDDOWN(Сделки!A27,0) -> 2019-06-18 | B27: приход | C27: =Сделки!E27 -> Сбербанк | D27: =IF(Сделки!G27="Купля",Сделки!H27*1,-1*Сделки!H27) -> 3 | E27: =IF(Сделки!G27="Купля",(Сделки!J27+Сделки!L27+Сделки!M27)/Сделки!H27,(Сделки!J27-Сделки!L27-Сделки!M27)/Сделки!H27) -> 2368.14 | F27: 19 | G27: 7104.42 | I27: 19 | J27: 44997.86 | K27: =MAX(IF(D27>0,IF(C$1:C26=$C27,IF(D$1:D26>0,ROW(K$1:K26)-ROW(K$1),0)))) -> 25 | L27: =MAX(IF(C$1:C26=$C27,ROW(K$1:K26)-ROW(K$1),0)) -> 25 | N27: =IF(F27>0,INDEX(A28:A1023,MATCH(TRUE,C28:C1023=C27,0))-A27,"-") -> 0 | O27: =IF(N27="-","",(IF(N27>0,SUMIFS($G$2:G27,$C$2:C27,C27),""))) ->  | Q27: ='формулы списка'!B26 -> ТГК-1 | U27: =-SUM(IF(C:C=$Q27,IF(D:D<0,D:D))) -> 9 | V27: 0 | W27: =SUM(IF($C$2:C$999=$Q27,IF($D$2:$D$999>0,$D$2:$D$999*$E$2:$E$999)))-Z27 -> 0 | Z27: =MAX(IF(C:C=$Q27,J:J)) -> 10720.03 | AB27: =MAX(IF(C:C=$Q27,ROW(J:J)-ROW(L$1),0)) -> 217 | AD27: =(SUMIFS(Сделки!J:J,Сделки!E:E,Q27,Сделки!G:G,"Купля"))+(SUMIFS(Сделки!L:L,Сделки!E:E,Q27,Сделки!G:G,"Купля"))+(SUMIFS(Сделки!M:M,Сделки!E:E,Q27,Сделки!G:G,"Купля")) -> 10720.03 | AE27: =(SUMIFS(Сделки!J:J,Сделки!E:E,Q27,Сделки!G:G,"Продажа"))-(SUMIFS(Сделки!L:L,Сделки!E:E,Q27,Сделки!G:G,"Продажа"))-(SUMIFS(Сделки!M:M,Сделки!E:E,Q27,Сделки!G:G,"Продажа")) -> 10819.49 | AF27: =SUMIFS(Сделки!K:K,Сделки!E:E,Q27,Сделки!G:G,"Купля") -> 0 | AG27: =SUMIFS(Сделки!K:K,Сделки!E:E,Q27,Сделки!G:G,"Продажа") -> 0
A28: =ROUNDDOWN(Сделки!A28,0) -> 2019-06-18 | B28: приход | C28: =Сделки!E28 -> Сбербанк | D28: =IF(Сделки!G28="Купля",Сделки!H28*1,-1*Сделки!H28) -> 1 | E28: =IF(Сделки!G28="Купля",(Сделки!J28+Сделки!L28+Сделки!M28)/Сделки!H28,(Сделки!J28-Сделки!L28-Сделки!M28)/Сделки!H28) -> 2368.14 | F28: 20 | G28: 2368.14 | I28: 20 | J28: 47366 | K28: =MAX(IF(D28>0,IF(C$1:C27=$C28,IF(D$1:D27>0,ROW(K$1:K27)-ROW(K$1),0)))) -> 26 | L28: =MAX(IF(C$1:C27=$C28,ROW(K$1:K27)-ROW(K$1),0)) -> 26 | N28: =IF(F28>0,INDEX(A29:A1024,MATCH(TRUE,C29:C1024=C28,0))-A28,"-") -> 0 | O28: =IF(N28="-","",(IF(N28>0,SUMIFS($G$2:G28,$C$2:C28,C28),""))) ->  | Q28: ='формулы списка'!B27 -> +МосЭнерго | U28: =-SUM(IF(C:C=$Q28,IF(D:D<0,D:D))) -> 4 | V28: 0 | W28: =SUM(IF($C$2:C$999=$Q28,IF($D$2:$D$999>0,$D$2:$D$999*$E$2:$E$999)))-Z28 -> 0 | Z28: =MAX(IF(C:C=$Q28,J:J)) -> 9046.26 | AB28: =MAX(IF(C:C=$Q28,ROW(J:J)-ROW(L$1),0)) -> 214 | AD28: =(SUMIFS(Сделки!J:J,Сделки!E:E,Q28,Сделки!G:G,"Купля"))+(SUMIFS(Сделки!L:L,Сделки!E:E,Q28,Сделки!G:G,"Купля"))+(SUMIFS(Сделки!M:M,Сделки!E:E,Q28,Сделки!G:G,"Купля")) -> 9046.26 | AE28: =(SUMIFS(Сделки!J:J,Сделки!E:E,Q28,Сделки!G:G,"Продажа"))-(SUMIFS(Сделки!L:L,Сделки!E:E,Q28,Сделки!G:G,"Продажа"))-(SUMIFS(Сделки!M:M,Сделки!E:E,Q28,Сделки!G:G,"Продажа")) -> 9153.66 | AF28: =SUMIFS(Сделки!K:K,Сделки!E:E,Q28,Сделки!G:G,"Купля") -> 0 | AG28: =SUMIFS(Сделки!K:K,Сделки!E:E,Q28,Сделки!G:G,"Продажа") -> 0
A29: =ROUNDDOWN(Сделки!A29,0) -> 2019-06-18 | B29: приход | C29: =Сделки!E29 -> Сбербанк | D29: =IF(Сделки!G29="Купля",Сделки!H29*1,-1*Сделки!H29) -> 5 | E29: =IF(Сделки!G29="Купля",(Сделки!J29+Сделки!L29+Сделки!M29)/Сделки!H29,(Сделки!J29-Сделки!L29-Сделки!M29)/Сделки!H29) -> 2368.14 | F29: 25 | G29: 11840.7 | I29: 25 | J29: 59206.7 | K29: =MAX(IF(D29>0,IF(C$1:C28=$C29,IF(D$1:D28>0,ROW(K$1:K28)-ROW(K$1),0)))) -> 27 | L29: =MAX(IF(C$1:C28=$C29,ROW(K$1:K28)-ROW(K$1),0)) -> 27 | N29: =IF(F29>0,INDEX(A30:A1025,MATCH(TRUE,C30:C1025=C29,0))-A29,"-") -> 0 | O29: =IF(N29="-","",(IF(N29>0,SUMIFS($G$2:G29,$C$2:C29,C29),""))) ->  | Q29: ='формулы списка'!B28 -> ЛСР БО 1Р4 | U29: =-SUM(IF(C:C=$Q29,IF(D:D<0,D:D))) -> 0 | V29: =OFFSET(F$1,$AB29,0) -> 77 | W29: =SUM(IF($C$2:C$999=$Q29,IF($D$2:$D$999>0,$D$2:$D$999*$E$2:$E$999)))-Z29 -> 77469.69 | X29: =W29/V29 -> 1006.09987 | Z29: =MAX(IF(C:C=$Q29,J:J)) -> 0 | AB29: =MAX(IF(C:C=$Q29,ROW(J:J)-ROW(L$1),0)) -> 229 | AD29: =(SUMIFS(Сделки!J:J,Сделки!E:E,Q29,Сделки!G:G,"Купля"))+(SUMIFS(Сделки!L:L,Сделки!E:E,Q29,Сделки!G:G,"Купля"))+(SUMIFS(Сделки!M:M,Сделки!E:E,Q29,Сделки!G:G,"Купля")) -> 77469.69 | AE29: =(SUMIFS(Сделки!J:J,Сделки!E:E,Q29,Сделки!G:G,"Продажа"))-(SUMIFS(Сделки!L:L,Сделки!E:E,Q29,Сделки!G:G,"Продажа"))-(SUMIFS(Сделки!M:M,Сделки!E:E,Q29,Сделки!G:G,"Продажа")) -> 0 | AF29: =SUMIFS(Сделки!K:K,Сделки!E:E,Q29,Сделки!G:G,"Купля") -> 348.61 | AG29: =SUMIFS(Сделки!K:K,Сделки!E:E,Q29,Сделки!G:G,"Продажа") -> 0
A30: =ROUNDDOWN(Сделки!A30,0) -> 2019-06-18 | B30: расход | C30: =Сделки!E30 -> Сбербанк | D30: =IF(Сделки!G30="Купля",Сделки!H30*1,-1*Сделки!H30) -> -25 | E30: =IF(Сделки!G30="Купля",(Сделки!J30+Сделки!L30+Сделки!M30)/Сделки!H30,(Сделки!J30-Сделки!L30-Сделки!M30)/Сделки!H30) -> 2378.8504 | F30: 0 | G30: -59471.26 | I30: 0 | J30: 0 | K30: =MAX(IF(D30>0,IF(C$1:C29=$C30,IF(D$1:D29>0,ROW(K$1:K29)-ROW(K$1),0)))) -> 0 | L30: =MAX(IF(C$1:C29=$C30,ROW(K$1:K29)-ROW(K$1),0)) -> 28 | N30: =IF(F30>0,INDEX(A31:A1026,MATCH(TRUE,C31:C1026=C30,0))-A30,"-") -> - | O30: =IF(N30="-","",(IF(N30>0,SUMIFS($G$2:G30,$C$2:C30,C30),""))) ->  | Q30: ='формулы списка'!B29 -> РЕСОЛизБП7 | U30: =-SUM(IF(C:C=$Q30,IF(D:D<0,D:D))) -> 0 | V30: 55 | W30: =SUM(IF($C$2:C$999=$Q30,IF($D$2:$D$999>0,$D$2:$D$999*$E$2:$E$999)))-Z30 -> 55440.77 | X30: 1008.014 | Z30: =MAX(IF(C:C=$Q30,J:J)) -> 0 | AB30: =MAX(IF(C:C=$Q30,ROW(J:J)-ROW(L$1),0)) -> 231 | AD30: =(SUMIFS(Сделки!J:J,Сделки!E:E,Q30,Сделки!G:G,"Купля"))+(SUMIFS(Сделки!L:L,Сделки!E:E,Q30,Сделки!G:G,"Купля"))+(SUMIFS(Сделки!M:M,Сделки!E:E,Q30,Сделки!G:G,"Купля")) -> 55440.77 | AE30: =(SUMIFS(Сделки!J:J,Сделки!E:E,Q30,Сделки!G:G,"Продажа"))-(SUMIFS(Сделки!L:L,Сделки!E:E,Q30,Сделки!G:G,"Продажа"))-(SUMIFS(Сделки!M:M,Сделки!E:E,Q30,Сделки!G:G,"Продажа")) -> 0 | AF30: =SUMIFS(Сделки!K:K,Сделки!E:E,Q30,Сделки!G:G,"Купля") -> 74.02 | AG30: =SUMIFS(Сделки!K:K,Сделки!E:E,Q30,Сделки!G:G,"Продажа") -> 0
A31: =ROUNDDOWN(Сделки!A31,0) -> 2019-06-18 | B31: приход | C31: =Сделки!E31 -> ГАЗПРОМ ао | D31: =IF(Сделки!G31="Купля",Сделки!H31*1,-1*Сделки!H31) -> 25 | E31: =IF(Сделки!G31="Купля",(Сделки!J31+Сделки!L31+Сделки!M31)/Сделки!H31,(Сделки!J31-Сделки!L31-Сделки!M31)/Сделки!H31) -> 2295.0896 | F31: 25 | G31: 57377.24 | I31: 25 | J31: 57377.24 | K31: =MAX(IF(D31>0,IF(C$1:C30=$C31,IF(D$1:D30>0,ROW(K$1:K30)-ROW(K$1),0)))) -> 0 | L31: =MAX(IF(C$1:C30=$C31,ROW(K$1:K30)-ROW(K$1),0)) -> 0 | N31: =IF(F31>0,INDEX(A32:A1027,MATCH(TRUE,C32:C1027=C31,0))-A31,"-") -> 0 | O31: =IF(N31="-","",(IF(N31>0,SUMIFS($G$2:G31,$C$2:C31,C31),""))) ->  | Q31: ='формулы списка'!B30 ->  | U31: =-SUM(IF(C:C=$Q31,IF(D:D<0,D:D))) -> 0 | V31: 0 | W31: =SUM(IF($C$2:C$999=$Q31,IF($D$2:$D$999>0,$D$2:$D$999*$E$2:$E$999)))-Z31 -> 0 | Z31: =MAX(IF(C:C=$Q31,J:J)) -> 0 | AB31: =MAX(IF(C:C=$Q31,ROW(J:J)-ROW(L$1),0)) -> 1048575 | AD31: =(SUMIFS(Сделки!J:J,Сделки!E:E,Q31,Сделки!G:G,"Купля"))+(SUMIFS(Сделки!L:L,Сделки!E:E,Q31,Сделки!G:G,"Купля"))+(SUMIFS(Сделки!M:M,Сделки!E:E,Q31,Сделки!G:G,"Купля")) -> 0 | AE31: =(SUMIFS(Сделки!J:J,Сделки!E:E,Q31,Сделки!G:G,"Продажа"))-(SUMIFS(Сделки!L:L,Сделки!E:E,Q31,Сделки!G:G,"Продажа"))-(SUMIFS(Сделки!M:M,Сделки!E:E,Q31,Сделки!G:G,"Продажа")) -> 0 | AF31: =SUMIFS(Сделки!K:K,Сделки!E:E,Q31,Сделки!G:G,"Купля") -> 0 | AG31: =SUMIFS(Сделки!K:K,Сделки!E:E,Q31,Сделки!G:G,"Продажа") -> 0
A32: =ROUNDDOWN(Сделки!A32,0) -> 2019-06-18 | B32: расход | C32: =Сделки!E32 -> ГАЗПРОМ ао | D32: =IF(Сделки!G32="Купля",Сделки!H32*1,-1*Сделки!H32) -> -4 | E32: =IF(Сделки!G32="Купля",(Сделки!J32+Сделки!L32+Сделки!M32)/Сделки!H32,(Сделки!J32-Сделки!L32-Сделки!M32)/Сделки!H32) -> 2295.81 | F32: 21 | G32: -9183.24 | I32: 0 | J32: 0 | K32: =MAX(IF(D32>0,IF(C$1:C31=$C32,IF(D$1:D31>0,ROW(K$1:K31)-ROW(K$1),0)))) -> 0 | L32: =MAX(IF(C$1:C31=$C32,ROW(K$1:K31)-ROW(K$1),0)) -> 30 | N32: =IF(F32>0,INDEX(A33:A1028,MATCH(TRUE,C33:C1028=C32,0))-A32,"-") -> 0 | O32: =IF(N32="-","",(IF(N32>0,SUMIFS($G$2:G32,$C$2:C32,C32),""))) ->  | Q32: ='формулы списка'!B31 ->  | U32: =-SUM(IF(C:C=$Q32,IF(D:D<0,D:D))) -> 0 | V32: 0 | W32: =SUM(IF($C$2:C$999=$Q32,IF($D$2:$D$999>0,$D$2:$D$999*$E$2:$E$999)))-Z32 -> 0 | Z32: =MAX(IF(C:C=$Q32,J:J)) -> 0 | AB32: =MAX(IF(C:C=$Q32,ROW(J:J)-ROW(L$1),0)) -> 1048575 | AD32: =(SUMIFS(Сделки!J:J,Сделки!E:E,Q32,Сделки!G:G,"Купля"))+(SUMIFS(Сделки!L:L,Сделки!E:E,Q32,Сделки!G:G,"Купля"))+(SUMIFS(Сделки!M:M,Сделки!E:E,Q32,Сделки!G:G,"Купля")) -> 0 | AE32: =(SUMIFS(Сделки!J:J,Сделки!E:E,Q32,Сделки!G:G,"Продажа"))-(SUMIFS(Сделки!L:L,Сделки!E:E,Q32,Сделки!G:G,"Продажа"))-(SUMIFS(Сделки!M:M,Сделки!E:E,Q32,Сделки!G:G,"Продажа")) -> 0 | AF32: =SUMIFS(Сделки!K:K,Сделки!E:E,Q32,Сделки!G:G,"Купля") -> 0 | AG32: =SUMIFS(Сделки!K:K,Сделки!E:E,Q32,Сделки!G:G,"Продажа") -> 0
A33: =ROUNDDOWN(Сделки!A33,0) -> 2019-06-18 | B33: расход | C33: =Сделки!E33 -> ГАЗПРОМ ао | D33: =IF(Сделки!G33="Купля",Сделки!H33*1,-1*Сделки!H33) -> -2 | E33: =IF(Сделки!G33="Купля",(Сделки!J33+Сделки!L33+Сделки!M33)/Сделки!H33,(Сделки!J33-Сделки!L33-Сделки!M33)/Сделки!H33) -> 2295.805 | F33: 19 | G33: -4591.61 | I33: 0 | J33: 0 | K33: =MAX(IF(D33>0,IF(C$1:C32=$C33,IF(D$1:D32>0,ROW(K$1:K32)-ROW(K$1),0)))) -> 0 | L33: =MAX(IF(C$1:C32=$C33,ROW(K$1:K32)-ROW(K$1),0)) -> 31 | N33: =IF(F33>0,INDEX(A34:A1029,MATCH(TRUE,C34:C1029=C33,0))-A33,"-") -> 0 | O33: =IF(N33="-","",(IF(N33>0,SUMIFS($G$2:G33,$C$2:C33,C33),""))) ->  | Q33: ='формулы списка'!B32 ->  | U33: =-SUM(IF(C:C=$Q33,IF(D:D<0,D:D))) -> 0 | V33: 0 | W33: =SUM(IF($C$2:C$999=$Q33,IF($D$2:$D$999>0,$D$2:$D$999*$E$2:$E$999)))-Z33 -> 0 | Z33: =MAX(IF(C:C=$Q33,J:J)) -> 0 | AB33: =MAX(IF(C:C=$Q33,ROW(J:J)-ROW(L$1),0)) -> 1048575 | AD33: =(SUMIFS(Сделки!J:J,Сделки!E:E,Q33,Сделки!G:G,"Купля"))+(SUMIFS(Сделки!L:L,Сделки!E:E,Q33,Сделки!G:G,"Купля"))+(SUMIFS(Сделки!M:M,Сделки!E:E,Q33,Сделки!G:G,"Купля")) -> 0 | AE33: =(SUMIFS(Сделки!J:J,Сделки!E:E,Q33,Сделки!G:G,"Продажа"))-(SUMIFS(Сделки!L:L,Сделки!E:E,Q33,Сделки!G:G,"Продажа"))-(SUMIFS(Сделки!M:M,Сделки!E:E,Q33,Сделки!G:G,"Продажа")) -> 0 | AF33: =SUMIFS(Сделки!K:K,Сделки!E:E,Q33,Сделки!G:G,"Купля") -> 0 | AG33: =SUMIFS(Сделки!K:K,Сделки!E:E,Q33,Сделки!G:G,"Продажа") -> 0
A34: =ROUNDDOWN(Сделки!A34,0) -> 2019-06-18 | B34: расход | C34: =Сделки!E34 -> ГАЗПРОМ ао | D34: =IF(Сделки!G34="Купля",Сделки!H34*1,-1*Сделки!H34) -> -17 | E34: =IF(Сделки!G34="Купля",(Сделки!J34+Сделки!L34+Сделки!M34)/Сделки!H34,(Сделки!J34-Сделки!L34-Сделки!M34)/Сделки!H34) -> 2295.808235 | F34: 2 | G34: -39028.74 | I34: =IF(D34<0,0,IF(IF(K34=0,0,OFFSET($I$1,K34,0))+D34>VLOOKUP(C34,Q:U,5,0),VLOOKUP(C34,Q:U,5,0),IF(K34=0,0,OFFSET($I$1,K34,0))+D34)) -> 0 | J34: 0 | K34: =MAX(IF(D34>0,IF(C$1:C33=$C34,IF(D$1:D33>0,ROW(K$1:K33)-ROW(K$1),0)))) -> 0 | L34: =MAX(IF(C$1:C33=$C34,ROW(K$1:K33)-ROW(K$1),0)) -> 32 | N34: =IF(F34>0,INDEX(A35:A1030,MATCH(TRUE,C35:C1030=C34,0))-A34,"-") -> 0 | O34: =IF(N34="-","",(IF(N34>0,SUMIFS($G$2:G34,$C$2:C34,C34),""))) -> 
A35: =ROUNDDOWN(Сделки!A35,0) -> 2019-06-18 | B35: расход | C35: =Сделки!E35 -> ГАЗПРОМ ао | D35: =IF(Сделки!G35="Купля",Сделки!H35*1,-1*Сделки!H35) -> -2 | E35: =IF(Сделки!G35="Купля",(Сделки!J35+Сделки!L35+Сделки!M35)/Сделки!H35,(Сделки!J35-Сделки!L35-Сделки!M35)/Сделки!H35) -> 2295.905 | F35: 0 | G35: -4591.81 | I35: 0 | J35: 0 | K35: =MAX(IF(D35>0,IF(C$1:C34=$C35,IF(D$1:D34>0,ROW(K$1:K34)-ROW(K$1),0)))) -> 0 | L35: =MAX(IF(C$1:C34=$C35,ROW(K$1:K34)-ROW(K$1),0)) -> 33 | N35: =IF(F35>0,INDEX(A36:A1031,MATCH(TRUE,C36:C1031=C35,0))-A35,"-") -> - | O35: =IF(N35="-","",(IF(N35>0,SUMIFS($G$2:G35,$C$2:C35,C35),""))) -> 
A36: =ROUNDDOWN(Сделки!A36,0) -> 2019-06-18 | B36: расход | C36: =Сделки!E36 -> Роснефть | D36: =IF(Сделки!G36="Купля",Сделки!H36*1,-1*Сделки!H36) -> -15 | E36: =IF(Сделки!G36="Купля",(Сделки!J36+Сделки!L36+Сделки!M36)/Сделки!H36,(Сделки!J36-Сделки!L36-Сделки!M36)/Сделки!H36) -> 4103.155333 | F36: 0 | G36: -61547.33 | I36: 0 | J36: 0 | K36: =MAX(IF(D36>0,IF(C$1:C35=$C36,IF(D$1:D35>0,ROW(K$1:K35)-ROW(K$1),0)))) -> 0 | L36: =MAX(IF(C$1:C35=$C36,ROW(K$1:K35)-ROW(K$1),0)) -> 24 | N36: =IF(F36>0,INDEX(A37:A1032,MATCH(TRUE,C37:C1032=C36,0))-A36,"-") -> - | O36: =IF(N36="-","",(IF(N36>0,SUMIFS($G$2:G36,$C$2:C36,C36),""))) -> 
A37: =ROUNDDOWN(Сделки!A37,0) -> 2019-06-19 | B37: приход | C37: =Сделки!E37 -> Сбербанк | D37: =IF(Сделки!G37="Купля",Сделки!H37*1,-1*Сделки!H37) -> 25 | E37: =IF(Сделки!G37="Купля",(Сделки!J37+Сделки!L37+Сделки!M37)/Сделки!H37,(Сделки!J37-Сделки!L37-Сделки!M37)/Сделки!H37) -> 2397.5604 | F37: 25 | G37: 59939.01 | I37: 50 | J37: 119145.71 | K37: =MAX(IF(D37>0,IF(C$1:C36=$C37,IF(D$1:D36>0,ROW(K$1:K36)-ROW(K$1),0)))) -> 28 | L37: =MAX(IF(C$1:C36=$C37,ROW(K$1:K36)-ROW(K$1),0)) -> 29 | N37: =IF(F37>0,INDEX(A38:A1033,MATCH(TRUE,C38:C1033=C37,0))-A37,"-") -> 0 | O37: =IF(N37="-","",(IF(N37>0,SUMIFS($G$2:G37,$C$2:C37,C37),""))) -> 
A38: =ROUNDDOWN(Сделки!A38,0) -> 2019-06-19 | B38: приход | C38: =Сделки!E38 -> Сбербанк | D38: =IF(Сделки!G38="Купля",Сделки!H38*1,-1*Сделки!H38) -> 20 | E38: =IF(Сделки!G38="Купля",(Сделки!J38+Сделки!L38+Сделки!M38)/Сделки!H38,(Сделки!J38-Сделки!L38-Сделки!M38)/Сделки!H38) -> 2393.858 | F38: 45 | G38: 47877.16 | I38: 70 | J38: 167022.87 | K38: =MAX(IF(D38>0,IF(C$1:C37=$C38,IF(D$1:D37>0,ROW(K$1:K37)-ROW(K$1),0)))) -> 36 | L38: =MAX(IF(C$1:C37=$C38,ROW(K$1:K37)-ROW(K$1),0)) -> 36 | N38: =IF(F38>0,INDEX(A39:A1034,MATCH(TRUE,C39:C1034=C38,0))-A38,"-") -> 0 | O38: =IF(N38="-","",(IF(N38>0,SUMIFS($G$2:G38,$C$2:C38,C38),""))) -> 
A39: =ROUNDDOWN(Сделки!A39,0) -> 2019-06-19 | B39: расход | C39: =Сделки!E39 -> Сбербанк | D39: =IF(Сделки!G39="Купля",Сделки!H39*1,-1*Сделки!H39) -> -34 | E39: =IF(Сделки!G39="Купля",(Сделки!J39+Сделки!L39+Сделки!M39)/Сделки!H39,(Сделки!J39-Сделки!L39-Сделки!M39)/Сделки!H39) -> 2395.438824 | F39: 11 | G39: -81444.92 | I39: 0 | J39: 0 | K39: =MAX(IF(D39>0,IF(C$1:C38=$C39,IF(D$1:D38>0,ROW(K$1:K38)-ROW(K$1),0)))) -> 0 | L39: =MAX(IF(C$1:C38=$C39,ROW(K$1:K38)-ROW(K$1),0)) -> 37 | N39: =IF(F39>0,INDEX(A40:A1035,MATCH(TRUE,C40:C1035=C39,0))-A39,"-") -> 0 | O39: =IF(N39="-","",(IF(N39>0,SUMIFS($G$2:G39,$C$2:C39,C39),""))) -> 
A40: =ROUNDDOWN(Сделки!A40,0) -> 2019-06-19 | B40: =IF(D40>0,"приход",IF(D40<0,"расход","")) -> расход | C40: =Сделки!E40 -> Сбербанк | D40: =IF(Сделки!G40="Купля",Сделки!H40*1,-1*Сделки!H40) -> -1 | E40: =IF(Сделки!G40="Купля",(Сделки!J40+Сделки!L40+Сделки!M40)/Сделки!H40,(Сделки!J40-Сделки!L40-Сделки!M40)/Сделки!H40) -> 2395.44 | F40: =IF(L40=0,D40,OFFSET($F$1,L40,0)+D40) -> 10 | G40: -2395.44 | I40: 0 | J40: =IF(D40<0,0,IF(K40=0,I40*E40,OFFSET($J$1,K40,0)+(I40-OFFSET($I$1,K40,0))*E40)) -> 0 | K40: =MAX(IF(D40>0,IF(C$1:C39=$C40,IF(D$1:D39>0,ROW(K$1:K39)-ROW(K$1),0)))) -> 0 | L40: =MAX(IF(C$1:C39=$C40,ROW(K$1:K39)-ROW(K$1),0)) -> 38 | N40: =IF(F40>0,INDEX(A41:A1036,MATCH(TRUE,C41:C1036=C40,0))-A40,"-") -> 0 | O40: =IF(N40="-","",(IF(N40>0,SUMIFS($G$2:G40,$C$2:C40,C40),""))) -> 
A41: =ROUNDDOWN(Сделки!A41,0) -> 2019-06-19 | B41: расход | C41: =Сделки!E41 -> Сбербанк | D41: =IF(Сделки!G41="Купля",Сделки!H41*1,-1*Сделки!H41) -> -10 | E41: =IF(Сделки!G41="Купля",(Сделки!J41+Сделки!L41+Сделки!M41)/Сделки!H41,(Сделки!J41-Сделки!L41-Сделки!M41)/Сделки!H41) -> 2395.739 | F41: 0 | G41: -23957.39 | I41: 0 | J41: 0 | K41: =MAX(IF(D41>0,IF(C$1:C40=$C41,IF(D$1:D40>0,ROW(K$1:K40)-ROW(K$1),0)))) -> 0 | L41: =MAX(IF(C$1:C40=$C41,ROW(K$1:K40)-ROW(K$1),0)) -> 39 | N41: =IF(F41>0,INDEX(A42:A1037,MATCH(TRUE,C42:C1037=C41,0))-A41,"-") -> - | O41: =IF(N41="-","",(IF(N41>0,SUMIFS($G$2:G41,$C$2:C41,C41),""))) -> 
A42: =ROUNDDOWN(Сделки!A42,0) -> 2019-06-19 | B42: приход | C42: =Сделки!E42 -> Сбербанк | D42: =IF(Сделки!G42="Купля",Сделки!H42*1,-1*Сделки!H42) -> 25 | E42: =IF(Сделки!G42="Купля",(Сделки!J42+Сделки!L42+Сделки!M42)/Сделки!H42,(Сделки!J42-Сделки!L42-Сделки!M42)/Сделки!H42) -> 2394.6584 | F42: 25 | G42: 59866.46 | I42: 95 | J42: 226889.33 | K42: =MAX(IF(D42>0,IF(C$1:C41=$C42,IF(D$1:D41>0,ROW(K$1:K41)-ROW(K$1),0)))) -> 37 | L42: =MAX(IF(C$1:C41=$C42,ROW(K$1:K41)-ROW(K$1),0)) -> 40 | N42: =IF(F42>0,INDEX(A43:A1038,MATCH(TRUE,C43:C1038=C42,0))-A42,"-") -> 0 | O42: =IF(N42="-","",(IF(N42>0,SUMIFS($G$2:G42,$C$2:C42,C42),""))) -> 
A43: =ROUNDDOWN(Сделки!A43,0) -> 2019-06-19 | B43: приход | C43: =Сделки!E43 -> Сбербанк | D43: =IF(Сделки!G43="Купля",Сделки!H43*1,-1*Сделки!H43) -> 15 | E43: =IF(Сделки!G43="Купля",(Сделки!J43+Сделки!L43+Сделки!M43)/Сделки!H43,(Сделки!J43-Сделки!L43-Сделки!M43)/Сделки!H43) -> 2393.157333 | F43: 40 | G43: 35897.36 | I43: 110 | J43: 262786.69 | K43: =MAX(IF(D43>0,IF(C$1:C42=$C43,IF(D$1:D42>0,ROW(K$1:K42)-ROW(K$1),0)))) -> 41 | L43: =MAX(IF(C$1:C42=$C43,ROW(K$1:K42)-ROW(K$1),0)) -> 41 | N43: =IF(F43>0,INDEX(A44:A1039,MATCH(TRUE,C44:C1039=C43,0))-A43,"-") -> 0 | O43: =IF(N43="-","",(IF(N43>0,SUMIFS($G$2:G43,$C$2:C43,C43),""))) -> 
A44: =ROUNDDOWN(Сделки!A44,0) -> 2019-06-19 | B44: приход | C44: =Сделки!E44 -> Сбербанк | D44: =IF(Сделки!G44="Купля",Сделки!H44*1,-1*Сделки!H44) -> 24 | E44: =IF(Сделки!G44="Купля",(Сделки!J44+Сделки!L44+Сделки!M44)/Сделки!H44,(Сделки!J44-Сделки!L44-Сделки!M44)/Сделки!H44) -> 2390.055417 | F44: 64 | G44: 57361.33 | I44: 134 | J44: 320148.02 | K44: =MAX(IF(D44>0,IF(C$1:C43=$C44,IF(D$1:D43>0,ROW(K$1:K43)-ROW(K$1),0)))) -> 42 | L44: =MAX(IF(C$1:C43=$C44,ROW(K$1:K43)-ROW(K$1),0)) -> 42 | N44: =IF(F44>0,INDEX(A45:A1040,MATCH(TRUE,C45:C1040=C44,0))-A44,"-") -> 0 | O44: =IF(N44="-","",(IF(N44>0,SUMIFS($G$2:G44,$C$2:C44,C44),""))) -> 
A45: =ROUNDDOWN(Сделки!A45,0) -> 2019-06-19 | B45: приход | C45: =Сделки!E45 -> Сбербанк | D45: =IF(Сделки!G45="Купля",Сделки!H45*1,-1*Сделки!H45) -> 1 | E45: =IF(Сделки!G45="Купля",(Сделки!J45+Сделки!L45+Сделки!M45)/Сделки!H45,(Сделки!J45-Сделки!L45-Сделки!M45)/Сделки!H45) -> 2390.05 | F45: 65 | G45: 2390.05 | I45: 135 | J45: 322538.07 | K45: =MAX(IF(D45>0,IF(C$1:C44=$C45,IF(D$1:D44>0,ROW(K$1:K44)-ROW(K$1),0)))) -> 43 | L45: =MAX(IF(C$1:C44=$C45,ROW(K$1:K44)-ROW(K$1),0)) -> 43 | N45: =IF(F45>0,INDEX(A46:A1041,MATCH(TRUE,C46:C1041=C45,0))-A45,"-") -> 0 | O45: =IF(N45="-","",(IF(N45>0,SUMIFS($G$2:G45,$C$2:C45,C45),""))) -> 
A46: =ROUNDDOWN(Сделки!A46,0) -> 2019-06-19 | B46: расход | C46: =Сделки!E46 -> Сбербанк | D46: =IF(Сделки!G46="Купля",Сделки!H46*1,-1*Сделки!H46) -> -65 | E46: =IF(Сделки!G46="Купля",(Сделки!J46+Сделки!L46+Сделки!M46)/Сделки!H46,(Сделки!J46-Сделки!L46-Сделки!M46)/Сделки!H46) -> 2394.739231 | F46: 0 | G46: -155658.05 | I46: 0 | J46: 0 | K46: =MAX(IF(D46>0,IF(C$1:C45=$C46,IF(D$1:D45>0,ROW(K$1:K45)-ROW(K$1),0)))) -> 0 | L46: =MAX(IF(C$1:C45=$C46,ROW(K$1:K45)-ROW(K$1),0)) -> 44 | N46: =IF(F46>0,INDEX(A47:A1042,MATCH(TRUE,C47:C1042=C46,0))-A46,"-") -> - | O46: =IF(N46="-","",(IF(N46>0,SUMIFS($G$2:G46,$C$2:C46,C46),""))) -> 
A47: =ROUNDDOWN(Сделки!A47,0) -> 2019-06-19 | B47: приход | C47: =Сделки!E47 -> ПИК БО-П07 | D47: =IF(Сделки!G47="Купля",Сделки!H47*1,-1*Сделки!H47) -> 100 | E47: =IF(Сделки!G47="Купля",(Сделки!J47+Сделки!L47+Сделки!M47)/Сделки!H47,(Сделки!J47-Сделки!L47-Сделки!M47)/Сделки!H47) -> 988.4915 | F47: 100 | G47: 98849.15 | I47: 0 | J47: 0 | K47: =MAX(IF(D47>0,IF(C$1:C46=$C47,IF(D$1:D46>0,ROW(K$1:K46)-ROW(K$1),0)))) -> 0 | L47: =MAX(IF(C$1:C46=$C47,ROW(K$1:K46)-ROW(K$1),0)) -> 0 | N47: =IF(F47>0,INDEX(A48:A1043,MATCH(TRUE,C48:C1043=C47,0))-A47,"-") ->  | O47: =IF(N47="-","",(IF(N47>0,SUMIFS($G$2:G47,$C$2:C47,C47),""))) -> 
A48: =ROUNDDOWN(Сделки!A48,0) -> 2019-06-21 | B48: приход | C48: =Сделки!E48 -> Сбербанк-п | D48: =IF(Сделки!G48="Купля",Сделки!H48*1,-1*Сделки!H48) -> 25 | E48: =IF(Сделки!G48="Купля",(Сделки!J48+Сделки!L48+Сделки!M48)/Сделки!H48,(Сделки!J48-Сделки!L48-Сделки!M48)/Сделки!H48) -> 2087.0452 | F48: 25 | G48: 52176.13 | I48: 25 | J48: 52176.13 | K48: =MAX(IF(D48>0,IF(C$1:C47=$C48,IF(D$1:D47>0,ROW(K$1:K47)-ROW(K$1),0)))) -> 0 | L48: =MAX(IF(C$1:C47=$C48,ROW(K$1:K47)-ROW(K$1),0)) -> 0 | N48: =IF(F48>0,INDEX(A49:A1044,MATCH(TRUE,C49:C1044=C48,0))-A48,"-") -> 0 | O48: =IF(N48="-","",(IF(N48>0,SUMIFS($G$2:G48,$C$2:C48,C48),""))) -> 
A49: =ROUNDDOWN(Сделки!A49,0) -> 2019-06-21 | B49: приход | C49: =Сделки!E49 -> Сбербанк | D49: =IF(Сделки!G49="Купля",Сделки!H49*1,-1*Сделки!H49) -> 25 | E49: =IF(Сделки!G49="Купля",(Сделки!J49+Сделки!L49+Сделки!M49)/Сделки!H49,(Сделки!J49-Сделки!L49-Сделки!M49)/Сделки!H49) -> 2424.9792 | F49: 25 | G49: 60624.48 | I49: 160 | J49: 383162.55 | K49: =MAX(IF(D49>0,IF(C$1:C48=$C49,IF(D$1:D48>0,ROW(K$1:K48)-ROW(K$1),0)))) -> 44 | L49: =MAX(IF(C$1:C48=$C49,ROW(K$1:K48)-ROW(K$1),0)) -> 45 | N49: =IF(F49>0,INDEX(A50:A1045,MATCH(TRUE,C50:C1045=C49,0))-A49,"-") -> 3 | O49: =IF(N49="-","",(IF(N49>0,SUMIFS($G$2:G49,$C$2:C49,C49),""))) -> 60235.49
A50: =ROUNDDOWN(Сделки!A50,0) -> 2019-06-21 | B50: приход | C50: =Сделки!E50 -> Сбербанк-п | D50: =IF(Сделки!G50="Купля",Сделки!H50*1,-1*Сделки!H50) -> 20 | E50: =IF(Сделки!G50="Купля",(Сделки!J50+Сделки!L50+Сделки!M50)/Сделки!H50,(Сделки!J50-Сделки!L50-Сделки!M50)/Сделки!H50) -> 2082.843 | F50: 45 | G50: 41656.86 | I50: 45 | J50: 93832.99 | K50: =MAX(IF(D50>0,IF(C$1:C49=$C50,IF(D$1:D49>0,ROW(K$1:K49)-ROW(K$1),0)))) -> 47 | L50: =MAX(IF(C$1:C49=$C50,ROW(K$1:K49)-ROW(K$1),0)) -> 47 | N50: =IF(F50>0,INDEX(A51:A1046,MATCH(TRUE,C51:C1046=C50,0))-A50,"-") -> 5 | O50: =IF(N50="-","",(IF(N50>0,SUMIFS($G$2:G50,$C$2:C50,C50),""))) -> 93832.99
A51: =ROUNDDOWN(Сделки!A51,0) -> 2019-06-24 | B51: приход | C51: =Сделки!E51 -> Сбербанк | D51: =IF(Сделки!G51="Купля",Сделки!H51*1,-1*Сделки!H51) -> 25 | E51: =IF(Сделки!G51="Купля",(Сделки!J51+Сделки!L51+Сделки!M51)/Сделки!H51,(Сделки!J51-Сделки!L51-Сделки!M51)/Сделки!H51) -> 2400.8628 | F51: 50 | G51: 60021.57 | I51: 185 | J51: 443184.12 | K51: =MAX(IF(D51>0,IF(C$1:C50=$C51,IF(D$1:D50>0,ROW(K$1:K50)-ROW(K$1),0)))) -> 48 | L51: =MAX(IF(C$1:C50=$C51,ROW(K$1:K50)-ROW(K$1),0)) -> 48 | N51: =IF(F51>0,INDEX(A52:A1047,MATCH(TRUE,C52:C1047=C51,0))-A51,"-") -> 1 | O51: =IF(N51="-","",(IF(N51>0,SUMIFS($G$2:G51,$C$2:C51,C51),""))) -> 120257.06
A52: =ROUNDDOWN(Сделки!A52,0) -> 2019-06-25 | B52: приход | C52: =Сделки!E52 -> Сбербанк | D52: =IF(Сделки!G52="Купля",Сделки!H52*1,-1*Сделки!H52) -> 31 | E52: =IF(Сделки!G52="Купля",(Сделки!J52+Сделки!L52+Сделки!M52)/Сделки!H52,(Сделки!J52-Сделки!L52-Сделки!M52)/Сделки!H52) -> 2359.534194 | F52: 81 | G52: 73145.56 | I52: 216 | J52: 516329.68 | K52: =MAX(IF(D52>0,IF(C$1:C51=$C52,IF(D$1:D51>0,ROW(K$1:K51)-ROW(K$1),0)))) -> 50 | L52: =MAX(IF(C$1:C51=$C52,ROW(K$1:K51)-ROW(K$1),0)) -> 50 | N52: =IF(F52>0,INDEX(A53:A1048,MATCH(TRUE,C53:C1048=C52,0))-A52,"-") -> 1 | O52: =IF(N52="-","",(IF(N52>0,SUMIFS($G$2:G52,$C$2:C52,C52),""))) -> 193402.62
A53: =ROUNDDOWN(Сделки!A53,0) -> 2019-06-26 | B53: расход | C53: =Сделки!E53 -> Сбербанк | D53: =IF(Сделки!G53="Купля",Сделки!H53*1,-1*Сделки!H53) -> -37 | E53: =IF(Сделки!G53="Купля",(Сделки!J53+Сделки!L53+Сделки!M53)/Сделки!H53,(Сделки!J53-Сделки!L53-Сделки!M53)/Сделки!H53) -> 2402.333784 | F53: 44 | G53: -88886.35 | I53: 0 | J53: 0 | K53: =MAX(IF(D53>0,IF(C$1:C52=$C53,IF(D$1:D52>0,ROW(K$1:K52)-ROW(K$1),0)))) -> 0 | L53: =MAX(IF(C$1:C52=$C53,ROW(K$1:K52)-ROW(K$1),0)) -> 51 | N53: =IF(F53>0,INDEX(A54:A1049,MATCH(TRUE,C54:C1049=C53,0))-A53,"-") -> 0 | O53: =IF(N53="-","",(IF(N53>0,SUMIFS($G$2:G53,$C$2:C53,C53),""))) -> 
A54: =ROUNDDOWN(Сделки!A54,0) -> 2019-06-26 | B54: =IF(D54>0,"приход",IF(D54<0,"расход","")) -> расход | C54: =Сделки!E54 -> Сбербанк | D54: =IF(Сделки!G54="Купля",Сделки!H54*1,-1*Сделки!H54) -> -44 | E54: =IF(Сделки!G54="Купля",(Сделки!J54+Сделки!L54+Сделки!M54)/Сделки!H54,(Сделки!J54-Сделки!L54-Сделки!M54)/Сделки!H54) -> 2402.433864 | F54: =IF(L54=0,D54,OFFSET($F$1,L54,0)+D54) -> 0 | G54: -105707.09 | I54: 0 | J54: =IF(D54<0,0,IF(K54=0,I54*E54,OFFSET($J$1,K54,0)+(I54-OFFSET($I$1,K54,0))*E54)) -> 0 | K54: =MAX(IF(D54>0,IF(C$1:C53=$C54,IF(D$1:D53>0,ROW(K$1:K53)-ROW(K$1),0)))) -> 0 | L54: =MAX(IF(C$1:C53=$C54,ROW(K$1:K53)-ROW(K$1),0)) -> 52 | N54: =IF(F54>0,INDEX(A55:A1050,MATCH(TRUE,C55:C1050=C54,0))-A54,"-") -> - | O54: =IF(N54="-","",(IF(N54>0,SUMIFS($G$2:G54,$C$2:C54,C54),""))) -> 
A55: =ROUNDDOWN(Сделки!A55,0) -> 2019-06-26 | B55: приход | C55: =Сделки!E55 -> Сбербанк-п | D55: =IF(Сделки!G55="Купля",Сделки!H55*1,-1*Сделки!H55) -> 30 | E55: =IF(Сделки!G55="Купля",(Сделки!J55+Сделки!L55+Сделки!M55)/Сделки!H55,(Сделки!J55-Сделки!L55-Сделки!M55)/Сделки!H55) -> 2071.434333 | F55: 75 | G55: 62143.03 | I55: 75 | J55: 155976.02 | K55: =MAX(IF(D55>0,IF(C$1:C54=$C55,IF(D$1:D54>0,ROW(K$1:K54)-ROW(K$1),0)))) -> 49 | L55: =MAX(IF(C$1:C54=$C55,ROW(K$1:K54)-ROW(K$1),0)) -> 49 | N55: =IF(F55>0,INDEX(A56:A1051,MATCH(TRUE,C56:C1051=C55,0))-A55,"-") -> 5 | O55: =IF(N55="-","",(IF(N55>0,SUMIFS($G$2:G55,$C$2:C55,C55),""))) -> 155976.02
A56: =ROUNDDOWN(Сделки!A56,0) -> 2019-06-28 | B56: приход | C56: =Сделки!E56 -> РОСНАНО2P1 | D56: =IF(Сделки!G56="Купля",Сделки!H56*1,-1*Сделки!H56) -> 134 | E56: =IF(Сделки!G56="Купля",(Сделки!J56+Сделки!L56+Сделки!M56)/Сделки!H56,(Сделки!J56-Сделки!L56-Сделки!M56)/Сделки!H56) -> 1007.504776 | F56: 284 | G56: 135005.64 | I56: 0 | J56: 0 | K56: =MAX(IF(D56>0,IF(C$1:C55=$C56,IF(D$1:D55>0,ROW(K$1:K55)-ROW(K$1),0)))) -> 19 | L56: =MAX(IF(C$1:C55=$C56,ROW(K$1:K55)-ROW(K$1),0)) -> 19 | N56: =IF(F56>0,INDEX(A57:A1052,MATCH(TRUE,C57:C1052=C56,0))-A56,"-") ->  | O56: =IF(N56="-","",(IF(N56>0,SUMIFS($G$2:G56,$C$2:C56,C56),""))) -> 
A57: =ROUNDDOWN(Сделки!A57,0) -> 2019-07-01 | B57: расход | C57: =Сделки!E57 -> Сбербанк-п | D57: =IF(Сделки!G57="Купля",Сделки!H57*1,-1*Сделки!H57) -> -75 | E57: =IF(Сделки!G57="Купля",(Сделки!J57+Сделки!L57+Сделки!M57)/Сделки!H57,(Сделки!J57-Сделки!L57-Сделки!M57)/Сделки!H57) -> 2081.556533 | F57: 0 | G57: -156116.74 | I57: 0 | J57: 0 | K57: =MAX(IF(D57>0,IF(C$1:C56=$C57,IF(D$1:D56>0,ROW(K$1:K56)-ROW(K$1),0)))) -> 0 | L57: =MAX(IF(C$1:C56=$C57,ROW(K$1:K56)-ROW(K$1),0)) -> 54 | N57: =IF(F57>0,INDEX(A58:A1053,MATCH(TRUE,C58:C1053=C57,0))-A57,"-") -> - | O57: =IF(N57="-","",(IF(N57>0,SUMIFS($G$2:G57,$C$2:C57,C57),""))) -> 
A58: =ROUNDDOWN(Сделки!A58,0) -> 2019-07-02 | B58: приход | C58: =Сделки!E58 -> Сбербанк-п | D58: =IF(Сделки!G58="Купля",Сделки!H58*1,-1*Сделки!H58) -> 29 | E58: =IF(Сделки!G58="Купля",(Сделки!J58+Сделки!L58+Сделки!M58)/Сделки!H58,(Сделки!J58-Сделки!L58-Сделки!M58)/Сделки!H58) -> 2077.838966 | F58: 29 | G58: 60257.33 | I58: 104 | J58: 216233.35 | K58: =MAX(IF(D58>0,IF(C$1:C57=$C58,IF(D$1:D57>0,ROW(K$1:K57)-ROW(K$1),0)))) -> 54 | L58: =MAX(IF(C$1:C57=$C58,ROW(K$1:K57)-ROW(K$1),0)) -> 56 | N58: =IF(F58>0,INDEX(A59:A1054,MATCH(TRUE,C59:C1054=C58,0))-A58,"-") -> 1 | O58: =IF(N58="-","",(IF(N58>0,SUMIFS($G$2:G58,$C$2:C58,C58),""))) -> 60116.61
A59: =ROUNDDOWN(Сделки!A59,0) -> 2019-07-02 | B59: приход | C59: =Сделки!E59 -> Роснефть | D59: =IF(Сделки!G59="Купля",Сделки!H59*1,-1*Сделки!H59) -> 15 | E59: =IF(Сделки!G59="Купля",(Сделки!J59+Сделки!L59+Сделки!M59)/Сделки!H59,(Сделки!J59-Сделки!L59-Сделки!M59)/Сделки!H59) -> 4158.879333 | F59: 15 | G59: 62383.19 | I59: 60 | J59: 247341.28 | K59: =MAX(IF(D59>0,IF(C$1:C58=$C59,IF(D$1:D58>0,ROW(K$1:K58)-ROW(K$1),0)))) -> 24 | L59: =MAX(IF(C$1:C58=$C59,ROW(K$1:K58)-ROW(K$1),0)) -> 35 | N59: =IF(F59>0,INDEX(A60:A1055,MATCH(TRUE,C60:C1055=C59,0))-A59,"-") -> 1 | O59: =IF(N59="-","",(IF(N59>0,SUMIFS($G$2:G59,$C$2:C59,C59),""))) -> 61455.17
A60: =ROUNDDOWN(Сделки!A60,0) -> 2019-07-03 | B60: расход | C60: =Сделки!E60 -> Сбербанк-п | D60: =IF(Сделки!G60="Купля",Сделки!H60*1,-1*Сделки!H60) -> -29 | E60: =IF(Сделки!G60="Купля",(Сделки!J60+Сделки!L60+Сделки!M60)/Сделки!H60,(Сделки!J60-Сделки!L60-Сделки!M60)/Сделки!H60) -> 2087.052759 | F60: 0 | G60: -60524.53 | I60: 0 | J60: 0 | K60: =MAX(IF(D60>0,IF(C$1:C59=$C60,IF(D$1:D59>0,ROW(K$1:K59)-ROW(K$1),0)))) -> 0 | L60: =MAX(IF(C$1:C59=$C60,ROW(K$1:K59)-ROW(K$1),0)) -> 57 | N60: =IF(F60>0,INDEX(A61:A1056,MATCH(TRUE,C61:C1056=C60,0))-A60,"-") -> - | O60: =IF(N60="-","",(IF(N60>0,SUMIFS($G$2:G60,$C$2:C60,C60),""))) -> 
A61: =ROUNDDOWN(Сделки!A61,0) -> 2019-07-03 | B61: расход | C61: =Сделки!E61 -> Роснефть | D61: =IF(Сделки!G61="Купля",Сделки!H61*1,-1*Сделки!H61) -> -15 | E61: =IF(Сделки!G61="Купля",(Сделки!J61+Сделки!L61+Сделки!M61)/Сделки!H61,(Сделки!J61-Сделки!L61-Сделки!M61)/Сделки!H61) -> 4170.108 | F61: 0 | G61: -62551.62 | I61: 0 | J61: 0 | K61: =MAX(IF(D61>0,IF(C$1:C60=$C61,IF(D$1:D60>0,ROW(K$1:K60)-ROW(K$1),0)))) -> 0 | L61: =MAX(IF(C$1:C60=$C61,ROW(K$1:K60)-ROW(K$1),0)) -> 58 | N61: =IF(F61>0,INDEX(A62:A1057,MATCH(TRUE,C62:C1057=C61,0))-A61,"-") -> - | O61: =IF(N61="-","",(IF(N61>0,SUMIFS($G$2:G61,$C$2:C61,C61),""))) -> 
A62: =ROUNDDOWN(Сделки!A62,0) -> 2019-07-05 | B62: =IF(D62>0,"приход",IF(D62<0,"расход","")) -> приход | C62: =Сделки!E62 -> Роснефть | D62: =IF(Сделки!G62="Купля",Сделки!H62*1,-1*Сделки!H62) -> 15 | E62: =IF(Сделки!G62="Купля",(Сделки!J62+Сделки!L62+Сделки!M62)/Сделки!H62,(Сделки!J62-Сделки!L62-Сделки!M62)/Сделки!H62) -> 4209.914667 | F62: =IF(L62=0,D62,OFFSET($F$1,L62,0)+D62) -> 15 | G62: 63148.72 | I62: 75 | J62: =IF(D62<0,0,IF(K62=0,I62*E62,OFFSET($J$1,K62,0)+(I62-OFFSET($I$1,K62,0))*E62)) -> 310490 | K62: =MAX(IF(D62>0,IF(C$1:C61=$C62,IF(D$1:D61>0,ROW(K$1:K61)-ROW(K$1),0)))) -> 58 | L62: =MAX(IF(C$1:C61=$C62,ROW(K$1:K61)-ROW(K$1),0)) -> 60 | N62: =IF(F62>0,INDEX(A63:A1058,MATCH(TRUE,C63:C1058=C62,0))-A62,"-") -> 4 | O62: =IF(N62="-","",(IF(N62>0,SUMIFS($G$2:G62,$C$2:C62,C62),""))) -> 62052.27
A63: =ROUNDDOWN(Сделки!A63,0) -> 2019-07-05 | B63: приход | C63: =Сделки!E63 -> Распадская | D63: =IF(Сделки!G63="Купля",Сделки!H63*1,-1*Сделки!H63) -> 12 | E63: =IF(Сделки!G63="Купля",(Сделки!J63+Сделки!L63+Сделки!M63)/Сделки!H63,(Сделки!J63-Сделки!L63-Сделки!M63)/Сделки!H63) -> 1393.365 | F63: 12 | G63: 16720.38 | I63: 12 | J63: 16720.38 | K63: =MAX(IF(D63>0,IF(C$1:C62=$C63,IF(D$1:D62>0,ROW(K$1:K62)-ROW(K$1),0)))) -> 0 | L63: =MAX(IF(C$1:C62=$C63,ROW(K$1:K62)-ROW(K$1),0)) -> 0 | N63: =IF(F63>0,INDEX(A64:A1059,MATCH(TRUE,C64:C1059=C63,0))-A63,"-") -> 0 | O63: =IF(N63="-","",(IF(N63>0,SUMIFS($G$2:G63,$C$2:C63,C63),""))) -> 
A64: =ROUNDDOWN(Сделки!A64,0) -> 2019-07-05 | B64: приход | C64: =Сделки!E64 -> Распадская | D64: =IF(Сделки!G64="Купля",Сделки!H64*1,-1*Сделки!H64) -> 2 | E64: =IF(Сделки!G64="Купля",(Сделки!J64+Сделки!L64+Сделки!M64)/Сделки!H64,(Сделки!J64-Сделки!L64-Сделки!M64)/Сделки!H64) -> 1393.765 | F64: 14 | G64: 2787.53 | I64: 14 | J64: 19507.91 | K64: =MAX(IF(D64>0,IF(C$1:C63=$C64,IF(D$1:D63>0,ROW(K$1:K63)-ROW(K$1),0)))) -> 62 | L64: =MAX(IF(C$1:C63=$C64,ROW(K$1:K63)-ROW(K$1),0)) -> 62 | N64: =IF(F64>0,INDEX(A65:A1060,MATCH(TRUE,C65:C1060=C64,0))-A64,"-") -> 0 | O64: =IF(N64="-","",(IF(N64>0,SUMIFS($G$2:G64,$C$2:C64,C64),""))) -> 
A65: =ROUNDDOWN(Сделки!A65,0) -> 2019-07-05 | B65: приход | C65: =Сделки!E65 -> Распадская | D65: =IF(Сделки!G65="Купля",Сделки!H65*1,-1*Сделки!H65) -> 2 | E65: =IF(Сделки!G65="Купля",(Сделки!J65+Сделки!L65+Сделки!M65)/Сделки!H65,(Сделки!J65-Сделки!L65-Сделки!M65)/Сделки!H65) -> 1393.765 | F65: 16 | G65: 2787.53 | I65: 16 | J65: 22295.44 | K65: =MAX(IF(D65>0,IF(C$1:C64=$C65,IF(D$1:D64>0,ROW(K$1:K64)-ROW(K$1),0)))) -> 63 | L65: =MAX(IF(C$1:C64=$C65,ROW(K$1:K64)-ROW(K$1),0)) -> 63 | N65: =IF(F65>0,INDEX(A66:A1061,MATCH(TRUE,C66:C1061=C65,0))-A65,"-") -> 0 | O65: =IF(N65="-","",(IF(N65>0,SUMIFS($G$2:G65,$C$2:C65,C65),""))) -> 
A66: =ROUNDDOWN(Сделки!A66,0) -> 2019-07-05 | B66: приход | C66: =Сделки!E66 -> Распадская | D66: =IF(Сделки!G66="Купля",Сделки!H66*1,-1*Сделки!H66) -> 34 | E66: =IF(Сделки!G66="Купля",(Сделки!J66+Сделки!L66+Сделки!M66)/Сделки!H66,(Сделки!J66-Сделки!L66-Сделки!M66)/Сделки!H66) -> 1393.965294 | F66: 50 | G66: 47394.82 | I66: =IF(D66<0,0,IF(IF(K66=0,0,OFFSET($I$1,K66,0))+D66>VLOOKUP(C66,Q:U,5,0),VLOOKUP(C66,Q:U,5,0),IF(K66=0,0,OFFSET($I$1,K66,0))+D66)) -> 50 | J66: 69690.26 | K66: =MAX(IF(D66>0,IF(C$1:C65=$C66,IF(D$1:D65>0,ROW(K$1:K65)-ROW(K$1),0)))) -> 64 | L66: =MAX(IF(C$1:C65=$C66,ROW(K$1:K65)-ROW(K$1),0)) -> 64 | N66: =IF(F66>0,INDEX(A67:A1062,MATCH(TRUE,C67:C1062=C66,0))-A66,"-") -> 3 | O66: =IF(N66="-","",(IF(N66>0,SUMIFS($G$2:G66,$C$2:C66,C66),""))) -> 69690.26
A67: =ROUNDDOWN(Сделки!A67,0) -> 2019-07-08 | B67: приход | C67: =Сделки!E67 -> Сбербанк-п | D67: =IF(Сделки!G67="Купля",Сделки!H67*1,-1*Сделки!H67) -> 35 | E67: =IF(Сделки!G67="Купля",(Сделки!J67+Сделки!L67+Сделки!M67)/Сделки!H67,(Сделки!J67-Сделки!L67-Сделки!M67)/Сделки!H67) -> 2082.342 | F67: 35 | G67: =D67*E67 -> 72881.97 | I67: 139 | J67: 289115.32 | K67: =MAX(IF(D67>0,IF(C$1:C66=$C67,IF(D$1:D66>0,ROW(K$1:K66)-ROW(K$1),0)))) -> 57 | L67: =MAX(IF(C$1:C66=$C67,ROW(K$1:K66)-ROW(K$1),0)) -> 59 | N67: =IF(F67>0,INDEX(A68:A1063,MATCH(TRUE,C68:C1063=C67,0))-A67,"-") -> 2 | O67: =IF(N67="-","",(IF(N67>0,SUMIFS($G$2:G67,$C$2:C67,C67),""))) -> 72474.05
A68: =ROUNDDOWN(Сделки!A68,0) -> 2019-07-08 | B68: расход | C68: =Сделки!E68 -> Распадская | D68: =IF(Сделки!G68="Купля",Сделки!H68*1,-1*Сделки!H68) -> -50 | E68: =IF(Сделки!G68="Купля",(Сделки!J68+Сделки!L68+Сделки!M68)/Сделки!H68,(Сделки!J68-Сделки!L68-Сделки!M68)/Сделки!H68) -> 1421.4144 | F68: 0 | G68: -71070.72 | I68: 0 | J68: 0 | K68: =MAX(IF(D68>0,IF(C$1:C67=$C68,IF(D$1:D67>0,ROW(K$1:K67)-ROW(K$1),0)))) -> 0 | L68: =MAX(IF(C$1:C67=$C68,ROW(K$1:K67)-ROW(K$1),0)) -> 65 | N68: =IF(F68>0,INDEX(A69:A1064,MATCH(TRUE,C69:C1064=C68,0))-A68,"-") -> - | O68: =IF(N68="-","",(IF(N68>0,SUMIFS($G$2:G68,$C$2:C68,C68),""))) -> 
A69: =ROUNDDOWN(Сделки!A69,0) -> 2019-07-08 | B69: приход | C69: =Сделки!E69 -> ПИК ао | D69: =IF(Сделки!G69="Купля",Сделки!H69*1,-1*Сделки!H69) -> 19 | E69: =IF(Сделки!G69="Купля",(Сделки!J69+Сделки!L69+Сделки!M69)/Сделки!H69,(Сделки!J69-Сделки!L69-Сделки!M69)/Сделки!H69) -> 3728.582632 | F69: 73 | G69: 70843.07 | I69: 73 | J69: 270322.22 | K69: =MAX(IF(D69>0,IF(C$1:C68=$C69,IF(D$1:D68>0,ROW(K$1:K68)-ROW(K$1),0)))) -> 9 | L69: =MAX(IF(C$1:C68=$C69,ROW(K$1:K68)-ROW(K$1),0)) -> 9 | N69: =IF(F69>0,INDEX(A70:A1065,MATCH(TRUE,C70:C1065=C69,0))-A69,"-") -> 24 | O69: =IF(N69="-","",(IF(N69>0,SUMIFS($G$2:G69,$C$2:C69,C69),""))) -> 270322.22
A70: =ROUNDDOWN(Сделки!A70,0) -> 2019-07-09 | B70: =IF(D70>0,"приход",IF(D70<0,"расход","")) -> расход | C70: =Сделки!E70 -> Роснефть | D70: =IF(Сделки!G70="Купля",Сделки!H70*1,-1*Сделки!H70) -> -15 | E70: =IF(Сделки!G70="Купля",(Сделки!J70+Сделки!L70+Сделки!M70)/Сделки!H70,(Сделки!J70-Сделки!L70-Сделки!M70)/Сделки!H70) -> 4233.064 | F70: =IF(L70=0,D70,OFFSET($F$1,L70,0)+D70) -> 0 | G70: -63495.96 | I70: 0 | J70: =IF(D70<0,0,IF(K70=0,I70*E70,OFFSET($J$1,K70,0)+(I70-OFFSET($I$1,K70,0))*E70)) -> 0 | K70: =MAX(IF(D70>0,IF(C$1:C69=$C70,IF(D$1:D69>0,ROW(K$1:K69)-ROW(K$1),0)))) -> 0 | L70: =MAX(IF(C$1:C69=$C70,ROW(K$1:K69)-ROW(K$1),0)) -> 61 | N70: =IF(F70>0,INDEX(A71:A1066,MATCH(TRUE,C71:C1066=C70,0))-A70,"-") -> - | O70: =IF(N70="-","",(IF(N70>0,SUMIFS($G$2:G70,$C$2:C70,C70),""))) -> 
A71: =ROUNDDOWN(Сделки!A71,0) -> 2019-07-09 | B71: приход | C71: =Сделки!E71 -> Распадская | D71: =IF(Сделки!G71="Купля",Сделки!H71*1,-1*Сделки!H71) -> 46 | E71: =IF(Сделки!G71="Купля",(Сделки!J71+Сделки!L71+Сделки!M71)/Сделки!H71,(Сделки!J71-Сделки!L71-Сделки!M71)/Сделки!H71) -> 1423.185652 | F71: 46 | G71: 65466.54 | I71: 96 | J71: 135156.8 | K71: =MAX(IF(D71>0,IF(C$1:C70=$C71,IF(D$1:D70>0,ROW(K$1:K70)-ROW(K$1),0)))) -> 65 | L71: =MAX(IF(C$1:C70=$C71,ROW(K$1:K70)-ROW(K$1),0)) -> 67 | N71: =IF(F71>0,INDEX(A72:A1067,MATCH(TRUE,C72:C1067=C71,0))-A71,"-") -> 1 | O71: =IF(N71="-","",(IF(N71>0,SUMIFS($G$2:G71,$C$2:C71,C71),""))) -> 64086.08
A72: =ROUNDDOWN(Сделки!A72,0) -> 2019-07-10 | B72: расход | C72: =Сделки!E72 -> Сбербанк-п | D72: =IF(Сделки!G72="Купля",Сделки!H72*1,-1*Сделки!H72) -> -2 | E72: =IF(Сделки!G72="Купля",(Сделки!J72+Сделки!L72+Сделки!M72)/Сделки!H72,(Сделки!J72-Сделки!L72-Сделки!M72)/Сделки!H72) -> 2097.545 | F72: 33 | G72: -4195.09 | I72: 0 | J72: 0 | K72: =MAX(IF(D72>0,IF(C$1:C71=$C72,IF(D$1:D71>0,ROW(K$1:K71)-ROW(K$1),0)))) -> 0 | L72: =MAX(IF(C$1:C71=$C72,ROW(K$1:K71)-ROW(K$1),0)) -> 66 | N72: =IF(F72>0,INDEX(A73:A1068,MATCH(TRUE,C73:C1068=C72,0))-A72,"-") -> 0 | O72: =IF(N72="-","",(IF(N72>0,SUMIFS($G$2:G72,$C$2:C72,C72),""))) -> 
A73: =ROUNDDOWN(Сделки!A73,0) -> 2019-07-10 | B73: расход | C73: =Сделки!E73 -> Сбербанк-п | D73: =IF(Сделки!G73="Купля",Сделки!H73*1,-1*Сделки!H73) -> -33 | E73: =IF(Сделки!G73="Купля",(Сделки!J73+Сделки!L73+Сделки!M73)/Сделки!H73,(Сделки!J73-Сделки!L73-Сделки!M73)/Сделки!H73) -> 2097.145758 | F73: 0 | G73: -69205.81 | I73: 0 | J73: 0 | K73: =MAX(IF(D73>0,IF(C$1:C72=$C73,IF(D$1:D72>0,ROW(K$1:K72)-ROW(K$1),0)))) -> 0 | L73: =MAX(IF(C$1:C72=$C73,ROW(K$1:K72)-ROW(K$1),0)) -> 71 | N73: =IF(F73>0,INDEX(A74:A1069,MATCH(TRUE,C74:C1069=C73,0))-A73,"-") -> - | O73: =IF(N73="-","",(IF(N73>0,SUMIFS($G$2:G73,$C$2:C73,C73),""))) -> 
A74: =ROUNDDOWN(Сделки!A74,0) -> 2019-07-10 | B74: приход | C74: =Сделки!E74 -> Распадская | D74: =IF(Сделки!G74="Купля",Сделки!H74*1,-1*Сделки!H74) -> 52 | E74: =IF(Сделки!G74="Купля",(Сделки!J74+Сделки!L74+Сделки!M74)/Сделки!H74,(Сделки!J74-Сделки!L74-Сделки!M74)/Сделки!H74) -> 1403.171731 | F74: 98 | G74: 72964.93 | I74: 148 | J74: 208121.73 | K74: =MAX(IF(D74>0,IF(C$1:C73=$C74,IF(D$1:D73>0,ROW(K$1:K73)-ROW(K$1),0)))) -> 70 | L74: =MAX(IF(C$1:C73=$C74,ROW(K$1:K73)-ROW(K$1),0)) -> 70 | N74: =IF(F74>0,INDEX(A75:A1070,MATCH(TRUE,C75:C1070=C74,0))-A74,"-") -> 13 | O74: =IF(N74="-","",(IF(N74>0,SUMIFS($G$2:G74,$C$2:C74,C74),""))) -> 137051.01
A75: =ROUNDDOWN(Сделки!A75,0) -> 2019-07-23 | B75: =IF(D75>0,"приход",IF(D75<0,"расход","")) -> расход | C75: =Сделки!E75 -> Распадская | D75: =IF(Сделки!G75="Купля",Сделки!H75*1,-1*Сделки!H75) -> -3 | E75: =IF(Сделки!G75="Купля",(Сделки!J75+Сделки!L75+Сделки!M75)/Сделки!H75,(Сделки!J75-Сделки!L75-Сделки!M75)/Сделки!H75) -> 1402.826667 | F75: =IF(L75=0,D75,OFFSET($F$1,L75,0)+D75) -> 95 | G75: -4208.48 | I75: =IF(D75<0,0,IF(IF(K75=0,0,OFFSET($I$1,K75,0))+D75>VLOOKUP(C75,Q:U,5,0),VLOOKUP(C75,Q:U,5,0),IF(K75=0,0,OFFSET($I$1,K75,0))+D75)) -> 0 | J75: =IF(D75<0,0,IF(K75=0,I75*E75,OFFSET($J$1,K75,0)+(I75-OFFSET($I$1,K75,0))*E75)) -> 0 | K75: =MAX(IF(D75>0,IF(C$1:C74=$C75,IF(D$1:D74>0,ROW(K$1:K74)-ROW(K$1),0)))) -> 0 | L75: =MAX(IF(C$1:C74=$C75,ROW(K$1:K74)-ROW(K$1),0)) -> 73 | N75: =IF(F75>0,INDEX(A76:A1071,MATCH(TRUE,C76:C1071=C75,0))-A75,"-") -> 0 | O75: =IF(N75="-","",(IF(N75>0,SUMIFS($G$2:G75,$C$2:C75,C75),""))) -> 
A76: =ROUNDDOWN(Сделки!A76,0) -> 2019-07-23 | B76: расход | C76: =Сделки!E76 -> Распадская | D76: =IF(Сделки!G76="Купля",Сделки!H76*1,-1*Сделки!H76) -> -4 | E76: =IF(Сделки!G76="Купля",(Сделки!J76+Сделки!L76+Сделки!M76)/Сделки!H76,(Сделки!J76-Сделки!L76-Сделки!M76)/Сделки!H76) -> 1402.8275 | F76: 91 | G76: -5611.31 | I76: 0 | J76: 0 | K76: =MAX(IF(D76>0,IF(C$1:C75=$C76,IF(D$1:D75>0,ROW(K$1:K75)-ROW(K$1),0)))) -> 0 | L76: =MAX(IF(C$1:C75=$C76,ROW(K$1:K75)-ROW(K$1),0)) -> 74 | N76: =IF(F76>0,INDEX(A77:A1072,MATCH(TRUE,C77:C1072=C76,0))-A76,"-") -> 0 | O76: =IF(N76="-","",(IF(N76>0,SUMIFS($G$2:G76,$C$2:C76,C76),""))) -> 
A77: =ROUNDDOWN(Сделки!A77,0) -> 2019-07-23 | B77: расход | C77: =Сделки!E77 -> Распадская | D77: =IF(Сделки!G77="Купля",Сделки!H77*1,-1*Сделки!H77) -> -9 | E77: =IF(Сделки!G77="Купля",(Сделки!J77+Сделки!L77+Сделки!M77)/Сделки!H77,(Сделки!J77-Сделки!L77-Сделки!M77)/Сделки!H77) -> 1402.426667 | F77: 82 | G77: -12621.84 | I77: 0 | J77: 0 | K77: =MAX(IF(D77>0,IF(C$1:C76=$C77,IF(D$1:D76>0,ROW(K$1:K76)-ROW(K$1),0)))) -> 0 | L77: =MAX(IF(C$1:C76=$C77,ROW(K$1:K76)-ROW(K$1),0)) -> 75 | N77: =IF(F77>0,INDEX(A78:A1073,MATCH(TRUE,C78:C1073=C77,0))-A77,"-") -> 0 | O77: =IF(N77="-","",(IF(N77>0,SUMIFS($G$2:G77,$C$2:C77,C77),""))) -> 
A78: =ROUNDDOWN(Сделки!A78,0) -> 2019-07-23 | B78: =IF(D78>0,"приход",IF(D78<0,"расход","")) -> расход | C78: =Сделки!E78 -> Распадская | D78: =IF(Сделки!G78="Купля",Сделки!H78*1,-1*Сделки!H78) -> -13 | E78: =IF(Сделки!G78="Купля",(Сделки!J78+Сделки!L78+Сделки!M78)/Сделки!H78,(Сделки!J78-Сделки!L78-Сделки!M78)/Сделки!H78) -> 1401.428462 | F78: =IF(L78=0,D78,OFFSET($F$1,L78,0)+D78) -> 69 | G78: -18218.57 | I78: 0 | J78: 0 | K78: =MAX(IF(D78>0,IF(C$1:C77=$C78,IF(D$1:D77>0,ROW(K$1:K77)-ROW(K$1),0)))) -> 0 | L78: =MAX(IF(C$1:C77=$C78,ROW(K$1:K77)-ROW(K$1),0)) -> 76 | N78: =IF(F78>0,INDEX(A79:A1074,MATCH(TRUE,C79:C1074=C78,0))-A78,"-") -> 0 | O78: =IF(N78="-","",(IF(N78>0,SUMIFS($G$2:G78,$C$2:C78,C78),""))) -> 
A79: =ROUNDDOWN(Сделки!A79,0) -> 2019-07-23 | B79: расход | C79: =Сделки!E79 -> Распадская | D79: =IF(Сделки!G79="Купля",Сделки!H79*1,-1*Сделки!H79) -> -69 | E79: =IF(Сделки!G79="Купля",(Сделки!J79+Сделки!L79+Сделки!M79)/Сделки!H79,(Сделки!J79-Сделки!L79-Сделки!M79)/Сделки!H79) -> 1401.228406 | F79: 0 | G79: -96684.76 | I79: 0 | J79: 0 | K79: =MAX(IF(D79>0,IF(C$1:C78=$C79,IF(D$1:D78>0,ROW(K$1:K78)-ROW(K$1),0)))) -> 0 | L79: =MAX(IF(C$1:C78=$C79,ROW(K$1:K78)-ROW(K$1),0)) -> 77 | N79: =IF(F79>0,INDEX(A80:A1075,MATCH(TRUE,C80:C1075=C79,0))-A79,"-") -> - | O79: =IF(N79="-","",(IF(N79>0,SUMIFS($G$2:G79,$C$2:C79,C79),""))) -> 
A80: =ROUNDDOWN(Сделки!A80,0) -> 2019-07-24 | B80: =IF(D80>0,"приход",IF(D80<0,"расход","")) -> приход | C80: =Сделки!E80 -> АЛРОСА ао | D80: =IF(Сделки!G80="Купля",Сделки!H80*1,-1*Сделки!H80) -> 20 | E80: =IF(Сделки!G80="Купля",(Сделки!J80+Сделки!L80+Сделки!M80)/Сделки!H80,(Сделки!J80-Сделки!L80-Сделки!M80)/Сделки!H80) -> 799.5535 | F80: =IF(L80=0,D80,OFFSET($F$1,L80,0)+D80) -> 20 | G80: 15991.07 | I80: 20 | J80: 15991.07 | K80: =MAX(IF(D80>0,IF(C$1:C79=$C80,IF(D$1:D79>0,ROW(K$1:K79)-ROW(K$1),0)))) -> 0 | L80: =MAX(IF(C$1:C79=$C80,ROW(K$1:K79)-ROW(K$1),0)) -> 0 | N80: =IF(F80>0,INDEX(A81:A1076,MATCH(TRUE,C81:C1076=C80,0))-A80,"-") -> 0 | O80: =IF(N80="-","",(IF(N80>0,SUMIFS($G$2:G80,$C$2:C80,C80),""))) -> 
A81: =ROUNDDOWN(Сделки!A81,0) -> 2019-07-24 | B81: приход | C81: =Сделки!E81 -> АЛРОСА ао | D81: =IF(Сделки!G81="Купля",Сделки!H81*1,-1*Сделки!H81) -> 50 | E81: =IF(Сделки!G81="Купля",(Сделки!J81+Сделки!L81+Сделки!M81)/Сделки!H81,(Сделки!J81-Сделки!L81-Сделки!M81)/Сделки!H81) -> 799.5538 | F81: 70 | G81: 39977.69 | I81: 70 | J81: 55968.76 | K81: =MAX(IF(D81>0,IF(C$1:C80=$C81,IF(D$1:D80>0,ROW(K$1:K80)-ROW(K$1),0)))) -> 79 | L81: =MAX(IF(C$1:C80=$C81,ROW(K$1:K80)-ROW(K$1),0)) -> 79 | N81: =IF(F81>0,INDEX(A82:A1077,MATCH(TRUE,C82:C1077=C81,0))-A81,"-") -> 1 | O81: =IF(N81="-","",(IF(N81>0,SUMIFS($G$2:G81,$C$2:C81,C81),""))) -> 55968.76
A82: =ROUNDDOWN(Сделки!A82,0) -> 2019-07-24 | B82: приход | C82: =Сделки!E82 -> Распадская | D82: =IF(Сделки!G82="Купля",Сделки!H82*1,-1*Сделки!H82) -> 4 | E82: =IF(Сделки!G82="Купля",(Сделки!J82+Сделки!L82+Сделки!M82)/Сделки!H82,(Сделки!J82-Сделки!L82-Сделки!M82)/Сделки!H82) -> 1394.7675 | F82: 4 | G82: 5579.07 | I82: 152 | J82: 213700.8 | K82: =MAX(IF(D82>0,IF(C$1:C81=$C82,IF(D$1:D81>0,ROW(K$1:K81)-ROW(K$1),0)))) -> 73 | L82: =MAX(IF(C$1:C81=$C82,ROW(K$1:K81)-ROW(K$1),0)) -> 78 | N82: =IF(F82>0,INDEX(A83:A1078,MATCH(TRUE,C83:C1078=C82,0))-A82,"-") -> 0 | O82: =IF(N82="-","",(IF(N82>0,SUMIFS($G$2:G82,$C$2:C82,C82),""))) -> 
A83: =ROUNDDOWN(Сделки!A83,0) -> 2019-07-24 | B83: приход | C83: =Сделки!E83 -> Распадская | D83: =IF(Сделки!G83="Купля",Сделки!H83*1,-1*Сделки!H83) -> 7 | E83: =IF(Сделки!G83="Купля",(Сделки!J83+Сделки!L83+Сделки!M83)/Сделки!H83,(Сделки!J83-Сделки!L83-Сделки!M83)/Сделки!H83) -> 1394.765714 | F83: 11 | G83: 9763.36 | I83: 159 | J83: 223464.16 | K83: =MAX(IF(D83>0,IF(C$1:C82=$C83,IF(D$1:D82>0,ROW(K$1:K82)-ROW(K$1),0)))) -> 81 | L83: =MAX(IF(C$1:C82=$C83,ROW(K$1:K82)-ROW(K$1),0)) -> 81 | N83: =IF(F83>0,INDEX(A84:A1079,MATCH(TRUE,C84:C1079=C83,0))-A83,"-") -> 0 | O83: =IF(N83="-","",(IF(N83>0,SUMIFS($G$2:G83,$C$2:C83,C83),""))) -> 
A84: =ROUNDDOWN(Сделки!A84,0) -> 2019-07-24 | B84: приход | C84: =Сделки!E84 -> Распадская | D84: =IF(Сделки!G84="Купля",Сделки!H84*1,-1*Сделки!H84) -> 10 | E84: =IF(Сделки!G84="Купля",(Сделки!J84+Сделки!L84+Сделки!M84)/Сделки!H84,(Сделки!J84-Сделки!L84-Сделки!M84)/Сделки!H84) -> 1394.966 | F84: 21 | G84: 13949.66 | I84: 169 | J84: 237413.82 | K84: =MAX(IF(D84>0,IF(C$1:C83=$C84,IF(D$1:D83>0,ROW(K$1:K83)-ROW(K$1),0)))) -> 82 | L84: =MAX(IF(C$1:C83=$C84,ROW(K$1:K83)-ROW(K$1),0)) -> 82 | N84: =IF(F84>0,INDEX(A85:A1080,MATCH(TRUE,C85:C1080=C84,0))-A84,"-") -> 0 | O84: =IF(N84="-","",(IF(N84>0,SUMIFS($G$2:G84,$C$2:C84,C84),""))) -> 
A85: =ROUNDDOWN(Сделки!A85,0) -> 2019-07-24 | B85: приход | C85: =Сделки!E85 -> Распадская | D85: =IF(Сделки!G85="Купля",Сделки!H85*1,-1*Сделки!H85) -> 12 | E85: =IF(Сделки!G85="Купля",(Сделки!J85+Сделки!L85+Сделки!M85)/Сделки!H85,(Сделки!J85-Сделки!L85-Сделки!M85)/Сделки!H85) -> 1394.965833 | F85: 33 | G85: 16739.59 | I85: 181 | J85: 254153.41 | K85: =MAX(IF(D85>0,IF(C$1:C84=$C85,IF(D$1:D84>0,ROW(K$1:K84)-ROW(K$1),0)))) -> 83 | L85: =MAX(IF(C$1:C84=$C85,ROW(K$1:K84)-ROW(K$1),0)) -> 83 | N85: =IF(F85>0,INDEX(A86:A1081,MATCH(TRUE,C86:C1081=C85,0))-A85,"-") -> 0 | O85: =IF(N85="-","",(IF(N85>0,SUMIFS($G$2:G85,$C$2:C85,C85),""))) -> 
A86: =ROUNDDOWN(Сделки!A86,0) -> 2019-07-24 | B86: приход | C86: =Сделки!E86 -> Распадская | D86: =IF(Сделки!G86="Купля",Сделки!H86*1,-1*Сделки!H86) -> 10 | E86: =IF(Сделки!G86="Купля",(Сделки!J86+Сделки!L86+Сделки!M86)/Сделки!H86,(Сделки!J86-Сделки!L86-Сделки!M86)/Сделки!H86) -> 1394.966 | F86: 43 | G86: 13949.66 | I86: 191 | J86: 268103.07 | K86: =MAX(IF(D86>0,IF(C$1:C85=$C86,IF(D$1:D85>0,ROW(K$1:K85)-ROW(K$1),0)))) -> 84 | L86: =MAX(IF(C$1:C85=$C86,ROW(K$1:K85)-ROW(K$1),0)) -> 84 | N86: =IF(F86>0,INDEX(A87:A1082,MATCH(TRUE,C87:C1082=C86,0))-A86,"-") -> 0 | O86: =IF(N86="-","",(IF(N86>0,SUMIFS($G$2:G86,$C$2:C86,C86),""))) -> 
A87: =ROUNDDOWN(Сделки!A87,0) -> 2019-07-24 | B87: приход | C87: =Сделки!E87 -> Распадская | D87: =IF(Сделки!G87="Купля",Сделки!H87*1,-1*Сделки!H87) -> 14 | E87: =IF(Сделки!G87="Купля",(Сделки!J87+Сделки!L87+Сделки!M87)/Сделки!H87,(Сделки!J87-Сделки!L87-Сделки!M87)/Сделки!H87) -> 1395.165714 | F87: 57 | G87: 19532.32 | I87: 205 | J87: 287635.39 | K87: =MAX(IF(D87>0,IF(C$1:C86=$C87,IF(D$1:D86>0,ROW(K$1:K86)-ROW(K$1),0)))) -> 85 | L87: =MAX(IF(C$1:C86=$C87,ROW(K$1:K86)-ROW(K$1),0)) -> 85 | N87: =IF(F87>0,INDEX(A88:A1083,MATCH(TRUE,C88:C1083=C87,0))-A87,"-") -> 0 | O87: =IF(N87="-","",(IF(N87>0,SUMIFS($G$2:G87,$C$2:C87,C87),""))) -> 
A88: =ROUNDDOWN(Сделки!A88,0) -> 2019-07-24 | B88: приход | C88: =Сделки!E88 -> Распадская | D88: =IF(Сделки!G88="Купля",Сделки!H88*1,-1*Сделки!H88) -> 1 | E88: =IF(Сделки!G88="Купля",(Сделки!J88+Сделки!L88+Сделки!M88)/Сделки!H88,(Сделки!J88-Сделки!L88-Сделки!M88)/Сделки!H88) -> 1395.37 | F88: 58 | G88: 1395.37 | I88: 206 | J88: 289030.76 | K88: =MAX(IF(D88>0,IF(C$1:C87=$C88,IF(D$1:D87>0,ROW(K$1:K87)-ROW(K$1),0)))) -> 86 | L88: =MAX(IF(C$1:C87=$C88,ROW(K$1:K87)-ROW(K$1),0)) -> 86 | N88: =IF(F88>0,INDEX(A89:A1084,MATCH(TRUE,C89:C1084=C88,0))-A88,"-") -> 1 | O88: =IF(N88="-","",(IF(N88>0,SUMIFS($G$2:G88,$C$2:C88,C88),""))) -> 80615.08
A89: =ROUNDDOWN(Сделки!A89,0) -> 2019-07-25 | B89: расход | C89: =Сделки!E89 -> АЛРОСА ао | D89: =IF(Сделки!G89="Купля",Сделки!H89*1,-1*Сделки!H89) -> -70 | E89: =IF(Сделки!G89="Купля",(Сделки!J89+Сделки!L89+Сделки!M89)/Сделки!H89,(Сделки!J89-Сделки!L89-Сделки!M89)/Сделки!H89) -> 811.737 | F89: 0 | G89: -56821.59 | I89: 0 | J89: 0 | K89: =MAX(IF(D89>0,IF(C$1:C88=$C89,IF(D$1:D88>0,ROW(K$1:K88)-ROW(K$1),0)))) -> 0 | L89: =MAX(IF(C$1:C88=$C89,ROW(K$1:K88)-ROW(K$1),0)) -> 80 | N89: =IF(F89>0,INDEX(A90:A1085,MATCH(TRUE,C90:C1085=C89,0))-A89,"-") -> - | O89: =IF(N89="-","",(IF(N89>0,SUMIFS($G$2:G89,$C$2:C89,C89),""))) -> 
A90: =ROUNDDOWN(Сделки!A90,0) -> 2019-07-25 | B90: =IF(D90>0,"приход",IF(D90<0,"расход","")) -> приход | C90: =Сделки!E90 -> Распадская | D90: =IF(Сделки!G90="Купля",Сделки!H90*1,-1*Сделки!H90) -> 42 | E90: =IF(Сделки!G90="Купля",(Сделки!J90+Сделки!L90+Сделки!M90)/Сделки!H90,(Сделки!J90-Сделки!L90-Сделки!M90)/Сделки!H90) -> 1379.355238 | F90: =IF(L90=0,D90,OFFSET($F$1,L90,0)+D90) -> 100 | G90: 57932.92 | I90: =IF(D90<0,0,IF(IF(K90=0,0,OFFSET($I$1,K90,0))+D90>VLOOKUP(C90,Q:U,5,0),VLOOKUP(C90,Q:U,5,0),IF(K90=0,0,OFFSET($I$1,K90,0))+D90)) -> 248 | J90: =IF(D90<0,0,IF(K90=0,I90*E90,OFFSET($J$1,K90,0)+(I90-OFFSET($I$1,K90,0))*E90)) -> 346963.68 | K90: =MAX(IF(D90>0,IF(C$1:C89=$C90,IF(D$1:D89>0,ROW(K$1:K89)-ROW(K$1),0)))) -> 87 | L90: =MAX(IF(C$1:C89=$C90,ROW(K$1:K89)-ROW(K$1),0)) -> 87 | N90: =IF(F90>0,INDEX(A91:A1086,MATCH(TRUE,C91:C1086=C90,0))-A90,"-") -> 7 | O90: =IF(N90="-","",(IF(N90>0,SUMIFS($G$2:G90,$C$2:C90,C90),""))) -> 138548
A91: =ROUNDDOWN(Сделки!A91,0) -> 2019-08-01 | B91: расход | C91: =Сделки!E91 -> Распадская | D91: =IF(Сделки!G91="Купля",Сделки!H91*1,-1*Сделки!H91) -> -4 | E91: =IF(Сделки!G91="Купля",(Сделки!J91+Сделки!L91+Сделки!M91)/Сделки!H91,(Сделки!J91-Сделки!L91-Сделки!M91)/Сделки!H91) -> 1351.0625 | F91: 96 | G91: -5404.25 | I91: 0 | J91: 0 | K91: =MAX(IF(D91>0,IF(C$1:C90=$C91,IF(D$1:D90>0,ROW(K$1:K90)-ROW(K$1),0)))) -> 0 | L91: =MAX(IF(C$1:C90=$C91,ROW(K$1:K90)-ROW(K$1),0)) -> 89 | N91: =IF(F91>0,INDEX(A92:A1087,MATCH(TRUE,C92:C1087=C91,0))-A91,"-") -> 0 | O91: =IF(N91="-","",(IF(N91>0,SUMIFS($G$2:G91,$C$2:C91,C91),""))) -> 
A92: =ROUNDDOWN(Сделки!A92,0) -> 2019-08-01 | B92: расход | C92: =Сделки!E92 -> Распадская | D92: =IF(Сделки!G92="Купля",Сделки!H92*1,-1*Сделки!H92) -> -1 | E92: =IF(Сделки!G92="Купля",(Сделки!J92+Сделки!L92+Сделки!M92)/Сделки!H92,(Сделки!J92-Сделки!L92-Сделки!M92)/Сделки!H92) -> 1351.07 | F92: 95 | G92: -1351.07 | I92: 0 | J92: 0 | K92: =MAX(IF(D92>0,IF(C$1:C91=$C92,IF(D$1:D91>0,ROW(K$1:K91)-ROW(K$1),0)))) -> 0 | L92: =MAX(IF(C$1:C91=$C92,ROW(K$1:K91)-ROW(K$1),0)) -> 90 | N92: =IF(F92>0,INDEX(A93:A1088,MATCH(TRUE,C93:C1088=C92,0))-A92,"-") -> 0 | O92: =IF(N92="-","",(IF(N92>0,SUMIFS($G$2:G92,$C$2:C92,C92),""))) -> 
A93: =ROUNDDOWN(Сделки!A93,0) -> 2019-08-01 | B93: расход | C93: =Сделки!E93 -> Распадская | D93: =IF(Сделки!G93="Купля",Сделки!H93*1,-1*Сделки!H93) -> -95 | E93: =IF(Сделки!G93="Купля",(Сделки!J93+Сделки!L93+Сделки!M93)/Сделки!H93,(Сделки!J93-Сделки!L93-Сделки!M93)/Сделки!H93) -> 1350.863158 | F93: 0 | G93: -128332 | I93: 0 | J93: 0 | K93: =MAX(IF(D93>0,IF(C$1:C92=$C93,IF(D$1:D92>0,ROW(K$1:K92)-ROW(K$1),0)))) -> 0 | L93: =MAX(IF(C$1:C92=$C93,ROW(K$1:K92)-ROW(K$1),0)) -> 91 | N93: =IF(F93>0,INDEX(A94:A1089,MATCH(TRUE,C94:C1089=C93,0))-A93,"-") -> - | O93: =IF(N93="-","",(IF(N93>0,SUMIFS($G$2:G93,$C$2:C93,C93),""))) -> 
A94: =ROUNDDOWN(Сделки!A94,0) -> 2019-08-01 | B94: приход | C94: =Сделки!E94 -> ПИК ао | D94: =IF(Сделки!G94="Купля",Сделки!H94*1,-1*Сделки!H94) -> 1 | E94: =IF(Сделки!G94="Купля",(Сделки!J94+Сделки!L94+Сделки!M94)/Сделки!H94,(Сделки!J94-Сделки!L94-Сделки!M94)/Сделки!H94) -> 3924.72 | F94: 74 | G94: 3924.72 | I94: 74 | J94: 274246.94 | K94: =MAX(IF(D94>0,IF(C$1:C93=$C94,IF(D$1:D93>0,ROW(K$1:K93)-ROW(K$1),0)))) -> 68 | L94: =MAX(IF(C$1:C93=$C94,ROW(K$1:K93)-ROW(K$1),0)) -> 68 | N94: =IF(F94>0,INDEX(A95:A1090,MATCH(TRUE,C95:C1090=C94,0))-A94,"-") -> 0 | O94: =IF(N94="-","",(IF(N94>0,SUMIFS($G$2:G94,$C$2:C94,C94),""))) -> 
A95: =ROUNDDOWN(Сделки!A95,0) -> 2019-08-01 | B95: приход | C95: =Сделки!E95 -> ПИК ао | D95: =IF(Сделки!G95="Купля",Сделки!H95*1,-1*Сделки!H95) -> 3 | E95: =IF(Сделки!G95="Купля",(Сделки!J95+Сделки!L95+Сделки!M95)/Сделки!H95,(Сделки!J95-Сделки!L95-Сделки!M95)/Сделки!H95) -> 3924.72 | F95: 77 | G95: 11774.16 | I95: 77 | J95: 286021.1 | K95: =MAX(IF(D95>0,IF(C$1:C94=$C95,IF(D$1:D94>0,ROW(K$1:K94)-ROW(K$1),0)))) -> 93 | L95: =MAX(IF(C$1:C94=$C95,ROW(K$1:K94)-ROW(K$1),0)) -> 93 | N95: =IF(F95>0,INDEX(A96:A1091,MATCH(TRUE,C96:C1091=C95,0))-A95,"-") -> 0 | O95: =IF(N95="-","",(IF(N95>0,SUMIFS($G$2:G95,$C$2:C95,C95),""))) -> 
A96: =ROUNDDOWN(Сделки!A96,0) -> 2019-08-01 | B96: приход | C96: =Сделки!E96 -> ПИК ао | D96: =IF(Сделки!G96="Купля",Сделки!H96*1,-1*Сделки!H96) -> 7 | E96: =IF(Сделки!G96="Купля",(Сделки!J96+Сделки!L96+Сделки!M96)/Сделки!H96,(Сделки!J96-Сделки!L96-Сделки!M96)/Сделки!H96) -> 3925.72 | F96: 84 | G96: 27480.04 | I96: 84 | J96: 313501.14 | K96: =MAX(IF(D96>0,IF(C$1:C95=$C96,IF(D$1:D95>0,ROW(K$1:K95)-ROW(K$1),0)))) -> 94 | L96: =MAX(IF(C$1:C95=$C96,ROW(K$1:K95)-ROW(K$1),0)) -> 94 | N96: =IF(F96>0,INDEX(A97:A1092,MATCH(TRUE,C97:C1092=C96,0))-A96,"-") -> 0 | O96: =IF(N96="-","",(IF(N96>0,SUMIFS($G$2:G96,$C$2:C96,C96),""))) -> 
A97: =ROUNDDOWN(Сделки!A97,0) -> 2019-08-01 | B97: приход | C97: =Сделки!E97 -> ПИК ао | D97: =IF(Сделки!G97="Купля",Сделки!H97*1,-1*Сделки!H97) -> 22 | E97: =IF(Сделки!G97="Купля",(Сделки!J97+Сделки!L97+Сделки!M97)/Сделки!H97,(Сделки!J97-Сделки!L97-Сделки!M97)/Сделки!H97) -> 3927.72 | F97: 106 | G97: 86409.84 | I97: 106 | J97: 399910.98 | K97: =MAX(IF(D97>0,IF(C$1:C96=$C97,IF(D$1:D96>0,ROW(K$1:K96)-ROW(K$1),0)))) -> 95 | L97: =MAX(IF(C$1:C96=$C97,ROW(K$1:K96)-ROW(K$1),0)) -> 95 | N97: =IF(F97>0,INDEX(A98:A1093,MATCH(TRUE,C98:C1093=C97,0))-A97,"-") -> 6 | O97: =IF(N97="-","",(IF(N97>0,SUMIFS($G$2:G97,$C$2:C97,C97),""))) -> 399910.98
A98: =ROUNDDOWN(Сделки!A98,0) -> 2019-08-05 | B98: =IF(D98>0,"приход",IF(D98<0,"расход","")) -> приход | C98: =Сделки!E98 -> АЛРОСА ао | D98: =IF(Сделки!G98="Купля",Сделки!H98*1,-1*Сделки!H98) -> 19 | E98: =IF(Сделки!G98="Купля",(Сделки!J98+Сделки!L98+Сделки!M98)/Сделки!H98,(Сделки!J98-Сделки!L98-Сделки!M98)/Сделки!H98) -> 782.5415789 | F98: =IF(L98=0,D98,OFFSET($F$1,L98,0)+D98) -> 19 | G98: 14868.29 | I98: =IF(D98<0,0,IF(IF(K98=0,0,OFFSET($I$1,K98,0))+D98>VLOOKUP(C98,Q:U,5,0),VLOOKUP(C98,Q:U,5,0),IF(K98=0,0,OFFSET($I$1,K98,0))+D98)) -> 89 | J98: =IF(D98<0,0,IF(K98=0,I98*E98,OFFSET($J$1,K98,0)+(I98-OFFSET($I$1,K98,0))*E98)) -> 70837.05 | K98: =MAX(IF(D98>0,IF(C$1:C97=$C98,IF(D$1:D97>0,ROW(K$1:K97)-ROW(K$1),0)))) -> 80 | L98: =MAX(IF(C$1:C97=$C98,ROW(K$1:K97)-ROW(K$1),0)) -> 88 | N98: =IF(F98>0,INDEX(A99:A1094,MATCH(TRUE,C99:C1094=C98,0))-A98,"-") -> 2 | O98: =IF(N98="-","",(IF(N98>0,SUMIFS($G$2:G98,$C$2:C98,C98),""))) -> 14015.46
A99: =ROUNDDOWN(Сделки!A99,0) -> 2019-08-07 | B99: расход | C99: =Сделки!E99 -> АЛРОСА ао | D99: =IF(Сделки!G99="Купля",Сделки!H99*1,-1*Сделки!H99) -> -19 | E99: =IF(Сделки!G99="Купля",(Сделки!J99+Сделки!L99+Сделки!M99)/Сделки!H99,(Сделки!J99-Сделки!L99-Сделки!M99)/Сделки!H99) -> 766.4684211 | F99: 0 | G99: -14562.9 | I99: 0 | J99: 0 | K99: =MAX(IF(D99>0,IF(C$1:C98=$C99,IF(D$1:D98>0,ROW(K$1:K98)-ROW(K$1),0)))) -> 0 | L99: =MAX(IF(C$1:C98=$C99,ROW(K$1:K98)-ROW(K$1),0)) -> 97 | N99: =IF(F99>0,INDEX(A100:A1095,MATCH(TRUE,C100:C1095=C99,0))-A99,"-") -> - | O99: =IF(N99="-","",(IF(N99>0,SUMIFS($G$2:G99,$C$2:C99,C99),""))) -> 
A100: =ROUNDDOWN(Сделки!A100,0) -> 2019-08-07 | B100: расход | C100: =Сделки!E100 -> ПИК ао | D100: =IF(Сделки!G100="Купля",Сделки!H100*1,-1*Сделки!H100) -> -1 | E100: =IF(Сделки!G100="Купля",(Сделки!J100+Сделки!L100+Сделки!M100)/Сделки!H100,(Сделки!J100-Сделки!L100-Сделки!M100)/Сделки!H100) -> 3920.28 | F100: 105 | G100: -3920.28 | I100: 0 | J100: 0 | K100: =MAX(IF(D100>0,IF(C$1:C99=$C100,IF(D$1:D99>0,ROW(K$1:K99)-ROW(K$1),0)))) -> 0 | L100: =MAX(IF(C$1:C99=$C100,ROW(K$1:K99)-ROW(K$1),0)) -> 96 | N100: =IF(F100>0,INDEX(A101:A1096,MATCH(TRUE,C101:C1096=C100,0))-A100,"-") -> 0 | O100: =IF(N100="-","",(IF(N100>0,SUMIFS($G$2:G100,$C$2:C100,C100),""))) -> 
A101: =ROUNDDOWN(Сделки!A101,0) -> 2019-08-07 | B101: =IF(D101>0,"приход",IF(D101<0,"расход","")) -> расход | C101: =Сделки!E101 -> ПИК ао | D101: =IF(Сделки!G101="Купля",Сделки!H101*1,-1*Сделки!H101) -> -2 | E101: =IF(Сделки!G101="Купля",(Сделки!J101+Сделки!L101+Сделки!M101)/Сделки!H101,(Сделки!J101-Сделки!L101-Сделки!M101)/Сделки!H101) -> 3920.28 | F101: =IF(L101=0,D101,OFFSET($F$1,L101,0)+D101) -> 103 | G101: -7840.56 | I101: =IF(D101<0,0,IF(IF(K101=0,0,OFFSET($I$1,K101,0))+D101>VLOOKUP(C101,Q:U,5,0),VLOOKUP(C101,Q:U,5,0),IF(K101=0,0,OFFSET($I$1,K101,0))+D101)) -> 0 | J101: =IF(D101<0,0,IF(K101=0,I101*E101,OFFSET($J$1,K101,0)+(I101-OFFSET($I$1,K101,0))*E101)) -> 0 | K101: =MAX(IF(D101>0,IF(C$1:C100=$C101,IF(D$1:D100>0,ROW(K$1:K100)-ROW(K$1),0)))) -> 0 | L101: =MAX(IF(C$1:C100=$C101,ROW(K$1:K100)-ROW(K$1),0)) -> 99 | N101: =IF(F101>0,INDEX(A102:A1097,MATCH(TRUE,C102:C1097=C101,0))-A101,"-") -> 0 | O101: =IF(N101="-","",(IF(N101>0,SUMIFS($G$2:G101,$C$2:C101,C101),""))) -> 
A102: =ROUNDDOWN(Сделки!A102,0) -> 2019-08-07 | B102: расход | C102: =Сделки!E102 -> ПИК ао | D102: =IF(Сделки!G102="Купля",Сделки!H102*1,-1*Сделки!H102) -> -7 | E102: =IF(Сделки!G102="Купля",(Сделки!J102+Сделки!L102+Сделки!M102)/Сделки!H102,(Сделки!J102-Сделки!L102-Сделки!M102)/Сделки!H102) -> 3919.281429 | F102: 96 | G102: -27434.97 | I102: 0 | J102: 0 | K102: =MAX(IF(D102>0,IF(C$1:C101=$C102,IF(D$1:D101>0,ROW(K$1:K101)-ROW(K$1),0)))) -> 0 | L102: =MAX(IF(C$1:C101=$C102,ROW(K$1:K101)-ROW(K$1),0)) -> 100 | N102: =IF(F102>0,INDEX(A103:A1098,MATCH(TRUE,C103:C1098=C102,0))-A102,"-") -> 0 | O102: =IF(N102="-","",(IF(N102>0,SUMIFS($G$2:G102,$C$2:C102,C102),""))) -> 
A103: =ROUNDDOWN(Сделки!A103,0) -> 2019-08-07 | B103: расход | C103: =Сделки!E103 -> ПИК ао | D103: =IF(Сделки!G103="Купля",Сделки!H103*1,-1*Сделки!H103) -> -2 | E103: =IF(Сделки!G103="Купля",(Сделки!J103+Сделки!L103+Сделки!M103)/Сделки!H103,(Сделки!J103-Сделки!L103-Сделки!M103)/Сделки!H103) -> 3919.28 | F103: 94 | G103: -7838.56 | I103: 0 | J103: 0 | K103: =MAX(IF(D103>0,IF(C$1:C102=$C103,IF(D$1:D102>0,ROW(K$1:K102)-ROW(K$1),0)))) -> 0 | L103: =MAX(IF(C$1:C102=$C103,ROW(K$1:K102)-ROW(K$1),0)) -> 101 | N103: =IF(F103>0,INDEX(A104:A1099,MATCH(TRUE,C104:C1099=C103,0))-A103,"-") -> 0 | O103: =IF(N103="-","",(IF(N103>0,SUMIFS($G$2:G103,$C$2:C103,C103),""))) -> 
A104: =ROUNDDOWN(Сделки!A104,0) -> 2019-08-07 | B104: расход | C104: =Сделки!E104 -> ПИК ао | D104: =IF(Сделки!G104="Купля",Сделки!H104*1,-1*Сделки!H104) -> -4 | E104: =IF(Сделки!G104="Купля",(Сделки!J104+Сделки!L104+Сделки!M104)/Сделки!H104,(Сделки!J104-Сделки!L104-Сделки!M104)/Сделки!H104) -> 3918.2825 | F104: 90 | G104: -15673.13 | I104: 0 | J104: 0 | K104: =MAX(IF(D104>0,IF(C$1:C103=$C104,IF(D$1:D103>0,ROW(K$1:K103)-ROW(K$1),0)))) -> 0 | L104: =MAX(IF(C$1:C103=$C104,ROW(K$1:K103)-ROW(K$1),0)) -> 102 | N104: =IF(F104>0,INDEX(A105:A1100,MATCH(TRUE,C105:C1100=C104,0))-A104,"-") -> 0 | O104: =IF(N104="-","",(IF(N104>0,SUMIFS($G$2:G104,$C$2:C104,C104),""))) -> 
A105: =ROUNDDOWN(Сделки!A105,0) -> 2019-08-07 | B105: расход | C105: =Сделки!E105 -> ПИК ао | D105: =IF(Сделки!G105="Купля",Сделки!H105*1,-1*Сделки!H105) -> -5 | E105: =IF(Сделки!G105="Купля",(Сделки!J105+Сделки!L105+Сделки!M105)/Сделки!H105,(Сделки!J105-Сделки!L105-Сделки!M105)/Сделки!H105) -> 3917.284 | F105: 85 | G105: -19586.42 | I105: 0 | J105: 0 | K105: =MAX(IF(D105>0,IF(C$1:C104=$C105,IF(D$1:D104>0,ROW(K$1:K104)-ROW(K$1),0)))) -> 0 | L105: =MAX(IF(C$1:C104=$C105,ROW(K$1:K104)-ROW(K$1),0)) -> 103 | N105: =IF(F105>0,INDEX(A106:A1101,MATCH(TRUE,C106:C1101=C105,0))-A105,"-") -> 0 | O105: =IF(N105="-","",(IF(N105>0,SUMIFS($G$2:G105,$C$2:C105,C105),""))) -> 
A106: =ROUNDDOWN(Сделки!A106,0) -> 2019-08-07 | B106: расход | C106: =Сделки!E106 -> ПИК ао | D106: =IF(Сделки!G106="Купля",Сделки!H106*1,-1*Сделки!H106) -> -85 | E106: =IF(Сделки!G106="Купля",(Сделки!J106+Сделки!L106+Сделки!M106)/Сделки!H106,(Сделки!J106-Сделки!L106-Сделки!M106)/Сделки!H106) -> 3917.283412 | F106: 0 | G106: -332969.09 | I106: 0 | J106: 0 | K106: =MAX(IF(D106>0,IF(C$1:C105=$C106,IF(D$1:D105>0,ROW(K$1:K105)-ROW(K$1),0)))) -> 0 | L106: =MAX(IF(C$1:C105=$C106,ROW(K$1:K105)-ROW(K$1),0)) -> 104 | N106: =IF(F106>0,INDEX(A107:A1102,MATCH(TRUE,C107:C1102=C106,0))-A106,"-") -> - | O106: =IF(N106="-","",(IF(N106>0,SUMIFS($G$2:G106,$C$2:C106,C106),""))) -> 
A107: =ROUNDDOWN(Сделки!A107,0) -> 2019-08-07 | B107: приход | C107: =Сделки!E107 -> ПИК ао | D107: =IF(Сделки!G107="Купля",Сделки!H107*1,-1*Сделки!H107) -> 16 | E107: =IF(Сделки!G107="Купля",(Сделки!J107+Сделки!L107+Сделки!M107)/Сделки!H107,(Сделки!J107-Сделки!L107-Сделки!M107)/Сделки!H107) -> 3911.70875 | F107: 16 | G107: 62587.34 | I107: 122 | J107: 462498.32 | K107: =MAX(IF(D107>0,IF(C$1:C106=$C107,IF(D$1:D106>0,ROW(K$1:K106)-ROW(K$1),0)))) -> 96 | L107: =MAX(IF(C$1:C106=$C107,ROW(K$1:K106)-ROW(K$1),0)) -> 105 | N107: =IF(F107>0,INDEX(A108:A1103,MATCH(TRUE,C108:C1103=C107,0))-A107,"-") -> 0 | O107: =IF(N107="-","",(IF(N107>0,SUMIFS($G$2:G107,$C$2:C107,C107),""))) -> 
A108: =ROUNDDOWN(Сделки!A108,0) -> 2019-08-07 | B108: приход | C108: =Сделки!E108 -> ПИК ао | D108: =IF(Сделки!G108="Купля",Сделки!H108*1,-1*Сделки!H108) -> 76 | E108: =IF(Сделки!G108="Купля",(Сделки!J108+Сделки!L108+Сделки!M108)/Сделки!H108,(Сделки!J108-Сделки!L108-Сделки!M108)/Сделки!H108) -> 3911.708947 | F108: 92 | G108: 297289.88 | I108: 198 | J108: 759788.2 | K108: =MAX(IF(D108>0,IF(C$1:C107=$C108,IF(D$1:D107>0,ROW(K$1:K107)-ROW(K$1),0)))) -> 106 | L108: =MAX(IF(C$1:C107=$C108,ROW(K$1:K107)-ROW(K$1),0)) -> 106 | N108: =IF(F108>0,INDEX(A109:A1104,MATCH(TRUE,C109:C1104=C108,0))-A108,"-") -> 0 | O108: =IF(N108="-","",(IF(N108>0,SUMIFS($G$2:G108,$C$2:C108,C108),""))) -> 
A109: =ROUNDDOWN(Сделки!A109,0) -> 2019-08-07 | B109: приход | C109: =Сделки!E109 -> ПИК ао | D109: =IF(Сделки!G109="Купля",Сделки!H109*1,-1*Сделки!H109) -> 4 | E109: =IF(Сделки!G109="Купля",(Сделки!J109+Сделки!L109+Сделки!M109)/Сделки!H109,(Сделки!J109-Сделки!L109-Сделки!M109)/Сделки!H109) -> 3911.71 | F109: 96 | G109: 15646.84 | I109: 202 | J109: 775435.04 | K109: =MAX(IF(D109>0,IF(C$1:C108=$C109,IF(D$1:D108>0,ROW(K$1:K108)-ROW(K$1),0)))) -> 107 | L109: =MAX(IF(C$1:C108=$C109,ROW(K$1:K108)-ROW(K$1),0)) -> 107 | N109: =IF(F109>0,INDEX(A110:A1105,MATCH(TRUE,C110:C1105=C109,0))-A109,"-") -> 0 | O109: =IF(N109="-","",(IF(N109>0,SUMIFS($G$2:G109,$C$2:C109,C109),""))) ->  | Q109: =INDEX(G2:G109,MATCH("-",N2:N109,0)) -> -124338.78
A110: =ROUNDDOWN(Сделки!A110,0) -> 2019-08-07 | B110: приход | C110: =Сделки!E110 -> ПИК ао | D110: =IF(Сделки!G110="Купля",Сделки!H110*1,-1*Сделки!H110) -> 8 | E110: =IF(Сделки!G110="Купля",(Сделки!J110+Сделки!L110+Сделки!M110)/Сделки!H110,(Сделки!J110-Сделки!L110-Сделки!M110)/Сделки!H110) -> 3912.71 | F110: 104 | G110: 31301.68 | I110: 210 | J110: 806736.72 | K110: =MAX(IF(D110>0,IF(C$1:C109=$C110,IF(D$1:D109>0,ROW(K$1:K109)-ROW(K$1),0)))) -> 108 | L110: =MAX(IF(C$1:C109=$C110,ROW(K$1:K109)-ROW(K$1),0)) -> 108 | N110: =IF(F110>0,INDEX(A111:A1106,MATCH(TRUE,C111:C1106=C110,0))-A110,"-") -> 1 | O110: =IF(N110="-","",(IF(N110>0,SUMIFS($G$2:G110,$C$2:C110,C110),""))) -> 391473.71 | Q110: =INDEX(G2:G109,MATCH(TRUE,N2:N109="-",0)) -> -124338.78
A111: =ROUNDDOWN(Сделки!A111,0) -> 2019-08-08 | B111: приход | C111: =Сделки!E111 -> ПИК ао | D111: =IF(Сделки!G111="Купля",Сделки!H111*1,-1*Сделки!H111) -> 5 | E111: =IF(Сделки!G111="Купля",(Сделки!J111+Сделки!L111+Сделки!M111)/Сделки!H111,(Сделки!J111-Сделки!L111-Сделки!M111)/Сделки!H111) -> 3908.706 | F111: 109 | G111: 19543.53 | I111: 215 | J111: 826280.25 | K111: =MAX(IF(D111>0,IF(C$1:C110=$C111,IF(D$1:D110>0,ROW(K$1:K110)-ROW(K$1),0)))) -> 109 | L111: =MAX(IF(C$1:C110=$C111,ROW(K$1:K110)-ROW(K$1),0)) -> 109 | N111: =IF(F111>0,INDEX(A112:A1107,MATCH(TRUE,C112:C1107=C111,0))-A111,"-") -> 0 | O111: =IF(N111="-","",(IF(N111>0,SUMIFS($G$2:G111,$C$2:C111,C111),""))) ->  | Q111: =MATCH("-",N100:N110,-1) -> 7
A112: =ROUNDDOWN(Сделки!A112,0) -> 2019-08-08 | B112: расход | C112: =Сделки!E112 -> ПИК ао | D112: =IF(Сделки!G112="Купля",Сделки!H112*1,-1*Сделки!H112) -> -109 | E112: =IF(Сделки!G112="Купля",(Сделки!J112+Сделки!L112+Сделки!M112)/Сделки!H112,(Сделки!J112-Сделки!L112-Сделки!M112)/Сделки!H112) -> 3862.32156 | F112: 0 | G112: -420993.05 | I112: 0 | J112: 0 | K112: =MAX(IF(D112>0,IF(C$1:C111=$C112,IF(D$1:D111>0,ROW(K$1:K111)-ROW(K$1),0)))) -> 0 | L112: =MAX(IF(C$1:C111=$C112,ROW(K$1:K111)-ROW(K$1),0)) -> 110 | N112: =IF(F112>0,INDEX(A113:A1108,MATCH(TRUE,C113:C1108=C112,0))-A112,"-") -> - | O112: =IF(N112="-","",(IF(N112>0,SUMIFS($G$2:G112,$C$2:C112,C112),""))) ->  | Q112: =LOOKUP(2,1/(F2:F110=0),G2:G110) -> -332969.09
A113: =ROUNDDOWN(Сделки!A113,0) -> 2019-08-08 | B113: =IF(D113>0,"приход",IF(D113<0,"расход","")) -> приход | C113: =Сделки!E113 -> ПИК ао | D113: =IF(Сделки!G113="Купля",Сделки!H113*1,-1*Сделки!H113) -> 28 | E113: =IF(Сделки!G113="Купля",(Сделки!J113+Сделки!L113+Сделки!M113)/Сделки!H113,(Сделки!J113-Сделки!L113-Сделки!M113)/Сделки!H113) -> 3849.666071 | F113: =IF(L113=0,D113,OFFSET($F$1,L113,0)+D113) -> 28 | G113: 107790.65 | I113: =IF(D113<0,0,IF(IF(K113=0,0,OFFSET($I$1,K113,0))+D113>VLOOKUP(C113,Q:U,5,0),VLOOKUP(C113,Q:U,5,0),IF(K113=0,0,OFFSET($I$1,K113,0))+D113)) -> 243 | J113: =IF(D113<0,0,IF(K113=0,I113*E113,OFFSET($J$1,K113,0)+(I113-OFFSET($I$1,K113,0))*E113)) -> 934070.9 | K113: =MAX(IF(D113>0,IF(C$1:C112=$C113,IF(D$1:D112>0,ROW(K$1:K112)-ROW(K$1),0)))) -> 110 | L113: =MAX(IF(C$1:C112=$C113,ROW(K$1:K112)-ROW(K$1),0)) -> 111 | N113: =IF(F113>0,INDEX(A114:A1109,MATCH(TRUE,C114:C1109=C113,0))-A113,"-") -> 0 | O113: =IF(N113="-","",(IF(N113>0,SUMIFS($G$2:G113,$C$2:C113,C113),""))) -> 
A114: =ROUNDDOWN(Сделки!A114,0) -> 2019-08-08 | B114: приход | C114: =Сделки!E114 -> ПИК ао | D114: =IF(Сделки!G114="Купля",Сделки!H114*1,-1*Сделки!H114) -> 6 | E114: =IF(Сделки!G114="Купля",(Сделки!J114+Сделки!L114+Сделки!M114)/Сделки!H114,(Сделки!J114-Сделки!L114-Сделки!M114)/Сделки!H114) -> 3850.665 | F114: 34 | G114: 23103.99 | I114: 249 | J114: 957174.89 | K114: =MAX(IF(D114>0,IF(C$1:C113=$C114,IF(D$1:D113>0,ROW(K$1:K113)-ROW(K$1),0)))) -> 112 | L114: =MAX(IF(C$1:C113=$C114,ROW(K$1:K113)-ROW(K$1),0)) -> 112 | N114: =IF(F114>0,INDEX(A115:A1110,MATCH(TRUE,C115:C1110=C114,0))-A114,"-") -> 0 | O114: =IF(N114="-","",(IF(N114>0,SUMIFS($G$2:G114,$C$2:C114,C114),""))) -> 
A115: =ROUNDDOWN(Сделки!A115,0) -> 2019-08-08 | B115: приход | C115: =Сделки!E115 -> ПИК ао | D115: =IF(Сделки!G115="Купля",Сделки!H115*1,-1*Сделки!H115) -> 4 | E115: =IF(Сделки!G115="Купля",(Сделки!J115+Сделки!L115+Сделки!M115)/Сделки!H115,(Сделки!J115-Сделки!L115-Сделки!M115)/Сделки!H115) -> 3851.6675 | F115: 38 | G115: 15406.67 | I115: 253 | J115: 972581.56 | K115: =MAX(IF(D115>0,IF(C$1:C114=$C115,IF(D$1:D114>0,ROW(K$1:K114)-ROW(K$1),0)))) -> 113 | L115: =MAX(IF(C$1:C114=$C115,ROW(K$1:K114)-ROW(K$1),0)) -> 113 | N115: =IF(F115>0,INDEX(A116:A1111,MATCH(TRUE,C116:C1111=C115,0))-A115,"-") -> 0 | O115: =IF(N115="-","",(IF(N115>0,SUMIFS($G$2:G115,$C$2:C115,C115),""))) -> 
A116: =ROUNDDOWN(Сделки!A116,0) -> 2019-08-08 | B116: приход | C116: =Сделки!E116 -> ПИК ао | D116: =IF(Сделки!G116="Купля",Сделки!H116*1,-1*Сделки!H116) -> 4 | E116: =IF(Сделки!G116="Купля",(Сделки!J116+Сделки!L116+Сделки!M116)/Сделки!H116,(Сделки!J116-Сделки!L116-Сделки!M116)/Сделки!H116) -> 3852.6675 | F116: 42 | G116: 15410.67 | I116: 257 | J116: 987992.23 | K116: =MAX(IF(D116>0,IF(C$1:C115=$C116,IF(D$1:D115>0,ROW(K$1:K115)-ROW(K$1),0)))) -> 114 | L116: =MAX(IF(C$1:C115=$C116,ROW(K$1:K115)-ROW(K$1),0)) -> 114 | N116: =IF(F116>0,INDEX(A117:A1112,MATCH(TRUE,C117:C1112=C116,0))-A116,"-") -> 0 | O116: =IF(N116="-","",(IF(N116>0,SUMIFS($G$2:G116,$C$2:C116,C116),""))) -> 
A117: =ROUNDDOWN(Сделки!A117,0) -> 2019-08-08 | B117: приход | C117: =Сделки!E117 -> ПИК ао | D117: =IF(Сделки!G117="Купля",Сделки!H117*1,-1*Сделки!H117) -> 4 | E117: =IF(Сделки!G117="Купля",(Сделки!J117+Сделки!L117+Сделки!M117)/Сделки!H117,(Сделки!J117-Сделки!L117-Сделки!M117)/Сделки!H117) -> 3854.6675 | F117: 46 | G117: 15418.67 | I117: 261 | J117: 1003410.9 | K117: =MAX(IF(D117>0,IF(C$1:C116=$C117,IF(D$1:D116>0,ROW(K$1:K116)-ROW(K$1),0)))) -> 115 | L117: =MAX(IF(C$1:C116=$C117,ROW(K$1:K116)-ROW(K$1),0)) -> 115 | N117: =IF(F117>0,INDEX(A118:A1113,MATCH(TRUE,C118:C1113=C117,0))-A117,"-") -> 0 | O117: =IF(N117="-","",(IF(N117>0,SUMIFS($G$2:G117,$C$2:C117,C117),""))) -> 
A118: =ROUNDDOWN(Сделки!A118,0) -> 2019-08-08 | B118: приход | C118: =Сделки!E118 -> ПИК ао | D118: =IF(Сделки!G118="Купля",Сделки!H118*1,-1*Сделки!H118) -> 4 | E118: =IF(Сделки!G118="Купля",(Сделки!J118+Сделки!L118+Сделки!M118)/Сделки!H118,(Сделки!J118-Сделки!L118-Сделки!M118)/Сделки!H118) -> 3854.6675 | F118: 50 | G118: 15418.67 | I118: 265 | J118: 1018829.57 | K118: =MAX(IF(D118>0,IF(C$1:C117=$C118,IF(D$1:D117>0,ROW(K$1:K117)-ROW(K$1),0)))) -> 116 | L118: =MAX(IF(C$1:C117=$C118,ROW(K$1:K117)-ROW(K$1),0)) -> 116 | N118: =IF(F118>0,INDEX(A119:A1114,MATCH(TRUE,C119:C1114=C118,0))-A118,"-") -> 0 | O118: =IF(N118="-","",(IF(N118>0,SUMIFS($G$2:G118,$C$2:C118,C118),""))) -> 
A119: =ROUNDDOWN(Сделки!A119,0) -> 2019-08-08 | B119: приход | C119: =Сделки!E119 -> ПИК ао | D119: =IF(Сделки!G119="Купля",Сделки!H119*1,-1*Сделки!H119) -> 36 | E119: =IF(Сделки!G119="Купля",(Сделки!J119+Сделки!L119+Сделки!M119)/Сделки!H119,(Сделки!J119-Сделки!L119-Сделки!M119)/Сделки!H119) -> 3855.670278 | F119: 86 | G119: 138804.13 | I119: 301 | J119: 1157633.7 | K119: =MAX(IF(D119>0,IF(C$1:C118=$C119,IF(D$1:D118>0,ROW(K$1:K118)-ROW(K$1),0)))) -> 117 | L119: =MAX(IF(C$1:C118=$C119,ROW(K$1:K118)-ROW(K$1),0)) -> 117 | N119: =IF(F119>0,INDEX(A120:A1115,MATCH(TRUE,C120:C1115=C119,0))-A119,"-") -> 0 | O119: =IF(N119="-","",(IF(N119>0,SUMIFS($G$2:G119,$C$2:C119,C119),""))) -> 
A120: =ROUNDDOWN(Сделки!A120,0) -> 2019-08-08 | B120: приход | C120: =Сделки!E120 -> ПИК ао | D120: =IF(Сделки!G120="Купля",Сделки!H120*1,-1*Сделки!H120) -> 4 | E120: =IF(Сделки!G120="Купля",(Сделки!J120+Сделки!L120+Сделки!M120)/Сделки!H120,(Сделки!J120-Сделки!L120-Сделки!M120)/Сделки!H120) -> 3855.67 | F120: 90 | G120: 15422.68 | I120: 305 | J120: 1173056.38 | K120: =MAX(IF(D120>0,IF(C$1:C119=$C120,IF(D$1:D119>0,ROW(K$1:K119)-ROW(K$1),0)))) -> 118 | L120: =MAX(IF(C$1:C119=$C120,ROW(K$1:K119)-ROW(K$1),0)) -> 118 | N120: =IF(F120>0,INDEX(A121:A1116,MATCH(TRUE,C121:C1116=C120,0))-A120,"-") -> 0 | O120: =IF(N120="-","",(IF(N120>0,SUMIFS($G$2:G120,$C$2:C120,C120),""))) -> 
A121: =ROUNDDOWN(Сделки!A121,0) -> 2019-08-08 | B121: приход | C121: =Сделки!E121 -> ПИК ао | D121: =IF(Сделки!G121="Купля",Сделки!H121*1,-1*Сделки!H121) -> 15 | E121: =IF(Сделки!G121="Купля",(Сделки!J121+Сделки!L121+Сделки!M121)/Сделки!H121,(Сделки!J121-Сделки!L121-Сделки!M121)/Сделки!H121) -> 3856.670667 | F121: 105 | G121: 57850.06 | I121: 320 | J121: 1230906.44 | K121: =MAX(IF(D121>0,IF(C$1:C120=$C121,IF(D$1:D120>0,ROW(K$1:K120)-ROW(K$1),0)))) -> 119 | L121: =MAX(IF(C$1:C120=$C121,ROW(K$1:K120)-ROW(K$1),0)) -> 119 | N121: =IF(F121>0,INDEX(A122:A1117,MATCH(TRUE,C122:C1117=C121,0))-A121,"-") -> 1 | O121: =IF(N121="-","",(IF(N121>0,SUMIFS($G$2:G121,$C$2:C121,C121),""))) -> 394650.38
A122: =ROUNDDOWN(Сделки!A122,0) -> 2019-08-09 | B122: приход | C122: =Сделки!E122 -> Сбербанк | D122: =IF(Сделки!G122="Купля",Сделки!H122*1,-1*Сделки!H122) -> 9 | E122: =IF(Сделки!G122="Купля",(Сделки!J122+Сделки!L122+Сделки!M122)/Сделки!H122,(Сделки!J122-Сделки!L122-Сделки!M122)/Сделки!H122) -> 2229.943333 | F122: 9 | G122: 20069.49 | I122: 225 | J122: 536399.17 | K122: =MAX(IF(D122>0,IF(C$1:C121=$C122,IF(D$1:D121>0,ROW(K$1:K121)-ROW(K$1),0)))) -> 51 | L122: =MAX(IF(C$1:C121=$C122,ROW(K$1:K121)-ROW(K$1),0)) -> 53 | N122: =IF(F122>0,INDEX(A123:A1118,MATCH(TRUE,C123:C1118=C122,0))-A122,"-") -> 5 | O122: =IF(N122="-","",(IF(N122>0,SUMIFS($G$2:G122,$C$2:C122,C122),""))) -> 18878.67
A123: =ROUNDDOWN(Сделки!A123,0) -> 2019-08-09 | B123: расход | C123: =Сделки!E123 -> ПИК ао | D123: =IF(Сделки!G123="Купля",Сделки!H123*1,-1*Сделки!H123) -> -2 | E123: =IF(Сделки!G123="Купля",(Сделки!J123+Сделки!L123+Сделки!M123)/Сделки!H123,(Сделки!J123-Сделки!L123-Сделки!M123)/Сделки!H123) -> 3838.34 | F123: 103 | G123: -7676.68 | I123: 0 | J123: 0 | K123: =MAX(IF(D123>0,IF(C$1:C122=$C123,IF(D$1:D122>0,ROW(K$1:K122)-ROW(K$1),0)))) -> 0 | L123: =MAX(IF(C$1:C122=$C123,ROW(K$1:K122)-ROW(K$1),0)) -> 120 | N123: =IF(F123>0,INDEX(A124:A1119,MATCH(TRUE,C124:C1119=C123,0))-A123,"-") -> 0 | O123: =IF(N123="-","",(IF(N123>0,SUMIFS($G$2:G123,$C$2:C123,C123),""))) -> 
A124: =ROUNDDOWN(Сделки!A124,0) -> 2019-08-09 | B124: расход | C124: =Сделки!E124 -> ПИК ао | D124: =IF(Сделки!G124="Купля",Сделки!H124*1,-1*Сделки!H124) -> -7 | E124: =IF(Сделки!G124="Купля",(Сделки!J124+Сделки!L124+Сделки!M124)/Сделки!H124,(Сделки!J124-Сделки!L124-Сделки!M124)/Сделки!H124) -> 3837.338571 | F124: 96 | G124: -26861.37 | I124: 0 | J124: 0 | K124: =MAX(IF(D124>0,IF(C$1:C123=$C124,IF(D$1:D123>0,ROW(K$1:K123)-ROW(K$1),0)))) -> 0 | L124: =MAX(IF(C$1:C123=$C124,ROW(K$1:K123)-ROW(K$1),0)) -> 122 | N124: =IF(F124>0,INDEX(A125:A1120,MATCH(TRUE,C125:C1120=C124,0))-A124,"-") -> 0 | O124: =IF(N124="-","",(IF(N124>0,SUMIFS($G$2:G124,$C$2:C124,C124),""))) -> 
A125: =ROUNDDOWN(Сделки!A125,0) -> 2019-08-09 | B125: расход | C125: =Сделки!E125 -> ПИК ао | D125: =IF(Сделки!G125="Купля",Сделки!H125*1,-1*Сделки!H125) -> -2 | E125: =IF(Сделки!G125="Купля",(Сделки!J125+Сделки!L125+Сделки!M125)/Сделки!H125,(Сделки!J125-Сделки!L125-Сделки!M125)/Сделки!H125) -> 3837.34 | F125: 94 | G125: -7674.68 | I125: 0 | J125: 0 | K125: =MAX(IF(D125>0,IF(C$1:C124=$C125,IF(D$1:D124>0,ROW(K$1:K124)-ROW(K$1),0)))) -> 0 | L125: =MAX(IF(C$1:C124=$C125,ROW(K$1:K124)-ROW(K$1),0)) -> 123 | N125: =IF(F125>0,INDEX(A126:A1121,MATCH(TRUE,C126:C1121=C125,0))-A125,"-") -> 0 | O125: =IF(N125="-","",(IF(N125>0,SUMIFS($G$2:G125,$C$2:C125,C125),""))) -> 
A126: =ROUNDDOWN(Сделки!A126,0) -> 2019-08-09 | B126: расход | C126: =Сделки!E126 -> ПИК ао | D126: =IF(Сделки!G126="Купля",Сделки!H126*1,-1*Сделки!H126) -> -94 | E126: =IF(Сделки!G126="Купля",(Сделки!J126+Сделки!L126+Сделки!M126)/Сделки!H126,(Сделки!J126-Сделки!L126-Сделки!M126)/Сделки!H126) -> 3836.339574 | F126: 0 | G126: -360615.92 | I126: 0 | J126: 0 | K126: =MAX(IF(D126>0,IF(C$1:C125=$C126,IF(D$1:D125>0,ROW(K$1:K125)-ROW(K$1),0)))) -> 0 | L126: =MAX(IF(C$1:C125=$C126,ROW(K$1:K125)-ROW(K$1),0)) -> 124 | N126: =IF(F126>0,INDEX(A127:A1122,MATCH(TRUE,C127:C1122=C126,0))-A126,"-") -> - | O126: =IF(N126="-","",(IF(N126>0,SUMIFS($G$2:G126,$C$2:C126,C126),""))) -> 
A127: =ROUNDDOWN(Сделки!A127,0) -> 2019-08-12 | B127: приход | C127: =Сделки!E127 -> АЛРОСА ао | D127: =IF(Сделки!G127="Купля",Сделки!H127*1,-1*Сделки!H127) -> 120 | E127: =IF(Сделки!G127="Купля",(Сделки!J127+Сделки!L127+Сделки!M127)/Сделки!H127,(Сделки!J127-Сделки!L127-Сделки!M127)/Сделки!H127) -> 753.42175 | F127: 120 | G127: 90410.61 | I127: 209 | J127: 161247.66 | K127: =MAX(IF(D127>0,IF(C$1:C126=$C127,IF(D$1:D126>0,ROW(K$1:K126)-ROW(K$1),0)))) -> 97 | L127: =MAX(IF(C$1:C126=$C127,ROW(K$1:K126)-ROW(K$1),0)) -> 98 | N127: =IF(F127>0,INDEX(A128:A1123,MATCH(TRUE,C128:C1123=C127,0))-A127,"-") -> 1 | O127: =IF(N127="-","",(IF(N127>0,SUMIFS($G$2:G127,$C$2:C127,C127),""))) -> 89863.17
A128: =ROUNDDOWN(Сделки!A128,0) -> 2019-08-12 | B128: приход | C128: =Сделки!E128 -> ИнтерРАОао | D128: =IF(Сделки!G128="Купля",Сделки!H128*1,-1*Сделки!H128) -> 3 | E128: =IF(Сделки!G128="Купля",(Сделки!J128+Сделки!L128+Сделки!M128)/Сделки!H128,(Сделки!J128-Сделки!L128-Сделки!M128)/Сделки!H128) -> 4247.44 | F128: 3 | G128: 12742.32 | I128: 3 | J128: 12742.32 | K128: =MAX(IF(D128>0,IF(C$1:C127=$C128,IF(D$1:D127>0,ROW(K$1:K127)-ROW(K$1),0)))) -> 0 | L128: =MAX(IF(C$1:C127=$C128,ROW(K$1:K127)-ROW(K$1),0)) -> 0 | N128: =IF(F128>0,INDEX(A129:A1124,MATCH(TRUE,C129:C1124=C128,0))-A128,"-") -> 0 | O128: =IF(N128="-","",(IF(N128>0,SUMIFS($G$2:G128,$C$2:C128,C128),""))) -> 
A129: =ROUNDDOWN(Сделки!A129,0) -> 2019-08-12 | B129: приход | C129: =Сделки!E129 -> ИнтерРАОао | D129: =IF(Сделки!G129="Купля",Сделки!H129*1,-1*Сделки!H129) -> 20 | E129: =IF(Сделки!G129="Купля",(Сделки!J129+Сделки!L129+Сделки!M129)/Сделки!H129,(Сделки!J129-Сделки!L129-Сделки!M129)/Сделки!H129) -> 4247.4415 | F129: 23 | G129: 84948.83 | I129: 23 | J129: 97691.15 | K129: =MAX(IF(D129>0,IF(C$1:C128=$C129,IF(D$1:D128>0,ROW(K$1:K128)-ROW(K$1),0)))) -> 127 | L129: =MAX(IF(C$1:C128=$C129,ROW(K$1:K128)-ROW(K$1),0)) -> 127 | N129: =IF(F129>0,INDEX(A130:A1125,MATCH(TRUE,C130:C1125=C129,0))-A129,"-") -> 2 | O129: =IF(N129="-","",(IF(N129>0,SUMIFS($G$2:G129,$C$2:C129,C129),""))) -> 97691.15
A130: =ROUNDDOWN(Сделки!A130,0) -> 2019-08-12 | B130: приход | C130: =Сделки!E130 -> НЛМК ао | D130: =IF(Сделки!G130="Купля",Сделки!H130*1,-1*Сделки!H130) -> 8 | E130: =IF(Сделки!G130="Купля",(Сделки!J130+Сделки!L130+Сделки!M130)/Сделки!H130,(Сделки!J130-Сделки!L130-Сделки!M130)/Сделки!H130) -> 1427.1875 | F130: 8 | G130: 11417.5 | I130: 8 | J130: 11417.5 | K130: =MAX(IF(D130>0,IF(C$1:C129=$C130,IF(D$1:D129>0,ROW(K$1:K129)-ROW(K$1),0)))) -> 0 | L130: =MAX(IF(C$1:C129=$C130,ROW(K$1:K129)-ROW(K$1),0)) -> 0 | N130: =IF(F130>0,INDEX(A131:A1126,MATCH(TRUE,C131:C1126=C130,0))-A130,"-") -> 0 | O130: =IF(N130="-","",(IF(N130>0,SUMIFS($G$2:G130,$C$2:C130,C130),""))) -> 
A131: =ROUNDDOWN(Сделки!A131,0) -> 2019-08-12 | B131: приход | C131: =Сделки!E131 -> НЛМК ао | D131: =IF(Сделки!G131="Купля",Сделки!H131*1,-1*Сделки!H131) -> 45 | E131: =IF(Сделки!G131="Купля",(Сделки!J131+Сделки!L131+Сделки!M131)/Сделки!H131,(Сделки!J131-Сделки!L131-Сделки!M131)/Сделки!H131) -> 1427.588667 | F131: 53 | G131: =D131*E131 -> 64241.49 | I131: 53 | J131: 75658.99 | K131: =MAX(IF(D131>0,IF(C$1:C130=$C131,IF(D$1:D130>0,ROW(K$1:K130)-ROW(K$1),0)))) -> 129 | L131: =MAX(IF(C$1:C130=$C131,ROW(K$1:K130)-ROW(K$1),0)) -> 129 | N131: =IF(F131>0,INDEX(A132:A1127,MATCH(TRUE,C132:C1127=C131,0))-A131,"-") -> 0 | O131: =IF(N131="-","",(IF(N131>0,SUMIFS($G$2:G131,$C$2:C131,C131),""))) -> 
A132: =ROUNDDOWN(Сделки!A132,0) -> 2019-08-12 | B132: приход | C132: =Сделки!E132 -> НЛМК ао | D132: =IF(Сделки!G132="Купля",Сделки!H132*1,-1*Сделки!H132) -> 12 | E132: =IF(Сделки!G132="Купля",(Сделки!J132+Сделки!L132+Сделки!M132)/Сделки!H132,(Сделки!J132-Сделки!L132-Сделки!M132)/Сделки!H132) -> 1427.589167 | F132: 65 | G132: 17131.07 | I132: 65 | J132: 92790.06 | K132: =MAX(IF(D132>0,IF(C$1:C131=$C132,IF(D$1:D131>0,ROW(K$1:K131)-ROW(K$1),0)))) -> 130 | L132: =MAX(IF(C$1:C131=$C132,ROW(K$1:K131)-ROW(K$1),0)) -> 130 | N132: =IF(F132>0,INDEX(A133:A1128,MATCH(TRUE,C133:C1128=C132,0))-A132,"-") -> 0 | O132: =IF(N132="-","",(IF(N132>0,SUMIFS($G$2:G132,$C$2:C132,C132),""))) -> 
A133: =ROUNDDOWN(Сделки!A133,0) -> 2019-08-12 | B133: приход | C133: =Сделки!E133 -> НЛМК ао | D133: =IF(Сделки!G133="Купля",Сделки!H133*1,-1*Сделки!H133) -> 1 | E133: =IF(Сделки!G133="Купля",(Сделки!J133+Сделки!L133+Сделки!M133)/Сделки!H133,(Сделки!J133-Сделки!L133-Сделки!M133)/Сделки!H133) -> 1427.6 | F133: 66 | G133: 1427.6 | I133: 66 | J133: 94217.66 | K133: =MAX(IF(D133>0,IF(C$1:C132=$C133,IF(D$1:D132>0,ROW(K$1:K132)-ROW(K$1),0)))) -> 131 | L133: =MAX(IF(C$1:C132=$C133,ROW(K$1:K132)-ROW(K$1),0)) -> 131 | N133: =IF(F133>0,INDEX(A134:A1129,MATCH(TRUE,C134:C1129=C133,0))-A133,"-") -> 0 | O133: =IF(N133="-","",(IF(N133>0,SUMIFS($G$2:G133,$C$2:C133,C133),""))) -> 
A134: =ROUNDDOWN(Сделки!A134,0) -> 2019-08-12 | B134: приход | C134: =Сделки!E134 -> НЛМК ао | D134: =IF(Сделки!G134="Купля",Сделки!H134*1,-1*Сделки!H134) -> 1 | E134: =IF(Сделки!G134="Купля",(Сделки!J134+Сделки!L134+Сделки!M134)/Сделки!H134,(Сделки!J134-Сделки!L134-Сделки!M134)/Сделки!H134) -> 1427.8 | F134: 67 | G134: 1427.8 | I134: 67 | J134: 95645.46 | K134: =MAX(IF(D134>0,IF(C$1:C133=$C134,IF(D$1:D133>0,ROW(K$1:K133)-ROW(K$1),0)))) -> 132 | L134: =MAX(IF(C$1:C133=$C134,ROW(K$1:K133)-ROW(K$1),0)) -> 132 | N134: =IF(F134>0,INDEX(A135:A1130,MATCH(TRUE,C135:C1130=C134,0))-A134,"-") -> 0 | O134: =IF(N134="-","",(IF(N134>0,SUMIFS($G$2:G134,$C$2:C134,C134),""))) -> 
A135: =ROUNDDOWN(Сделки!A135,0) -> 2019-08-12 | B135: приход | C135: =Сделки!E135 -> НЛМК ао | D135: =IF(Сделки!G135="Купля",Сделки!H135*1,-1*Сделки!H135) -> 13 | E135: =IF(Сделки!G135="Купля",(Сделки!J135+Сделки!L135+Сделки!M135)/Сделки!H135,(Сделки!J135-Сделки!L135-Сделки!M135)/Сделки!H135) -> 1427.788462 | F135: 80 | G135: 18561.25 | I135: 80 | J135: 114206.71 | K135: =MAX(IF(D135>0,IF(C$1:C134=$C135,IF(D$1:D134>0,ROW(K$1:K134)-ROW(K$1),0)))) -> 133 | L135: =MAX(IF(C$1:C134=$C135,ROW(K$1:K134)-ROW(K$1),0)) -> 133 | N135: =IF(F135>0,INDEX(A136:A1131,MATCH(TRUE,C136:C1131=C135,0))-A135,"-") -> 2 | O135: =IF(N135="-","",(IF(N135>0,SUMIFS($G$2:G135,$C$2:C135,C135),""))) -> 114206.71
A136: =ROUNDDOWN(Сделки!A136,0) -> 2019-08-12 | B136: приход | C136: =Сделки!E136 -> РусГидро | D136: =IF(Сделки!G136="Купля",Сделки!H136*1,-1*Сделки!H136) -> 175 | E136: =IF(Сделки!G136="Купля",(Сделки!J136+Сделки!L136+Сделки!M136)/Сделки!H136,(Сделки!J136-Сделки!L136-Сделки!M136)/Сделки!H136) -> 550.8814857 | F136: 175 | G136: 96404.26 | I136: 175 | J136: 96404.26 | K136: =MAX(IF(D136>0,IF(C$1:C135=$C136,IF(D$1:D135>0,ROW(K$1:K135)-ROW(K$1),0)))) -> 0 | L136: =MAX(IF(C$1:C135=$C136,ROW(K$1:K135)-ROW(K$1),0)) -> 0 | N136: =IF(F136>0,INDEX(A137:A1132,MATCH(TRUE,C137:C1132=C136,0))-A136,"-") -> 11 | O136: =IF(N136="-","",(IF(N136>0,SUMIFS($G$2:G136,$C$2:C136,C136),""))) -> 96404.26
A137: =ROUNDDOWN(Сделки!A137,0) -> 2019-08-13 | B137: расход | C137: =Сделки!E137 -> АЛРОСА ао | D137: =IF(Сделки!G137="Купля",Сделки!H137*1,-1*Сделки!H137) -> -120 | E137: =IF(Сделки!G137="Купля",(Сделки!J137+Сделки!L137+Сделки!M137)/Сделки!H137,(Сделки!J137-Сделки!L137-Сделки!M137)/Сделки!H137) -> 729.4941667 | F137: 0 | G137: -87539.3 | I137: 0 | J137: 0 | K137: =MAX(IF(D137>0,IF(C$1:C136=$C137,IF(D$1:D136>0,ROW(K$1:K136)-ROW(K$1),0)))) -> 0 | L137: =MAX(IF(C$1:C136=$C137,ROW(K$1:K136)-ROW(K$1),0)) -> 126 | N137: =IF(F137>0,INDEX(A138:A1133,MATCH(TRUE,C138:C1133=C137,0))-A137,"-") -> - | O137: =IF(N137="-","",(IF(N137>0,SUMIFS($G$2:G137,$C$2:C137,C137),""))) -> 
A138: =ROUNDDOWN(Сделки!A138,0) -> 2019-08-14 | B138: расход | C138: =Сделки!E138 -> НЛМК ао | D138: =IF(Сделки!G138="Купля",Сделки!H138*1,-1*Сделки!H138) -> -80 | E138: =IF(Сделки!G138="Купля",(Сделки!J138+Сделки!L138+Сделки!M138)/Сделки!H138,(Сделки!J138-Сделки!L138-Сделки!M138)/Сделки!H138) -> 1397.031125 | F138: 0 | G138: -111762.49 | I138: 0 | J138: 0 | K138: =MAX(IF(D138>0,IF(C$1:C137=$C138,IF(D$1:D137>0,ROW(K$1:K137)-ROW(K$1),0)))) -> 0 | L138: =MAX(IF(C$1:C137=$C138,ROW(K$1:K137)-ROW(K$1),0)) -> 134 | N138: =IF(F138>0,INDEX(A139:A1134,MATCH(TRUE,C139:C1134=C138,0))-A138,"-") -> - | O138: =IF(N138="-","",(IF(N138>0,SUMIFS($G$2:G138,$C$2:C138,C138),""))) -> 
A139: =ROUNDDOWN(Сделки!A139,0) -> 2019-08-14 | B139: приход | C139: =Сделки!E139 -> ПИК ао | D139: =IF(Сделки!G139="Купля",Сделки!H139*1,-1*Сделки!H139) -> 15 | E139: =IF(Сделки!G139="Купля",(Сделки!J139+Сделки!L139+Сделки!M139)/Сделки!H139,(Сделки!J139-Сделки!L139-Сделки!M139)/Сделки!H139) -> 3787.623333 | F139: 15 | G139: 56814.35 | I139: 335 | J139: 1287720.79 | K139: =MAX(IF(D139>0,IF(C$1:C138=$C139,IF(D$1:D138>0,ROW(K$1:K138)-ROW(K$1),0)))) -> 120 | L139: =MAX(IF(C$1:C138=$C139,ROW(K$1:K138)-ROW(K$1),0)) -> 125 | N139: =IF(F139>0,INDEX(A140:A1135,MATCH(TRUE,C140:C1135=C139,0))-A139,"-") -> 0 | O139: =IF(N139="-","",(IF(N139>0,SUMIFS($G$2:G139,$C$2:C139,C139),""))) -> 
A140: =ROUNDDOWN(Сделки!A140,0) -> 2019-08-14 | B140: приход | C140: =Сделки!E140 -> ПИК ао | D140: =IF(Сделки!G140="Купля",Сделки!H140*1,-1*Сделки!H140) -> 3 | E140: =IF(Сделки!G140="Купля",(Сделки!J140+Сделки!L140+Сделки!M140)/Сделки!H140,(Сделки!J140-Сделки!L140-Сделки!M140)/Сделки!H140) -> 3787.623333 | F140: 18 | G140: 11362.87 | I140: 338 | J140: 1299083.66 | K140: =MAX(IF(D140>0,IF(C$1:C139=$C140,IF(D$1:D139>0,ROW(K$1:K139)-ROW(K$1),0)))) -> 138 | L140: =MAX(IF(C$1:C139=$C140,ROW(K$1:K139)-ROW(K$1),0)) -> 138 | N140: =IF(F140>0,INDEX(A141:A1136,MATCH(TRUE,C141:C1136=C140,0))-A140,"-") -> 0 | O140: =IF(N140="-","",(IF(N140>0,SUMIFS($G$2:G140,$C$2:C140,C140),""))) -> 
A141: =ROUNDDOWN(Сделки!A141,0) -> 2019-08-14 | B141: приход | C141: =Сделки!E141 -> ПИК ао | D141: =IF(Сделки!G141="Купля",Сделки!H141*1,-1*Сделки!H141) -> 3 | E141: =IF(Сделки!G141="Купля",(Сделки!J141+Сделки!L141+Сделки!M141)/Сделки!H141,(Сделки!J141-Сделки!L141-Сделки!M141)/Сделки!H141) -> 3787.623333 | F141: 21 | G141: 11362.87 | I141: 341 | J141: 1310446.53 | K141: =MAX(IF(D141>0,IF(C$1:C140=$C141,IF(D$1:D140>0,ROW(K$1:K140)-ROW(K$1),0)))) -> 139 | L141: =MAX(IF(C$1:C140=$C141,ROW(K$1:K140)-ROW(K$1),0)) -> 139 | N141: =IF(F141>0,INDEX(A142:A1137,MATCH(TRUE,C142:C1137=C141,0))-A141,"-") -> 0 | O141: =IF(N141="-","",(IF(N141>0,SUMIFS($G$2:G141,$C$2:C141,C141),""))) -> 
A142: =ROUNDDOWN(Сделки!A142,0) -> 2019-08-14 | B142: приход | C142: =Сделки!E142 -> ПИК ао | D142: =IF(Сделки!G142="Купля",Сделки!H142*1,-1*Сделки!H142) -> 2 | E142: =IF(Сделки!G142="Купля",(Сделки!J142+Сделки!L142+Сделки!M142)/Сделки!H142,(Сделки!J142-Сделки!L142-Сделки!M142)/Сделки!H142) -> 3788.62 | F142: 23 | G142: 7577.24 | I142: 343 | J142: 1318023.77 | K142: =MAX(IF(D142>0,IF(C$1:C141=$C142,IF(D$1:D141>0,ROW(K$1:K141)-ROW(K$1),0)))) -> 140 | L142: =MAX(IF(C$1:C141=$C142,ROW(K$1:K141)-ROW(K$1),0)) -> 140 | N142: =IF(F142>0,INDEX(A143:A1138,MATCH(TRUE,C143:C1138=C142,0))-A142,"-") -> 0 | O142: =IF(N142="-","",(IF(N142>0,SUMIFS($G$2:G142,$C$2:C142,C142),""))) -> 
A143: =ROUNDDOWN(Сделки!A143,0) -> 2019-08-14 | B143: приход | C143: =Сделки!E143 -> ПИК ао | D143: =IF(Сделки!G143="Купля",Сделки!H143*1,-1*Сделки!H143) -> 2 | E143: =IF(Сделки!G143="Купля",(Сделки!J143+Сделки!L143+Сделки!M143)/Сделки!H143,(Сделки!J143-Сделки!L143-Сделки!M143)/Сделки!H143) -> 3788.62 | F143: 25 | G143: 7577.24 | I143: 345 | J143: 1325601.01 | K143: =MAX(IF(D143>0,IF(C$1:C142=$C143,IF(D$1:D142>0,ROW(K$1:K142)-ROW(K$1),0)))) -> 141 | L143: =MAX(IF(C$1:C142=$C143,ROW(K$1:K142)-ROW(K$1),0)) -> 141 | N143: =IF(F143>0,INDEX(A144:A1139,MATCH(TRUE,C144:C1139=C143,0))-A143,"-") -> 0 | O143: =IF(N143="-","",(IF(N143>0,SUMIFS($G$2:G143,$C$2:C143,C143),""))) -> 
A144: =ROUNDDOWN(Сделки!A144,0) -> 2019-08-14 | B144: расход | C144: =Сделки!E144 -> ИнтерРАОао | D144: =IF(Сделки!G144="Купля",Сделки!H144*1,-1*Сделки!H144) -> -10 | E144: =IF(Сделки!G144="Купля",(Сделки!J144+Сделки!L144+Сделки!M144)/Сделки!H144,(Сделки!J144-Сделки!L144-Сделки!M144)/Сделки!H144) -> 4139.628 | F144: 13 | G144: -41396.28 | I144: 0 | J144: 0 | K144: =MAX(IF(D144>0,IF(C$1:C143=$C144,IF(D$1:D143>0,ROW(K$1:K143)-ROW(K$1),0)))) -> 0 | L144: =MAX(IF(C$1:C143=$C144,ROW(K$1:K143)-ROW(K$1),0)) -> 128 | N144: =IF(F144>0,INDEX(A145:A1140,MATCH(TRUE,C145:C1140=C144,0))-A144,"-") -> 0 | O144: =IF(N144="-","",(IF(N144>0,SUMIFS($G$2:G144,$C$2:C144,C144),""))) -> 
A145: =ROUNDDOWN(Сделки!A145,0) -> 2019-08-14 | B145: расход | C145: =Сделки!E145 -> ИнтерРАОао | D145: =IF(Сделки!G145="Купля",Сделки!H145*1,-1*Сделки!H145) -> -8 | E145: =IF(Сделки!G145="Купля",(Сделки!J145+Сделки!L145+Сделки!M145)/Сделки!H145,(Сделки!J145-Сделки!L145-Сделки!M145)/Сделки!H145) -> 4139.13 | F145: 5 | G145: -33113.04 | I145: 0 | J145: 0 | K145: =MAX(IF(D145>0,IF(C$1:C144=$C145,IF(D$1:D144>0,ROW(K$1:K144)-ROW(K$1),0)))) -> 0 | L145: =MAX(IF(C$1:C144=$C145,ROW(K$1:K144)-ROW(K$1),0)) -> 143 | N145: =IF(F145>0,INDEX(A146:A1141,MATCH(TRUE,C146:C1141=C145,0))-A145,"-") -> 0 | O145: =IF(N145="-","",(IF(N145>0,SUMIFS($G$2:G145,$C$2:C145,C145),""))) -> 
A146: =ROUNDDOWN(Сделки!A146,0) -> 2019-08-14 | B146: расход | C146: =Сделки!E146 -> ИнтерРАОао | D146: =IF(Сделки!G146="Купля",Сделки!H146*1,-1*Сделки!H146) -> -5 | E146: =IF(Сделки!G146="Купля",(Сделки!J146+Сделки!L146+Сделки!M146)/Сделки!H146,(Сделки!J146-Сделки!L146-Сделки!M146)/Сделки!H146) -> 4139.128 | F146: 0 | G146: -20695.64 | I146: 0 | J146: 0 | K146: =MAX(IF(D146>0,IF(C$1:C145=$C146,IF(D$1:D145>0,ROW(K$1:K145)-ROW(K$1),0)))) -> 0 | L146: =MAX(IF(C$1:C145=$C146,ROW(K$1:K145)-ROW(K$1),0)) -> 144 | N146: =IF(F146>0,INDEX(A147:A1142,MATCH(TRUE,C147:C1142=C146,0))-A146,"-") -> - | O146: =IF(N146="-","",(IF(N146>0,SUMIFS($G$2:G146,$C$2:C146,C146),""))) -> 
A147: =ROUNDDOWN(Сделки!A147,0) -> 2019-08-14 | B147: расход | C147: =Сделки!E147 -> Сбербанк | D147: =IF(Сделки!G147="Купля",Сделки!H147*1,-1*Сделки!H147) -> -1 | E147: =IF(Сделки!G147="Купля",(Сделки!J147+Сделки!L147+Сделки!M147)/Сделки!H147,(Сделки!J147-Сделки!L147-Сделки!M147)/Сделки!H147) -> 2186.78 | F147: 8 | G147: -2186.78 | I147: 0 | J147: 0 | K147: =MAX(IF(D147>0,IF(C$1:C146=$C147,IF(D$1:D146>0,ROW(K$1:K146)-ROW(K$1),0)))) -> 0 | L147: =MAX(IF(C$1:C146=$C147,ROW(K$1:K146)-ROW(K$1),0)) -> 121 | N147: =IF(F147>0,INDEX(A148:A1143,MATCH(TRUE,C148:C1143=C147,0))-A147,"-") -> 0 | O147: =IF(N147="-","",(IF(N147>0,SUMIFS($G$2:G147,$C$2:C147,C147),""))) -> 
A148: =ROUNDDOWN(Сделки!A148,0) -> 2019-08-14 | B148: расход | C148: =Сделки!E148 -> Сбербанк | D148: =IF(Сделки!G148="Купля",Сделки!H148*1,-1*Сделки!H148) -> -8 | E148: =IF(Сделки!G148="Купля",(Сделки!J148+Сделки!L148+Сделки!M148)/Сделки!H148,(Сделки!J148-Сделки!L148-Сделки!M148)/Сделки!H148) -> 2186.68375 | F148: 0 | G148: -17493.47 | I148: 0 | J148: 0 | K148: =MAX(IF(D148>0,IF(C$1:C147=$C148,IF(D$1:D147>0,ROW(K$1:K147)-ROW(K$1),0)))) -> 0 | L148: =MAX(IF(C$1:C147=$C148,ROW(K$1:K147)-ROW(K$1),0)) -> 146 | N148: =IF(F148>0,INDEX(A149:A1144,MATCH(TRUE,C149:C1144=C148,0))-A148,"-") -> - | O148: =IF(N148="-","",(IF(N148>0,SUMIFS($G$2:G148,$C$2:C148,C148),""))) -> 
A149: =ROUNDDOWN(Сделки!A149,0) -> 2019-08-14 | B149: приход | C149: =Сделки!E149 -> ПИК ао | D149: =IF(Сделки!G149="Купля",Сделки!H149*1,-1*Сделки!H149) -> 2 | E149: =IF(Сделки!G149="Купля",(Сделки!J149+Сделки!L149+Сделки!M149)/Сделки!H149,(Сделки!J149-Сделки!L149-Сделки!M149)/Сделки!H149) -> 3786.62 | F149: 27 | G149: 7573.24 | I149: 347 | J149: 1333174.25 | K149: =MAX(IF(D149>0,IF(C$1:C148=$C149,IF(D$1:D148>0,ROW(K$1:K148)-ROW(K$1),0)))) -> 142 | L149: =MAX(IF(C$1:C148=$C149,ROW(K$1:K148)-ROW(K$1),0)) -> 142 | N149: =IF(F149>0,INDEX(A150:A1145,MATCH(TRUE,C150:C1145=C149,0))-A149,"-") -> 0 | O149: =IF(N149="-","",(IF(N149>0,SUMIFS($G$2:G149,$C$2:C149,C149),""))) -> 
A150: =ROUNDDOWN(Сделки!A150,0) -> 2019-08-14 | B150: приход | C150: =Сделки!E150 -> ПИК ао | D150: =IF(Сделки!G150="Купля",Сделки!H150*1,-1*Сделки!H150) -> 4 | E150: =IF(Сделки!G150="Купля",(Сделки!J150+Сделки!L150+Сделки!M150)/Сделки!H150,(Сделки!J150-Сделки!L150-Сделки!M150)/Сделки!H150) -> 3787.625 | F150: 31 | G150: 15150.5 | I150: 351 | J150: 1348324.75 | K150: =MAX(IF(D150>0,IF(C$1:C149=$C150,IF(D$1:D149>0,ROW(K$1:K149)-ROW(K$1),0)))) -> 148 | L150: =MAX(IF(C$1:C149=$C150,ROW(K$1:K149)-ROW(K$1),0)) -> 148 | N150: =IF(F150>0,INDEX(A151:A1146,MATCH(TRUE,C151:C1146=C150,0))-A150,"-") -> 0 | O150: =IF(N150="-","",(IF(N150>0,SUMIFS($G$2:G150,$C$2:C150,C150),""))) -> 
A151: =ROUNDDOWN(Сделки!A151,0) -> 2019-08-14 | B151: приход | C151: =Сделки!E151 -> ПИК ао | D151: =IF(Сделки!G151="Купля",Сделки!H151*1,-1*Сделки!H151) -> 3 | E151: =IF(Сделки!G151="Купля",(Сделки!J151+Сделки!L151+Сделки!M151)/Сделки!H151,(Сделки!J151-Сделки!L151-Сделки!M151)/Сделки!H151) -> 3787.623333 | F151: 34 | G151: 11362.87 | I151: 354 | J151: 1359687.62 | K151: =MAX(IF(D151>0,IF(C$1:C150=$C151,IF(D$1:D150>0,ROW(K$1:K150)-ROW(K$1),0)))) -> 149 | L151: =MAX(IF(C$1:C150=$C151,ROW(K$1:K150)-ROW(K$1),0)) -> 149 | N151: =IF(F151>0,INDEX(A152:A1147,MATCH(TRUE,C152:C1147=C151,0))-A151,"-") -> 0 | O151: =IF(N151="-","",(IF(N151>0,SUMIFS($G$2:G151,$C$2:C151,C151),""))) -> 
A152: =ROUNDDOWN(Сделки!A152,0) -> 2019-08-14 | B152: приход | C152: =Сделки!E152 -> ПИК ао | D152: =IF(Сделки!G152="Купля",Сделки!H152*1,-1*Сделки!H152) -> 3 | E152: =IF(Сделки!G152="Купля",(Сделки!J152+Сделки!L152+Сделки!M152)/Сделки!H152,(Сделки!J152-Сделки!L152-Сделки!M152)/Сделки!H152) -> 3787.623333 | F152: 37 | G152: 11362.87 | I152: 357 | J152: 1371050.49 | K152: =MAX(IF(D152>0,IF(C$1:C151=$C152,IF(D$1:D151>0,ROW(K$1:K151)-ROW(K$1),0)))) -> 150 | L152: =MAX(IF(C$1:C151=$C152,ROW(K$1:K151)-ROW(K$1),0)) -> 150 | N152: =IF(F152>0,INDEX(A153:A1148,MATCH(TRUE,C153:C1148=C152,0))-A152,"-") -> 0 | O152: =IF(N152="-","",(IF(N152>0,SUMIFS($G$2:G152,$C$2:C152,C152),""))) -> 
A153: =ROUNDDOWN(Сделки!A153,0) -> 2019-08-14 | B153: приход | C153: =Сделки!E153 -> ПИК ао | D153: =IF(Сделки!G153="Купля",Сделки!H153*1,-1*Сделки!H153) -> 2 | E153: =IF(Сделки!G153="Купля",(Сделки!J153+Сделки!L153+Сделки!M153)/Сделки!H153,(Сделки!J153-Сделки!L153-Сделки!M153)/Сделки!H153) -> 3788.62 | F153: 39 | G153: 7577.24 | I153: 359 | J153: 1378627.73 | K153: =MAX(IF(D153>0,IF(C$1:C152=$C153,IF(D$1:D152>0,ROW(K$1:K152)-ROW(K$1),0)))) -> 151 | L153: =MAX(IF(C$1:C152=$C153,ROW(K$1:K152)-ROW(K$1),0)) -> 151 | N153: =IF(F153>0,INDEX(A154:A1149,MATCH(TRUE,C154:C1149=C153,0))-A153,"-") -> 0 | O153: =IF(N153="-","",(IF(N153>0,SUMIFS($G$2:G153,$C$2:C153,C153),""))) -> 
A154: =ROUNDDOWN(Сделки!A154,0) -> 2019-08-14 | B154: приход | C154: =Сделки!E154 -> ПИК ао | D154: =IF(Сделки!G154="Купля",Сделки!H154*1,-1*Сделки!H154) -> 7 | E154: =IF(Сделки!G154="Купля",(Сделки!J154+Сделки!L154+Сделки!M154)/Сделки!H154,(Сделки!J154-Сделки!L154-Сделки!M154)/Сделки!H154) -> 3789.625714 | F154: 46 | G154: 26527.38 | I154: 366 | J154: 1405155.11 | K154: =MAX(IF(D154>0,IF(C$1:C153=$C154,IF(D$1:D153>0,ROW(K$1:K153)-ROW(K$1),0)))) -> 152 | L154: =MAX(IF(C$1:C153=$C154,ROW(K$1:K153)-ROW(K$1),0)) -> 152 | N154: =IF(F154>0,INDEX(A155:A1150,MATCH(TRUE,C155:C1150=C154,0))-A154,"-") -> 0 | O154: =IF(N154="-","",(IF(N154>0,SUMIFS($G$2:G154,$C$2:C154,C154),""))) -> 
A155: =ROUNDDOWN(Сделки!A155,0) -> 2019-08-14 | B155: приход | C155: =Сделки!E155 -> ПИК ао | D155: =IF(Сделки!G155="Купля",Сделки!H155*1,-1*Сделки!H155) -> 18 | E155: =IF(Сделки!G155="Купля",(Сделки!J155+Сделки!L155+Сделки!M155)/Сделки!H155,(Сделки!J155-Сделки!L155-Сделки!M155)/Сделки!H155) -> 3790.625 | F155: 64 | G155: 68231.25 | I155: 384 | J155: 1473386.36 | K155: =MAX(IF(D155>0,IF(C$1:C154=$C155,IF(D$1:D154>0,ROW(K$1:K154)-ROW(K$1),0)))) -> 153 | L155: =MAX(IF(C$1:C154=$C155,ROW(K$1:K154)-ROW(K$1),0)) -> 153 | N155: =IF(F155>0,INDEX(A156:A1151,MATCH(TRUE,C156:C1151=C155,0))-A155,"-") -> 0 | O155: =IF(N155="-","",(IF(N155>0,SUMIFS($G$2:G155,$C$2:C155,C155),""))) -> 
A156: =ROUNDDOWN(Сделки!A156,0) -> 2019-08-14 | B156: приход | C156: =Сделки!E156 -> ПИК ао | D156: =IF(Сделки!G156="Купля",Сделки!H156*1,-1*Сделки!H156) -> 6 | E156: =IF(Сделки!G156="Купля",(Сделки!J156+Сделки!L156+Сделки!M156)/Сделки!H156,(Сделки!J156-Сделки!L156-Сделки!M156)/Сделки!H156) -> 3792.626667 | F156: 70 | G156: 22755.76 | I156: 390 | J156: 1496142.12 | K156: =MAX(IF(D156>0,IF(C$1:C155=$C156,IF(D$1:D155>0,ROW(K$1:K155)-ROW(K$1),0)))) -> 154 | L156: =MAX(IF(C$1:C155=$C156,ROW(K$1:K155)-ROW(K$1),0)) -> 154 | N156: =IF(F156>0,INDEX(A157:A1152,MATCH(TRUE,C157:C1152=C156,0))-A156,"-") -> 0 | O156: =IF(N156="-","",(IF(N156>0,SUMIFS($G$2:G156,$C$2:C156,C156),""))) -> 
A157: =ROUNDDOWN(Сделки!A157,0) -> 2019-08-14 | B157: приход | C157: =Сделки!E157 -> ПИК ао | D157: =IF(Сделки!G157="Купля",Сделки!H157*1,-1*Сделки!H157) -> 1 | E157: =IF(Сделки!G157="Купля",(Сделки!J157+Сделки!L157+Сделки!M157)/Сделки!H157,(Сделки!J157-Сделки!L157-Сделки!M157)/Сделки!H157) -> 3799.63 | F157: 71 | G157: 3799.63 | I157: 391 | J157: 1499941.75 | K157: =MAX(IF(D157>0,IF(C$1:C156=$C157,IF(D$1:D156>0,ROW(K$1:K156)-ROW(K$1),0)))) -> 155 | L157: =MAX(IF(C$1:C156=$C157,ROW(K$1:K156)-ROW(K$1),0)) -> 155 | N157: =IF(F157>0,INDEX(A158:A1153,MATCH(TRUE,C158:C1153=C157,0))-A157,"-") -> 0 | O157: =IF(N157="-","",(IF(N157>0,SUMIFS($G$2:G157,$C$2:C157,C157),""))) -> 
A158: =ROUNDDOWN(Сделки!A158,0) -> 2019-08-14 | B158: приход | C158: =Сделки!E158 -> ПИК ао | D158: =IF(Сделки!G158="Купля",Сделки!H158*1,-1*Сделки!H158) -> 10 | E158: =IF(Сделки!G158="Купля",(Сделки!J158+Сделки!L158+Сделки!M158)/Сделки!H158,(Сделки!J158-Сделки!L158-Сделки!M158)/Сделки!H158) -> 3799.631 | F158: 81 | G158: 37996.31 | I158: 401 | J158: 1537938.06 | K158: =MAX(IF(D158>0,IF(C$1:C157=$C158,IF(D$1:D157>0,ROW(K$1:K157)-ROW(K$1),0)))) -> 156 | L158: =MAX(IF(C$1:C157=$C158,ROW(K$1:K157)-ROW(K$1),0)) -> 156 | N158: =IF(F158>0,INDEX(A159:A1154,MATCH(TRUE,C159:C1154=C158,0))-A158,"-") -> 6 | O158: =IF(N158="-","",(IF(N158>0,SUMIFS($G$2:G158,$C$2:C158,C158),""))) -> 298853.35
A159: =ROUNDDOWN(Сделки!A159,0) -> 2019-08-20 | B159: расход | C159: =Сделки!E159 -> ПИК ао | D159: =IF(Сделки!G159="Купля",Сделки!H159*1,-1*Сделки!H159) -> -63 | E159: =IF(Сделки!G159="Купля",(Сделки!J159+Сделки!L159+Сделки!M159)/Сделки!H159,(Сделки!J159-Сделки!L159-Сделки!M159)/Сделки!H159) -> 3817.352698 | F159: 18 | G159: -240493.22 | I159: 0 | J159: 0 | K159: =MAX(IF(D159>0,IF(C$1:C158=$C159,IF(D$1:D158>0,ROW(K$1:K158)-ROW(K$1),0)))) -> 0 | L159: =MAX(IF(C$1:C158=$C159,ROW(K$1:K158)-ROW(K$1),0)) -> 157 | N159: =IF(F159>0,INDEX(A160:A1155,MATCH(TRUE,C160:C1155=C159,0))-A159,"-") -> 0 | O159: =IF(N159="-","",(IF(N159>0,SUMIFS($G$2:G159,$C$2:C159,C159),""))) -> 
A160: =ROUNDDOWN(Сделки!A160,0) -> 2019-08-20 | B160: расход | C160: =Сделки!E160 -> ПИК ао | D160: =IF(Сделки!G160="Купля",Сделки!H160*1,-1*Сделки!H160) -> -10 | E160: =IF(Сделки!G160="Купля",(Сделки!J160+Сделки!L160+Сделки!M160)/Сделки!H160,(Сделки!J160-Сделки!L160-Сделки!M160)/Сделки!H160) -> 3817.353 | F160: 8 | G160: -38173.53 | I160: 0 | J160: 0 | K160: =MAX(IF(D160>0,IF(C$1:C159=$C160,IF(D$1:D159>0,ROW(K$1:K159)-ROW(K$1),0)))) -> 0 | L160: =MAX(IF(C$1:C159=$C160,ROW(K$1:K159)-ROW(K$1),0)) -> 158 | N160: =IF(F160>0,INDEX(A161:A1156,MATCH(TRUE,C161:C1156=C160,0))-A160,"-") -> 0 | O160: =IF(N160="-","",(IF(N160>0,SUMIFS($G$2:G160,$C$2:C160,C160),""))) -> 
A161: =ROUNDDOWN(Сделки!A161,0) -> 2019-08-20 | B161: расход | C161: =Сделки!E161 -> ПИК ао | D161: =IF(Сделки!G161="Купля",Сделки!H161*1,-1*Сделки!H161) -> -7 | E161: =IF(Сделки!G161="Купля",(Сделки!J161+Сделки!L161+Сделки!M161)/Сделки!H161,(Сделки!J161-Сделки!L161-Сделки!M161)/Сделки!H161) -> 3816.352857 | F161: 1 | G161: -26714.47 | I161: 0 | J161: 0 | K161: =MAX(IF(D161>0,IF(C$1:C160=$C161,IF(D$1:D160>0,ROW(K$1:K160)-ROW(K$1),0)))) -> 0 | L161: =MAX(IF(C$1:C160=$C161,ROW(K$1:K160)-ROW(K$1),0)) -> 159 | N161: =IF(F161>0,INDEX(A162:A1157,MATCH(TRUE,C162:C1157=C161,0))-A161,"-") -> 0 | O161: =IF(N161="-","",(IF(N161>0,SUMIFS($G$2:G161,$C$2:C161,C161),""))) -> 
A162: =ROUNDDOWN(Сделки!A162,0) -> 2019-08-20 | B162: расход | C162: =Сделки!E162 -> ПИК ао | D162: =IF(Сделки!G162="Купля",Сделки!H162*1,-1*Сделки!H162) -> -1 | E162: =IF(Сделки!G162="Купля",(Сделки!J162+Сделки!L162+Сделки!M162)/Сделки!H162,(Сделки!J162-Сделки!L162-Сделки!M162)/Сделки!H162) -> 3816.36 | F162: 0 | G162: -3816.36 | I162: 0 | J162: 0 | K162: =MAX(IF(D162>0,IF(C$1:C161=$C162,IF(D$1:D161>0,ROW(K$1:K161)-ROW(K$1),0)))) -> 0 | L162: =MAX(IF(C$1:C161=$C162,ROW(K$1:K161)-ROW(K$1),0)) -> 160 | N162: =IF(F162>0,INDEX(A163:A1158,MATCH(TRUE,C163:C1158=C162,0))-A162,"-") -> - | O162: =IF(N162="-","",(IF(N162>0,SUMIFS($G$2:G162,$C$2:C162,C162),""))) -> 
A163: =ROUNDDOWN(Сделки!A163,0) -> 2019-08-22 | B163: приход | C163: =Сделки!E163 -> ПИК ао | D163: =IF(Сделки!G163="Купля",Сделки!H163*1,-1*Сделки!H163) -> 7 | E163: =IF(Сделки!G163="Купля",(Сделки!J163+Сделки!L163+Сделки!M163)/Сделки!H163,(Сделки!J163-Сделки!L163-Сделки!M163)/Сделки!H163) -> 3838.658571 | F163: 7 | G163: 26870.61 | I163: 408 | J163: 1564808.67 | K163: =MAX(IF(D163>0,IF(C$1:C162=$C163,IF(D$1:D162>0,ROW(K$1:K162)-ROW(K$1),0)))) -> 157 | L163: =MAX(IF(C$1:C162=$C163,ROW(K$1:K162)-ROW(K$1),0)) -> 161 | N163: =IF(F163>0,INDEX(A164:A1159,MATCH(TRUE,C164:C1159=C163,0))-A163,"-") -> 0 | O163: =IF(N163="-","",(IF(N163>0,SUMIFS($G$2:G163,$C$2:C163,C163),""))) -> 
A164: =ROUNDDOWN(Сделки!A164,0) -> 2019-08-22 | B164: приход | C164: =Сделки!E164 -> ПИК ао | D164: =IF(Сделки!G164="Купля",Сделки!H164*1,-1*Сделки!H164) -> 13 | E164: =IF(Сделки!G164="Купля",(Сделки!J164+Сделки!L164+Сделки!M164)/Сделки!H164,(Сделки!J164-Сделки!L164-Сделки!M164)/Сделки!H164) -> 3839.659231 | F164: 20 | G164: 49915.57 | I164: 421 | J164: 1614724.24 | K164: =MAX(IF(D164>0,IF(C$1:C163=$C164,IF(D$1:D163>0,ROW(K$1:K163)-ROW(K$1),0)))) -> 162 | L164: =MAX(IF(C$1:C163=$C164,ROW(K$1:K163)-ROW(K$1),0)) -> 162 | N164: =IF(F164>0,INDEX(A165:A1160,MATCH(TRUE,C165:C1160=C164,0))-A164,"-") -> 0 | O164: =IF(N164="-","",(IF(N164>0,SUMIFS($G$2:G164,$C$2:C164,C164),""))) -> 
A165: =ROUNDDOWN(Сделки!A165,0) -> 2019-08-22 | B165: приход | C165: =Сделки!E165 -> ПИК ао | D165: =IF(Сделки!G165="Купля",Сделки!H165*1,-1*Сделки!H165) -> 7 | E165: =IF(Сделки!G165="Купля",(Сделки!J165+Сделки!L165+Сделки!M165)/Сделки!H165,(Сделки!J165-Сделки!L165-Сделки!M165)/Сделки!H165) -> 3834.654286 | F165: 27 | G165: 26842.58 | I165: 428 | J165: 1641566.82 | K165: =MAX(IF(D165>0,IF(C$1:C164=$C165,IF(D$1:D164>0,ROW(K$1:K164)-ROW(K$1),0)))) -> 163 | L165: =MAX(IF(C$1:C164=$C165,ROW(K$1:K164)-ROW(K$1),0)) -> 163 | N165: =IF(F165>0,INDEX(A166:A1161,MATCH(TRUE,C166:C1161=C165,0))-A165,"-") -> 0 | O165: =IF(N165="-","",(IF(N165>0,SUMIFS($G$2:G165,$C$2:C165,C165),""))) -> 
A166: =ROUNDDOWN(Сделки!A166,0) -> 2019-08-22 | B166: приход | C166: =Сделки!E166 -> ПИК ао | D166: =IF(Сделки!G166="Купля",Сделки!H166*1,-1*Сделки!H166) -> 1 | E166: =IF(Сделки!G166="Купля",(Сделки!J166+Сделки!L166+Сделки!M166)/Сделки!H166,(Сделки!J166-Сделки!L166-Сделки!M166)/Сделки!H166) -> 3834.65 | F166: 28 | G166: 3834.65 | I166: 429 | J166: 1645401.47 | K166: =MAX(IF(D166>0,IF(C$1:C165=$C166,IF(D$1:D165>0,ROW(K$1:K165)-ROW(K$1),0)))) -> 164 | L166: =MAX(IF(C$1:C165=$C166,ROW(K$1:K165)-ROW(K$1),0)) -> 164 | N166: =IF(F166>0,INDEX(A167:A1162,MATCH(TRUE,C167:C1162=C166,0))-A166,"-") -> 0 | O166: =IF(N166="-","",(IF(N166>0,SUMIFS($G$2:G166,$C$2:C166,C166),""))) -> 
A167: =ROUNDDOWN(Сделки!A167,0) -> 2019-08-22 | B167: приход | C167: =Сделки!E167 -> ПИК ао | D167: =IF(Сделки!G167="Купля",Сделки!H167*1,-1*Сделки!H167) -> 1 | E167: =IF(Сделки!G167="Купля",(Сделки!J167+Сделки!L167+Сделки!M167)/Сделки!H167,(Сделки!J167-Сделки!L167-Сделки!M167)/Сделки!H167) -> 3834.65 | F167: 29 | G167: 3834.65 | I167: 430 | J167: 1649236.12 | K167: =MAX(IF(D167>0,IF(C$1:C166=$C167,IF(D$1:D166>0,ROW(K$1:K166)-ROW(K$1),0)))) -> 165 | L167: =MAX(IF(C$1:C166=$C167,ROW(K$1:K166)-ROW(K$1),0)) -> 165 | N167: =IF(F167>0,INDEX(A168:A1163,MATCH(TRUE,C168:C1163=C167,0))-A167,"-") -> 0 | O167: =IF(N167="-","",(IF(N167>0,SUMIFS($G$2:G167,$C$2:C167,C167),""))) -> 
A168: =ROUNDDOWN(Сделки!A168,0) -> 2019-08-22 | B168: приход | C168: =Сделки!E168 -> ПИК ао | D168: =IF(Сделки!G168="Купля",Сделки!H168*1,-1*Сделки!H168) -> 5 | E168: =IF(Сделки!G168="Купля",(Сделки!J168+Сделки!L168+Сделки!M168)/Сделки!H168,(Сделки!J168-Сделки!L168-Сделки!M168)/Сделки!H168) -> 3834.656 | F168: 34 | G168: 19173.28 | I168: 435 | J168: 1668409.4 | K168: =MAX(IF(D168>0,IF(C$1:C167=$C168,IF(D$1:D167>0,ROW(K$1:K167)-ROW(K$1),0)))) -> 166 | L168: =MAX(IF(C$1:C167=$C168,ROW(K$1:K167)-ROW(K$1),0)) -> 166 | N168: =IF(F168>0,INDEX(A169:A1164,MATCH(TRUE,C169:C1164=C168,0))-A168,"-") -> 5 | O168: =IF(N168="-","",(IF(N168>0,SUMIFS($G$2:G168,$C$2:C168,C168),""))) -> 120127.11
A169: =ROUNDDOWN(Сделки!A169,0) -> 2019-08-22 | B169: приход | C169: =Сделки!E169 -> АЛРОСА ао | D169: =IF(Сделки!G169="Купля",Сделки!H169*1,-1*Сделки!H169) -> 70 | E169: =IF(Сделки!G169="Купля",(Сделки!J169+Сделки!L169+Сделки!M169)/Сделки!H169,(Сделки!J169-Сделки!L169-Сделки!M169)/Сделки!H169) -> 710.0917143 | F169: 70 | G169: 49706.42 | I169: 279 | J169: 210954.08 | K169: =MAX(IF(D169>0,IF(C$1:C168=$C169,IF(D$1:D168>0,ROW(K$1:K168)-ROW(K$1),0)))) -> 126 | L169: =MAX(IF(C$1:C168=$C169,ROW(K$1:K168)-ROW(K$1),0)) -> 136 | N169: =IF(F169>0,INDEX(A170:A1165,MATCH(TRUE,C170:C1165=C169,0))-A169,"-") -> 1 | O169: =IF(N169="-","",(IF(N169>0,SUMIFS($G$2:G169,$C$2:C169,C169),""))) -> 52030.29
A170: =ROUNDDOWN(Сделки!A170,0) -> 2019-08-23 | B170: =IF(D170>0,"приход",IF(D170<0,"расход","")) -> расход | C170: =Сделки!E170 -> АЛРОСА ао | D170: =IF(Сделки!G170="Купля",Сделки!H170*1,-1*Сделки!H170) -> -70 | E170: =IF(Сделки!G170="Купля",(Сделки!J170+Сделки!L170+Сделки!M170)/Сделки!H170,(Сделки!J170-Сделки!L170-Сделки!M170)/Сделки!H170) -> 713.6051429 | F170: =IF(L170=0,D170,OFFSET($F$1,L170,0)+D170) -> 0 | G170: -49952.36 | I170: =IF(D170<0,0,IF(IF(K170=0,0,OFFSET($I$1,K170,0))+D170>VLOOKUP(C170,Q:U,5,0),VLOOKUP(C170,Q:U,5,0),IF(K170=0,0,OFFSET($I$1,K170,0))+D170)) -> 0 | J170: =IF(D170<0,0,IF(K170=0,I170*E170,OFFSET($J$1,K170,0)+(I170-OFFSET($I$1,K170,0))*E170)) -> 0 | K170: =MAX(IF(D170>0,IF(C$1:C169=$C170,IF(D$1:D169>0,ROW(K$1:K169)-ROW(K$1),0)))) -> 0 | L170: =MAX(IF(C$1:C169=$C170,ROW(K$1:K169)-ROW(K$1),0)) -> 168 | N170: =IF(F170>0,INDEX(A171:A1166,MATCH(TRUE,C171:C1166=C170,0))-A170,"-") -> - | O170: =IF(N170="-","",(IF(N170>0,SUMIFS($G$2:G170,$C$2:C170,C170),""))) -> 
A171: =ROUNDDOWN(Сделки!A171,0) -> 2019-08-23 | B171: приход | C171: =Сделки!E171 -> РусГидро | D171: =IF(Сделки!G171="Купля",Сделки!H171*1,-1*Сделки!H171) -> 175 | E171: =IF(Сделки!G171="Купля",(Сделки!J171+Сделки!L171+Сделки!M171)/Сделки!H171,(Сделки!J171-Сделки!L171-Сделки!M171)/Сделки!H171) -> 540.1740571 | F171: 350 | G171: 94530.46 | I171: 350 | J171: 190934.72 | K171: =MAX(IF(D171>0,IF(C$1:C170=$C171,IF(D$1:D170>0,ROW(K$1:K170)-ROW(K$1),0)))) -> 135 | L171: =MAX(IF(C$1:C170=$C171,ROW(K$1:K170)-ROW(K$1),0)) -> 135 | N171: =IF(F171>0,INDEX(A172:A1167,MATCH(TRUE,C172:C1167=C171,0))-A171,"-") -> 6 | O171: =IF(N171="-","",(IF(N171>0,SUMIFS($G$2:G171,$C$2:C171,C171),""))) -> 190934.72
A172: =ROUNDDOWN(Сделки!A172,0) -> 2019-08-27 | B172: =IF(D172>0,"приход",IF(D172<0,"расход","")) -> расход | C172: =Сделки!E172 -> ПИК ао | D172: =IF(Сделки!G172="Купля",Сделки!H172*1,-1*Сделки!H172) -> -34 | E172: =IF(Сделки!G172="Купля",(Сделки!J172+Сделки!L172+Сделки!M172)/Сделки!H172,(Сделки!J172-Сделки!L172-Сделки!M172)/Сделки!H172) -> 3850.329706 | F172: =IF(L172=0,D172,OFFSET($F$1,L172,0)+D172) -> 0 | G172: -130911.21 | I172: =IF(D172<0,0,IF(IF(K172=0,0,OFFSET($I$1,K172,0))+D172>VLOOKUP(C172,Q:U,5,0),VLOOKUP(C172,Q:U,5,0),IF(K172=0,0,OFFSET($I$1,K172,0))+D172)) -> 0 | J172: =IF(D172<0,0,IF(K172=0,I172*E172,OFFSET($J$1,K172,0)+(I172-OFFSET($I$1,K172,0))*E172)) -> 0 | K172: =MAX(IF(D172>0,IF(C$1:C171=$C172,IF(D$1:D171>0,ROW(K$1:K171)-ROW(K$1),0)))) -> 0 | L172: =MAX(IF(C$1:C171=$C172,ROW(K$1:K171)-ROW(K$1),0)) -> 167 | N172: =IF(F172>0,INDEX(A173:A1168,MATCH(TRUE,C173:C1168=C172,0))-A172,"-") -> - | O172: =IF(N172="-","",(IF(N172>0,SUMIFS($G$2:G172,$C$2:C172,C172),""))) -> 
A173: =ROUNDDOWN(Сделки!A173,0) -> 2019-08-27 | B173: приход | C173: =Сделки!E173 -> РЕСОЛизБП6 | D173: =IF(Сделки!G173="Купля",Сделки!H173*1,-1*Сделки!H173) -> 171 | E173: =IF(Сделки!G173="Купля",(Сделки!J173+Сделки!L173+Сделки!M173)/Сделки!H173,(Сделки!J173-Сделки!L173-Сделки!M173)/Сделки!H173) -> 1005.203158 | F173: 171 | G173: 171889.74 | I173: 0 | J173: 0 | K173: =MAX(IF(D173>0,IF(C$1:C172=$C173,IF(D$1:D172>0,ROW(K$1:K172)-ROW(K$1),0)))) -> 0 | L173: =MAX(IF(C$1:C172=$C173,ROW(K$1:K172)-ROW(K$1),0)) -> 0 | N173: =IF(F173>0,INDEX(A174:A1169,MATCH(TRUE,C174:C1169=C173,0))-A173,"-") ->  | O173: =IF(N173="-","",(IF(N173>0,SUMIFS($G$2:G173,$C$2:C173,C173),""))) -> 
A174: =ROUNDDOWN(Сделки!A174,0) -> 2019-08-29 | B174: приход | C174: =Сделки!E174 -> РусГидро | D174: =IF(Сделки!G174="Купля",Сделки!H174*1,-1*Сделки!H174) -> 10 | E174: =IF(Сделки!G174="Купля",(Сделки!J174+Сделки!L174+Сделки!M174)/Сделки!H174,(Сделки!J174-Сделки!L174-Сделки!M174)/Сделки!H174) -> 538.273 | F174: 360 | G174: 5382.73 | I174: 360 | J174: 196317.45 | K174: =MAX(IF(D174>0,IF(C$1:C173=$C174,IF(D$1:D173>0,ROW(K$1:K173)-ROW(K$1),0)))) -> 170 | L174: =MAX(IF(C$1:C173=$C174,ROW(K$1:K173)-ROW(K$1),0)) -> 170 | N174: =IF(F174>0,INDEX(A175:A1170,MATCH(TRUE,C175:C1170=C174,0))-A174,"-") -> 0 | O174: =IF(N174="-","",(IF(N174>0,SUMIFS($G$2:G174,$C$2:C174,C174),""))) -> 
A175: =ROUNDDOWN(Сделки!A175,0) -> 2019-08-29 | B175: приход | C175: =Сделки!E175 -> РусГидро | D175: =IF(Сделки!G175="Купля",Сделки!H175*1,-1*Сделки!H175) -> 83 | E175: =IF(Сделки!G175="Купля",(Сделки!J175+Сделки!L175+Сделки!M175)/Сделки!H175,(Сделки!J175-Сделки!L175-Сделки!M175)/Сделки!H175) -> 538.3727711 | F175: 443 | G175: 44684.94 | I175: 443 | J175: 241002.39 | K175: =MAX(IF(D175>0,IF(C$1:C174=$C175,IF(D$1:D174>0,ROW(K$1:K174)-ROW(K$1),0)))) -> 173 | L175: =MAX(IF(C$1:C174=$C175,ROW(K$1:K174)-ROW(K$1),0)) -> 173 | N175: =IF(F175>0,INDEX(A176:A1171,MATCH(TRUE,C176:C1171=C175,0))-A175,"-") -> 0 | O175: =IF(N175="-","",(IF(N175>0,SUMIFS($G$2:G175,$C$2:C175,C175),""))) -> 
A176: =ROUNDDOWN(Сделки!A176,0) -> 2019-08-29 | B176: приход | C176: =Сделки!E176 -> РусГидро | D176: =IF(Сделки!G176="Купля",Сделки!H176*1,-1*Сделки!H176) -> 13 | E176: =IF(Сделки!G176="Купля",(Сделки!J176+Сделки!L176+Сделки!M176)/Сделки!H176,(Сделки!J176-Сделки!L176-Сделки!M176)/Сделки!H176) -> 538.3730769 | F176: 456 | G176: 6998.85 | I176: 456 | J176: 248001.24 | K176: =MAX(IF(D176>0,IF(C$1:C175=$C176,IF(D$1:D175>0,ROW(K$1:K175)-ROW(K$1),0)))) -> 174 | L176: =MAX(IF(C$1:C175=$C176,ROW(K$1:K175)-ROW(K$1),0)) -> 174 | N176: =IF(F176>0,INDEX(A177:A1172,MATCH(TRUE,C177:C1172=C176,0))-A176,"-") -> 0 | O176: =IF(N176="-","",(IF(N176>0,SUMIFS($G$2:G176,$C$2:C176,C176),""))) -> 
A177: =ROUNDDOWN(Сделки!A177,0) -> 2019-08-29 | B177: приход | C177: =Сделки!E177 -> РусГидро | D177: =IF(Сделки!G177="Купля",Сделки!H177*1,-1*Сделки!H177) -> 54 | E177: =IF(Сделки!G177="Купля",(Сделки!J177+Сделки!L177+Сделки!M177)/Сделки!H177,(Сделки!J177-Сделки!L177-Сделки!M177)/Сделки!H177) -> 538.4727778 | F177: 510 | G177: 29077.53 | I177: 510 | J177: 277078.77 | K177: =MAX(IF(D177>0,IF(C$1:C176=$C177,IF(D$1:D176>0,ROW(K$1:K176)-ROW(K$1),0)))) -> 175 | L177: =MAX(IF(C$1:C176=$C177,ROW(K$1:K176)-ROW(K$1),0)) -> 175 | N177: =IF(F177>0,INDEX(A178:A1173,MATCH(TRUE,C178:C1173=C177,0))-A177,"-") -> 0 | O177: =IF(N177="-","",(IF(N177>0,SUMIFS($G$2:G177,$C$2:C177,C177),""))) -> 
A178: =ROUNDDOWN(Сделки!A178,0) -> 2019-08-29 | B178: приход | C178: =Сделки!E178 -> РусГидро | D178: =IF(Сделки!G178="Купля",Сделки!H178*1,-1*Сделки!H178) -> 2 | E178: =IF(Сделки!G178="Купля",(Сделки!J178+Сделки!L178+Сделки!M178)/Сделки!H178,(Сделки!J178-Сделки!L178-Сделки!M178)/Сделки!H178) -> 538.47 | F178: 512 | G178: 1076.94 | I178: 512 | J178: 278155.71 | K178: =MAX(IF(D178>0,IF(C$1:C177=$C178,IF(D$1:D177>0,ROW(K$1:K177)-ROW(K$1),0)))) -> 176 | L178: =MAX(IF(C$1:C177=$C178,ROW(K$1:K177)-ROW(K$1),0)) -> 176 | N178: =IF(F178>0,INDEX(A179:A1174,MATCH(TRUE,C179:C1174=C178,0))-A178,"-") -> 0 | O178: =IF(N178="-","",(IF(N178>0,SUMIFS($G$2:G178,$C$2:C178,C178),""))) -> 
A179: =ROUNDDOWN(Сделки!A179,0) -> 2019-08-29 | B179: приход | C179: =Сделки!E179 -> РусГидро | D179: =IF(Сделки!G179="Купля",Сделки!H179*1,-1*Сделки!H179) -> 2 | E179: =IF(Сделки!G179="Купля",(Сделки!J179+Сделки!L179+Сделки!M179)/Сделки!H179,(Сделки!J179-Сделки!L179-Сделки!M179)/Сделки!H179) -> 538.575 | F179: 514 | G179: 1077.15 | I179: 514 | J179: 279232.86 | K179: =MAX(IF(D179>0,IF(C$1:C178=$C179,IF(D$1:D178>0,ROW(K$1:K178)-ROW(K$1),0)))) -> 177 | L179: =MAX(IF(C$1:C178=$C179,ROW(K$1:K178)-ROW(K$1),0)) -> 177 | N179: =IF(F179>0,INDEX(A180:A1175,MATCH(TRUE,C180:C1175=C179,0))-A179,"-") -> 0 | O179: =IF(N179="-","",(IF(N179>0,SUMIFS($G$2:G179,$C$2:C179,C179),""))) -> 
A180: =ROUNDDOWN(Сделки!A180,0) -> 2019-08-29 | B180: приход | C180: =Сделки!E180 -> РусГидро | D180: =IF(Сделки!G180="Купля",Сделки!H180*1,-1*Сделки!H180) -> 5 | E180: =IF(Сделки!G180="Купля",(Сделки!J180+Сделки!L180+Сделки!M180)/Сделки!H180,(Сделки!J180-Сделки!L180-Сделки!M180)/Сделки!H180) -> 538.572 | F180: 519 | G180: 2692.86 | I180: 519 | J180: 281925.72 | K180: =MAX(IF(D180>0,IF(C$1:C179=$C180,IF(D$1:D179>0,ROW(K$1:K179)-ROW(K$1),0)))) -> 178 | L180: =MAX(IF(C$1:C179=$C180,ROW(K$1:K179)-ROW(K$1),0)) -> 178 | N180: =IF(F180>0,INDEX(A181:A1176,MATCH(TRUE,C181:C1176=C180,0))-A180,"-") -> 0 | O180: =IF(N180="-","",(IF(N180>0,SUMIFS($G$2:G180,$C$2:C180,C180),""))) -> 
A181: =ROUNDDOWN(Сделки!A181,0) -> 2019-08-29 | B181: приход | C181: =Сделки!E181 -> РусГидро | D181: =IF(Сделки!G181="Купля",Сделки!H181*1,-1*Сделки!H181) -> 2 | E181: =IF(Сделки!G181="Купля",(Сделки!J181+Сделки!L181+Сделки!M181)/Сделки!H181,(Сделки!J181-Сделки!L181-Сделки!M181)/Сделки!H181) -> 538.675 | F181: 521 | G181: 1077.35 | I181: 521 | J181: 283003.07 | K181: =MAX(IF(D181>0,IF(C$1:C180=$C181,IF(D$1:D180>0,ROW(K$1:K180)-ROW(K$1),0)))) -> 179 | L181: =MAX(IF(C$1:C180=$C181,ROW(K$1:K180)-ROW(K$1),0)) -> 179 | N181: =IF(F181>0,INDEX(A182:A1177,MATCH(TRUE,C182:C1177=C181,0))-A181,"-") -> 0 | O181: =IF(N181="-","",(IF(N181>0,SUMIFS($G$2:G181,$C$2:C181,C181),""))) -> 
A182: =ROUNDDOWN(Сделки!A182,0) -> 2019-08-29 | B182: приход | C182: =Сделки!E182 -> РусГидро | D182: =IF(Сделки!G182="Купля",Сделки!H182*1,-1*Сделки!H182) -> 76 | E182: =IF(Сделки!G182="Купля",(Сделки!J182+Сделки!L182+Сделки!M182)/Сделки!H182,(Сделки!J182-Сделки!L182-Сделки!M182)/Сделки!H182) -> 538.6731579 | F182: 597 | G182: 40939.16 | I182: 597 | J182: 323942.23 | K182: =MAX(IF(D182>0,IF(C$1:C181=$C182,IF(D$1:D181>0,ROW(K$1:K181)-ROW(K$1),0)))) -> 180 | L182: =MAX(IF(C$1:C181=$C182,ROW(K$1:K181)-ROW(K$1),0)) -> 180 | N182: =IF(F182>0,INDEX(A183:A1178,MATCH(TRUE,C183:C1178=C182,0))-A182,"-") -> 34 | O182: =IF(N182="-","",(IF(N182>0,SUMIFS($G$2:G182,$C$2:C182,C182),""))) -> 323942.23
A183: =ROUNDDOWN(Сделки!A183,0) -> 2019-09-11 | B183: приход | C183: =Сделки!E183 -> АЛРОСА ао | D183: =IF(Сделки!G183="Купля",Сделки!H183*1,-1*Сделки!H183) -> 8 | E183: =IF(Сделки!G183="Купля",(Сделки!J183+Сделки!L183+Сделки!M183)/Сделки!H183,(Сделки!J183-Сделки!L183-Сделки!M183)/Сделки!H183) -> 752.82125 | F183: 8 | G183: 6022.57 | I183: 279 | J183: 210954.08 | K183: =MAX(IF(D183>0,IF(C$1:C182=$C183,IF(D$1:D182>0,ROW(K$1:K182)-ROW(K$1),0)))) -> 168 | L183: =MAX(IF(C$1:C182=$C183,ROW(K$1:K182)-ROW(K$1),0)) -> 169 | N183: =IF(F183>0,INDEX(A184:A1179,MATCH(TRUE,C184:C1179=C183,0))-A183,"-") -> 0 | O183: =IF(N183="-","",(IF(N183>0,SUMIFS($G$2:G183,$C$2:C183,C183),""))) -> 
A184: =ROUNDDOWN(Сделки!A184,0) -> 2019-09-11 | B184: приход | C184: =Сделки!E184 -> АЛРОСА ао | D184: =IF(Сделки!G184="Купля",Сделки!H184*1,-1*Сделки!H184) -> 1 | E184: =IF(Сделки!G184="Купля",(Сделки!J184+Сделки!L184+Сделки!M184)/Сделки!H184,(Сделки!J184-Сделки!L184-Сделки!M184)/Сделки!H184) -> 752.82 | F184: 9 | G184: 752.82 | I184: 279 | J184: 210954.08 | K184: =MAX(IF(D184>0,IF(C$1:C183=$C184,IF(D$1:D183>0,ROW(K$1:K183)-ROW(K$1),0)))) -> 182 | L184: =MAX(IF(C$1:C183=$C184,ROW(K$1:K183)-ROW(K$1),0)) -> 182 | N184: =IF(F184>0,INDEX(A185:A1180,MATCH(TRUE,C185:C1180=C184,0))-A184,"-") -> 9 | O184: =IF(N184="-","",(IF(N184>0,SUMIFS($G$2:G184,$C$2:C184,C184),""))) -> 8853.32
A185: =ROUNDDOWN(Сделки!A185,0) -> 2019-09-18 | B185: приход | C185: =Сделки!E185 -> Аэрофлот | D185: =IF(Сделки!G185="Купля",Сделки!H185*1,-1*Сделки!H185) -> 30 | E185: =IF(Сделки!G185="Купля",(Сделки!J185+Сделки!L185+Сделки!M185)/Сделки!H185,(Сделки!J185-Сделки!L185-Сделки!M185)/Сделки!H185) -> 1029.913333 | F185: 30 | G185: 30897.4 | I185: 30 | J185: 30897.4 | K185: =MAX(IF(D185>0,IF(C$1:C184=$C185,IF(D$1:D184>0,ROW(K$1:K184)-ROW(K$1),0)))) -> 0 | L185: =MAX(IF(C$1:C184=$C185,ROW(K$1:K184)-ROW(K$1),0)) -> 0 | N185: =IF(F185>0,INDEX(A186:A1181,MATCH(TRUE,C186:C1181=C185,0))-A185,"-") -> 20 | O185: =IF(N185="-","",(IF(N185>0,SUMIFS($G$2:G185,$C$2:C185,C185),""))) -> 30897.4
A186: =ROUNDDOWN(Сделки!A186,0) -> 2019-09-18 | B186: приход | C186: =Сделки!E186 -> Магнит ао | D186: =IF(Сделки!G186="Купля",Сделки!H186*1,-1*Сделки!H186) -> 4 | E186: =IF(Сделки!G186="Купля",(Сделки!J186+Сделки!L186+Сделки!M186)/Сделки!H186,(Сделки!J186-Сделки!L186-Сделки!M186)/Сделки!H186) -> 3673.545 | F186: 4 | G186: 14694.18 | I186: 4 | J186: 14694.18 | K186: =MAX(IF(D186>0,IF(C$1:C185=$C186,IF(D$1:D185>0,ROW(K$1:K185)-ROW(K$1),0)))) -> 0 | L186: =MAX(IF(C$1:C185=$C186,ROW(K$1:K185)-ROW(K$1),0)) -> 0 | N186: =IF(F186>0,INDEX(A187:A1182,MATCH(TRUE,C187:C1182=C186,0))-A186,"-") -> 0 | O186: =IF(N186="-","",(IF(N186>0,SUMIFS($G$2:G186,$C$2:C186,C186),""))) -> 
A187: =ROUNDDOWN(Сделки!A187,0) -> 2019-09-18 | B187: приход | C187: =Сделки!E187 -> Магнит ао | D187: =IF(Сделки!G187="Купля",Сделки!H187*1,-1*Сделки!H187) -> 4 | E187: =IF(Сделки!G187="Купля",(Сделки!J187+Сделки!L187+Сделки!M187)/Сделки!H187,(Сделки!J187-Сделки!L187-Сделки!M187)/Сделки!H187) -> 3673.545 | F187: 8 | G187: 14694.18 | I187: 8 | J187: 29388.36 | K187: =MAX(IF(D187>0,IF(C$1:C186=$C187,IF(D$1:D186>0,ROW(K$1:K186)-ROW(K$1),0)))) -> 185 | L187: =MAX(IF(C$1:C186=$C187,ROW(K$1:K186)-ROW(K$1),0)) -> 185 | N187: =IF(F187>0,INDEX(A188:A1183,MATCH(TRUE,C188:C1183=C187,0))-A187,"-") -> 0 | O187: =IF(N187="-","",(IF(N187>0,SUMIFS($G$2:G187,$C$2:C187,C187),""))) -> 
A188: =ROUNDDOWN(Сделки!A188,0) -> 2019-09-18 | B188: приход | C188: =Сделки!E188 -> Магнит ао | D188: =IF(Сделки!G188="Купля",Сделки!H188*1,-1*Сделки!H188) -> 2 | E188: =IF(Сделки!G188="Купля",(Сделки!J188+Сделки!L188+Сделки!M188)/Сделки!H188,(Сделки!J188-Сделки!L188-Сделки!M188)/Сделки!H188) -> 3673.54 | F188: 10 | G188: 7347.08 | I188: 10 | J188: 36735.44 | K188: =MAX(IF(D188>0,IF(C$1:C187=$C188,IF(D$1:D187>0,ROW(K$1:K187)-ROW(K$1),0)))) -> 186 | L188: =MAX(IF(C$1:C187=$C188,ROW(K$1:K187)-ROW(K$1),0)) -> 186 | N188: =IF(F188>0,INDEX(A189:A1184,MATCH(TRUE,C189:C1184=C188,0))-A188,"-") -> 14 | O188: =IF(N188="-","",(IF(N188>0,SUMIFS($G$2:G188,$C$2:C188,C188),""))) -> 36735.44
A189: =ROUNDDOWN(Сделки!A189,0) -> 2019-09-20 | B189: приход | C189: =Сделки!E189 -> ЛСР ао | D189: =IF(Сделки!G189="Купля",Сделки!H189*1,-1*Сделки!H189) -> 14 | E189: =IF(Сделки!G189="Купля",(Сделки!J189+Сделки!L189+Сделки!M189)/Сделки!H189,(Сделки!J189-Сделки!L189-Сделки!M189)/Сделки!H189) -> 748.1178571 | F189: 14 | G189: 10473.65 | I189: 0 | J189: 0 | K189: =MAX(IF(D189>0,IF(C$1:C188=$C189,IF(D$1:D188>0,ROW(K$1:K188)-ROW(K$1),0)))) -> 0 | L189: =MAX(IF(C$1:C188=$C189,ROW(K$1:K188)-ROW(K$1),0)) -> 0 | N189: =IF(F189>0,INDEX(A190:A1185,MATCH(TRUE,C190:C1185=C189,0))-A189,"-") -> 42 | O189: =IF(N189="-","",(IF(N189>0,SUMIFS($G$2:G189,$C$2:C189,C189),""))) -> 10473.65
A190: =ROUNDDOWN(Сделки!A190,0) -> 2019-09-20 | B190: приход | C190: =Сделки!E190 -> МТС-ао | D190: =IF(Сделки!G190="Купля",Сделки!H190*1,-1*Сделки!H190) -> 4 | E190: =IF(Сделки!G190="Купля",(Сделки!J190+Сделки!L190+Сделки!M190)/Сделки!H190,(Сделки!J190-Сделки!L190-Сделки!M190)/Сделки!H190) -> 2692.8675 | F190: 4 | G190: 10771.47 | I190: 0 | J190: 0 | K190: =MAX(IF(D190>0,IF(C$1:C189=$C190,IF(D$1:D189>0,ROW(K$1:K189)-ROW(K$1),0)))) -> 0 | L190: =MAX(IF(C$1:C189=$C190,ROW(K$1:K189)-ROW(K$1),0)) -> 0 | N190: =IF(F190>0,INDEX(A191:A1186,MATCH(TRUE,C191:C1186=C190,0))-A190,"-") ->  | O190: =IF(N190="-","",(IF(N190>0,SUMIFS($G$2:G190,$C$2:C190,C190),""))) -> 
A191: =ROUNDDOWN(Сделки!A191,0) -> 2019-09-20 | B191: приход | C191: =Сделки!E191 -> ТГК-1 | D191: =IF(Сделки!G191="Купля",Сделки!H191*1,-1*Сделки!H191) -> 7 | E191: =IF(Сделки!G191="Купля",(Сделки!J191+Сделки!L191+Сделки!M191)/Сделки!H191,(Сделки!J191-Сделки!L191-Сделки!M191)/Сделки!H191) -> 1191.025714 | F191: 7 | G191: 8337.18 | I191: 7 | J191: 8337.18 | K191: =MAX(IF(D191>0,IF(C$1:C190=$C191,IF(D$1:D190>0,ROW(K$1:K190)-ROW(K$1),0)))) -> 0 | L191: =MAX(IF(C$1:C190=$C191,ROW(K$1:K190)-ROW(K$1),0)) -> 0 | N191: =IF(F191>0,INDEX(A192:A1187,MATCH(TRUE,C192:C1187=C191,0))-A191,"-") -> 0 | O191: =IF(N191="-","",(IF(N191>0,SUMIFS($G$2:G191,$C$2:C191,C191),""))) -> 
A192: =ROUNDDOWN(Сделки!A192,0) -> 2019-09-20 | B192: приход | C192: =Сделки!E192 -> ТГК-1 | D192: =IF(Сделки!G192="Купля",Сделки!H192*1,-1*Сделки!H192) -> 2 | E192: =IF(Сделки!G192="Купля",(Сделки!J192+Сделки!L192+Сделки!M192)/Сделки!H192,(Сделки!J192-Сделки!L192-Сделки!M192)/Сделки!H192) -> 1191.425 | F192: 9 | G192: 2382.85 | I192: 9 | J192: 10720.03 | K192: =MAX(IF(D192>0,IF(C$1:C191=$C192,IF(D$1:D191>0,ROW(K$1:K191)-ROW(K$1),0)))) -> 190 | L192: =MAX(IF(C$1:C191=$C192,ROW(K$1:K191)-ROW(K$1),0)) -> 190 | N192: =IF(F192>0,INDEX(A193:A1188,MATCH(TRUE,C193:C1188=C192,0))-A192,"-") -> 31 | O192: =IF(N192="-","",(IF(N192>0,SUMIFS($G$2:G192,$C$2:C192,C192),""))) -> 10720.03
A193: =ROUNDDOWN(Сделки!A193,0) -> 2019-09-20 | B193: приход | C193: =Сделки!E193 -> +МосЭнерго | D193: =IF(Сделки!G193="Купля",Сделки!H193*1,-1*Сделки!H193) -> 4 | E193: =IF(Сделки!G193="Купля",(Сделки!J193+Сделки!L193+Сделки!M193)/Сделки!H193,(Сделки!J193-Сделки!L193-Сделки!M193)/Сделки!H193) -> 2261.565 | F193: 4 | G193: 9046.26 | I193: 4 | J193: 9046.26 | K193: =MAX(IF(D193>0,IF(C$1:C192=$C193,IF(D$1:D192>0,ROW(K$1:K192)-ROW(K$1),0)))) -> 0 | L193: =MAX(IF(C$1:C192=$C193,ROW(K$1:K192)-ROW(K$1),0)) -> 0 | N193: =IF(F193>0,INDEX(A194:A1189,MATCH(TRUE,C194:C1189=C193,0))-A193,"-") -> 31 | O193: =IF(N193="-","",(IF(N193>0,SUMIFS($G$2:G193,$C$2:C193,C193),""))) -> 9046.26
A194: =ROUNDDOWN(Сделки!A194,0) -> 2019-09-20 | B194: приход | C194: =Сделки!E194 -> АЛРОСА ао | D194: =IF(Сделки!G194="Купля",Сделки!H194*1,-1*Сделки!H194) -> 2 | E194: =IF(Сделки!G194="Купля",(Сделки!J194+Сделки!L194+Сделки!M194)/Сделки!H194,(Сделки!J194-Сделки!L194-Сделки!M194)/Сделки!H194) -> 747.72 | F194: 11 | G194: 1495.44 | I194: 279 | J194: 210954.08 | K194: =MAX(IF(D194>0,IF(C$1:C193=$C194,IF(D$1:D193>0,ROW(K$1:K193)-ROW(K$1),0)))) -> 183 | L194: =MAX(IF(C$1:C193=$C194,ROW(K$1:K193)-ROW(K$1),0)) -> 183 | N194: =IF(F194>0,INDEX(A195:A1190,MATCH(TRUE,C195:C1190=C194,0))-A194,"-") -> 6 | O194: =IF(N194="-","",(IF(N194>0,SUMIFS($G$2:G194,$C$2:C194,C194),""))) -> 10348.76
A195: =ROUNDDOWN(Сделки!A195,0) -> 2019-09-26 | B195: приход | C195: =Сделки!E195 -> АЛРОСА ао | D195: =IF(Сделки!G195="Купля",Сделки!H195*1,-1*Сделки!H195) -> 6 | E195: =IF(Сделки!G195="Купля",(Сделки!J195+Сделки!L195+Сделки!M195)/Сделки!H195,(Сделки!J195-Сделки!L195-Сделки!M195)/Сделки!H195) -> 732.205 | F195: 17 | G195: =D195*E195 -> 4393.23 | I195: 279 | J195: 210954.08 | K195: =MAX(IF(D195>0,IF(C$1:C194=$C195,IF(D$1:D194>0,ROW(K$1:K194)-ROW(K$1),0)))) -> 193 | L195: =MAX(IF(C$1:C194=$C195,ROW(K$1:K194)-ROW(K$1),0)) -> 193 | N195: =IF(F195>0,INDEX(A196:A1191,MATCH(TRUE,C196:C1191=C195,0))-A195,"-") ->  | O195: =IF(N195="-","",(IF(N195>0,SUMIFS($G$2:G195,$C$2:C195,C195),""))) -> 
A196: =ROUNDDOWN(Сделки!A196,0) -> 2019-10-02 | B196: расход | C196: =Сделки!E196 -> РусГидро | D196: =IF(Сделки!G196="Купля",Сделки!H196*1,-1*Сделки!H196) -> -597 | E196: =IF(Сделки!G196="Купля",(Сделки!J196+Сделки!L196+Сделки!M196)/Сделки!H196,(Сделки!J196-Сделки!L196-Сделки!M196)/Сделки!H196) -> 514.6431156 | F196: 0 | G196: -307241.94 | I196: 0 | J196: 0 | K196: =MAX(IF(D196>0,IF(C$1:C195=$C196,IF(D$1:D195>0,ROW(K$1:K195)-ROW(K$1),0)))) -> 0 | L196: =MAX(IF(C$1:C195=$C196,ROW(K$1:K195)-ROW(K$1),0)) -> 181 | N196: =IF(F196>0,INDEX(A197:A1192,MATCH(TRUE,C197:C1192=C196,0))-A196,"-") -> - | O196: =IF(N196="-","",(IF(N196>0,SUMIFS($G$2:G196,$C$2:C196,C196),""))) -> 
A197: =ROUNDDOWN(Сделки!A197,0) -> 2019-10-02 | B197: приход | C197: =Сделки!E197 -> ПИК ао | D197: =IF(Сделки!G197="Купля",Сделки!H197*1,-1*Сделки!H197) -> 37 | E197: =IF(Сделки!G197="Купля",(Сделки!J197+Сделки!L197+Сделки!M197)/Сделки!H197,(Сделки!J197-Сделки!L197-Сделки!M197)/Сделки!H197) -> 3894.697027 | F197: 37 | G197: 144103.79 | I197: 472 | J197: 1812513.19 | K197: =MAX(IF(D197>0,IF(C$1:C196=$C197,IF(D$1:D196>0,ROW(K$1:K196)-ROW(K$1),0)))) -> 167 | L197: =MAX(IF(C$1:C196=$C197,ROW(K$1:K196)-ROW(K$1),0)) -> 171 | N197: =IF(F197>0,INDEX(A198:A1193,MATCH(TRUE,C198:C1193=C197,0))-A197,"-") -> 0 | O197: =IF(N197="-","",(IF(N197>0,SUMIFS($G$2:G197,$C$2:C197,C197),""))) -> 
A198: =ROUNDDOWN(Сделки!A198,0) -> 2019-10-02 | B198: приход | C198: =Сделки!E198 -> ПИК ао | D198: =IF(Сделки!G198="Купля",Сделки!H198*1,-1*Сделки!H198) -> 38 | E198: =IF(Сделки!G198="Купля",(Сделки!J198+Сделки!L198+Сделки!M198)/Сделки!H198,(Сделки!J198-Сделки!L198-Сделки!M198)/Сделки!H198) -> 3894.697368 | F198: 75 | G198: 147998.5 | I198: 510 | J198: 1960511.69 | K198: =MAX(IF(D198>0,IF(C$1:C197=$C198,IF(D$1:D197>0,ROW(K$1:K197)-ROW(K$1),0)))) -> 196 | L198: =MAX(IF(C$1:C197=$C198,ROW(K$1:K197)-ROW(K$1),0)) -> 196 | N198: =IF(F198>0,INDEX(A199:A1194,MATCH(TRUE,C199:C1194=C198,0))-A198,"-") -> 5 | O198: =IF(N198="-","",(IF(N198>0,SUMIFS($G$2:G198,$C$2:C198,C198),""))) -> 281318.19
A199: =ROUNDDOWN(Сделки!A199,0) -> 2019-10-02 | B199: приход | C199: =Сделки!E199 -> Магнит ао | D199: =IF(Сделки!G199="Купля",Сделки!H199*1,-1*Сделки!H199) -> 4 | E199: =IF(Сделки!G199="Купля",(Сделки!J199+Сделки!L199+Сделки!M199)/Сделки!H199,(Сделки!J199-Сделки!L199-Сделки!M199)/Сделки!H199) -> 3539.4525 | F199: 14 | G199: 14157.81 | I199: 14 | J199: 50893.25 | K199: =MAX(IF(D199>0,IF(C$1:C198=$C199,IF(D$1:D198>0,ROW(K$1:K198)-ROW(K$1),0)))) -> 187 | L199: =MAX(IF(C$1:C198=$C199,ROW(K$1:K198)-ROW(K$1),0)) -> 187 | N199: =IF(F199>0,INDEX(A200:A1195,MATCH(TRUE,C200:C1195=C199,0))-A199,"-") -> 5 | O199: =IF(N199="-","",(IF(N199>0,SUMIFS($G$2:G199,$C$2:C199,C199),""))) -> 50893.25
A200: =ROUNDDOWN(Сделки!A200,0) -> 2019-10-07 | B200: расход | C200: =Сделки!E200 -> ПИК ао | D200: =IF(Сделки!G200="Купля",Сделки!H200*1,-1*Сделки!H200) -> -7 | E200: =IF(Сделки!G200="Купля",(Сделки!J200+Сделки!L200+Сделки!M200)/Сделки!H200,(Сделки!J200-Сделки!L200-Сделки!M200)/Сделки!H200) -> 3976.242857 | F200: 68 | G200: -27833.7 | I200: 0 | J200: 0 | K200: =MAX(IF(D200>0,IF(C$1:C199=$C200,IF(D$1:D199>0,ROW(K$1:K199)-ROW(K$1),0)))) -> 0 | L200: =MAX(IF(C$1:C199=$C200,ROW(K$1:K199)-ROW(K$1),0)) -> 197 | N200: =IF(F200>0,INDEX(A201:A1196,MATCH(TRUE,C201:C1196=C200,0))-A200,"-") -> 0 | O200: =IF(N200="-","",(IF(N200>0,SUMIFS($G$2:G200,$C$2:C200,C200),""))) -> 
... 50 more rows

Sheet формулы списка
A1: Код бумаги | B1: Краткое наименование инструмента | C1: Акции | D1: Акции1 | E1: Акции2 | F1: Облигации | G1: Облигации1 | H1: Облигации2
A2: =IFERROR(INDEX(Таблица1[Код бумаги],MATCH(0,COUNTIF($A$1:A1,Таблица1[Код бумаги]),0)),"") -> RU000A0ZYKM5 | B2: =IFERROR(INDEX(Таблица1[Краткое наименование инструмента],MATCH(0,COUNTIF($B$1:B1,Таблица1[Краткое наименование инструмента]),0)),"") -> Автодор1P2 | C2: =IFERROR(IF(A2=SEARCH("RU0",A2,1),"",""),A2) ->  | D2: =IFERROR(INDEX($C$1:$C$1000,SMALL(IF($C$1:$C$1000="",66000,ROW($C$1:$C$1000)),ROW()),1),"") -> PIKK | E2: =INDEX(B:B,MATCH(TRUE,A:A=D2,0)) -> ПИК ао | F2: =IFERROR(IF(A2=SEARCH("RU0",A2,1),"",A2),"") -> RU000A0ZYKM5 | G2: =IFERROR(INDEX($F$1:$F$1000,SMALL(IF($F$1:$F$1000="",66000,ROW($F$1:$F$1000)),ROW()),1),"") -> RU000A0ZYKM5 | H2: =INDEX(B:B,MATCH(TRUE,A:A=G2,0)) -> Автодор1P2
A3: =IFERROR(INDEX(Таблица1[Код бумаги],MATCH(0,COUNTIF($A$1:A2,Таблица1[Код бумаги]),0)),"") -> PIKK | B3: =IFERROR(INDEX(Таблица1[Краткое наименование инструмента],MATCH(0,COUNTIF($B$1:B2,Таблица1[Краткое наименование инструмента]),0)),"") -> ПИК ао | C3: PIKK | D3: =IFERROR(INDEX($C$1:$C$1000,SMALL(IF($C$1:$C$1000="",66000,ROW($C$1:$C$1000)),ROW()),1),"") -> ROSN | E3: =INDEX(B:B,MATCH(TRUE,A:A=D3,0)) -> Роснефть | G3: =IFERROR(INDEX($F$1:$F$1000,SMALL(IF($F$1:$F$1000="",66000,ROW($F$1:$F$1000)),ROW()),1),"") -> RU000A0ZYCJ8 | H3: =INDEX(B:B,MATCH(TRUE,A:A=G3,0)) -> ВБРР Б1P1
A4: =IFERROR(INDEX(Таблица1[Код бумаги],MATCH(0,COUNTIF($A$1:A3,Таблица1[Код бумаги]),0)),"") -> RU000A0ZYCJ8 | B4: =IFERROR(INDEX(Таблица1[Краткое наименование инструмента],MATCH(0,COUNTIF($B$1:B3,Таблица1[Краткое наименование инструмента]),0)),"") -> ВБРР Б1P1 | D4: =IFERROR(INDEX($C$1:$C$1000,SMALL(IF($C$1:$C$1000="",66000,ROW($C$1:$C$1000)),ROW()),1),"") -> SBER | E4: =INDEX(B:B,MATCH(TRUE,A:A=D4,0)) -> Сбербанк | F4: RU000A0ZYCJ8 | G4: =IFERROR(INDEX($F$1:$F$1000,SMALL(IF($F$1:$F$1000="",66000,ROW($F$1:$F$1000)),ROW()),1),"") -> RU000A0JXQ85 | H4: =INDEX(B:B,MATCH(TRUE,A:A=G4,0)) -> Тинькофф1R
A5: =IFERROR(INDEX(Таблица1[Код бумаги],MATCH(0,COUNTIF($A$1:A4,Таблица1[Код бумаги]),0)),"") -> RU000A0JXQ85 | B5: =IFERROR(INDEX(Таблица1[Краткое наименование инструмента],MATCH(0,COUNTIF($B$1:B4,Таблица1[Краткое наименование инструмента]),0)),"") -> Тинькофф1R | D5: =IFERROR(INDEX($C$1:$C$1000,SMALL(IF($C$1:$C$1000="",66000,ROW($C$1:$C$1000)),ROW()),1),"") -> GAZP | E5: =INDEX(B:B,MATCH(TRUE,A:A=D5,0)) -> ГАЗПРОМ ао | F5: RU000A0JXQ85 | G5: =IFERROR(INDEX($F$1:$F$1000,SMALL(IF($F$1:$F$1000="",66000,ROW($F$1:$F$1000)),ROW()),1),"") -> RU000A0ZYLL5 | H5: =INDEX(B:B,MATCH(TRUE,A:A=G5,0)) -> iУОМЗ БО-2
A6: =IFERROR(INDEX(Таблица1[Код бумаги],MATCH(0,COUNTIF($A$1:A5,Таблица1[Код бумаги]),0)),"") -> RU000A0ZYLL5 | B6: =IFERROR(INDEX(Таблица1[Краткое наименование инструмента],MATCH(0,COUNTIF($B$1:B5,Таблица1[Краткое наименование инструмента]),0)),"") -> iУОМЗ БО-2 | D6: =IFERROR(INDEX($C$1:$C$1000,SMALL(IF($C$1:$C$1000="",66000,ROW($C$1:$C$1000)),ROW()),1),"") -> SBERP | E6: =INDEX(B:B,MATCH(TRUE,A:A=D6,0)) -> Сбербанк-п | F6: RU000A0ZYLL5 | G6: =IFERROR(INDEX($F$1:$F$1000,SMALL(IF($F$1:$F$1000="",66000,ROW($F$1:$F$1000)),ROW()),1),"") -> RU000A0ZYJR6 | H6: =INDEX(B:B,MATCH(TRUE,A:A=G6,0)) -> Совком БО5
A7: =IFERROR(INDEX(Таблица1[Код бумаги],MATCH(0,COUNTIF($A$1:A6,Таблица1[Код бумаги]),0)),"") -> RU000A0ZYJR6 | B7: =IFERROR(INDEX(Таблица1[Краткое наименование инструмента],MATCH(0,COUNTIF($B$1:B6,Таблица1[Краткое наименование инструмента]),0)),"") -> Совком БО5 | D7: =IFERROR(INDEX($C$1:$C$1000,SMALL(IF($C$1:$C$1000="",66000,ROW($C$1:$C$1000)),ROW()),1),"") -> RASP | E7: =INDEX(B:B,MATCH(TRUE,A:A=D7,0)) -> Распадская | F7: RU000A0ZYJR6 | G7: =IFERROR(INDEX($F$1:$F$1000,SMALL(IF($F$1:$F$1000="",66000,ROW($F$1:$F$1000)),ROW()),1),"") -> RU000A0JXQH8 | H7: =INDEX(B:B,MATCH(TRUE,A:A=G7,0)) -> О'КЕЙ-Б01Р
A8: =IFERROR(INDEX(Таблица1[Код бумаги],MATCH(0,COUNTIF($A$1:A7,Таблица1[Код бумаги]),0)),"") -> RU000A0JXQH8 | B8: =IFERROR(INDEX(Таблица1[Краткое наименование инструмента],MATCH(0,COUNTIF($B$1:B7,Таблица1[Краткое наименование инструмента]),0)),"") -> О'КЕЙ-Б01Р | D8: =IFERROR(INDEX($C$1:$C$1000,SMALL(IF($C$1:$C$1000="",66000,ROW($C$1:$C$1000)),ROW()),1),"") -> ALRS | E8: =INDEX(B:B,MATCH(TRUE,A:A=D8,0)) -> АЛРОСА ао | F8: RU000A0JXQH8 | G8: =IFERROR(INDEX($F$1:$F$1000,SMALL(IF($F$1:$F$1000="",66000,ROW($F$1:$F$1000)),ROW()),1),"") -> RU000A100ER0 | H8: =INDEX(B:B,MATCH(TRUE,A:A=G8,0)) -> РОСНАНО2P1
A9: =IFERROR(INDEX(Таблица1[Код бумаги],MATCH(0,COUNTIF($A$1:A8,Таблица1[Код бумаги]),0)),"") -> RU000A100ER0 | B9: =IFERROR(INDEX(Таблица1[Краткое наименование инструмента],MATCH(0,COUNTIF($B$1:B8,Таблица1[Краткое наименование инструмента]),0)),"") -> РОСНАНО2P1 | D9: =IFERROR(INDEX($C$1:$C$1000,SMALL(IF($C$1:$C$1000="",66000,ROW($C$1:$C$1000)),ROW()),1),"") -> IRAO | E9: =INDEX(B:B,MATCH(TRUE,A:A=D9,0)) -> ИнтерРАОао | F9: RU000A100ER0 | G9: =IFERROR(INDEX($F$1:$F$1000,SMALL(IF($F$1:$F$1000="",66000,ROW($F$1:$F$1000)),ROW()),1),"") -> RU000A100F95 | H9: =INDEX(B:B,MATCH(TRUE,A:A=G9,0)) -> РЕСОЛизБП4
A10: =IFERROR(INDEX(Таблица1[Код бумаги],MATCH(0,COUNTIF($A$1:A9,Таблица1[Код бумаги]),0)),"") -> RU000A100F95 | B10: =IFERROR(INDEX(Таблица1[Краткое наименование инструмента],MATCH(0,COUNTIF($B$1:B9,Таблица1[Краткое наименование инструмента]),0)),"") -> РЕСОЛизБП4 | D10: =IFERROR(INDEX($C$1:$C$1000,SMALL(IF($C$1:$C$1000="",66000,ROW($C$1:$C$1000)),ROW()),1),"") -> NLMK | E10: =INDEX(B:B,MATCH(TRUE,A:A=D10,0)) -> НЛМК ао | F10: RU000A100F95 | G10: =IFERROR(INDEX($F$1:$F$1000,SMALL(IF($F$1:$F$1000="",66000,ROW($F$1:$F$1000)),ROW()),1),"") -> RU000A0ZZBJ7 | H10: =INDEX(B:B,MATCH(TRUE,A:A=G10,0)) -> ПИК БО-П07
A11: =IFERROR(INDEX(Таблица1[Код бумаги],MATCH(0,COUNTIF($A$1:A10,Таблица1[Код бумаги]),0)),"") -> ROSN | B11: =IFERROR(INDEX(Таблица1[Краткое наименование инструмента],MATCH(0,COUNTIF($B$1:B10,Таблица1[Краткое наименование инструмента]),0)),"") -> Роснефть | C11: ROSN | D11: =IFERROR(INDEX($C$1:$C$1000,SMALL(IF($C$1:$C$1000="",66000,ROW($C$1:$C$1000)),ROW()),1),"") -> HYDR | E11: =INDEX(B:B,MATCH(TRUE,A:A=D11,0)) -> РусГидро | G11: =IFERROR(INDEX($F$1:$F$1000,SMALL(IF($F$1:$F$1000="",66000,ROW($F$1:$F$1000)),ROW()),1),"") -> RU000A100PE4 | H11: =INDEX(B:B,MATCH(TRUE,A:A=G11,0)) -> РЕСОЛизБП6
A12: =IFERROR(INDEX(Таблица1[Код бумаги],MATCH(0,COUNTIF($A$1:A11,Таблица1[Код бумаги]),0)),"") -> SBER | B12: =IFERROR(INDEX(Таблица1[Краткое наименование инструмента],MATCH(0,COUNTIF($B$1:B11,Таблица1[Краткое наименование инструмента]),0)),"") -> Сбербанк | C12: SBER | D12: =IFERROR(INDEX($C$1:$C$1000,SMALL(IF($C$1:$C$1000="",66000,ROW($C$1:$C$1000)),ROW()),1),"") -> AFLT | E12: =INDEX(B:B,MATCH(TRUE,A:A=D12,0)) -> Аэрофлот | G12: =IFERROR(INDEX($F$1:$F$1000,SMALL(IF($F$1:$F$1000="",66000,ROW($F$1:$F$1000)),ROW()),1),"") -> RU000A100WA8 | H12: =INDEX(B:B,MATCH(TRUE,A:A=G12,0)) -> ЛСР БО 1Р4
A13: =IFERROR(INDEX(Таблица1[Код бумаги],MATCH(0,COUNTIF($A$1:A12,Таблица1[Код бумаги]),0)),"") -> GAZP | B13: =IFERROR(INDEX(Таблица1[Краткое наименование инструмента],MATCH(0,COUNTIF($B$1:B12,Таблица1[Краткое наименование инструмента]),0)),"") -> ГАЗПРОМ ао | C13: GAZP | D13: =IFERROR(INDEX($C$1:$C$1000,SMALL(IF($C$1:$C$1000="",66000,ROW($C$1:$C$1000)),ROW()),1),"") -> MGNT | E13: =INDEX(B:B,MATCH(TRUE,A:A=D13,0)) -> Магнит ао | G13: =IFERROR(INDEX($F$1:$F$1000,SMALL(IF($F$1:$F$1000="",66000,ROW($F$1:$F$1000)),ROW()),1),"") -> RU000A100XU4 | H13: =INDEX(B:B,MATCH(TRUE,A:A=G13,0)) -> РЕСОЛизБП7
A14: =IFERROR(INDEX(Таблица1[Код бумаги],MATCH(0,COUNTIF($A$1:A13,Таблица1[Код бумаги]),0)),"") -> RU000A0ZZBJ7 | B14: =IFERROR(INDEX(Таблица1[Краткое наименование инструмента],MATCH(0,COUNTIF($B$1:B13,Таблица1[Краткое наименование инструмента]),0)),"") -> ПИК БО-П07 | D14: =IFERROR(INDEX($C$1:$C$1000,SMALL(IF($C$1:$C$1000="",66000,ROW($C$1:$C$1000)),ROW()),1),"") -> LSRG | E14: =INDEX(B:B,MATCH(TRUE,A:A=D14,0)) -> ЛСР ао | F14: RU000A0ZZBJ7 | G14: =IFERROR(INDEX($F$1:$F$1000,SMALL(IF($F$1:$F$1000="",66000,ROW($F$1:$F$1000)),ROW()),1),"") ->  | H14: =INDEX(B:B,MATCH(TRUE,A:A=G14,0)) -> 
A15: =IFERROR(INDEX(Таблица1[Код бумаги],MATCH(0,COUNTIF($A$1:A14,Таблица1[Код бумаги]),0)),"") -> SBERP | B15: =IFERROR(INDEX(Таблица1[Краткое наименование инструмента],MATCH(0,COUNTIF($B$1:B14,Таблица1[Краткое наименование инструмента]),0)),"") -> Сбербанк-п | C15: SBERP | D15: =IFERROR(INDEX($C$1:$C$1000,SMALL(IF($C$1:$C$1000="",66000,ROW($C$1:$C$1000)),ROW()),1),"") -> MTSS | E15: =INDEX(B:B,MATCH(TRUE,A:A=D15,0)) -> МТС-ао | G15: =IFERROR(INDEX($F$1:$F$1000,SMALL(IF($F$1:$F$1000="",66000,ROW($F$1:$F$1000)),ROW()),1),"") ->  | H15: =INDEX(B:B,MATCH(TRUE,A:A=G15,0)) -> 
A16: =IFERROR(INDEX(Таблица1[Код бумаги],MATCH(0,COUNTIF($A$1:A15,Таблица1[Код бумаги]),0)),"") -> RASP | B16: =IFERROR(INDEX(Таблица1[Краткое наименование инструмента],MATCH(0,COUNTIF($B$1:B15,Таблица1[Краткое наименование инструмента]),0)),"") -> Распадская | C16: RASP | D16: =IFERROR(INDEX($C$1:$C$1000,SMALL(IF($C$1:$C$1000="",66000,ROW($C$1:$C$1000)),ROW()),1),"") -> TGKA | E16: =INDEX(B:B,MATCH(TRUE,A:A=D16,0)) -> ТГК-1 | G16: =IFERROR(INDEX($F$1:$F$1000,SMALL(IF($F$1:$F$1000="",66000,ROW($F$1:$F$1000)),ROW()),1),"") ->  | H16: =INDEX(B:B,MATCH(TRUE,A:A=G16,0)) -> 
A17: =IFERROR(INDEX(Таблица1[Код бумаги],MATCH(0,COUNTIF($A$1:A16,Таблица1[Код бумаги]),0)),"") -> ALRS | B17: =IFERROR(INDEX(Таблица1[Краткое наименование инструмента],MATCH(0,COUNTIF($B$1:B16,Таблица1[Краткое наименование инструмента]),0)),"") -> АЛРОСА ао | C17: ALRS | D17: =IFERROR(INDEX($C$1:$C$1000,SMALL(IF($C$1:$C$1000="",66000,ROW($C$1:$C$1000)),ROW()),1),"") -> MSNG | E17: =INDEX(B:B,MATCH(TRUE,A:A=D17,0)) -> +МосЭнерго | G17: =IFERROR(INDEX($F$1:$F$1000,SMALL(IF($F$1:$F$1000="",66000,ROW($F$1:$F$1000)),ROW()),1),"") ->  | H17: =INDEX(B:B,MATCH(TRUE,A:A=G17,0)) -> 
A18: =IFERROR(INDEX(Таблица1[Код бумаги],MATCH(0,COUNTIF($A$1:A17,Таблица1[Код бумаги]),0)),"") -> IRAO | B18: =IFERROR(INDEX(Таблица1[Краткое наименование инструмента],MATCH(0,COUNTIF($B$1:B17,Таблица1[Краткое наименование инструмента]),0)),"") -> ИнтерРАОао | C18: IRAO | D18: =IFERROR(INDEX($C$1:$C$1000,SMALL(IF($C$1:$C$1000="",66000,ROW($C$1:$C$1000)),ROW()),1),"") ->  | E18: =INDEX(B:B,MATCH(TRUE,A:A=D18,0)) ->  | G18: =IFERROR(INDEX($F$1:$F$1000,SMALL(IF($F$1:$F$1000="",66000,ROW($F$1:$F$1000)),ROW()),1),"") ->  | H18: =INDEX(B:B,MATCH(TRUE,A:A=G18,0)) -> 
A19: =IFERROR(INDEX(Таблица1[Код бумаги],MATCH(0,COUNTIF($A$1:A18,Таблица1[Код бумаги]),0)),"") -> NLMK | B19: =IFERROR(INDEX(Таблица1[Краткое наименование инструмента],MATCH(0,COUNTIF($B$1:B18,Таблица1[Краткое наименование инструмента]),0)),"") -> НЛМК ао | C19: NLMK | D19: =IFERROR(INDEX($C$1:$C$1000,SMALL(IF($C$1:$C$1000="",66000,ROW($C$1:$C$1000)),ROW()),1),"") ->  | E19: =INDEX(B:B,MATCH(TRUE,A:A=D19,0)) ->  | G19: =IFERROR(INDEX($F$1:$F$1000,SMALL(IF($F$1:$F$1000="",66000,ROW($F$1:$F$1000)),ROW()),1),"") ->  | H19: =INDEX(B:B,MATCH(TRUE,A:A=G19,0)) -> 
A20: =IFERROR(INDEX(Таблица1[Код бумаги],MATCH(0,COUNTIF($A$1:A19,Таблица1[Код бумаги]),0)),"") -> HYDR | B20: =IFERROR(INDEX(Таблица1[Краткое наименование инструмента],MATCH(0,COUNTIF($B$1:B19,Таблица1[Краткое наименование инструмента]),0)),"") -> РусГидро | C20: HYDR | D20: =IFERROR(INDEX($C$1:$C$1000,SMALL(IF($C$1:$C$1000="",66000,ROW($C$1:$C$1000)),ROW()),1),"") ->  | E20: =INDEX(B:B,MATCH(TRUE,A:A=D20,0)) ->  | G20: =IFERROR(INDEX($F$1:$F$1000,SMALL(IF($F$1:$F$1000="",66000,ROW($F$1:$F$1000)),ROW()),1),"") ->  | H20: =INDEX(B:B,MATCH(TRUE,A:A=G20,0)) -> 
A21: =IFERROR(INDEX(Таблица1[Код бумаги],MATCH(0,COUNTIF($A$1:A20,Таблица1[Код бумаги]),0)),"") -> RU000A100PE4 | B21: =IFERROR(INDEX(Таблица1[Краткое наименование инструмента],MATCH(0,COUNTIF($B$1:B20,Таблица1[Краткое наименование инструмента]),0)),"") -> РЕСОЛизБП6 | D21: =IFERROR(INDEX($C$1:$C$1000,SMALL(IF($C$1:$C$1000="",66000,ROW($C$1:$C$1000)),ROW()),1),"") ->  | E21: =INDEX(B:B,MATCH(TRUE,A:A=D21,0)) ->  | F21: RU000A100PE4 | G21: =IFERROR(INDEX($F$1:$F$1000,SMALL(IF($F$1:$F$1000="",66000,ROW($F$1:$F$1000)),ROW()),1),"") ->  | H21: =INDEX(B:B,MATCH(TRUE,A:A=G21,0)) -> 
A22: =IFERROR(INDEX(Таблица1[Код бумаги],MATCH(0,COUNTIF($A$1:A21,Таблица1[Код бумаги]),0)),"") -> AFLT | B22: =IFERROR(INDEX(Таблица1[Краткое наименование инструмента],MATCH(0,COUNTIF($B$1:B21,Таблица1[Краткое наименование инструмента]),0)),"") -> Аэрофлот | C22: AFLT | D22: =IFERROR(INDEX($C$1:$C$1000,SMALL(IF($C$1:$C$1000="",66000,ROW($C$1:$C$1000)),ROW()),1),"") ->  | E22: =INDEX(B:B,MATCH(TRUE,A:A=D22,0)) ->  | G22: =IFERROR(INDEX($F$1:$F$1000,SMALL(IF($F$1:$F$1000="",66000,ROW($F$1:$F$1000)),ROW()),1),"") ->  | H22: =INDEX(B:B,MATCH(TRUE,A:A=G22,0)) -> 
A23: =IFERROR(INDEX(Таблица1[Код бумаги],MATCH(0,COUNTIF($A$1:A22,Таблица1[Код бумаги]),0)),"") -> MGNT | B23: =IFERROR(INDEX(Таблица1[Краткое наименование инструмента],MATCH(0,COUNTIF($B$1:B22,Таблица1[Краткое наименование инструмента]),0)),"") -> Магнит ао | C23: MGNT | D23: =IFERROR(INDEX($C$1:$C$1000,SMALL(IF($C$1:$C$1000="",66000,ROW($C$1:$C$1000)),ROW()),1),"") ->  | E23: =INDEX(B:B,MATCH(TRUE,A:A=D23,0)) ->  | G23: =IFERROR(INDEX($F$1:$F$1000,SMALL(IF($F$1:$F$1000="",66000,ROW($F$1:$F$1000)),ROW()),1),"") ->  | H23: =INDEX(B:B,MATCH(TRUE,A:A=G23,0)) -> 
A24: =IFERROR(INDEX(Таблица1[Код бумаги],MATCH(0,COUNTIF($A$1:A23,Таблица1[Код бумаги]),0)),"") -> LSRG | B24: =IFERROR(INDEX(Таблица1[Краткое наименование инструмента],MATCH(0,COUNTIF($B$1:B23,Таблица1[Краткое наименование инструмента]),0)),"") -> ЛСР ао | C24: LSRG | D24: =IFERROR(INDEX($C$1:$C$1000,SMALL(IF($C$1:$C$1000="",66000,ROW($C$1:$C$1000)),ROW()),1),"") ->  | E24: =INDEX(B:B,MATCH(TRUE,A:A=D24,0)) ->  | G24: =IFERROR(INDEX($F$1:$F$1000,SMALL(IF($F$1:$F$1000="",66000,ROW($F$1:$F$1000)),ROW()),1),"") ->  | H24: =INDEX(B:B,MATCH(TRUE,A:A=G24,0)) -> 
A25: =IFERROR(INDEX(Таблица1[Код бумаги],MATCH(0,COUNTIF($A$1:A24,Таблица1[Код бумаги]),0)),"") -> MTSS | B25: =IFERROR(INDEX(Таблица1[Краткое наименование инструмента],MATCH(0,COUNTIF($B$1:B24,Таблица1[Краткое наименование инструмента]),0)),"") -> МТС-ао | C25: MTSS | D25: =IFERROR(INDEX($C$1:$C$1000,SMALL(IF($C$1:$C$1000="",66000,ROW($C$1:$C$1000)),ROW()),1),"") ->  | E25: =INDEX(B:B,MATCH(TRUE,A:A=D25,0)) ->  | G25: =IFERROR(INDEX($F$1:$F$1000,SMALL(IF($F$1:$F$1000="",66000,ROW($F$1:$F$1000)),ROW()),1),"") ->  | H25: =INDEX(B:B,MATCH(TRUE,A:A=G25,0)) -> 
A26: =IFERROR(INDEX(Таблица1[Код бумаги],MATCH(0,COUNTIF($A$1:A25,Таблица1[Код бумаги]),0)),"") -> TGKA | B26: =IFERROR(INDEX(Таблица1[Краткое наименование инструмента],MATCH(0,COUNTIF($B$1:B25,Таблица1[Краткое наименование инструмента]),0)),"") -> ТГК-1 | C26: TGKA | D26: =IFERROR(INDEX($C$1:$C$1000,SMALL(IF($C$1:$C$1000="",66000,ROW($C$1:$C$1000)),ROW()),1),"") ->  | E26: =INDEX(B:B,MATCH(TRUE,A:A=D26,0)) ->  | G26: =IFERROR(INDEX($F$1:$F$1000,SMALL(IF($F$1:$F$1000="",66000,ROW($F$1:$F$1000)),ROW()),1),"") ->  | H26: =INDEX(B:B,MATCH(TRUE,A:A=G26,0)) -> 
A27: =IFERROR(INDEX(Таблица1[Код бумаги],MATCH(0,COUNTIF($A$1:A26,Таблица1[Код бумаги]),0)),"") -> MSNG | B27: =IFERROR(INDEX(Таблица1[Краткое наименование инструмента],MATCH(0,COUNTIF($B$1:B26,Таблица1[Краткое наименование инструмента]),0)),"") -> +МосЭнерго | C27: MSNG | D27: =IFERROR(INDEX($C$1:$C$1000,SMALL(IF($C$1:$C$1000="",66000,ROW($C$1:$C$1000)),ROW()),1),"") ->  | E27: =INDEX(B:B,MATCH(TRUE,A:A=D27,0)) ->  | G27: =IFERROR(INDEX($F$1:$F$1000,SMALL(IF($F$1:$F$1000="",66000,ROW($F$1:$F$1000)),ROW()),1),"") ->  | H27: =INDEX(B:B,MATCH(TRUE,A:A=G27,0)) -> 
A28: =IFERROR(INDEX(Таблица1[Код бумаги],MATCH(0,COUNTIF($A$1:A27,Таблица1[Код бумаги]),0)),"") -> RU000A100WA8 | B28: =IFERROR(INDEX(Таблица1[Краткое наименование инструмента],MATCH(0,COUNTIF($B$1:B27,Таблица1[Краткое наименование инструмента]),0)),"") -> ЛСР БО 1Р4 | D28: =IFERROR(INDEX($C$1:$C$1000,SMALL(IF($C$1:$C$1000="",66000,ROW($C$1:$C$1000)),ROW()),1),"") ->  | E28: =INDEX(B:B,MATCH(TRUE,A:A=D28,0)) ->  | F28: RU000A100WA8 | G28: =IFERROR(INDEX($F$1:$F$1000,SMALL(IF($F$1:$F$1000="",66000,ROW($F$1:$F$1000)),ROW()),1),"") ->  | H28: =INDEX(B:B,MATCH(TRUE,A:A=G28,0)) -> 
A29: =IFERROR(INDEX(Таблица1[Код бумаги],MATCH(0,COUNTIF($A$1:A28,Таблица1[Код бумаги]),0)),"") -> RU000A100XU4 | B29: =IFERROR(INDEX(Таблица1[Краткое наименование инструмента],MATCH(0,COUNTIF($B$1:B28,Таблица1[Краткое наименование инструмента]),0)),"") -> РЕСОЛизБП7 | D29: =IFERROR(INDEX($C$1:$C$1000,SMALL(IF($C$1:$C$1000="",66000,ROW($C$1:$C$1000)),ROW()),1),"") ->  | E29: =INDEX(B:B,MATCH(TRUE,A:A=D29,0)) ->  | F29: RU000A100XU4 | G29: =IFERROR(INDEX($F$1:$F$1000,SMALL(IF($F$1:$F$1000="",66000,ROW($F$1:$F$1000)),ROW()),1),"") ->  | H29: =INDEX(B:B,MATCH(TRUE,A:A=G29,0)) -> 
A30: =IFERROR(INDEX(Таблица1[Код бумаги],MATCH(0,COUNTIF($A$1:A29,Таблица1[Код бумаги]),0)),"") ->  | B30: =IFERROR(INDEX(Таблица1[Краткое наименование инструмента],MATCH(0,COUNTIF($B$1:B29,Таблица1[Краткое наименование инструмента]),0)),"") ->  | D30: =IFERROR(INDEX($C$1:$C$1000,SMALL(IF($C$1:$C$1000="",66000,ROW($C$1:$C$1000)),ROW()),1),"") ->  | E30: =INDEX(B:B,MATCH(TRUE,A:A=D30,0)) ->  | G30: =IFERROR(INDEX($F$1:$F$1000,SMALL(IF($F$1:$F$1000="",66000,ROW($F$1:$F$1000)),ROW()),1),"") ->  | H30: =INDEX(B:B,MATCH(TRUE,A:A=G30,0)) -> 
A31: =IFERROR(INDEX(Таблица1[Код бумаги],MATCH(0,COUNTIF($A$1:A30,Таблица1[Код бумаги]),0)),"") ->  | B31: =IFERROR(INDEX(Таблица1[Краткое наименование инструмента],MATCH(0,COUNTIF($B$1:B30,Таблица1[Краткое наименование инструмента]),0)),"") ->  | D31: =IFERROR(INDEX($C$1:$C$1000,SMALL(IF($C$1:$C$1000="",66000,ROW($C$1:$C$1000)),ROW()),1),"") ->  | E31: =INDEX(B:B,MATCH(TRUE,A:A=D31,0)) ->  | G31: =IFERROR(INDEX($F$1:$F$1000,SMALL(IF($F$1:$F$1000="",66000,ROW($F$1:$F$1000)),ROW()),1),"") ->  | H31: =INDEX(B:B,MATCH(TRUE,A:A=G31,0)) -> 
A32: =IFERROR(INDEX(Таблица1[Код бумаги],MATCH(0,COUNTIF($A$1:A31,Таблица1[Код бумаги]),0)),"") ->  | B32: =IFERROR(INDEX(Таблица1[Краткое наименование инструмента],MATCH(0,COUNTIF($B$1:B31,Таблица1[Краткое наименование инструмента]),0)),"") ->  | D32: =IFERROR(INDEX($C$1:$C$1000,SMALL(IF($C$1:$C$1000="",66000,ROW($C$1:$C$1000)),ROW()),1),"") ->  | E32: =INDEX(B:B,MATCH(TRUE,A:A=D32,0)) ->  | G32: =IFERROR(INDEX($F$1:$F$1000,SMALL(IF($F$1:$F$1000="",66000,ROW($F$1:$F$1000)),ROW()),1),"") ->  | H32: =INDEX(B:B,MATCH(TRUE,A:A=G32,0)) -> 
A33: =IFERROR(INDEX(Таблица1[Код бумаги],MATCH(0,COUNTIF($A$1:A32,Таблица1[Код бумаги]),0)),"") ->  | B33: =IFERROR(INDEX(Таблица1[Краткое наименование инструмента],MATCH(0,COUNTIF($B$1:B32,Таблица1[Краткое наименование инструмента]),0)),"") ->  | D33: =IFERROR(INDEX($C$1:$C$1000,SMALL(IF($C$1:$C$1000="",66000,ROW($C$1:$C$1000)),ROW()),1),"") ->  | E33: =INDEX(B:B,MATCH(TRUE,A:A=D33,0)) ->  | G33: =IFERROR(INDEX($F$1:$F$1000,SMALL(IF($F$1:$F$1000="",66000,ROW($F$1:$F$1000)),ROW()),1),"") ->  | H33: =INDEX(B:B,MATCH(TRUE,A:A=G33,0)) -> 
A34: =IFERROR(INDEX(Таблица1[Код бумаги],MATCH(0,COUNTIF($A$1:A33,Таблица1[Код бумаги]),0)),"") ->  | B34: =IFERROR(INDEX(Таблица1[Краткое наименование инструмента],MATCH(0,COUNTIF($B$1:B33,Таблица1[Краткое наименование инструмента]),0)),"") ->  | C34: =IFERROR(IF(A34=SEARCH("RU0",A34,1),"",""),A34) ->  | D34: =IFERROR(INDEX($C$1:$C$1000,SMALL(IF($C$1:$C$1000="",66000,ROW($C$1:$C$1000)),ROW()),1),"") ->  | E34: =INDEX(B:B,MATCH(TRUE,A:A=D34,0)) ->  | F34: =IFERROR(IF(A34=SEARCH("RU0",A34,1),"",A34),"") ->  | G34: =IFERROR(INDEX($F$1:$F$1000,SMALL(IF($F$1:$F$1000="",66000,ROW($F$1:$F$1000)),ROW()),1),"") ->  | H34: =INDEX(B:B,MATCH(TRUE,A:A=G34,0)) -> 
A35: =IFERROR(INDEX(Таблица1[Код бумаги],MATCH(0,COUNTIF($A$1:A34,Таблица1[Код бумаги]),0)),"") ->  | B35: =IFERROR(INDEX(Таблица1[Краткое наименование инструмента],MATCH(0,COUNTIF($B$1:B34,Таблица1[Краткое наименование инструмента]),0)),"") ->  | D35: =IFERROR(INDEX($C$1:$C$1000,SMALL(IF($C$1:$C$1000="",66000,ROW($C$1:$C$1000)),ROW()),1),"") ->  | E35: =INDEX(B:B,MATCH(TRUE,A:A=D35,0)) ->  | G35: =IFERROR(INDEX($F$1:$F$1000,SMALL(IF($F$1:$F$1000="",66000,ROW($F$1:$F$1000)),ROW()),1),"") ->  | H35: =INDEX(B:B,MATCH(TRUE,A:A=G35,0)) -> 
A36: =IFERROR(INDEX(Таблица1[Код бумаги],MATCH(0,COUNTIF($A$1:A35,Таблица1[Код бумаги]),0)),"") ->  | B36: =IFERROR(INDEX(Таблица1[Краткое наименование инструмента],MATCH(0,COUNTIF($B$1:B35,Таблица1[Краткое наименование инструмента]),0)),"") ->  | D36: =IFERROR(INDEX($C$1:$C$1000,SMALL(IF($C$1:$C$1000="",66000,ROW($C$1:$C$1000)),ROW()),1),"") ->  | E36: =INDEX(B:B,MATCH(TRUE,A:A=D36,0)) ->  | G36: =IFERROR(INDEX($F$1:$F$1000,SMALL(IF($F$1:$F$1000="",66000,ROW($F$1:$F$1000)),ROW()),1),"") ->  | H36: =INDEX(B:B,MATCH(TRUE,A:A=G36,0)) -> 
A37: =IFERROR(INDEX(Таблица1[Код бумаги],MATCH(0,COUNTIF($A$1:A36,Таблица1[Код бумаги]),0)),"") ->  | B37: =IFERROR(INDEX(Таблица1[Краткое наименование инструмента],MATCH(0,COUNTIF($B$1:B36,Таблица1[Краткое наименование инструмента]),0)),"") ->  | D37: =IFERROR(INDEX($C$1:$C$1000,SMALL(IF($C$1:$C$1000="",66000,ROW($C$1:$C$1000)),ROW()),1),"") ->  | E37: =INDEX(B:B,MATCH(TRUE,A:A=D37,0)) ->  | G37: =IFERROR(INDEX($F$1:$F$1000,SMALL(IF($F$1:$F$1000="",66000,ROW($F$1:$F$1000)),ROW()),1),"") ->  | H37: =INDEX(B:B,MATCH(TRUE,A:A=G37,0)) -> 
A38: =IFERROR(INDEX(Таблица1[Код бумаги],MATCH(0,COUNTIF($A$1:A37,Таблица1[Код бумаги]),0)),"") ->  | B38: =IFERROR(INDEX(Таблица1[Краткое наименование инструмента],MATCH(0,COUNTIF($B$1:B37,Таблица1[Краткое наименование инструмента]),0)),"") ->  | D38: =IFERROR(INDEX($C$1:$C$1000,SMALL(IF($C$1:$C$1000="",66000,ROW($C$1:$C$1000)),ROW()),1),"") ->  | E38: =INDEX(B:B,MATCH(TRUE,A:A=D38,0)) ->  | G38: =IFERROR(INDEX($F$1:$F$1000,SMALL(IF($F$1:$F$1000="",66000,ROW($F$1:$F$1000)),ROW()),1),"") ->  | H38: =INDEX(B:B,MATCH(TRUE,A:A=G38,0)) -> 
A39: =IFERROR(INDEX(Таблица1[Код бумаги],MATCH(0,COUNTIF($A$1:A38,Таблица1[Код бумаги]),0)),"") ->  | B39: =IFERROR(INDEX(Таблица1[Краткое наименование инструмента],MATCH(0,COUNTIF($B$1:B38,Таблица1[Краткое наименование инструмента]),0)),"") ->  | D39: =IFERROR(INDEX($C$1:$C$1000,SMALL(IF($C$1:$C$1000="",66000,ROW($C$1:$C$1000)),ROW()),1),"") ->  | E39: =INDEX(B:B,MATCH(TRUE,A:A=D39,0)) ->  | G39: =IFERROR(INDEX($F$1:$F$1000,SMALL(IF($F$1:$F$1000="",66000,ROW($F$1:$F$1000)),ROW()),1),"") ->  | H39: =INDEX(B:B,MATCH(TRUE,A:A=G39,0)) -> 
A40: =IFERROR(INDEX(Таблица1[Код бумаги],MATCH(0,COUNTIF($A$1:A39,Таблица1[Код бумаги]),0)),"") ->  | B40: =IFERROR(INDEX(Таблица1[Краткое наименование инструмента],MATCH(0,COUNTIF($B$1:B39,Таблица1[Краткое наименование инструмента]),0)),"") ->  | D40: =IFERROR(INDEX($C$1:$C$1000,SMALL(IF($C$1:$C$1000="",66000,ROW($C$1:$C$1000)),ROW()),1),"") ->  | E40: =INDEX(B:B,MATCH(TRUE,A:A=D40,0)) ->  | G40: =IFERROR(INDEX($F$1:$F$1000,SMALL(IF($F$1:$F$1000="",66000,ROW($F$1:$F$1000)),ROW()),1),"") ->  | H40: =INDEX(B:B,MATCH(TRUE,A:A=G40,0)) -> 
A41: =IFERROR(INDEX(Таблица1[Код бумаги],MATCH(0,COUNTIF($A$1:A40,Таблица1[Код бумаги]),0)),"") ->  | B41: =IFERROR(INDEX(Таблица1[Краткое наименование инструмента],MATCH(0,COUNTIF($B$1:B40,Таблица1[Краткое наименование инструмента]),0)),"") ->  | D41: =IFERROR(INDEX($C$1:$C$1000,SMALL(IF($C$1:$C$1000="",66000,ROW($C$1:$C$1000)),ROW()),1),"") ->  | E41: =INDEX(B:B,MATCH(TRUE,A:A=D41,0)) ->  | G41: =IFERROR(INDEX($F$1:$F$1000,SMALL(IF($F$1:$F$1000="",66000,ROW($F$1:$F$1000)),ROW()),1),"") ->  | H41: =INDEX(B:B,MATCH(TRUE,A:A=G41,0)) -> 
A42: =IFERROR(INDEX(Таблица1[Код бумаги],MATCH(0,COUNTIF($A$1:A41,Таблица1[Код бумаги]),0)),"") ->  | B42: =IFERROR(INDEX(Таблица1[Краткое наименование инструмента],MATCH(0,COUNTIF($B$1:B41,Таблица1[Краткое наименование инструмента]),0)),"") ->  | D42: =IFERROR(INDEX($C$1:$C$1000,SMALL(IF($C$1:$C$1000="",66000,ROW($C$1:$C$1000)),ROW()),1),"") ->  | E42: =INDEX(B:B,MATCH(TRUE,A:A=D42,0)) ->  | G42: =IFERROR(INDEX($F$1:$F$1000,SMALL(IF($F$1:$F$1000="",66000,ROW($F$1:$F$1000)),ROW()),1),"") ->  | H42: =INDEX(B:B,MATCH(TRUE,A:A=G42,0)) -> 
A43: =IFERROR(INDEX(Таблица1[Код бумаги],MATCH(0,COUNTIF($A$1:A42,Таблица1[Код бумаги]),0)),"") ->  | B43: =IFERROR(INDEX(Таблица1[Краткое наименование инструмента],MATCH(0,COUNTIF($B$1:B42,Таблица1[Краткое наименование инструмента]),0)),"") ->  | D43: =IFERROR(INDEX($C$1:$C$1000,SMALL(IF($C$1:$C$1000="",66000,ROW($C$1:$C$1000)),ROW()),1),"") ->  | E43: =INDEX(B:B,MATCH(TRUE,A:A=D43,0)) ->  | G43: =IFERROR(INDEX($F$1:$F$1000,SMALL(IF($F$1:$F$1000="",66000,ROW($F$1:$F$1000)),ROW()),1),"") ->  | H43: =INDEX(B:B,MATCH(TRUE,A:A=G43,0)) -> 
A44: =IFERROR(INDEX(Таблица1[Код бумаги],MATCH(0,COUNTIF($A$1:A43,Таблица1[Код бумаги]),0)),"") ->  | B44: =IFERROR(INDEX(Таблица1[Краткое наименование инструмента],MATCH(0,COUNTIF($B$1:B43,Таблица1[Краткое наименование инструмента]),0)),"") ->  | D44: =IFERROR(INDEX($C$1:$C$1000,SMALL(IF($C$1:$C$1000="",66000,ROW($C$1:$C$1000)),ROW()),1),"") ->  | E44: =INDEX(B:B,MATCH(TRUE,A:A=D44,0)) ->  | G44: =IFERROR(INDEX($F$1:$F$1000,SMALL(IF($F$1:$F$1000="",66000,ROW($F$1:$F$1000)),ROW()),1),"") ->  | H44: =INDEX(B:B,MATCH(TRUE,A:A=G44,0)) -> 
A45: =IFERROR(INDEX(Таблица1[Код бумаги],MATCH(0,COUNTIF($A$1:A44,Таблица1[Код бумаги]),0)),"") ->  | B45: =IFERROR(INDEX(Таблица1[Краткое наименование инструмента],MATCH(0,COUNTIF($B$1:B44,Таблица1[Краткое наименование инструмента]),0)),"") ->  | D45: =IFERROR(INDEX($C$1:$C$1000,SMALL(IF($C$1:$C$1000="",66000,ROW($C$1:$C$1000)),ROW()),1),"") ->  | E45: =INDEX(B:B,MATCH(TRUE,A:A=D45,0)) ->  | G45: =IFERROR(INDEX($F$1:$F$1000,SMALL(IF($F$1:$F$1000="",66000,ROW($F$1:$F$1000)),ROW()),1),"") ->  | H45: =INDEX(B:B,MATCH(TRUE,A:A=G45,0)) -> 
A46: =IFERROR(INDEX(Таблица1[Код бумаги],MATCH(0,COUNTIF($A$1:A45,Таблица1[Код бумаги]),0)),"") ->  | B46: =IFERROR(INDEX(Таблица1[Краткое наименование инструмента],MATCH(0,COUNTIF($B$1:B45,Таблица1[Краткое наименование инструмента]),0)),"") ->  | D46: =IFERROR(INDEX($C$1:$C$1000,SMALL(IF($C$1:$C$1000="",66000,ROW($C$1:$C$1000)),ROW()),1),"") ->  | E46: =INDEX(B:B,MATCH(TRUE,A:A=D46,0)) ->  | G46: =IFERROR(INDEX($F$1:$F$1000,SMALL(IF($F$1:$F$1000="",66000,ROW($F$1:$F$1000)),ROW()),1),"") ->  | H46: =INDEX(B:B,MATCH(TRUE,A:A=G46,0)) -> 
A47: =IFERROR(INDEX(Таблица1[Код бумаги],MATCH(0,COUNTIF($A$1:A46,Таблица1[Код бумаги]),0)),"") ->  | B47: =IFERROR(INDEX(Таблица1[Краткое наименование инструмента],MATCH(0,COUNTIF($B$1:B46,Таблица1[Краткое наименование инструмента]),0)),"") ->  | D47: =IFERROR(INDEX($C$1:$C$1000,SMALL(IF($C$1:$C$1000="",66000,ROW($C$1:$C$1000)),ROW()),1),"") ->  | E47: =INDEX(B:B,MATCH(TRUE,A:A=D47,0)) ->  | G47: =IFERROR(INDEX($F$1:$F$1000,SMALL(IF($F$1:$F$1000="",66000,ROW($F$1:$F$1000)),ROW()),1),"") ->  | H47: =INDEX(B:B,MATCH(TRUE,A:A=G47,0)) -> 
A48: =IFERROR(INDEX(Таблица1[Код бумаги],MATCH(0,COUNTIF($A$1:A47,Таблица1[Код бумаги]),0)),"") ->  | B48: =IFERROR(INDEX(Таблица1[Краткое наименование инструмента],MATCH(0,COUNTIF($B$1:B47,Таблица1[Краткое наименование инструмента]),0)),"") ->  | D48: =IFERROR(INDEX($C$1:$C$1000,SMALL(IF($C$1:$C$1000="",66000,ROW($C$1:$C$1000)),ROW()),1),"") ->  | E48: =INDEX(B:B,MATCH(TRUE,A:A=D48,0)) ->  | G48: =IFERROR(INDEX($F$1:$F$1000,SMALL(IF($F$1:$F$1000="",66000,ROW($F$1:$F$1000)),ROW()),1),"") ->  | H48: =INDEX(B:B,MATCH(TRUE,A:A=G48,0)) -> 
A49: =IFERROR(INDEX(Таблица1[Код бумаги],MATCH(0,COUNTIF($A$1:A48,Таблица1[Код бумаги]),0)),"") ->  | B49: =IFERROR(INDEX(Таблица1[Краткое наименование инструмента],MATCH(0,COUNTIF($B$1:B48,Таблица1[Краткое наименование инструмента]),0)),"") ->  | D49: =IFERROR(INDEX($C$1:$C$1000,SMALL(IF($C$1:$C$1000="",66000,ROW($C$1:$C$1000)),ROW()),1),"") ->  | E49: =INDEX(B:B,MATCH(TRUE,A:A=D49,0)) ->  | G49: =IFERROR(INDEX($F$1:$F$1000,SMALL(IF($F$1:$F$1000="",66000,ROW($F$1:$F$1000)),ROW()),1),"") ->  | H49: =INDEX(B:B,MATCH(TRUE,A:A=G49,0)) -> 
A50: =IFERROR(INDEX(Таблица1[Код бумаги],MATCH(0,COUNTIF($A$1:A49,Таблица1[Код бумаги]),0)),"") ->  | B50: =IFERROR(INDEX(Таблица1[Краткое наименование инструмента],MATCH(0,COUNTIF($B$1:B49,Таблица1[Краткое наименование инструмента]),0)),"") ->  | D50: =IFERROR(INDEX($C$1:$C$1000,SMALL(IF($C$1:$C$1000="",66000,ROW($C$1:$C$1000)),ROW()),1),"") ->  | E50: =INDEX(B:B,MATCH(TRUE,A:A=D50,0)) ->  | G50: =IFERROR(INDEX($F$1:$F$1000,SMALL(IF($F$1:$F$1000="",66000,ROW($F$1:$F$1000)),ROW()),1),"") ->  | H50: =INDEX(B:B,MATCH(TRUE,A:A=G50,0)) -> 
A51: =IFERROR(INDEX(Таблица1[Код бумаги],MATCH(0,COUNTIF($A$1:A50,Таблица1[Код бумаги]),0)),"") ->  | B51: =IFERROR(INDEX(Таблица1[Краткое наименование инструмента],MATCH(0,COUNTIF($B$1:B50,Таблица1[Краткое наименование инструмента]),0)),"") ->  | D51: =IFERROR(INDEX($C$1:$C$1000,SMALL(IF($C$1:$C$1000="",66000,ROW($C$1:$C$1000)),ROW()),1),"") ->  | E51: =INDEX(B:B,MATCH(TRUE,A:A=D51,0)) ->  | G51: =IFERROR(INDEX($F$1:$F$1000,SMALL(IF($F$1:$F$1000="",66000,ROW($F$1:$F$1000)),ROW()),1),"") ->  | H51: =INDEX(B:B,MATCH(TRUE,A:A=G51,0)) -> 
A52: =IFERROR(INDEX(Таблица1[Код бумаги],MATCH(0,COUNTIF($A$1:A51,Таблица1[Код бумаги]),0)),"") ->  | B52: =IFERROR(INDEX(Таблица1[Краткое наименование инструмента],MATCH(0,COUNTIF($B$1:B51,Таблица1[Краткое наименование инструмента]),0)),"") ->  | D52: =IFERROR(INDEX($C$1:$C$1000,SMALL(IF($C$1:$C$1000="",66000,ROW($C$1:$C$1000)),ROW()),1),"") ->  | E52: =INDEX(B:B,MATCH(TRUE,A:A=D52,0)) ->  | G52: =IFERROR(INDEX($F$1:$F$1000,SMALL(IF($F$1:$F$1000="",66000,ROW($F$1:$F$1000)),ROW()),1),"") ->  | H52: =INDEX(B:B,MATCH(TRUE,A:A=G52,0)) -> 
A53: =IFERROR(INDEX(Таблица1[Код бумаги],MATCH(0,COUNTIF($A$1:A52,Таблица1[Код бумаги]),0)),"") ->  | B53: =IFERROR(INDEX(Таблица1[Краткое наименование инструмента],MATCH(0,COUNTIF($B$1:B52,Таблица1[Краткое наименование инструмента]),0)),"") ->  | D53: =IFERROR(INDEX($C$1:$C$1000,SMALL(IF($C$1:$C$1000="",66000,ROW($C$1:$C$1000)),ROW()),1),"") ->  | E53: =INDEX(B:B,MATCH(TRUE,A:A=D53,0)) ->  | G53: =IFERROR(INDEX($F$1:$F$1000,SMALL(IF($F$1:$F$1000="",66000,ROW($F$1:$F$1000)),ROW()),1),"") ->  | H53: =INDEX(B:B,MATCH(TRUE,A:A=G53,0)) -> 
A54: =IFERROR(INDEX(Таблица1[Код бумаги],MATCH(0,COUNTIF($A$1:A53,Таблица1[Код бумаги]),0)),"") ->  | B54: =IFERROR(INDEX(Таблица1[Краткое наименование инструмента],MATCH(0,COUNTIF($B$1:B53,Таблица1[Краткое наименование инструмента]),0)),"") ->  | D54: =IFERROR(INDEX($C$1:$C$1000,SMALL(IF($C$1:$C$1000="",66000,ROW($C$1:$C$1000)),ROW()),1),"") ->  | E54: =INDEX(B:B,MATCH(TRUE,A:A=D54,0)) ->  | G54: =IFERROR(INDEX($F$1:$F$1000,SMALL(IF($F$1:$F$1000="",66000,ROW($F$1:$F$1000)),ROW()),1),"") ->  | H54: =INDEX(B:B,MATCH(TRUE,A:A=G54,0)) -> 
A55: =IFERROR(INDEX(Таблица1[Код бумаги],MATCH(0,COUNTIF($A$1:A54,Таблица1[Код бумаги]),0)),"") ->  | B55: =IFERROR(INDEX(Таблица1[Краткое наименование инструмента],MATCH(0,COUNTIF($B$1:B54,Таблица1[Краткое наименование инструмента]),0)),"") ->  | D55: =IFERROR(INDEX($C$1:$C$1000,SMALL(IF($C$1:$C$1000="",66000,ROW($C$1:$C$1000)),ROW()),1),"") ->  | E55: =INDEX(B:B,MATCH(TRUE,A:A=D55,0)) ->  | G55: =IFERROR(INDEX($F$1:$F$1000,SMALL(IF($F$1:$F$1000="",66000,ROW($F$1:$F$1000)),ROW()),1),"") ->  | H55: =INDEX(B:B,MATCH(TRUE,A:A=G55,0)) -> 
A56: =IFERROR(INDEX(Таблица1[Код бумаги],MATCH(0,COUNTIF($A$1:A55,Таблица1[Код бумаги]),0)),"") ->  | B56: =IFERROR(INDEX(Таблица1[Краткое наименование инструмента],MATCH(0,COUNTIF($B$1:B55,Таблица1[Краткое наименование инструмента]),0)),"") ->  | D56: =IFERROR(INDEX($C$1:$C$1000,SMALL(IF($C$1:$C$1000="",66000,ROW($C$1:$C$1000)),ROW()),1),"") ->  | E56: =INDEX(B:B,MATCH(TRUE,A:A=D56,0)) ->  | G56: =IFERROR(INDEX($F$1:$F$1000,SMALL(IF($F$1:$F$1000="",66000,ROW($F$1:$F$1000)),ROW()),1),"") ->  | H56: =INDEX(B:B,MATCH(TRUE,A:A=G56,0)) -> 
A57: =IFERROR(INDEX(Таблица1[Код бумаги],MATCH(0,COUNTIF($A$1:A56,Таблица1[Код бумаги]),0)),"") ->  | B57: =IFERROR(INDEX(Таблица1[Краткое наименование инструмента],MATCH(0,COUNTIF($B$1:B56,Таблица1[Краткое наименование инструмента]),0)),"") ->  | D57: =IFERROR(INDEX($C$1:$C$1000,SMALL(IF($C$1:$C$1000="",66000,ROW($C$1:$C$1000)),ROW()),1),"") ->  | E57: =INDEX(B:B,MATCH(TRUE,A:A=D57,0)) ->  | G57: =IFERROR(INDEX($F$1:$F$1000,SMALL(IF($F$1:$F$1000="",66000,ROW($F$1:$F$1000)),ROW()),1),"") ->  | H57: =INDEX(B:B,MATCH(TRUE,A:A=G57,0)) -> 
A58: =IFERROR(INDEX(Таблица1[Код бумаги],MATCH(0,COUNTIF($A$1:A57,Таблица1[Код бумаги]),0)),"") ->  | B58: =IFERROR(INDEX(Таблица1[Краткое наименование инструмента],MATCH(0,COUNTIF($B$1:B57,Таблица1[Краткое наименование инструмента]),0)),"") ->  | D58: =IFERROR(INDEX($C$1:$C$1000,SMALL(IF($C$1:$C$1000="",66000,ROW($C$1:$C$1000)),ROW()),1),"") ->  | E58: =INDEX(B:B,MATCH(TRUE,A:A=D58,0)) ->  | G58: =IFERROR(INDEX($F$1:$F$1000,SMALL(IF($F$1:$F$1000="",66000,ROW($F$1:$F$1000)),ROW()),1),"") ->  | H58: =INDEX(B:B,MATCH(TRUE,A:A=G58,0)) -> 
A59: =IFERROR(INDEX(Таблица1[Код бумаги],MATCH(0,COUNTIF($A$1:A58,Таблица1[Код бумаги]),0)),"") ->  | B59: =IFERROR(INDEX(Таблица1[Краткое наименование инструмента],MATCH(0,COUNTIF($B$1:B58,Таблица1[Краткое наименование инструмента]),0)),"") ->  | D59: =IFERROR(INDEX($C$1:$C$1000,SMALL(IF($C$1:$C$1000="",66000,ROW($C$1:$C$1000)),ROW()),1),"") ->  | E59: =INDEX(B:B,MATCH(TRUE,A:A=D59,0)) ->  | G59: =IFERROR(INDEX($F$1:$F$1000,SMALL(IF($F$1:$F$1000="",66000,ROW($F$1:$F$1000)),ROW()),1),"") ->  | H59: =INDEX(B:B,MATCH(TRUE,A:A=G59,0)) -> 
A60: =IFERROR(INDEX(Таблица1[Код бумаги],MATCH(0,COUNTIF($A$1:A59,Таблица1[Код бумаги]),0)),"") ->  | B60: =IFERROR(INDEX(Таблица1[Краткое наименование инструмента],MATCH(0,COUNTIF($B$1:B59,Таблица1[Краткое наименование инструмента]),0)),"") ->  | D60: =IFERROR(INDEX($C$1:$C$1000,SMALL(IF($C$1:$C$1000="",66000,ROW($C$1:$C$1000)),ROW()),1),"") ->  | E60: =INDEX(B:B,MATCH(TRUE,A:A=D60,0)) ->  | G60: =IFERROR(INDEX($F$1:$F$1000,SMALL(IF($F$1:$F$1000="",66000,ROW($F$1:$F$1000)),ROW()),1),"") ->  | H60: =INDEX(B:B,MATCH(TRUE,A:A=G60,0)) -> 
A61: =IFERROR(INDEX(Таблица1[Код бумаги],MATCH(0,COUNTIF($A$1:A60,Таблица1[Код бумаги]),0)),"") ->  | B61: =IFERROR(INDEX(Таблица1[Краткое наименование инструмента],MATCH(0,COUNTIF($B$1:B60,Таблица1[Краткое наименование инструмента]),0)),"") ->  | D61: =IFERROR(INDEX($C$1:$C$1000,SMALL(IF($C$1:$C$1000="",66000,ROW($C$1:$C$1000)),ROW()),1),"") ->  | E61: =INDEX(B:B,MATCH(TRUE,A:A=D61,0)) ->  | G61: =IFERROR(INDEX($F$1:$F$1000,SMALL(IF($F$1:$F$1000="",66000,ROW($F$1:$F$1000)),ROW()),1),"") ->  | H61: =INDEX(B:B,MATCH(TRUE,A:A=G61,0)) -> 
A62: =IFERROR(INDEX(Таблица1[Код бумаги],MATCH(0,COUNTIF($A$1:A61,Таблица1[Код бумаги]),0)),"") ->  | B62: =IFERROR(INDEX(Таблица1[Краткое наименование инструмента],MATCH(0,COUNTIF($B$1:B61,Таблица1[Краткое наименование инструмента]),0)),"") ->  | D62: =IFERROR(INDEX($C$1:$C$1000,SMALL(IF($C$1:$C$1000="",66000,ROW($C$1:$C$1000)),ROW()),1),"") ->  | E62: =INDEX(B:B,MATCH(TRUE,A:A=D62,0)) ->  | G62: =IFERROR(INDEX($F$1:$F$1000,SMALL(IF($F$1:$F$1000="",66000,ROW($F$1:$F$1000)),ROW()),1),"") ->  | H62: =INDEX(B:B,MATCH(TRUE,A:A=G62,0)) -> 
A63: =IFERROR(INDEX(Таблица1[Код бумаги],MATCH(0,COUNTIF($A$1:A62,Таблица1[Код бумаги]),0)),"") ->  | B63: =IFERROR(INDEX(Таблица1[Краткое наименование инструмента],MATCH(0,COUNTIF($B$1:B62,Таблица1[Краткое наименование инструмента]),0)),"") ->  | D63: =IFERROR(INDEX($C$1:$C$1000,SMALL(IF($C$1:$C$1000="",66000,ROW($C$1:$C$1000)),ROW()),1),"") ->  | E63: =INDEX(B:B,MATCH(TRUE,A:A=D63,0)) ->  | G63: =IFERROR(INDEX($F$1:$F$1000,SMALL(IF($F$1:$F$1000="",66000,ROW($F$1:$F$1000)),ROW()),1),"") ->  | H63: =INDEX(B:B,MATCH(TRUE,A:A=G63,0)) -> 
A64: =IFERROR(INDEX(Таблица1[Код бумаги],MATCH(0,COUNTIF($A$1:A63,Таблица1[Код бумаги]),0)),"") ->  | B64: =IFERROR(INDEX(Таблица1[Краткое наименование инструмента],MATCH(0,COUNTIF($B$1:B63,Таблица1[Краткое наименование инструмента]),0)),"") ->  | D64: =IFERROR(INDEX($C$1:$C$1000,SMALL(IF($C$1:$C$1000="",66000,ROW($C$1:$C$1000)),ROW()),1),"") ->  | E64: =INDEX(B:B,MATCH(TRUE,A:A=D64,0)) ->  | G64: =IFERROR(INDEX($F$1:$F$1000,SMALL(IF($F$1:$F$1000="",66000,ROW($F$1:$F$1000)),ROW()),1),"") ->  | H64: =INDEX(B:B,MATCH(TRUE,A:A=G64,0)) -> 
A65: =IFERROR(INDEX(Таблица1[Код бумаги],MATCH(0,COUNTIF($A$1:A64,Таблица1[Код бумаги]),0)),"") ->  | B65: =IFERROR(INDEX(Таблица1[Краткое наименование инструмента],MATCH(0,COUNTIF($B$1:B64,Таблица1[Краткое наименование инструмента]),0)),"") ->  | D65: =IFERROR(INDEX($C$1:$C$1000,SMALL(IF($C$1:$C$1000="",66000,ROW($C$1:$C$1000)),ROW()),1),"") ->  | E65: =INDEX(B:B,MATCH(TRUE,A:A=D65,0)) ->  | G65: =IFERROR(INDEX($F$1:$F$1000,SMALL(IF($F$1:$F$1000="",66000,ROW($F$1:$F$1000)),ROW()),1),"") ->  | H65: =INDEX(B:B,MATCH(TRUE,A:A=G65,0)) -> 
A66: =IFERROR(INDEX(Таблица1[Код бумаги],MATCH(0,COUNTIF($A$1:A65,Таблица1[Код бумаги]),0)),"") ->  | B66: =IFERROR(INDEX(Таблица1[Краткое наименование инструмента],MATCH(0,COUNTIF($B$1:B65,Таблица1[Краткое наименование инструмента]),0)),"") ->  | C66: =IFERROR(IF(A66=SEARCH("RU0",A66,1),"",""),A66) ->  | D66: =IFERROR(INDEX($C$1:$C$1000,SMALL(IF($C$1:$C$1000="",66000,ROW($C$1:$C$1000)),ROW()),1),"") ->  | E66: =INDEX(B:B,MATCH(TRUE,A:A=D66,0)) ->  | F66: =IFERROR(IF(A66=SEARCH("RU0",A66,1),"",A66),"") ->  | G66: =IFERROR(INDEX($F$1:$F$1000,SMALL(IF($F$1:$F$1000="",66000,ROW($F$1:$F$1000)),ROW()),1),"") ->  | H66: =INDEX(B:B,MATCH(TRUE,A:A=G66,0)) -> 
A67: =IFERROR(INDEX(Таблица1[Код бумаги],MATCH(0,COUNTIF($A$1:A66,Таблица1[Код бумаги]),0)),"") ->  | B67: =IFERROR(INDEX(Таблица1[Краткое наименование инструмента],MATCH(0,COUNTIF($B$1:B66,Таблица1[Краткое наименование инструмента]),0)),"") ->  | D67: =IFERROR(INDEX($C$1:$C$1000,SMALL(IF($C$1:$C$1000="",66000,ROW($C$1:$C$1000)),ROW()),1),"") ->  | E67: =INDEX(B:B,MATCH(TRUE,A:A=D67,0)) ->  | G67: =IFERROR(INDEX($F$1:$F$1000,SMALL(IF($F$1:$F$1000="",66000,ROW($F$1:$F$1000)),ROW()),1),"") ->  | H67: =INDEX(B:B,MATCH(TRUE,A:A=G67,0)) -> 
A68: =IFERROR(INDEX(Таблица1[Код бумаги],MATCH(0,COUNTIF($A$1:A67,Таблица1[Код бумаги]),0)),"") ->  | B68: =IFERROR(INDEX(Таблица1[Краткое наименование инструмента],MATCH(0,COUNTIF($B$1:B67,Таблица1[Краткое наименование инструмента]),0)),"") ->  | D68: =IFERROR(INDEX($C$1:$C$1000,SMALL(IF($C$1:$C$1000="",66000,ROW($C$1:$C$1000)),ROW()),1),"") ->  | E68: =INDEX(B:B,MATCH(TRUE,A:A=D68,0)) ->  | G68: =IFERROR(INDEX($F$1:$F$1000,SMALL(IF($F$1:$F$1000="",66000,ROW($F$1:$F$1000)),ROW()),1),"") ->  | H68: =INDEX(B:B,MATCH(TRUE,A:A=G68,0)) -> 
A69: =IFERROR(INDEX(Таблица1[Код бумаги],MATCH(0,COUNTIF($A$1:A68,Таблица1[Код бумаги]),0)),"") ->  | B69: =IFERROR(INDEX(Таблица1[Краткое наименование инструмента],MATCH(0,COUNTIF($B$1:B68,Таблица1[Краткое наименование инструмента]),0)),"") ->  | D69: =IFERROR(INDEX($C$1:$C$1000,SMALL(IF($C$1:$C$1000="",66000,ROW($C$1:$C$1000)),ROW()),1),"") ->  | E69: =INDEX(B:B,MATCH(TRUE,A:A=D69,0)) ->  | G69: =IFERROR(INDEX($F$1:$F$1000,SMALL(IF($F$1:$F$1000="",66000,ROW($F$1:$F$1000)),ROW()),1),"") ->  | H69: =INDEX(B:B,MATCH(TRUE,A:A=G69,0)) -> 
A70: =IFERROR(INDEX(Таблица1[Код бумаги],MATCH(0,COUNTIF($A$1:A69,Таблица1[Код бумаги]),0)),"") ->  | B70: =IFERROR(INDEX(Таблица1[Краткое наименование инструмента],MATCH(0,COUNTIF($B$1:B69,Таблица1[Краткое наименование инструмента]),0)),"") ->  | D70: =IFERROR(INDEX($C$1:$C$1000,SMALL(IF($C$1:$C$1000="",66000,ROW($C$1:$C$1000)),ROW()),1),"") ->  | E70: =INDEX(B:B,MATCH(TRUE,A:A=D70,0)) ->  | G70: =IFERROR(INDEX($F$1:$F$1000,SMALL(IF($F$1:$F$1000="",66000,ROW($F$1:$F$1000)),ROW()),1),"") ->  | H70: =INDEX(B:B,MATCH(TRUE,A:A=G70,0)) -> 
A71: =IFERROR(INDEX(Таблица1[Код бумаги],MATCH(0,COUNTIF($A$1:A70,Таблица1[Код бумаги]),0)),"") ->  | B71: =IFERROR(INDEX(Таблица1[Краткое наименование инструмента],MATCH(0,COUNTIF($B$1:B70,Таблица1[Краткое наименование инструмента]),0)),"") ->  | D71: =IFERROR(INDEX($C$1:$C$1000,SMALL(IF($C$1:$C$1000="",66000,ROW($C$1:$C$1000)),ROW()),1),"") ->  | E71: =INDEX(B:B,MATCH(TRUE,A:A=D71,0)) ->  | G71: =IFERROR(INDEX($F$1:$F$1000,SMALL(IF($F$1:$F$1000="",66000,ROW($F$1:$F$1000)),ROW()),1),"") ->  | H71: =INDEX(B:B,MATCH(TRUE,A:A=G71,0)) -> 
A72: =IFERROR(INDEX(Таблица1[Код бумаги],MATCH(0,COUNTIF($A$1:A71,Таблица1[Код бумаги]),0)),"") ->  | B72: =IFERROR(INDEX(Таблица1[Краткое наименование инструмента],MATCH(0,COUNTIF($B$1:B71,Таблица1[Краткое наименование инструмента]),0)),"") ->  | D72: =IFERROR(INDEX($C$1:$C$1000,SMALL(IF($C$1:$C$1000="",66000,ROW($C$1:$C$1000)),ROW()),1),"") ->  | E72: =INDEX(B:B,MATCH(TRUE,A:A=D72,0)) ->  | G72: =IFERROR(INDEX($F$1:$F$1000,SMALL(IF($F$1:$F$1000="",66000,ROW($F$1:$F$1000)),ROW()),1),"") ->  | H72: =INDEX(B:B,MATCH(TRUE,A:A=G72,0)) -> 
A73: =IFERROR(INDEX(Таблица1[Код бумаги],MATCH(0,COUNTIF($A$1:A72,Таблица1[Код бумаги]),0)),"") ->  | B73: =IFERROR(INDEX(Таблица1[Краткое наименование инструмента],MATCH(0,COUNTIF($B$1:B72,Таблица1[Краткое наименование инструмента]),0)),"") ->  | D73: =IFERROR(INDEX($C$1:$C$1000,SMALL(IF($C$1:$C$1000="",66000,ROW($C$1:$C$1000)),ROW()),1),"") ->  | E73: =INDEX(B:B,MATCH(TRUE,A:A=D73,0)) ->  | G73: =IFERROR(INDEX($F$1:$F$1000,SMALL(IF($F$1:$F$1000="",66000,ROW($F$1:$F$1000)),ROW()),1),"") ->  | H73: =INDEX(B:B,MATCH(TRUE,A:A=G73,0)) -> 
A74: =IFERROR(INDEX(Таблица1[Код бумаги],MATCH(0,COUNTIF($A$1:A73,Таблица1[Код бумаги]),0)),"") ->  | B74: =IFERROR(INDEX(Таблица1[Краткое наименование инструмента],MATCH(0,COUNTIF($B$1:B73,Таблица1[Краткое наименование инструмента]),0)),"") ->  | D74: =IFERROR(INDEX($C$1:$C$1000,SMALL(IF($C$1:$C$1000="",66000,ROW($C$1:$C$1000)),ROW()),1),"") ->  | E74: =INDEX(B:B,MATCH(TRUE,A:A=D74,0)) ->  | G74: =IFERROR(INDEX($F$1:$F$1000,SMALL(IF($F$1:$F$1000="",66000,ROW($F$1:$F$1000)),ROW()),1),"") ->  | H74: =INDEX(B:B,MATCH(TRUE,A:A=G74,0)) -> 
A75: =IFERROR(INDEX(Таблица1[Код бумаги],MATCH(0,COUNTIF($A$1:A74,Таблица1[Код бумаги]),0)),"") ->  | B75: =IFERROR(INDEX(Таблица1[Краткое наименование инструмента],MATCH(0,COUNTIF($B$1:B74,Таблица1[Краткое наименование инструмента]),0)),"") ->  | D75: =IFERROR(INDEX($C$1:$C$1000,SMALL(IF($C$1:$C$1000="",66000,ROW($C$1:$C$1000)),ROW()),1),"") ->  | E75: =INDEX(B:B,MATCH(TRUE,A:A=D75,0)) ->  | G75: =IFERROR(INDEX($F$1:$F$1000,SMALL(IF($F$1:$F$1000="",66000,ROW($F$1:$F$1000)),ROW()),1),"") ->  | H75: =INDEX(B:B,MATCH(TRUE,A:A=G75,0)) -> 
A76: =IFERROR(INDEX(Таблица1[Код бумаги],MATCH(0,COUNTIF($A$1:A75,Таблица1[Код бумаги]),0)),"") ->  | B76: =IFERROR(INDEX(Таблица1[Краткое наименование инструмента],MATCH(0,COUNTIF($B$1:B75,Таблица1[Краткое наименование инструмента]),0)),"") ->  | D76: =IFERROR(INDEX($C$1:$C$1000,SMALL(IF($C$1:$C$1000="",66000,ROW($C$1:$C$1000)),ROW()),1),"") ->  | E76: =INDEX(B:B,MATCH(TRUE,A:A=D76,0)) ->  | G76: =IFERROR(INDEX($F$1:$F$1000,SMALL(IF($F$1:$F$1000="",66000,ROW($F$1:$F$1000)),ROW()),1),"") ->  | H76: =INDEX(B:B,MATCH(TRUE,A:A=G76,0)) -> 
A77: =IFERROR(INDEX(Таблица1[Код бумаги],MATCH(0,COUNTIF($A$1:A76,Таблица1[Код бумаги]),0)),"") ->  | B77: =IFERROR(INDEX(Таблица1[Краткое наименование инструмента],MATCH(0,COUNTIF($B$1:B76,Таблица1[Краткое наименование инструмента]),0)),"") ->  | D77: =IFERROR(INDEX($C$1:$C$1000,SMALL(IF($C$1:$C$1000="",66000,ROW($C$1:$C$1000)),ROW()),1),"") ->  | E77: =INDEX(B:B,MATCH(TRUE,A:A=D77,0)) ->  | G77: =IFERROR(INDEX($F$1:$F$1000,SMALL(IF($F$1:$F$1000="",66000,ROW($F$1:$F$1000)),ROW()),1),"") ->  | H77: =INDEX(B:B,MATCH(TRUE,A:A=G77,0)) -> 
A78: =IFERROR(INDEX(Таблица1[Код бумаги],MATCH(0,COUNTIF($A$1:A77,Таблица1[Код бумаги]),0)),"") ->  | B78: =IFERROR(INDEX(Таблица1[Краткое наименование инструмента],MATCH(0,COUNTIF($B$1:B77,Таблица1[Краткое наименование инструмента]),0)),"") ->  | D78: =IFERROR(INDEX($C$1:$C$1000,SMALL(IF($C$1:$C$1000="",66000,ROW($C$1:$C$1000)),ROW()),1),"") ->  | E78: =INDEX(B:B,MATCH(TRUE,A:A=D78,0)) ->  | G78: =IFERROR(INDEX($F$1:$F$1000,SMALL(IF($F$1:$F$1000="",66000,ROW($F$1:$F$1000)),ROW()),1),"") ->  | H78: =INDEX(B:B,MATCH(TRUE,A:A=G78,0)) -> 
A79: =IFERROR(INDEX(Таблица1[Код бумаги],MATCH(0,COUNTIF($A$1:A78,Таблица1[Код бумаги]),0)),"") ->  | B79: =IFERROR(INDEX(Таблица1[Краткое наименование инструмента],MATCH(0,COUNTIF($B$1:B78,Таблица1[Краткое наименование инструмента]),0)),"") ->  | D79: =IFERROR(INDEX($C$1:$C$1000,SMALL(IF($C$1:$C$1000="",66000,ROW($C$1:$C$1000)),ROW()),1),"") ->  | E79: =INDEX(B:B,MATCH(TRUE,A:A=D79,0)) ->  | G79: =IFERROR(INDEX($F$1:$F$1000,SMALL(IF($F$1:$F$1000="",66000,ROW($F$1:$F$1000)),ROW()),1),"") ->  | H79: =INDEX(B:B,MATCH(TRUE,A:A=G79,0)) -> 
A80: =IFERROR(INDEX(Таблица1[Код бумаги],MATCH(0,COUNTIF($A$1:A79,Таблица1[Код бумаги]),0)),"") ->  | B80: =IFERROR(INDEX(Таблица1[Краткое наименование инструмента],MATCH(0,COUNTIF($B$1:B79,Таблица1[Краткое наименование инструмента]),0)),"") ->  | D80: =IFERROR(INDEX($C$1:$C$1000,SMALL(IF($C$1:$C$1000="",66000,ROW($C$1:$C$1000)),ROW()),1),"") ->  | E80: =INDEX(B:B,MATCH(TRUE,A:A=D80,0)) ->  | G80: =IFERROR(INDEX($F$1:$F$1000,SMALL(IF($F$1:$F$1000="",66000,ROW($F$1:$F$1000)),ROW()),1),"") ->  | H80: =INDEX(B:B,MATCH(TRUE,A:A=G80,0)) -> 
A81: =IFERROR(INDEX(Таблица1[Код бумаги],MATCH(0,COUNTIF($A$1:A80,Таблица1[Код бумаги]),0)),"") ->  | B81: =IFERROR(INDEX(Таблица1[Краткое наименование инструмента],MATCH(0,COUNTIF($B$1:B80,Таблица1[Краткое наименование инструмента]),0)),"") ->  | D81: =IFERROR(INDEX($C$1:$C$1000,SMALL(IF($C$1:$C$1000="",66000,ROW($C$1:$C$1000)),ROW()),1),"") ->  | E81: =INDEX(B:B,MATCH(TRUE,A:A=D81,0)) ->  | G81: =IFERROR(INDEX($F$1:$F$1000,SMALL(IF($F$1:$F$1000="",66000,ROW($F$1:$F$1000)),ROW()),1),"") ->  | H81: =INDEX(B:B,MATCH(TRUE,A:A=G81,0)) -> 
A82: =IFERROR(INDEX(Таблица1[Код бумаги],MATCH(0,COUNTIF($A$1:A81,Таблица1[Код бумаги]),0)),"") ->  | B82: =IFERROR(INDEX(Таблица1[Краткое наименование инструмента],MATCH(0,COUNTIF($B$1:B81,Таблица1[Краткое наименование инструмента]),0)),"") ->  | D82: =IFERROR(INDEX($C$1:$C$1000,SMALL(IF($C$1:$C$1000="",66000,ROW($C$1:$C$1000)),ROW()),1),"") ->  | E82: =INDEX(B:B,MATCH(TRUE,A:A=D82,0)) ->  | G82: =IFERROR(INDEX($F$1:$F$1000,SMALL(IF($F$1:$F$1000="",66000,ROW($F$1:$F$1000)),ROW()),1),"") ->  | H82: =INDEX(B:B,MATCH(TRUE,A:A=G82,0)) -> 
A83: =IFERROR(INDEX(Таблица1[Код бумаги],MATCH(0,COUNTIF($A$1:A82,Таблица1[Код бумаги]),0)),"") ->  | B83: =IFERROR(INDEX(Таблица1[Краткое наименование инструмента],MATCH(0,COUNTIF($B$1:B82,Таблица1[Краткое наименование инструмента]),0)),"") ->  | D83: =IFERROR(INDEX($C$1:$C$1000,SMALL(IF($C$1:$C$1000="",66000,ROW($C$1:$C$1000)),ROW()),1),"") ->  | E83: =INDEX(B:B,MATCH(TRUE,A:A=D83,0)) ->  | G83: =IFERROR(INDEX($F$1:$F$1000,SMALL(IF($F$1:$F$1000="",66000,ROW($F$1:$F$1000)),ROW()),1),"") ->  | H83: =INDEX(B:B,MATCH(TRUE,A:A=G83,0)) -> 
A84: =IFERROR(INDEX(Таблица1[Код бумаги],MATCH(0,COUNTIF($A$1:A83,Таблица1[Код бумаги]),0)),"") ->  | B84: =IFERROR(INDEX(Таблица1[Краткое наименование инструмента],MATCH(0,COUNTIF($B$1:B83,Таблица1[Краткое наименование инструмента]),0)),"") ->  | D84: =IFERROR(INDEX($C$1:$C$1000,SMALL(IF($C$1:$C$1000="",66000,ROW($C$1:$C$1000)),ROW()),1),"") ->  | E84: =INDEX(B:B,MATCH(TRUE,A:A=D84,0)) ->  | G84: =IFERROR(INDEX($F$1:$F$1000,SMALL(IF($F$1:$F$1000="",66000,ROW($F$1:$F$1000)),ROW()),1),"") ->  | H84: =INDEX(B:B,MATCH(TRUE,A:A=G84,0)) -> 
A85: =IFERROR(INDEX(Таблица1[Код бумаги],MATCH(0,COUNTIF($A$1:A84,Таблица1[Код бумаги]),0)),"") ->  | B85: =IFERROR(INDEX(Таблица1[Краткое наименование инструмента],MATCH(0,COUNTIF($B$1:B84,Таблица1[Краткое наименование инструмента]),0)),"") ->  | D85: =IFERROR(INDEX($C$1:$C$1000,SMALL(IF($C$1:$C$1000="",66000,ROW($C$1:$C$1000)),ROW()),1),"") ->  | E85: =INDEX(B:B,MATCH(TRUE,A:A=D85,0)) ->  | G85: =IFERROR(INDEX($F$1:$F$1000,SMALL(IF($F$1:$F$1000="",66000,ROW($F$1:$F$1000)),ROW()),1),"") ->  | H85: =INDEX(B:B,MATCH(TRUE,A:A=G85,0)) -> 
A86: =IFERROR(INDEX(Таблица1[Код бумаги],MATCH(0,COUNTIF($A$1:A85,Таблица1[Код бумаги]),0)),"") ->  | B86: =IFERROR(INDEX(Таблица1[Краткое наименование инструмента],MATCH(0,COUNTIF($B$1:B85,Таблица1[Краткое наименование инструмента]),0)),"") ->  | D86: =IFERROR(INDEX($C$1:$C$1000,SMALL(IF($C$1:$C$1000="",66000,ROW($C$1:$C$1000)),ROW()),1),"") ->  | E86: =INDEX(B:B,MATCH(TRUE,A:A=D86,0)) ->  | G86: =IFERROR(INDEX($F$1:$F$1000,SMALL(IF($F$1:$F$1000="",66000,ROW($F$1:$F$1000)),ROW()),1),"") ->  | H86: =INDEX(B:B,MATCH(TRUE,A:A=G86,0)) -> 
A87: =IFERROR(INDEX(Таблица1[Код бумаги],MATCH(0,COUNTIF($A$1:A86,Таблица1[Код бумаги]),0)),"") ->  | B87: =IFERROR(INDEX(Таблица1[Краткое наименование инструмента],MATCH(0,COUNTIF($B$1:B86,Таблица1[Краткое наименование инструмента]),0)),"") ->  | D87: =IFERROR(INDEX($C$1:$C$1000,SMALL(IF($C$1:$C$1000="",66000,ROW($C$1:$C$1000)),ROW()),1),"") ->  | E87: =INDEX(B:B,MATCH(TRUE,A:A=D87,0)) ->  | G87: =IFERROR(INDEX($F$1:$F$1000,SMALL(IF($F$1:$F$1000="",66000,ROW($F$1:$F$1000)),ROW()),1),"") ->  | H87: =INDEX(B:B,MATCH(TRUE,A:A=G87,0)) -> 
A88: =IFERROR(INDEX(Таблица1[Код бумаги],MATCH(0,COUNTIF($A$1:A87,Таблица1[Код бумаги]),0)),"") ->  | B88: =IFERROR(INDEX(Таблица1[Краткое наименование инструмента],MATCH(0,COUNTIF($B$1:B87,Таблица1[Краткое наименование инструмента]),0)),"") ->  | D88: =IFERROR(INDEX($C$1:$C$1000,SMALL(IF($C$1:$C$1000="",66000,ROW($C$1:$C$1000)),ROW()),1),"") ->  | E88: =INDEX(B:B,MATCH(TRUE,A:A=D88,0)) ->  | G88: =IFERROR(INDEX($F$1:$F$1000,SMALL(IF($F$1:$F$1000="",66000,ROW($F$1:$F$1000)),ROW()),1),"") ->  | H88: =INDEX(B:B,MATCH(TRUE,A:A=G88,0)) -> 
A89: =IFERROR(INDEX(Таблица1[Код бумаги],MATCH(0,COUNTIF($A$1:A88,Таблица1[Код бумаги]),0)),"") ->  | B89: =IFERROR(INDEX(Таблица1[Краткое наименование инструмента],MATCH(0,COUNTIF($B$1:B88,Таблица1[Краткое наименование инструмента]),0)),"") ->  | D89: =IFERROR(INDEX($C$1:$C$1000,SMALL(IF($C$1:$C$1000="",66000,ROW($C$1:$C$1000)),ROW()),1),"") ->  | E89: =INDEX(B:B,MATCH(TRUE,A:A=D89,0)) ->  | G89: =IFERROR(INDEX($F$1:$F$1000,SMALL(IF($F$1:$F$1000="",66000,ROW($F$1:$F$1000)),ROW()),1),"") ->  | H89: =INDEX(B:B,MATCH(TRUE,A:A=G89,0)) -> 
A90: =IFERROR(INDEX(Таблица1[Код бумаги],MATCH(0,COUNTIF($A$1:A89,Таблица1[Код бумаги]),0)),"") ->  | B90: =IFERROR(INDEX(Таблица1[Краткое наименование инструмента],MATCH(0,COUNTIF($B$1:B89,Таблица1[Краткое наименование инструмента]),0)),"") ->  | D90: =IFERROR(INDEX($C$1:$C$1000,SMALL(IF($C$1:$C$1000="",66000,ROW($C$1:$C$1000)),ROW()),1),"") ->  | E90: =INDEX(B:B,MATCH(TRUE,A:A=D90,0)) ->  | G90: =IFERROR(INDEX($F$1:$F$1000,SMALL(IF($F$1:$F$1000="",66000,ROW($F$1:$F$1000)),ROW()),1),"") ->  | H90: =INDEX(B:B,MATCH(TRUE,A:A=G90,0)) -> 
A91: =IFERROR(INDEX(Таблица1[Код бумаги],MATCH(0,COUNTIF($A$1:A90,Таблица1[Код бумаги]),0)),"") ->  | B91: =IFERROR(INDEX(Таблица1[Краткое наименование инструмента],MATCH(0,COUNTIF($B$1:B90,Таблица1[Краткое наименование инструмента]),0)),"") ->  | D91: =IFERROR(INDEX($C$1:$C$1000,SMALL(IF($C$1:$C$1000="",66000,ROW($C$1:$C$1000)),ROW()),1),"") ->  | E91: =INDEX(B:B,MATCH(TRUE,A:A=D91,0)) ->  | G91: =IFERROR(INDEX($F$1:$F$1000,SMALL(IF($F$1:$F$1000="",66000,ROW($F$1:$F$1000)),ROW()),1),"") ->  | H91: =INDEX(B:B,MATCH(TRUE,A:A=G91,0)) -> 
A92: =IFERROR(INDEX(Таблица1[Код бумаги],MATCH(0,COUNTIF($A$1:A91,Таблица1[Код бумаги]),0)),"") ->  | B92: =IFERROR(INDEX(Таблица1[Краткое наименование инструмента],MATCH(0,COUNTIF($B$1:B91,Таблица1[Краткое наименование инструмента]),0)),"") ->  | D92: =IFERROR(INDEX($C$1:$C$1000,SMALL(IF($C$1:$C$1000="",66000,ROW($C$1:$C$1000)),ROW()),1),"") ->  | E92: =INDEX(B:B,MATCH(TRUE,A:A=D92,0)) ->  | G92: =IFERROR(INDEX($F$1:$F$1000,SMALL(IF($F$1:$F$1000="",66000,ROW($F$1:$F$1000)),ROW()),1),"") ->  | H92: =INDEX(B:B,MATCH(TRUE,A:A=G92,0)) -> 
A93: =IFERROR(INDEX(Таблица1[Код бумаги],MATCH(0,COUNTIF($A$1:A92,Таблица1[Код бумаги]),0)),"") ->  | B93: =IFERROR(INDEX(Таблица1[Краткое наименование инструмента],MATCH(0,COUNTIF($B$1:B92,Таблица1[Краткое наименование инструмента]),0)),"") ->  | D93: =IFERROR(INDEX($C$1:$C$1000,SMALL(IF($C$1:$C$1000="",66000,ROW($C$1:$C$1000)),ROW()),1),"") ->  | E93: =INDEX(B:B,MATCH(TRUE,A:A=D93,0)) ->  | G93: =IFERROR(INDEX($F$1:$F$1000,SMALL(IF($F$1:$F$1000="",66000,ROW($F$1:$F$1000)),ROW()),1),"") ->  | H93: =INDEX(B:B,MATCH(TRUE,A:A=G93,0)) -> 
A94: =IFERROR(INDEX(Таблица1[Код бумаги],MATCH(0,COUNTIF($A$1:A93,Таблица1[Код бумаги]),0)),"") ->  | B94: =IFERROR(INDEX(Таблица1[Краткое наименование инструмента],MATCH(0,COUNTIF($B$1:B93,Таблица1[Краткое наименование инструмента]),0)),"") ->  | D94: =IFERROR(INDEX($C$1:$C$1000,SMALL(IF($C$1:$C$1000="",66000,ROW($C$1:$C$1000)),ROW()),1),"") ->  | E94: =INDEX(B:B,MATCH(TRUE,A:A=D94,0)) ->  | G94: =IFERROR(INDEX($F$1:$F$1000,SMALL(IF($F$1:$F$1000="",66000,ROW($F$1:$F$1000)),ROW()),1),"") ->  | H94: =INDEX(B:B,MATCH(TRUE,A:A=G94,0)) -> 
A95: =IFERROR(INDEX(Таблица1[Код бумаги],MATCH(0,COUNTIF($A$1:A94,Таблица1[Код бумаги]),0)),"") ->  | B95: =IFERROR(INDEX(Таблица1[Краткое наименование инструмента],MATCH(0,COUNTIF($B$1:B94,Таблица1[Краткое наименование инструмента]),0)),"") ->  | D95: =IFERROR(INDEX($C$1:$C$1000,SMALL(IF($C$1:$C$1000="",66000,ROW($C$1:$C$1000)),ROW()),1),"") ->  | E95: =INDEX(B:B,MATCH(TRUE,A:A=D95,0)) ->  | G95: =IFERROR(INDEX($F$1:$F$1000,SMALL(IF($F$1:$F$1000="",66000,ROW($F$1:$F$1000)),ROW()),1),"") ->  | H95: =INDEX(B:B,MATCH(TRUE,A:A=G95,0)) -> 
A96: =IFERROR(INDEX(Таблица1[Код бумаги],MATCH(0,COUNTIF($A$1:A95,Таблица1[Код бумаги]),0)),"") ->  | B96: =IFERROR(INDEX(Таблица1[Краткое наименование инструмента],MATCH(0,COUNTIF($B$1:B95,Таблица1[Краткое наименование инструмента]),0)),"") ->  | D96: =IFERROR(INDEX($C$1:$C$1000,SMALL(IF($C$1:$C$1000="",66000,ROW($C$1:$C$1000)),ROW()),1),"") ->  | E96: =INDEX(B:B,MATCH(TRUE,A:A=D96,0)) ->  | G96: =IFERROR(INDEX($F$1:$F$1000,SMALL(IF($F$1:$F$1000="",66000,ROW($F$1:$F$1000)),ROW()),1),"") ->  | H96: =INDEX(B:B,MATCH(TRUE,A:A=G96,0)) -> 
A97: =IFERROR(INDEX(Таблица1[Код бумаги],MATCH(0,COUNTIF($A$1:A96,Таблица1[Код бумаги]),0)),"") ->  | B97: =IFERROR(INDEX(Таблица1[Краткое наименование инструмента],MATCH(0,COUNTIF($B$1:B96,Таблица1[Краткое наименование инструмента]),0)),"") ->  | D97: =IFERROR(INDEX($C$1:$C$1000,SMALL(IF($C$1:$C$1000="",66000,ROW($C$1:$C$1000)),ROW()),1),"") ->  | E97: =INDEX(B:B,MATCH(TRUE,A:A=D97,0)) ->  | G97: =IFERROR(INDEX($F$1:$F$1000,SMALL(IF($F$1:$F$1000="",66000,ROW($F$1:$F$1000)),ROW()),1),"") ->  | H97: =INDEX(B:B,MATCH(TRUE,A:A=G97,0)) -> 
A98: =IFERROR(INDEX(Таблица1[Код бумаги],MATCH(0,COUNTIF($A$1:A97,Таблица1[Код бумаги]),0)),"") ->  | B98: =IFERROR(INDEX(Таблица1[Краткое наименование инструмента],MATCH(0,COUNTIF($B$1:B97,Таблица1[Краткое наименование инструмента]),0)),"") ->  | D98: =IFERROR(INDEX($C$1:$C$1000,SMALL(IF($C$1:$C$1000="",66000,ROW($C$1:$C$1000)),ROW()),1),"") ->  | E98: =INDEX(B:B,MATCH(TRUE,A:A=D98,0)) ->  | G98: =IFERROR(INDEX($F$1:$F$1000,SMALL(IF($F$1:$F$1000="",66000,ROW($F$1:$F$1000)),ROW()),1),"") ->  | H98: =INDEX(B:B,MATCH(TRUE,A:A=G98,0)) -> 
A99: =IFERROR(INDEX(Таблица1[Код бумаги],MATCH(0,COUNTIF($A$1:A98,Таблица1[Код бумаги]),0)),"") ->  | B99: =IFERROR(INDEX(Таблица1[Краткое наименование инструмента],MATCH(0,COUNTIF($B$1:B98,Таблица1[Краткое наименование инструмента]),0)),"") ->  | D99: =IFERROR(INDEX($C$1:$C$1000,SMALL(IF($C$1:$C$1000="",66000,ROW($C$1:$C$1000)),ROW()),1),"") ->  | E99: =INDEX(B:B,MATCH(TRUE,A:A=D99,0)) ->  | G99: =IFERROR(INDEX($F$1:$F$1000,SMALL(IF($F$1:$F$1000="",66000,ROW($F$1:$F$1000)),ROW()),1),"") ->  | H99: =INDEX(B:B,MATCH(TRUE,A:A=G99,0)) -> 
A100: =IFERROR(INDEX(Таблица1[Код бумаги],MATCH(0,COUNTIF($A$1:A99,Таблица1[Код бумаги]),0)),"") ->  | B100: =IFERROR(INDEX(Таблица1[Краткое наименование инструмента],MATCH(0,COUNTIF($B$1:B99,Таблица1[Краткое наименование инструмента]),0)),"") ->  | D100: =IFERROR(INDEX($C$1:$C$1000,SMALL(IF($C$1:$C$1000="",66000,ROW($C$1:$C$1000)),ROW()),1),"") ->  | E100: =INDEX(B:B,MATCH(TRUE,A:A=D100,0)) ->  | G100: =IFERROR(INDEX($F$1:$F$1000,SMALL(IF($F$1:$F$1000="",66000,ROW($F$1:$F$1000)),ROW()),1),"") ->  | H100: =INDEX(B:B,MATCH(TRUE,A:A=G100,0)) -> 
